Workbook

Sheet Kräfte
A1: Kurbelwinkel | B1: s mm | C1: Schwenkwinkel Pleuel | D1: vkolben m/s | E1: aosz m/s² | G1: Fosz N | H1: aquer m/s² | I1: Fnormalosz N | J1: pzyl bar | K1: Fgas N | L1: Fres N | M1: Fgleitbahn N | P1: Kurbelradius mm | R1: Bohrung mm | S1: Pleuellänge mm | U1: Drehzahl 1/min | W1: mosz kg | X1: vmax m/s | Y1: vmittel m/s | Z1: r = 44 l = 163 n = 4200
A2: =MAX(A4:A724) -> 540 | B2: =MAX(B4:B724) -> 88 | C2: =MAX(C4:C724) -> 15.66061622 | D2: =MAX(D4:D724) -> 20.04796302 | E2: =MAX(E4:E724) -> 6216.437282 | F2: =MAX(F4:F724) -> 6.216437282 | G2: =MAX(G4:G724) -> 4351.506097 | H2: =MAX(H4:H724) -> 1299.113568 | I2: 163 | J2: =MAX(J4:J724) -> 158.144 | K2: =MAX(K4:K724) -> 96011.85383 | L2: =MAX(L4:L724) -> 88562.4185 | M2: =MAX(M4:M724) -> 6506.367071 | N2: max | P2: 44 | R2: 88.2 | S2: 163 | U2: 4200 | W2: 0.7 | X2: =MAX(D4:D724) -> 20.04796302 | Y2: =P2*U2/15000 -> 12.32
A3: =MIN(A4:A724) -> -180 | B3: =MIN(B4:B724) -> 0 | C3: =MIN(C4:C724) -> -15.66061622 | D3: =MIN(D4:D724) -> -20.04796302 | E3: =MIN(E4:E724) -> -10809.1423 | F3: =MIN(F4:F724) -> -10.8091423 | G3: =MIN(G4:G724) -> -7566.39961 | H3: =MIN(H4:H724) -> -1299.113568 | I3: =MIN(I4:I724) -> -909.3794979 | J3: =MIN(J4:J724) -> 1.782 | K3: =MIN(K4:K724) -> 477.7864232 | L3: =MIN(L4:L724) -> -6151.869948 | M3: =MIN(M4:M724) -> -2961.321958 | N3: min
A4: -180 | B4: =S$2+P$2-SQRT(S$2^2-P$2^2*SIN(A4*PI()/180)^2)-P$2*COS(A4*PI()/180) -> 88 | C4: =ASIN($P$2/$S$2*SIN(A4*PI()/180))*180/PI() -> -1.894081038e-15 | D4: =(P$2^2*(PI()*U$2/30)*SIN(A4*PI()/180)*COS(A4*PI()/180)/SQRT(S$2^2-P$2^2*SIN(A4*PI()/180)^2)+P$2*(PI()*U$2/30)*SIN(A4*PI()/180))/1000 -> -1.730217872e-15 | E4: =-1*(PI()^2*U$2^2*P$2*COS(PI()*A4/180)/900+SQRT(2)*PI()^2*U$2^2*P$2^2*(4*(2*S$2^2-P$2^2)*COS(PI()*A4/90)+P$2^2*(COS(PI()*A4/45)+3))/(3600*(P$2^2*COS(PI()*A4/90)+2*S$2^2-P$2^2)^(3/2)))/1000 -> 6213.951371 | F4: =E4/1000 -> 6.213951371 | G4: =$W$2*E4 -> 4349.765959 | H4: =E4*TAN(C4*PI()/180) -> -2.054204962e-13 | I4: =$W$2*H4 -> -1.437943474e-13 | J4: 3.181 | K4: =(J4-1)/10*$R$2^2*PI()/4 -> 1332.547556 | L4: =G4+K4 -> 5682.313516 | M4: =L4*TAN(C4*PI()/180) -> -1.878456384e-13
A5: =A4+1 -> -179 | B5: =S$2+P$2-SQRT(S$2^2-P$2^2*SIN(A5*PI()/180)^2)-P$2*COS(A5*PI()/180) -> 87.99510743 | C5: =ASIN($P$2/$S$2*SIN(A5*PI()/180))*180/PI() -> -0.2699259443 | D5: =(P$2^2*(PI()*U$2/30)*SIN(A5*PI()/180)*COS(A5*PI()/180)/SQRT(S$2^2-P$2^2*SIN(A5*PI()/180)^2)+P$2*(PI()*U$2/30)*SIN(A5*PI()/180))/1000 -> -0.246585727 | E5: =-1*(PI()^2*U$2^2*P$2*COS(PI()*A5/180)/900+SQRT(2)*PI()^2*U$2^2*P$2^2*(4*(2*S$2^2-P$2^2)*COS(PI()*A5/90)+P$2^2*(COS(PI()*A5/45)+3))/(3600*(P$2^2*COS(PI()*A5/90)+2*S$2^2-P$2^2)^(3/2)))/1000 -> 6213.978193 | F5: =E5/1000 -> 6.213978193 | G5: =$W$2*E5 -> 4349.784735 | H5: =E5*TAN(C5*PI()/180) -> -29.27486728 | I5: =$W$2*H5 -> -20.49240709 | J5: 3.125 | K5: =(J5-1)/10*$R$2^2*PI()/4 -> 1298.332672 | L5: =G5+K5 -> 5648.117407 | M5: =L5*TAN(C5*PI()/180) -> -26.60902281
A6: =A5+1 -> -178 | B6: =S$2+P$2-SQRT(S$2^2-P$2^2*SIN(A6*PI()/180)^2)-P$2*COS(A6*PI()/180) -> 87.98042968 | C6: =ASIN($P$2/$S$2*SIN(A6*PI()/180))*180/PI() -> -0.5397756543 | D6: =(P$2^2*(PI()*U$2/30)*SIN(A6*PI()/180)*COS(A6*PI()/180)/SQRT(S$2^2-P$2^2*SIN(A6*PI()/180)^2)+P$2*(PI()*U$2/30)*SIN(A6*PI()/180))/1000 -> -0.4931735713 | E6: =-1*(PI()^2*U$2^2*P$2*COS(PI()*A6/180)/900+SQRT(2)*PI()^2*U$2^2*P$2^2*(4*(2*S$2^2-P$2^2)*COS(PI()*A6/90)+P$2^2*(COS(PI()*A6/45)+3))/(3600*(P$2^2*COS(PI()*A6/90)+2*S$2^2-P$2^2)^(3/2)))/1000 -> 6214.057789 | F6: =E6/1000 -> 6.214057789 | G6: =$W$2*E6 -> 4349.840452 | H6: =E6*TAN(C6*PI()/180) -> -58.54351529 | I6: =$W$2*H6 -> -40.9804607 | J6: 3.181 | K6: =(J6-1)/10*$R$2^2*PI()/4 -> 1332.547556 | L6: =G6+K6 -> 5682.388009 | M6: =L6*TAN(C6*PI()/180) -> -53.53457926
A7: =A6+1 -> -177 | B7: =S$2+P$2-SQRT(S$2^2-P$2^2*SIN(A7*PI()/180)^2)-P$2*COS(A7*PI()/180) -> 87.95596661 | C7: =ASIN($P$2/$S$2*SIN(A7*PI()/180))*180/PI() -> -0.8094729037 | D7: =(P$2^2*(PI()*U$2/30)*SIN(A7*PI()/180)*COS(A7*PI()/180)/SQRT(S$2^2-P$2^2*SIN(A7*PI()/180)^2)+P$2*(PI()*U$2/30)*SIN(A7*PI()/180))/1000 -> -0.7397655809 | E7: =-1*(PI()^2*U$2^2*P$2*COS(PI()*A7/180)/900+SQRT(2)*PI()^2*U$2^2*P$2^2*(4*(2*S$2^2-P$2^2)*COS(PI()*A7/90)+P$2^2*(COS(PI()*A7/45)+3))/(3600*(P$2^2*COS(PI()*A7/90)+2*S$2^2-P$2^2)^(3/2)))/1000 -> 6214.187548 | F7: =E7/1000 -> 6.214187548 | G7: =$W$2*E7 -> 4349.931284 | H7: =E7*TAN(C7*PI()/180) -> -87.79968062 | I7: =$W$2*H7 -> -61.45977643 | J7: 3.069 | K7: =(J7-1)/10*$R$2^2*PI()/4 -> 1264.117787 | L7: =G7+K7 -> 5614.049071 | M7: =L7*TAN(C7*PI()/180) -> -79.32037963
A8: =A7+1 -> -176 | B8: =S$2+P$2-SQRT(S$2^2-P$2^2*SIN(A8*PI()/180)^2)-P$2*COS(A8*PI()/180) -> 87.92171804 | C8: =ASIN($P$2/$S$2*SIN(A8*PI()/180))*180/PI() -> -1.078941482 | D8: =(P$2^2*(PI()*U$2/30)*SIN(A8*PI()/180)*COS(A8*PI()/180)/SQRT(S$2^2-P$2^2*SIN(A8*PI()/180)^2)+P$2*(PI()*U$2/30)*SIN(A8*PI()/180))/1000 -> -0.986363666 | E8: =-1*(PI()^2*U$2^2*P$2*COS(PI()*A8/180)/900+SQRT(2)*PI()^2*U$2^2*P$2^2*(4*(2*S$2^2-P$2^2)*COS(PI()*A8/90)+P$2^2*(COS(PI()*A8/45)+3))/(3600*(P$2^2*COS(PI()*A8/90)+2*S$2^2-P$2^2)^(3/2)))/1000 -> 6214.363121 | F8: =E8/1000 -> 6.214363121 | G8: =$W$2*E8 -> 4350.054185 | H8: =E8*TAN(C8*PI()/180) -> -117.0370116 | I8: =$W$2*H8 -> -81.92590815 | J8: 3.013 | K8: =(J8-1)/10*$R$2^2*PI()/4 -> 1229.902903 | L8: =G8+K8 -> 5579.957088 | M8: =L8*TAN(C8*PI()/180) -> -105.0890477
A9: =A8+1 -> -175 | B9: =S$2+P$2-SQRT(S$2^2-P$2^2*SIN(A9*PI()/180)^2)-P$2*COS(A9*PI()/180) -> 87.87768368 | C9: =ASIN($P$2/$S$2*SIN(A9*PI()/180))*180/PI() -> -1.348105204 | D9: =(P$2^2*(PI()*U$2/30)*SIN(A9*PI()/180)*COS(A9*PI()/180)/SQRT(S$2^2-P$2^2*SIN(A9*PI()/180)^2)+P$2*(PI()*U$2/30)*SIN(A9*PI()/180))/1000 -> -1.232969529 | E9: =-1*(PI()^2*U$2^2*P$2*COS(PI()*A9/180)/900+SQRT(2)*PI()^2*U$2^2*P$2^2*(4*(2*S$2^2-P$2^2)*COS(PI()*A9/90)+P$2^2*(COS(PI()*A9/45)+3))/(3600*(P$2^2*COS(PI()*A9/90)+2*S$2^2-P$2^2)^(3/2)))/1000 -> 6214.578416 | F9: =E9/1000 -> 6.214578416 | G9: =$W$2*E9 -> 4350.204891 | H9: =E9*TAN(C9*PI()/180) -> -146.2490246 | I9: =$W$2*H9 -> -102.3743172 | J9: 3.125 | K9: =(J9-1)/10*$R$2^2*PI()/4 -> 1298.332672 | L9: =G9+K9 -> 5648.537563 | M9: =L9*TAN(C9*PI()/180) -> -132.9282622
A10: =A9+1 -> -174 | B10: =S$2+P$2-SQRT(S$2^2-P$2^2*SIN(A10*PI()/180)^2)-P$2*COS(A10*PI()/180) -> 87.8238632 | C10: =ASIN($P$2/$S$2*SIN(A10*PI()/180))*180/PI() -> -1.616887914 | D10: =(P$2^2*(PI()*U$2/30)*SIN(A10*PI()/180)*COS(A10*PI()/180)/SQRT(S$2^2-P$2^2*SIN(A10*PI()/180)^2)+P$2*(PI()*U$2/30)*SIN(A10*PI()/180))/1000 -> -1.479584598 | E10: =-1*(PI()^2*U$2^2*P$2*COS(PI()*A10/180)/900+SQRT(2)*PI()^2*U$2^2*P$2^2*(4*(2*S$2^2-P$2^2)*COS(PI()*A10/90)+P$2^2*(COS(PI()*A10/45)+3))/(3600*(P$2^2*COS(PI()*A10/90)+2*S$2^2-P$2^2)^(3/2)))/1000 -> 6214.825602 | F10: =E10/1000 -> 6.214825602 | G10: =$W$2*E10 -> 4350.377922 | H10: =E10*TAN(C10*PI()/180) -> -175.42906 | I10: =$W$2*H10 -> -122.800342 | J10: 3.237 | K10: =(J10-1)/10*$R$2^2*PI()/4 -> 1366.762441 | L10: =G10+K10 -> 5717.140363 | M10: =L10*TAN(C10*PI()/180) -> -161.3806442
A11: =A10+1 -> -173 | B11: =S$2+P$2-SQRT(S$2^2-P$2^2*SIN(A11*PI()/180)^2)-P$2*COS(A11*PI()/180) -> 87.7602562 | C11: =ASIN($P$2/$S$2*SIN(A11*PI()/180))*180/PI() -> -1.885213501 | D11: =(P$2^2*(PI()*U$2/30)*SIN(A11*PI()/180)*COS(A11*PI()/180)/SQRT(S$2^2-P$2^2*SIN(A11*PI()/180)^2)+P$2*(PI()*U$2/30)*SIN(A11*PI()/180))/1000 -> -1.726209953 | E11: =-1*(PI()^2*U$2^2*P$2*COS(PI()*A11/180)/900+SQRT(2)*PI()^2*U$2^2*P$2^2*(4*(2*S$2^2-P$2^2)*COS(PI()*A11/90)+P$2^2*(COS(PI()*A11/45)+3))/(3600*(P$2^2*COS(PI()*A11/90)+2*S$2^2-P$2^2)^(3/2)))/1000 -> 6215.095108 | F11: =E11/1000 -> 6.215095108 | G11: =$W$2*E11 -> 4350.566576 | H11: =E11*TAN(C11*PI()/180) -> -204.570239 | I11: =$W$2*H11 -> -143.1991673 | J11: 3.181 | K11: =(J11-1)/10*$R$2^2*PI()/4 -> 1332.547556 | L11: =G11+K11 -> 5683.114132 | M11: =L11*TAN(C11*PI()/180) -> -187.0600524
A12: =A11+1 -> -172 | B12: =S$2+P$2-SQRT(S$2^2-P$2^2*SIN(A12*PI()/180)^2)-P$2*COS(A12*PI()/180) -> 87.68686226 | C12: =ASIN($P$2/$S$2*SIN(A12*PI()/180))*180/PI() -> -2.153005899 | D12: =(P$2^2*(PI()*U$2/30)*SIN(A12*PI()/180)*COS(A12*PI()/180)/SQRT(S$2^2-P$2^2*SIN(A12*PI()/180)^2)+P$2*(PI()*U$2/30)*SIN(A12*PI()/180))/1000 -> -1.972846261 | E12: =-1*(PI()^2*U$2^2*P$2*COS(PI()*A12/180)/900+SQRT(2)*PI()^2*U$2^2*P$2^2*(4*(2*S$2^2-P$2^2)*COS(PI()*A12/90)+P$2^2*(COS(PI()*A12/45)+3))/(3600*(P$2^2*COS(PI()*A12/90)+2*S$2^2-P$2^2)^(3/2)))/1000 -> 6215.375622 | F12: =E12/1000 -> 6.215375622 | G12: =$W$2*E12 -> 4350.762936 | H12: =E12*TAN(C12*PI()/180) -> -233.6654208 | I12: =$W$2*H12 -> -163.5657946 | J12: 3.125 | K12: =(J12-1)/10*$R$2^2*PI()/4 -> 1298.332672 | L12: =G12+K12 -> 5649.095607 | M12: =L12*TAN(C12*PI()/180) -> -212.3762718
A13: =A12+1 -> -171 | B13: =S$2+P$2-SQRT(S$2^2-P$2^2*SIN(A13*PI()/180)^2)-P$2*COS(A13*PI()/180) -> 87.60368095 | C13: =ASIN($P$2/$S$2*SIN(A13*PI()/180))*180/PI() -> -2.420189103 | D13: =(P$2^2*(PI()*U$2/30)*SIN(A13*PI()/180)*COS(A13*PI()/180)/SQRT(S$2^2-P$2^2*SIN(A13*PI()/180)^2)+P$2*(PI()*U$2/30)*SIN(A13*PI()/180))/1000 -> -2.219493706 | E13: =-1*(PI()^2*U$2^2*P$2*COS(PI()*A13/180)/900+SQRT(2)*PI()^2*U$2^2*P$2^2*(4*(2*S$2^2-P$2^2)*COS(PI()*A13/90)+P$2^2*(COS(PI()*A13/45)+3))/(3600*(P$2^2*COS(PI()*A13/90)+2*S$2^2-P$2^2)^(3/2)))/1000 -> 6215.654093 | F13: =E13/1000 -> 6.215654093 | G13: =$W$2*E13 -> 4350.957865 | H13: =E13*TAN(C13*PI()/180) -> -262.7071598 | I13: =$W$2*H13 -> -183.8950118 | J13: 3.237 | K13: =(J13-1)/10*$R$2^2*PI()/4 -> 1366.762441 | L13: =G13+K13 -> 5717.720306 | M13: =L13*TAN(C13*PI()/180) -> -241.6617848
A14: =A13+1 -> -170 | B14: =S$2+P$2-SQRT(S$2^2-P$2^2*SIN(A14*PI()/180)^2)-P$2*COS(A14*PI()/180) -> 87.51071182 | C14: =ASIN($P$2/$S$2*SIN(A14*PI()/180))*180/PI() -> -2.686687172 | D14: =(P$2^2*(PI()*U$2/30)*SIN(A14*PI()/180)*COS(A14*PI()/180)/SQRT(S$2^2-P$2^2*SIN(A14*PI()/180)^2)+P$2*(PI()*U$2/30)*SIN(A14*PI()/180))/1000 -> -2.466151919 | E14: =-1*(PI()^2*U$2^2*P$2*COS(PI()*A14/180)/900+SQRT(2)*PI()^2*U$2^2*P$2^2*(4*(2*S$2^2-P$2^2)*COS(PI()*A14/90)+P$2^2*(COS(PI()*A14/45)+3))/(3600*(P$2^2*COS(PI()*A14/90)+2*S$2^2-P$2^2)^(3/2)))/1000 -> 6215.915729 | F14: =E14/1000 -> 6.215915729 | G14: =$W$2*E14 -> 4351.141011 | H14: =E14*TAN(C14*PI()/180) -> -291.6876638 | I14: =$W$2*H14 -> -204.1813646 | J14: 3.237 | K14: =(J14-1)/10*$R$2^2*PI()/4 -> 1366.762441 | L14: =G14+K14 -> 5717.903451 | M14: =L14*TAN(C14*PI()/180) -> -268.3179715
A15: =A14+1 -> -169 | B15: =S$2+P$2-SQRT(S$2^2-P$2^2*SIN(A15*PI()/180)^2)-P$2*COS(A15*PI()/180) -> 87.40795448 | C15: =ASIN($P$2/$S$2*SIN(A15*PI()/180))*180/PI() -> -2.952424244 | D15: =(P$2^2*(PI()*U$2/30)*SIN(A15*PI()/180)*COS(A15*PI()/180)/SQRT(S$2^2-P$2^2*SIN(A15*PI()/180)^2)+P$2*(PI()*U$2/30)*SIN(A15*PI()/180))/1000 -> -2.712819911 | E15: =-1*(PI()^2*U$2^2*P$2*COS(PI()*A15/180)/900+SQRT(2)*PI()^2*U$2^2*P$2^2*(4*(2*S$2^2-P$2^2)*COS(PI()*A15/90)+P$2^2*(COS(PI()*A15/45)+3))/(3600*(P$2^2*COS(PI()*A15/90)+2*S$2^2-P$2^2)^(3/2)))/1000 -> 6216.144002 | F15: =E15/1000 -> 6.216144002 | G15: =$W$2*E15 -> 4351.300801 | H15: =E15*TAN(C15*PI()/180) -> -320.5987527 | I15: =$W$2*H15 -> -224.4191269 | J15: 3.181 | K15: =(J15-1)/10*$R$2^2*PI()/4 -> 1332.547556 | L15: =G15+K15 -> 5683.848358 | M15: =L15*TAN(C15*PI()/180) -> -293.1455084
A16: =A15+1 -> -168 | B16: =S$2+P$2-SQRT(S$2^2-P$2^2*SIN(A16*PI()/180)^2)-P$2*COS(A16*PI()/180) -> 87.29540855 | C16: =ASIN($P$2/$S$2*SIN(A16*PI()/180))*180/PI() -> -3.217324538 | D16: =(P$2^2*(PI()*U$2/30)*SIN(A16*PI()/180)*COS(A16*PI()/180)/SQRT(S$2^2-P$2^2*SIN(A16*PI()/180)^2)+P$2*(PI()*U$2/30)*SIN(A16*PI()/180))/1000 -> -2.959495999 | E16: =-1*(PI()^2*U$2^2*P$2*COS(PI()*A16/180)/900+SQRT(2)*PI()^2*U$2^2*P$2^2*(4*(2*S$2^2-P$2^2)*COS(PI()*A16/90)+P$2^2*(COS(PI()*A16/45)+3))/(3600*(P$2^2*COS(PI()*A16/90)+2*S$2^2-P$2^2)^(3/2)))/1000 -> 6216.320643 | F16: =E16/1000 -> 6.216320643 | G16: =$W$2*E16 -> 4351.42445 | H16: =E16*TAN(C16*PI()/180) -> -349.431818 | I16: =$W$2*H16 -> -244.6022726 | J16: 3.237 | K16: =(J16-1)/10*$R$2^2*PI()/4 -> 1366.762441 | L16: =G16+K16 -> 5718.186891 | M16: =L16*TAN(C16*PI()/180) -> -321.4307233
A17: =A16+1 -> -167 | B17: =S$2+P$2-SQRT(S$2^2-P$2^2*SIN(A17*PI()/180)^2)-P$2*COS(A17*PI()/180) -> 87.17307377 | C17: =ASIN($P$2/$S$2*SIN(A17*PI()/180))*180/PI() -> -3.481312371 | D17: =(P$2^2*(PI()*U$2/30)*SIN(A17*PI()/180)*COS(A17*PI()/180)/SQRT(S$2^2-P$2^2*SIN(A17*PI()/180)^2)+P$2*(PI()*U$2/30)*SIN(A17*PI()/180))/1000 -> -3.206177745 | E17: =-1*(PI()^2*U$2^2*P$2*COS(PI()*A17/180)/900+SQRT(2)*PI()^2*U$2^2*P$2^2*(4*(2*S$2^2-P$2^2)*COS(PI()*A17/90)+P$2^2*(COS(PI()*A17/45)+3))/(3600*(P$2^2*COS(PI()*A17/90)+2*S$2^2-P$2^2)^(3/2)))/1000 -> 6216.425649 | F17: =E17/1000 -> 6.216425649 | G17: =$W$2*E17 -> 4351.497954 | H17: =E17*TAN(C17*PI()/180) -> -378.1777829 | I17: =$W$2*H17 -> -264.724448 | J17: 3.181 | K17: =(J17-1)/10*$R$2^2*PI()/4 -> 1332.547556 | L17: =G17+K17 -> 5684.045511 | M17: =L17*TAN(C17*PI()/180) -> -345.7903063
A18: =A17+1 -> -166 | B18: =S$2+P$2-SQRT(S$2^2-P$2^2*SIN(A18*PI()/180)^2)-P$2*COS(A18*PI()/180) -> 87.04094997 | C18: =ASIN($P$2/$S$2*SIN(A18*PI()/180))*180/PI() -> -3.744312163 | D18: =(P$2^2*(PI()*U$2/30)*SIN(A18*PI()/180)*COS(A18*PI()/180)/SQRT(S$2^2-P$2^2*SIN(A18*PI()/180)^2)+P$2*(PI()*U$2/30)*SIN(A18*PI()/180))/1000 -> -3.45286188 | E18: =-1*(PI()^2*U$2^2*P$2*COS(PI()*A18/180)/900+SQRT(2)*PI()^2*U$2^2*P$2^2*(4*(2*S$2^2-P$2^2)*COS(PI()*A18/90)+P$2^2*(COS(PI()*A18/45)+3))/(3600*(P$2^2*COS(PI()*A18/90)+2*S$2^2-P$2^2)^(3/2)))/1000 -> 6216.437282 | F18: =E18/1000 -> 6.216437282 | G18: =$W$2*E18 -> 4351.506097 | H18: =E18*TAN(C18*PI()/180) -> -406.8270638 | I18: =$W$2*H18 -> -284.7789447 | J18: 3.181 | K18: =(J18-1)/10*$R$2^2*PI()/4 -> 1332.547556 | L18: =G18+K18 -> 5684.053654 | M18: =L18*TAN(C18*PI()/180) -> -371.9858745
A19: =A18+1 -> -165 | B19: =S$2+P$2-SQRT(S$2^2-P$2^2*SIN(A19*PI()/180)^2)-P$2*COS(A19*PI()/180) -> 86.89903713 | C19: =ASIN($P$2/$S$2*SIN(A19*PI()/180))*180/PI() -> -4.006248451 | D19: =(P$2^2*(PI()*U$2/30)*SIN(A19*PI()/180)*COS(A19*PI()/180)/SQRT(S$2^2-P$2^2*SIN(A19*PI()/180)^2)+P$2*(PI()*U$2/30)*SIN(A19*PI()/180))/1000 -> -3.699544238 | E19: =-1*(PI()^2*U$2^2*P$2*COS(PI()*A19/180)/900+SQRT(2)*PI()^2*U$2^2*P$2^2*(4*(2*S$2^2-P$2^2)*COS(PI()*A19/90)+P$2^2*(COS(PI()*A19/45)+3))/(3600*(P$2^2*COS(PI()*A19/90)+2*S$2^2-P$2^2)^(3/2)))/1000 -> 6216.332072 | F19: =E19/1000 -> 6.216332072 | G19: =$W$2*E19 -> 4351.43245 | H19: =E19*TAN(C19*PI()/180) -> -435.3695324 | I19: =$W$2*H19 -> -304.7586727 | J19: 3.237 | K19: =(J19-1)/10*$R$2^2*PI()/4 -> 1366.762441 | L19: =G19+K19 -> 5718.194891 | M19: =L19*TAN(C19*PI()/180) -> -400.4817965
A20: =A19+1 -> -164 | B20: =S$2+P$2-SQRT(S$2^2-P$2^2*SIN(A20*PI()/180)^2)-P$2*COS(A20*PI()/180) -> 86.74733543 | C20: =ASIN($P$2/$S$2*SIN(A20*PI()/180))*180/PI() -> -4.267045894 | D20: =(P$2^2*(PI()*U$2/30)*SIN(A20*PI()/180)*COS(A20*PI()/180)/SQRT(S$2^2-P$2^2*SIN(A20*PI()/180)^2)+P$2*(PI()*U$2/30)*SIN(A20*PI()/180))/1000 -> -3.94621969 | E20: =-1*(PI()^2*U$2^2*P$2*COS(PI()*A20/180)/900+SQRT(2)*PI()^2*U$2^2*P$2^2*(4*(2*S$2^2-P$2^2)*COS(PI()*A20/90)+P$2^2*(COS(PI()*A20/45)+3))/(3600*(P$2^2*COS(PI()*A20/90)+2*S$2^2-P$2^2)^(3/2)))/1000 -> 6216.084821 | F20: =E20/1000 -> 6.216084821 | G20: =$W$2*E20 -> 4351.259374 | H20: =E20*TAN(C20*PI()/180) -> -463.794479 | I20: =$W$2*H20 -> -324.6561353 | J20: 3.293 | K20: =(J20-1)/10*$R$2^2*PI()/4 -> 1400.977325 | L20: =G20+K20 -> 5752.2367 | M20: =L20*TAN(C20*PI()/180) -> -429.1858461
A21: =A20+1 -> -163 | B21: =S$2+P$2-SQRT(S$2^2-P$2^2*SIN(A21*PI()/180)^2)-P$2*COS(A21*PI()/180) -> 86.58584527 | C21: =ASIN($P$2/$S$2*SIN(A21*PI()/180))*180/PI() -> -4.526629294 | D21: =(P$2^2*(PI()*U$2/30)*SIN(A21*PI()/180)*COS(A21*PI()/180)/SQRT(S$2^2-P$2^2*SIN(A21*PI()/180)^2)+P$2*(PI()*U$2/30)*SIN(A21*PI()/180))/1000 -> -4.192882069 | E21: =-1*(PI()^2*U$2^2*P$2*COS(PI()*A21/180)/900+SQRT(2)*PI()^2*U$2^2*P$2^2*(4*(2*S$2^2-P$2^2)*COS(PI()*A21/90)+P$2^2*(COS(PI()*A21/45)+3))/(3600*(P$2^2*COS(PI()*A21/90)+2*S$2^2-P$2^2)^(3/2)))/1000 -> 6215.668605 | F21: =E21/1000 -> 6.215668605 | G21: =$W$2*E21 -> 4350.968024 | H21: =E21*TAN(C21*PI()/180) -> -492.0905774 | I21: =$W$2*H21 -> -344.4634042 | J21: 3.237 | K21: =(J21-1)/10*$R$2^2*PI()/4 -> 1366.762441 | L21: =G21+K21 -> 5717.730465 | M21: =L21*TAN(C21*PI()/180) -> -452.6691277
A22: =A21+1 -> -162 | B22: =S$2+P$2-SQRT(S$2^2-P$2^2*SIN(A22*PI()/180)^2)-P$2*COS(A22*PI()/180) -> 86.41456728 | C22: =ASIN($P$2/$S$2*SIN(A22*PI()/180))*180/PI() -> -4.784923595 | D22: =(P$2^2*(PI()*U$2/30)*SIN(A22*PI()/180)*COS(A22*PI()/180)/SQRT(S$2^2-P$2^2*SIN(A22*PI()/180)^2)+P$2*(PI()*U$2/30)*SIN(A22*PI()/180))/1000 -> -4.439524109 | E22: =-1*(PI()^2*U$2^2*P$2*COS(PI()*A22/180)/900+SQRT(2)*PI()^2*U$2^2*P$2^2*(4*(2*S$2^2-P$2^2)*COS(PI()*A22/90)+P$2^2*(COS(PI()*A22/45)+3))/(3600*(P$2^2*COS(PI()*A22/90)+2*S$2^2-P$2^2)^(3/2)))/1000 -> 6215.054783 | F22: =E22/1000 -> 6.215054783 | G22: =$W$2*E22 -> 4350.538348 | H22: =E22*TAN(C22*PI()/180) -> -520.245851 | I22: =$W$2*H22 -> -364.1720957 | J22: 3.293 | K22: =(J22-1)/10*$R$2^2*PI()/4 -> 1400.977325 | L22: =G22+K22 -> 5751.515674 | M22: =L22*TAN(C22*PI()/180) -> -481.4442142
A23: =A22+1 -> -161 | B23: =S$2+P$2-SQRT(S$2^2-P$2^2*SIN(A23*PI()/180)^2)-P$2*COS(A23*PI()/180) -> 86.23350246 | C23: =ASIN($P$2/$S$2*SIN(A23*PI()/180))*180/PI() -> -5.041853908 | D23: =(P$2^2*(PI()*U$2/30)*SIN(A23*PI()/180)*COS(A23*PI()/180)/SQRT(S$2^2-P$2^2*SIN(A23*PI()/180)^2)+P$2*(PI()*U$2/30)*SIN(A23*PI()/180))/1000 -> -4.686137371 | E23: =-1*(PI()^2*U$2^2*P$2*COS(PI()*A23/180)/900+SQRT(2)*PI()^2*U$2^2*P$2^2*(4*(2*S$2^2-P$2^2)*COS(PI()*A23/90)+P$2^2*(COS(PI()*A23/45)+3))/(3600*(P$2^2*COS(PI()*A23/90)+2*S$2^2-P$2^2)^(3/2)))/1000 -> 6214.213 | F23: =E23/1000 -> 6.214213 | G23: =$W$2*E23 -> 4349.9491 | H23: =E23*TAN(C23*PI()/180) -> -548.2476403 | I23: =$W$2*H23 -> -383.7733482 | J23: 3.237 | K23: =(J23-1)/10*$R$2^2*PI()/4 -> 1366.762441 | L23: =G23+K23 -> 5716.711541 | M23: =L23*TAN(C23*PI()/180) -> -504.3556783
A24: =A23+1 -> -160 | B24: =S$2+P$2-SQRT(S$2^2-P$2^2*SIN(A24*PI()/180)^2)-P$2*COS(A24*PI()/180) -> 86.04265213 | C24: =ASIN($P$2/$S$2*SIN(A24*PI()/180))*180/PI() -> -5.297345512 | D24: =(P$2^2*(PI()*U$2/30)*SIN(A24*PI()/180)*COS(A24*PI()/180)/SQRT(S$2^2-P$2^2*SIN(A24*PI()/180)^2)+P$2*(PI()*U$2/30)*SIN(A24*PI()/180))/1000 -> -4.932712178 | E24: =-1*(PI()^2*U$2^2*P$2*COS(PI()*A24/180)/900+SQRT(2)*PI()^2*U$2^2*P$2^2*(4*(2*S$2^2-P$2^2)*COS(PI()*A24/90)+P$2^2*(COS(PI()*A24/45)+3))/(3600*(P$2^2*COS(PI()*A24/90)+2*S$2^2-P$2^2)^(3/2)))/1000 -> 6213.111192 | F24: =E24/1000 -> 6.213111192 | G24: =$W$2*E24 -> 4349.177834 | H24: =E24*TAN(C24*PI()/180) -> -576.0825721 | I24: =$W$2*H24 -> -403.2578005 | J24: 3.237 | K24: =(J24-1)/10*$R$2^2*PI()/4 -> 1366.762441 | L24: =G24+K24 -> 5715.940275 | M24: =L24*TAN(C24*PI()/180) -> -529.9846525
A25: =A24+1 -> -159 | B25: =S$2+P$2-SQRT(S$2^2-P$2^2*SIN(A25*PI()/180)^2)-P$2*COS(A25*PI()/180) -> 85.84201802 | C25: =ASIN($P$2/$S$2*SIN(A25*PI()/180))*180/PI() -> -5.551323876 | D25: =(P$2^2*(PI()*U$2/30)*SIN(A25*PI()/180)*COS(A25*PI()/180)/SQRT(S$2^2-P$2^2*SIN(A25*PI()/180)^2)+P$2*(PI()*U$2/30)*SIN(A25*PI()/180))/1000 -> -5.179237548 | E25: =-1*(PI()^2*U$2^2*P$2*COS(PI()*A25/180)/900+SQRT(2)*PI()^2*U$2^2*P$2^2*(4*(2*S$2^2-P$2^2)*COS(PI()*A25/90)+P$2^2*(COS(PI()*A25/45)+3))/(3600*(P$2^2*COS(PI()*A25/90)+2*S$2^2-P$2^2)^(3/2)))/1000 -> 6211.7156 | F25: =E25/1000 -> 6.2117156 | G25: =$W$2*E25 -> 4348.20092 | H25: =E25*TAN(C25*PI()/180) -> -603.7365307 | I25: =$W$2*H25 -> -422.6155715 | J25: 3.237 | K25: =(J25-1)/10*$R$2^2*PI()/4 -> 1366.762441 | L25: =G25+K25 -> 5714.963361 | M25: =L25*TAN(C25*PI()/180) -> -555.4555898
A26: =A25+1 -> -158 | B26: =S$2+P$2-SQRT(S$2^2-P$2^2*SIN(A26*PI()/180)^2)-P$2*COS(A26*PI()/180) -> 85.63160235 | C26: =ASIN($P$2/$S$2*SIN(A26*PI()/180))*180/PI() -> -5.803714666 | D26: =(P$2^2*(PI()*U$2/30)*SIN(A26*PI()/180)*COS(A26*PI()/180)/SQRT(S$2^2-P$2^2*SIN(A26*PI()/180)^2)+P$2*(PI()*U$2/30)*SIN(A26*PI()/180))/1000 -> -5.425701126 | E26: =-1*(PI()^2*U$2^2*P$2*COS(PI()*A26/180)/900+SQRT(2)*PI()^2*U$2^2*P$2^2*(4*(2*S$2^2-P$2^2)*COS(PI()*A26/90)+P$2^2*(COS(PI()*A26/45)+3))/(3600*(P$2^2*COS(PI()*A26/90)+2*S$2^2-P$2^2)^(3/2)))/1000 -> 6209.990779 | F26: =E26/1000 -> 6.209990779 | G26: =$W$2*E26 -> 4346.993545 | H26: =E26*TAN(C26*PI()/180) -> -631.1946304 | I26: =$W$2*H26 -> -441.8362413 | J26: 3.237 | K26: =(J26-1)/10*$R$2^2*PI()/4 -> 1366.762441 | L26: =G26+K26 -> 5713.755986 | M26: =L26*TAN(C26*PI()/180) -> -580.7564336
A27: =A26+1 -> -157 | B27: =S$2+P$2-SQRT(S$2^2-P$2^2*SIN(A27*PI()/180)^2)-P$2*COS(A27*PI()/180) -> 85.41140782 | C27: =ASIN($P$2/$S$2*SIN(A27*PI()/180))*180/PI() -> -6.054443764 | D27: =(P$2^2*(PI()*U$2/30)*SIN(A27*PI()/180)*COS(A27*PI()/180)/SQRT(S$2^2-P$2^2*SIN(A27*PI()/180)^2)+P$2*(PI()*U$2/30)*SIN(A27*PI()/180))/1000 -> -5.672089114 | E27: =-1*(PI()^2*U$2^2*P$2*COS(PI()*A27/180)/900+SQRT(2)*PI()^2*U$2^2*P$2^2*(4*(2*S$2^2-P$2^2)*COS(PI()*A27/90)+P$2^2*(COS(PI()*A27/45)+3))/(3600*(P$2^2*COS(PI()*A27/90)+2*S$2^2-P$2^2)^(3/2)))/1000 -> 6207.899604 | F27: =E27/1000 -> 6.207899604 | G27: =$W$2*E27 -> 4345.529723 | H27: =E27*TAN(C27*PI()/180) -> -658.4411911 | I27: =$W$2*H27 -> -460.9088338 | J27: 3.237 | K27: =(J27-1)/10*$R$2^2*PI()/4 -> 1366.762441 | L27: =G27+K27 -> 5712.292164 | M27: =L27*TAN(C27*PI()/180) -> -605.8745624
A28: =A27+1 -> -156 | B28: =S$2+P$2-SQRT(S$2^2-P$2^2*SIN(A28*PI()/180)^2)-P$2*COS(A28*PI()/180) -> 85.18143774 | C28: =ASIN($P$2/$S$2*SIN(A28*PI()/180))*180/PI() -> -6.303437281 | D28: =(P$2^2*(PI()*U$2/30)*SIN(A28*PI()/180)*COS(A28*PI()/180)/SQRT(S$2^2-P$2^2*SIN(A28*PI()/180)^2)+P$2*(PI()*U$2/30)*SIN(A28*PI()/180))/1000 -> -5.918386212 | E28: =-1*(PI()^2*U$2^2*P$2*COS(PI()*A28/180)/900+SQRT(2)*PI()^2*U$2^2*P$2^2*(4*(2*S$2^2-P$2^2)*COS(PI()*A28/90)+P$2^2*(COS(PI()*A28/45)+3))/(3600*(P$2^2*COS(PI()*A28/90)+2*S$2^2-P$2^2)^(3/2)))/1000 -> 6205.403293 | F28: =E28/1000 -> 6.205403293 | G28: =$W$2*E28 -> 4343.782305 | H28: =E28*TAN(C28*PI()/180) -> -685.4597151 | I28: =$W$2*H28 -> -479.8218006 | J28: 3.237 | K28: =(J28-1)/10*$R$2^2*PI()/4 -> 1366.762441 | L28: =G28+K28 -> 5710.544746 | M28: =L28*TAN(C28*PI()/180) -> -630.7967734
A29: =A28+1 -> -155 | B29: =S$2+P$2-SQRT(S$2^2-P$2^2*SIN(A29*PI()/180)^2)-P$2*COS(A29*PI()/180) -> 84.94169605 | C29: =ASIN($P$2/$S$2*SIN(A29*PI()/180))*180/PI() -> -6.550621569 | D29: =(P$2^2*(PI()*U$2/30)*SIN(A29*PI()/180)*COS(A29*PI()/180)/SQRT(S$2^2-P$2^2*SIN(A29*PI()/180)^2)+P$2*(PI()*U$2/30)*SIN(A29*PI()/180))/1000 -> -6.164575546 | E29: =-1*(PI()^2*U$2^2*P$2*COS(PI()*A29/180)/900+SQRT(2)*PI()^2*U$2^2*P$2^2*(4*(2*S$2^2-P$2^2)*COS(PI()*A29/90)+P$2^2*(COS(PI()*A29/45)+3))/(3600*(P$2^2*COS(PI()*A29/90)+2*S$2^2-P$2^2)^(3/2)))/1000 -> 6202.461412 | F29: =E29/1000 -> 6.202461412 | G29: =$W$2*E29 -> 4341.722988 | H29: =E29*TAN(C29*PI()/180) -> -712.2328669 | I29: =$W$2*H29 -> -498.5630068 | J29: 3.237 | K29: =(J29-1)/10*$R$2^2*PI()/4 -> 1366.762441 | L29: =G29+K29 -> 5708.485429 | M29: =L29*TAN(C29*PI()/180) -> -655.5092685
A30: =A29+1 -> -154 | B30: =S$2+P$2-SQRT(S$2^2-P$2^2*SIN(A30*PI()/180)^2)-P$2*COS(A30*PI()/180) -> 84.69218739 | C30: =ASIN($P$2/$S$2*SIN(A30*PI()/180))*180/PI() -> -6.795923243 | D30: =(P$2^2*(PI()*U$2/30)*SIN(A30*PI()/180)*COS(A30*PI()/180)/SQRT(S$2^2-P$2^2*SIN(A30*PI()/180)^2)+P$2*(PI()*U$2/30)*SIN(A30*PI()/180))/1000 -> -6.410638605 | E30: =-1*(PI()^2*U$2^2*P$2*COS(PI()*A30/180)/900+SQRT(2)*PI()^2*U$2^2*P$2^2*(4*(2*S$2^2-P$2^2)*COS(PI()*A30/90)+P$2^2*(COS(PI()*A30/45)+3))/(3600*(P$2^2*COS(PI()*A30/90)+2*S$2^2-P$2^2)^(3/2)))/1000 -> 6199.031902 | F30: =E30/1000 -> 6.199031902 | G30: =$W$2*E30 -> 4339.322331 | H30: =E30*TAN(C30*PI()/180) -> -738.742455 | I30: =$W$2*H30 -> -517.1197185 | J30: 3.237 | K30: =(J30-1)/10*$R$2^2*PI()/4 -> 1366.762441 | L30: =G30+K30 -> 5706.084772 | M30: =L30*TAN(C30*PI()/180) -> -679.9976415
A31: =A30+1 -> -153 | B31: =S$2+P$2-SQRT(S$2^2-P$2^2*SIN(A31*PI()/180)^2)-P$2*COS(A31*PI()/180) -> 84.43291715 | C31: =ASIN($P$2/$S$2*SIN(A31*PI()/180))*180/PI() -> -7.039269193 | D31: =(P$2^2*(PI()*U$2/30)*SIN(A31*PI()/180)*COS(A31*PI()/180)/SQRT(S$2^2-P$2^2*SIN(A31*PI()/180)^2)+P$2*(PI()*U$2/30)*SIN(A31*PI()/180))/1000 -> -6.656555178 | E31: =-1*(PI()^2*U$2^2*P$2*COS(PI()*A31/180)/900+SQRT(2)*PI()^2*U$2^2*P$2^2*(4*(2*S$2^2-P$2^2)*COS(PI()*A31/90)+P$2^2*(COS(PI()*A31/45)+3))/(3600*(P$2^2*COS(PI()*A31/90)+2*S$2^2-P$2^2)^(3/2)))/1000 -> 6195.071093 | F31: =E31/1000 -> 6.195071093 | G31: =$W$2*E31 -> 4336.549765 | H31: =E31*TAN(C31*PI()/180) -> -764.9694171 | I31: =$W$2*H31 -> -535.4785919 | J31: 3.237 | K31: =(J31-1)/10*$R$2^2*PI()/4 -> 1366.762441 | L31: =G31+K31 -> 5703.312206 | M31: =L31*TAN(C31*PI()/180) -> -704.2468679
A32: =A31+1 -> -152 | B32: =S$2+P$2-SQRT(S$2^2-P$2^2*SIN(A32*PI()/180)^2)-P$2*COS(A32*PI()/180) -> 84.16389158 | C32: =ASIN($P$2/$S$2*SIN(A32*PI()/180))*180/PI() -> -7.280586604 | D32: =(P$2^2*(PI()*U$2/30)*SIN(A32*PI()/180)*COS(A32*PI()/180)/SQRT(S$2^2-P$2^2*SIN(A32*PI()/180)^2)+P$2*(PI()*U$2/30)*SIN(A32*PI()/180))/1000 -> -6.902303288 | E32: =-1*(PI()^2*U$2^2*P$2*COS(PI()*A32/180)/900+SQRT(2)*PI()^2*U$2^2*P$2^2*(4*(2*S$2^2-P$2^2)*COS(PI()*A32/90)+P$2^2*(COS(PI()*A32/45)+3))/(3600*(P$2^2*COS(PI()*A32/90)+2*S$2^2-P$2^2)^(3/2)))/1000 -> 6190.533728 | F32: =E32/1000 -> 6.190533728 | G32: =$W$2*E32 -> 4333.373609 | H32: =E32*TAN(C32*PI()/180) -> -790.8938072 | I32: =$W$2*H32 -> -553.6256651 | J32: 3.237 | K32: =(J32-1)/10*$R$2^2*PI()/4 -> 1366.762441 | L32: =G32+K32 -> 5700.13605 | M32: =L32*TAN(C32*PI()/180) -> -728.2412956
A33: =A32+1 -> -151 | B33: =S$2+P$2-SQRT(S$2^2-P$2^2*SIN(A33*PI()/180)^2)-P$2*COS(A33*PI()/180) -> 83.88511784 | C33: =ASIN($P$2/$S$2*SIN(A33*PI()/180))*180/PI() -> -7.519802969 | D33: =(P$2^2*(PI()*U$2/30)*SIN(A33*PI()/180)*COS(A33*PI()/180)/SQRT(S$2^2-P$2^2*SIN(A33*PI()/180)^2)+P$2*(PI()*U$2/30)*SIN(A33*PI()/180))/1000 -> -7.147859133 | E33: =-1*(PI()^2*U$2^2*P$2*COS(PI()*A33/180)/900+SQRT(2)*PI()^2*U$2^2*P$2^2*(4*(2*S$2^2-P$2^2)*COS(PI()*A33/90)+P$2^2*(COS(PI()*A33/45)+3))/(3600*(P$2^2*COS(PI()*A33/90)+2*S$2^2-P$2^2)^(3/2)))/1000 -> 6185.372988 | F33: =E33/1000 -> 6.185372988 | G33: =$W$2*E33 -> 4329.761091 | H33: =E33*TAN(C33*PI()/180) -> -816.4947871 | I33: =$W$2*H33 -> -571.546351 | J33: 3.293 | K33: =(J33-1)/10*$R$2^2*PI()/4 -> 1400.977325 | L33: =G33+K33 -> 5730.738417 | M33: =L33*TAN(C33*PI()/180) -> -756.4811456
A34: =A33+1 -> -150 | B34: =S$2+P$2-SQRT(S$2^2-P$2^2*SIN(A34*PI()/180)^2)-P$2*COS(A34*PI()/180) -> 83.59660406 | C34: =ASIN($P$2/$S$2*SIN(A34*PI()/180))*180/PI() -> -7.756846115 | D34: =(P$2^2*(PI()*U$2/30)*SIN(A34*PI()/180)*COS(A34*PI()/180)/SQRT(S$2^2-P$2^2*SIN(A34*PI()/180)^2)+P$2*(PI()*U$2/30)*SIN(A34*PI()/180))/1000 -> -7.393197022 | E34: =-1*(PI()^2*U$2^2*P$2*COS(PI()*A34/180)/900+SQRT(2)*PI()^2*U$2^2*P$2^2*(4*(2*S$2^2-P$2^2)*COS(PI()*A34/90)+P$2^2*(COS(PI()*A34/45)+3))/(3600*(P$2^2*COS(PI()*A34/90)+2*S$2^2-P$2^2)^(3/2)))/1000 -> 6179.54052 | F34: =E34/1000 -> 6.17954052 | G34: =$W$2*E34 -> 4325.678364 | H34: =E34*TAN(C34*PI()/180) -> -841.7506193 | I34: =$W$2*H34 -> -589.2254335 | J34: 3.293 | K34: =(J34-1)/10*$R$2^2*PI()/4 -> 1400.977325 | L34: =G34+K34 -> 5726.655689 | M34: =L34*TAN(C34*PI()/180) -> -780.0605818
A35: =A34+1 -> -149 | B35: =S$2+P$2-SQRT(S$2^2-P$2^2*SIN(A35*PI()/180)^2)-P$2*COS(A35*PI()/180) -> 83.29835942 | C35: =ASIN($P$2/$S$2*SIN(A35*PI()/180))*180/PI() -> -7.991644216 | D35: =(P$2^2*(PI()*U$2/30)*SIN(A35*PI()/180)*COS(A35*PI()/180)/SQRT(S$2^2-P$2^2*SIN(A35*PI()/180)^2)+P$2*(PI()*U$2/30)*SIN(A35*PI()/180))/1000 -> -7.638289313 | E35: =-1*(PI()^2*U$2^2*P$2*COS(PI()*A35/180)/900+SQRT(2)*PI()^2*U$2^2*P$2^2*(4*(2*S$2^2-P$2^2)*COS(PI()*A35/90)+P$2^2*(COS(PI()*A35/45)+3))/(3600*(P$2^2*COS(PI()*A35/90)+2*S$2^2-P$2^2)^(3/2)))/1000 -> 6172.986468 | F35: =E35/1000 -> 6.172986468 | G35: =$W$2*E35 -> 4321.090527 | H35: =E35*TAN(C35*PI()/180) -> -866.6386649 | I35: =$W$2*H35 -> -606.6470654 | J35: 3.349 | K35: =(J35-1)/10*$R$2^2*PI()/4 -> 1435.19221 | L35: =G35+K35 -> 5756.282737 | M35: =L35*TAN(C35*PI()/180) -> -808.1367442
A36: =A35+1 -> -148 | B36: =S$2+P$2-SQRT(S$2^2-P$2^2*SIN(A36*PI()/180)^2)-P$2*COS(A36*PI()/180) -> 82.99039426 | C36: =ASIN($P$2/$S$2*SIN(A36*PI()/180))*180/PI() -> -8.224125814 | D36: =(P$2^2*(PI()*U$2/30)*SIN(A36*PI()/180)*COS(A36*PI()/180)/SQRT(S$2^2-P$2^2*SIN(A36*PI()/180)^2)+P$2*(PI()*U$2/30)*SIN(A36*PI()/180))/1000 -> -7.88310636 | E36: =-1*(PI()^2*U$2^2*P$2*COS(PI()*A36/180)/900+SQRT(2)*PI()^2*U$2^2*P$2^2*(4*(2*S$2^2-P$2^2)*COS(PI()*A36/90)+P$2^2*(COS(PI()*A36/45)+3))/(3600*(P$2^2*COS(PI()*A36/90)+2*S$2^2-P$2^2)^(3/2)))/1000 -> 6165.659505 | F36: =E36/1000 -> 6.165659505 | G36: =$W$2*E36 -> 4315.961653 | H36: =E36*TAN(C36*PI()/180) -> -891.135384 | I36: =$W$2*H36 -> -623.7947688 | J36: 3.349 | K36: =(J36-1)/10*$R$2^2*PI()/4 -> 1435.19221 | L36: =G36+K36 -> 5751.153863 | M36: =L36*TAN(C36*PI()/180) -> -831.2260355
A37: =A36+1 -> -147 | B37: =S$2+P$2-SQRT(S$2^2-P$2^2*SIN(A37*PI()/180)^2)-P$2*COS(A37*PI()/180) -> 82.67272012 | C37: =ASIN($P$2/$S$2*SIN(A37*PI()/180))*180/PI() -> -8.454219841 | D37: =(P$2^2*(PI()*U$2/30)*SIN(A37*PI()/180)*COS(A37*PI()/180)/SQRT(S$2^2-P$2^2*SIN(A37*PI()/180)^2)+P$2*(PI()*U$2/30)*SIN(A37*PI()/180))/1000 -> -8.127616448 | E37: =-1*(PI()^2*U$2^2*P$2*COS(PI()*A37/180)/900+SQRT(2)*PI()^2*U$2^2*P$2^2*(4*(2*S$2^2-P$2^2)*COS(PI()*A37/90)+P$2^2*(COS(PI()*A37/45)+3))/(3600*(P$2^2*COS(PI()*A37/90)+2*S$2^2-P$2^2)^(3/2)))/1000 -> 6157.506872 | F37: =E37/1000 -> 6.157506872 | G37: =$W$2*E37 -> 4310.254811 | H37: =E37*TAN(C37*PI()/180) -> -915.2163404 | I37: =$W$2*H37 -> -640.6514383 | J37: 3.293 | K37: =(J37-1)/10*$R$2^2*PI()/4 -> 1400.977325 | L37: =G37+K37 -> 5711.232136 | M37: =L37*TAN(C37*PI()/180) -> -848.8846351
A38: =A37+1 -> -146 | B38: =S$2+P$2-SQRT(S$2^2-P$2^2*SIN(A38*PI()/180)^2)-P$2*COS(A38*PI()/180) -> 82.34534984 | C38: =ASIN($P$2/$S$2*SIN(A38*PI()/180))*180/PI() -> -8.681855642 | D38: =(P$2^2*(PI()*U$2/30)*SIN(A38*PI()/180)*COS(A38*PI()/180)/SQRT(S$2^2-P$2^2*SIN(A38*PI()/180)^2)+P$2*(PI()*U$2/30)*SIN(A38*PI()/180))/1000 -> -8.371785744 | E38: =-1*(PI()^2*U$2^2*P$2*COS(PI()*A38/180)/900+SQRT(2)*PI()^2*U$2^2*P$2^2*(4*(2*S$2^2-P$2^2)*COS(PI()*A38/90)+P$2^2*(COS(PI()*A38/45)+3))/(3600*(P$2^2*COS(PI()*A38/90)+2*S$2^2-P$2^2)^(3/2)))/1000 -> 6148.47442 | F38: =E38/1000 -> 6.14847442 | G38: =$W$2*E38 -> 4303.932094 | H38: =E38*TAN(C38*PI()/180) -> -938.8562096 | I38: =$W$2*H38 -> -657.1993467 | J38: 3.349 | K38: =(J38-1)/10*$R$2^2*PI()/4 -> 1435.19221 | L38: =G38+K38 -> 5739.124304 | M38: =L38*TAN(C38*PI()/180) -> -876.3495011
A39: =A38+1 -> -145 | B39: =S$2+P$2-SQRT(S$2^2-P$2^2*SIN(A39*PI()/180)^2)-P$2*COS(A39*PI()/180) -> 82.00829766 | C39: =ASIN($P$2/$S$2*SIN(A39*PI()/180))*180/PI() -> -8.906962991 | D39: =(P$2^2*(PI()*U$2/30)*SIN(A39*PI()/180)*COS(A39*PI()/180)/SQRT(S$2^2-P$2^2*SIN(A39*PI()/180)^2)+P$2*(PI()*U$2/30)*SIN(A39*PI()/180))/1000 -> -8.615578237 | E39: =-1*(PI()^2*U$2^2*P$2*COS(PI()*A39/180)/900+SQRT(2)*PI()^2*U$2^2*P$2^2*(4*(2*S$2^2-P$2^2)*COS(PI()*A39/90)+P$2^2*(COS(PI()*A39/45)+3))/(3600*(P$2^2*COS(PI()*A39/90)+2*S$2^2-P$2^2)^(3/2)))/1000 -> 6138.506649 | F39: =E39/1000 -> 6.138506649 | G39: =$W$2*E39 -> 4296.954654 | H39: =E39*TAN(C39*PI()/180) -> -962.0287915 | I39: =$W$2*H39 -> -673.420154 | J39: 3.349 | K39: =(J39-1)/10*$R$2^2*PI()/4 -> 1435.19221 | L39: =G39+K39 -> 5732.146864 | M39: =L39*TAN(C39*PI()/180) -> -898.3439517
A40: =A39+1 -> -144 | B40: =S$2+P$2-SQRT(S$2^2-P$2^2*SIN(A40*PI()/180)^2)-P$2*COS(A40*PI()/180) -> 81.66157928 | C40: =ASIN($P$2/$S$2*SIN(A40*PI()/180))*180/PI() -> -9.129472119 | D40: =(P$2^2*(PI()*U$2/30)*SIN(A40*PI()/180)*COS(A40*PI()/180)/SQRT(S$2^2-P$2^2*SIN(A40*PI()/180)^2)+P$2*(PI()*U$2/30)*SIN(A40*PI()/180))/1000 -> -8.858955689 | E40: =-1*(PI()^2*U$2^2*P$2*COS(PI()*A40/180)/900+SQRT(2)*PI()^2*U$2^2*P$2^2*(4*(2*S$2^2-P$2^2)*COS(PI()*A40/90)+P$2^2*(COS(PI()*A40/45)+3))/(3600*(P$2^2*COS(PI()*A40/90)+2*S$2^2-P$2^2)^(3/2)))/1000 -> 6127.546761 | F40: =E40/1000 -> 6.127546761 | G40: =$W$2*E40 -> 4289.282733 | H40: =E40*TAN(C40*PI()/180) -> -984.7070267 | I40: =$W$2*H40 -> -689.2949187 | J40: 3.349 | K40: =(J40-1)/10*$R$2^2*PI()/4 -> 1435.19221 | L40: =G40+K40 -> 5724.474943 | M40: =L40*TAN(C40*PI()/180) -> -919.9327104
A41: =A40+1 -> -143 | B41: =S$2+P$2-SQRT(S$2^2-P$2^2*SIN(A41*PI()/180)^2)-P$2*COS(A41*PI()/180) -> 81.30521197 | C41: =ASIN($P$2/$S$2*SIN(A41*PI()/180))*180/PI() -> -9.349313736 | D41: =(P$2^2*(PI()*U$2/30)*SIN(A41*PI()/180)*COS(A41*PI()/180)/SQRT(S$2^2-P$2^2*SIN(A41*PI()/180)^2)+P$2*(PI()*U$2/30)*SIN(A41*PI()/180))/1000 -> -9.101877581 | E41: =-1*(PI()^2*U$2^2*P$2*COS(PI()*A41/180)/900+SQRT(2)*PI()^2*U$2^2*P$2^2*(4*(2*S$2^2-P$2^2)*COS(PI()*A41/90)+P$2^2*(COS(PI()*A41/45)+3))/(3600*(P$2^2*COS(PI()*A41/90)+2*S$2^2-P$2^2)^(3/2)))/1000 -> 6115.536711 | F41: =E41/1000 -> 6.115536711 | G41: =$W$2*E41 -> 4280.875698 | H41: =E41*TAN(C41*PI()/180) -> -1006.863017 | I41: =$W$2*H41 -> -704.8041122 | J41: 3.349 | K41: =(J41-1)/10*$R$2^2*PI()/4 -> 1435.19221 | L41: =G41+K41 -> 5716.067908 | M41: =L41*TAN(C41*PI()/180) -> -941.0944048
A42: =A41+1 -> -142 | B42: =S$2+P$2-SQRT(S$2^2-P$2^2*SIN(A42*PI()/180)^2)-P$2*COS(A42*PI()/180) -> 80.93921464 | C42: =ASIN($P$2/$S$2*SIN(A42*PI()/180))*180/PI() -> -9.566419052 | D42: =(P$2^2*(PI()*U$2/30)*SIN(A42*PI()/180)*COS(A42*PI()/180)/SQRT(S$2^2-P$2^2*SIN(A42*PI()/180)^2)+P$2*(PI()*U$2/30)*SIN(A42*PI()/180))/1000 -> -9.344301071 | E42: =-1*(PI()^2*U$2^2*P$2*COS(PI()*A42/180)/900+SQRT(2)*PI()^2*U$2^2*P$2^2*(4*(2*S$2^2-P$2^2)*COS(PI()*A42/90)+P$2^2*(COS(PI()*A42/45)+3))/(3600*(P$2^2*COS(PI()*A42/90)+2*S$2^2-P$2^2)^(3/2)))/1000 -> 6102.417261 | F42: =E42/1000 -> 6.102417261 | G42: =$W$2*E42 -> 4271.692083 | H42: =E42*TAN(C42*PI()/180) -> -1028.468053 | I42: =$W$2*H42 -> -719.927637 | J42: 3.405 | K42: =(J42-1)/10*$R$2^2*PI()/4 -> 1469.407094 | L42: =G42+K42 -> 5741.099177 | M42: =L42*TAN(C42*PI()/180) -> -967.5734778
A43: =A42+1 -> -141 | B43: =S$2+P$2-SQRT(S$2^2-P$2^2*SIN(A43*PI()/180)^2)-P$2*COS(A43*PI()/180) -> 80.56360796 | C43: =ASIN($P$2/$S$2*SIN(A43*PI()/180))*180/PI() -> -9.780719807 | D43: =(P$2^2*(PI()*U$2/30)*SIN(A43*PI()/180)*COS(A43*PI()/180)/SQRT(S$2^2-P$2^2*SIN(A43*PI()/180)^2)+P$2*(PI()*U$2/30)*SIN(A43*PI()/180))/1000 -> -9.586180939 | E43: =-1*(PI()^2*U$2^2*P$2*COS(PI()*A43/180)/900+SQRT(2)*PI()^2*U$2^2*P$2^2*(4*(2*S$2^2-P$2^2)*COS(PI()*A43/90)+P$2^2*(COS(PI()*A43/45)+3))/(3600*(P$2^2*COS(PI()*A43/90)+2*S$2^2-P$2^2)^(3/2)))/1000 -> 6088.128044 | F43: =E43/1000 -> 6.088128044 | G43: =$W$2*E43 -> 4261.689631 | H43: =E43*TAN(C43*PI()/180) -> -1049.49264 | I43: =$W$2*H43 -> -734.6448477 | J43: 3.405 | K43: =(J43-1)/10*$R$2^2*PI()/4 -> 1469.407094 | L43: =G43+K43 -> 5731.096725 | M43: =L43*TAN(C43*PI()/180) -> -987.9463418
A44: =A43+1 -> -140 | B44: =S$2+P$2-SQRT(S$2^2-P$2^2*SIN(A44*PI()/180)^2)-P$2*COS(A44*PI()/180) -> 80.17841445 | C44: =ASIN($P$2/$S$2*SIN(A44*PI()/180))*180/PI() -> -9.992148292 | D44: =(P$2^2*(PI()*U$2/30)*SIN(A44*PI()/180)*COS(A44*PI()/180)/SQRT(S$2^2-P$2^2*SIN(A44*PI()/180)^2)+P$2*(PI()*U$2/30)*SIN(A44*PI()/180))/1000 -> -9.827469551 | E44: =-1*(PI()^2*U$2^2*P$2*COS(PI()*A44/180)/900+SQRT(2)*PI()^2*U$2^2*P$2^2*(4*(2*S$2^2-P$2^2)*COS(PI()*A44/90)+P$2^2*(COS(PI()*A44/45)+3))/(3600*(P$2^2*COS(PI()*A44/90)+2*S$2^2-P$2^2)^(3/2)))/1000 -> 6072.607624 | F44: =E44/1000 -> 6.072607624 | G44: =$W$2*E44 -> 4250.825336 | H44: =E44*TAN(C44*PI()/180) -> -1069.906536 | I44: =$W$2*H44 -> -748.9345749 | J44: 3.405 | K44: =(J44-1)/10*$R$2^2*PI()/4 -> 1469.407094 | L44: =G44+K44 -> 5720.232431 | M44: =L44*TAN(C44*PI()/180) -> -1007.823071
A45: =A44+1 -> -139 | B45: =S$2+P$2-SQRT(S$2^2-P$2^2*SIN(A45*PI()/180)^2)-P$2*COS(A45*PI()/180) -> 79.78365854 | C45: =ASIN($P$2/$S$2*SIN(A45*PI()/180))*180/PI() -> -10.20063738 | D45: =(P$2^2*(PI()*U$2/30)*SIN(A45*PI()/180)*COS(A45*PI()/180)/SQRT(S$2^2-P$2^2*SIN(A45*PI()/180)^2)+P$2*(PI()*U$2/30)*SIN(A45*PI()/180))/1000 -> -10.06811681 | E45: =-1*(PI()^2*U$2^2*P$2*COS(PI()*A45/180)/900+SQRT(2)*PI()^2*U$2^2*P$2^2*(4*(2*S$2^2-P$2^2)*COS(PI()*A45/90)+P$2^2*(COS(PI()*A45/45)+3))/(3600*(P$2^2*COS(PI()*A45/90)+2*S$2^2-P$2^2)^(3/2)))/1000 -> 6055.793568 | F45: =E45/1000 -> 6.055793568 | G45: =$W$2*E45 -> 4239.055497 | H45: =E45*TAN(C45*PI()/180) -> -1089.678791 | I45: =$W$2*H45 -> -762.7751534 | J45: 3.349 | K45: =(J45-1)/10*$R$2^2*PI()/4 -> 1435.19221 | L45: =G45+K45 -> 5674.247707 | M45: =L45*TAN(C45*PI()/180) -> -1021.023473
A46: =A45+1 -> -138 | B46: =S$2+P$2-SQRT(S$2^2-P$2^2*SIN(A46*PI()/180)^2)-P$2*COS(A46*PI()/180) -> 79.37936673 | C46: =ASIN($P$2/$S$2*SIN(A46*PI()/180))*180/PI() -> -10.40612054 | D46: =(P$2^2*(PI()*U$2/30)*SIN(A46*PI()/180)*COS(A46*PI()/180)/SQRT(S$2^2-P$2^2*SIN(A46*PI()/180)^2)+P$2*(PI()*U$2/30)*SIN(A46*PI()/180))/1000 -> -10.30807014 | E46: =-1*(PI()^2*U$2^2*P$2*COS(PI()*A46/180)/900+SQRT(2)*PI()^2*U$2^2*P$2^2*(4*(2*S$2^2-P$2^2)*COS(PI()*A46/90)+P$2^2*(COS(PI()*A46/45)+3))/(3600*(P$2^2*COS(PI()*A46/90)+2*S$2^2-P$2^2)^(3/2)))/1000 -> 6037.62252 | F46: =E46/1000 -> 6.03762252 | G46: =$W$2*E46 -> 4226.335764 | H46: =E46*TAN(C46*PI()/180) -> -1108.777791 | I46: =$W$2*H46 -> -776.1444534 | J46: 3.293 | K46: =(J46-1)/10*$R$2^2*PI()/4 -> 1400.977325 | L46: =G46+K46 -> 5627.31309 | M46: =L46*TAN(C46*PI()/180) -> -1033.42661
A47: =A46+1 -> -137 | B47: =S$2+P$2-SQRT(S$2^2-P$2^2*SIN(A47*PI()/180)^2)-P$2*COS(A47*PI()/180) -> 78.96556764 | C47: =ASIN($P$2/$S$2*SIN(A47*PI()/180))*180/PI() -> -10.60853188 | D47: =(P$2^2*(PI()*U$2/30)*SIN(A47*PI()/180)*COS(A47*PI()/180)/SQRT(S$2^2-P$2^2*SIN(A47*PI()/180)^2)+P$2*(PI()*U$2/30)*SIN(A47*PI()/180))/1000 -> -10.54727441 | E47: =-1*(PI()^2*U$2^2*P$2*COS(PI()*A47/180)/900+SQRT(2)*PI()^2*U$2^2*P$2^2*(4*(2*S$2^2-P$2^2)*COS(PI()*A47/90)+P$2^2*(COS(PI()*A47/45)+3))/(3600*(P$2^2*COS(PI()*A47/90)+2*S$2^2-P$2^2)^(3/2)))/1000 -> 6018.03028 | F47: =E47/1000 -> 6.01803028 | G47: =$W$2*E47 -> 4212.621196 | H47: =E47*TAN(C47*PI()/180) -> -1127.171307 | I47: =$W$2*H47 -> -789.0199148 | J47: 3.405 | K47: =(J47-1)/10*$R$2^2*PI()/4 -> 1469.407094 | L47: =G47+K47 -> 5682.02829 | M47: =L47*TAN(C47*PI()/180) -> -1064.238456
A48: =A47+1 -> -136 | B48: =S$2+P$2-SQRT(S$2^2-P$2^2*SIN(A48*PI()/180)^2)-P$2*COS(A48*PI()/180) -> 78.54229213 | C48: =ASIN($P$2/$S$2*SIN(A48*PI()/180))*180/PI() -> -10.80780617 | D48: =(P$2^2*(PI()*U$2/30)*SIN(A48*PI()/180)*COS(A48*PI()/180)/SQRT(S$2^2-P$2^2*SIN(A48*PI()/180)^2)+P$2*(PI()*U$2/30)*SIN(A48*PI()/180))/1000 -> -10.78567193 | E48: =-1*(PI()^2*U$2^2*P$2*COS(PI()*A48/180)/900+SQRT(2)*PI()^2*U$2^2*P$2^2*(4*(2*S$2^2-P$2^2)*COS(PI()*A48/90)+P$2^2*(COS(PI()*A48/45)+3))/(3600*(P$2^2*COS(PI()*A48/90)+2*S$2^2-P$2^2)^(3/2)))/1000 -> 5996.951881 | F48: =E48/1000 -> 5.996951881 | G48: =$W$2*E48 -> 4197.866316 | H48: =E48*TAN(C48*PI()/180) -> -1144.826552 | I48: =$W$2*H48 -> -801.3785864 | J48: 3.405 | K48: =(J48-1)/10*$R$2^2*PI()/4 -> 1469.407094 | L48: =G48+K48 -> 5667.273411 | M48: =L48*TAN(C48*PI()/180) -> -1081.890468
A49: =A48+1 -> -135 | B49: =S$2+P$2-SQRT(S$2^2-P$2^2*SIN(A49*PI()/180)^2)-P$2*COS(A49*PI()/180) -> 78.1095734 | C49: =ASIN($P$2/$S$2*SIN(A49*PI()/180))*180/PI() -> -11.00387887 | D49: =(P$2^2*(PI()*U$2/30)*SIN(A49*PI()/180)*COS(A49*PI()/180)/SQRT(S$2^2-P$2^2*SIN(A49*PI()/180)^2)+P$2*(PI()*U$2/30)*SIN(A49*PI()/180))/1000 -> -11.02320244 | E49: =-1*(PI()^2*U$2^2*P$2*COS(PI()*A49/180)/900+SQRT(2)*PI()^2*U$2^2*P$2^2*(4*(2*S$2^2-P$2^2)*COS(PI()*A49/90)+P$2^2*(COS(PI()*A49/45)+3))/(3600*(P$2^2*COS(PI()*A49/90)+2*S$2^2-P$2^2)^(3/2)))/1000 -> 5974.321685 | F49: =E49/1000 -> 5.974321685 | G49: =$W$2*E49 -> 4182.025179 | H49: =E49*TAN(C49*PI()/180) -> -1161.710239 | I49: =$W$2*H49 -> -813.1971673 | J49: 3.405 | K49: =(J49-1)/10*$R$2^2*PI()/4 -> 1469.407094 | L49: =G49+K49 -> 5651.432274 | M49: =L49*TAN(C49*PI()/180) -> -1098.92421
A50: =A49+1 -> -134 | B50: =S$2+P$2-SQRT(S$2^2-P$2^2*SIN(A50*PI()/180)^2)-P$2*COS(A50*PI()/180) -> 77.6674471 | C50: =ASIN($P$2/$S$2*SIN(A50*PI()/180))*180/PI() -> -11.19668615 | D50: =(P$2^2*(PI()*U$2/30)*SIN(A50*PI()/180)*COS(A50*PI()/180)/SQRT(S$2^2-P$2^2*SIN(A50*PI()/180)^2)+P$2*(PI()*U$2/30)*SIN(A50*PI()/180))/1000 -> -11.25980304 | E50: =-1*(PI()^2*U$2^2*P$2*COS(PI()*A50/180)/900+SQRT(2)*PI()^2*U$2^2*P$2^2*(4*(2*S$2^2-P$2^2)*COS(PI()*A50/90)+P$2^2*(COS(PI()*A50/45)+3))/(3600*(P$2^2*COS(PI()*A50/90)+2*S$2^2-P$2^2)^(3/2)))/1000 -> 5950.07347 | F50: =E50/1000 -> 5.95007347 | G50: =$W$2*E50 -> 4165.051429 | H50: =E50*TAN(C50*PI()/180) -> -1177.788647 | I50: =$W$2*H50 -> -824.4520528 | J50: 3.349 | K50: =(J50-1)/10*$R$2^2*PI()/4 -> 1435.19221 | L50: =G50+K50 -> 5600.243639 | M50: =L50*TAN(C50*PI()/180) -> -1108.541501
A51: =A50+1 -> -133 | B51: =S$2+P$2-SQRT(S$2^2-P$2^2*SIN(A51*PI()/180)^2)-P$2*COS(A51*PI()/180) -> 77.21595141 | C51: =ASIN($P$2/$S$2*SIN(A51*PI()/180))*180/PI() -> -11.38616494 | D51: =(P$2^2*(PI()*U$2/30)*SIN(A51*PI()/180)*COS(A51*PI()/180)/SQRT(S$2^2-P$2^2*SIN(A51*PI()/180)^2)+P$2*(PI()*U$2/30)*SIN(A51*PI()/180))/1000 -> -11.49540821 | E51: =-1*(PI()^2*U$2^2*P$2*COS(PI()*A51/180)/900+SQRT(2)*PI()^2*U$2^2*P$2^2*(4*(2*S$2^2-P$2^2)*COS(PI()*A51/90)+P$2^2*(COS(PI()*A51/45)+3))/(3600*(P$2^2*COS(PI()*A51/90)+2*S$2^2-P$2^2)^(3/2)))/1000 -> 5924.140531 | F51: =E51/1000 -> 5.924140531 | G51: =$W$2*E51 -> 4146.898372 | H51: =E51*TAN(C51*PI()/180) -> -1193.027691 | I51: =$W$2*H51 -> -835.1193836 | J51: 3.461 | K51: =(J51-1)/10*$R$2^2*PI()/4 -> 1503.621979 | L51: =G51+K51 -> 5650.520351 | M51: =L51*TAN(C51*PI()/180) -> -1137.924938
A52: =A51+1 -> -132 | B52: =S$2+P$2-SQRT(S$2^2-P$2^2*SIN(A52*PI()/180)^2)-P$2*COS(A52*PI()/180) -> 76.75512718 | C52: =ASIN($P$2/$S$2*SIN(A52*PI()/180))*180/PI() -> -11.57225293 | D52: =(P$2^2*(PI()*U$2/30)*SIN(A52*PI()/180)*COS(A52*PI()/180)/SQRT(S$2^2-P$2^2*SIN(A52*PI()/180)^2)+P$2*(PI()*U$2/30)*SIN(A52*PI()/180))/1000 -> -11.72994976 | E52: =-1*(PI()^2*U$2^2*P$2*COS(PI()*A52/180)/900+SQRT(2)*PI()^2*U$2^2*P$2^2*(4*(2*S$2^2-P$2^2)*COS(PI()*A52/90)+P$2^2*(COS(PI()*A52/45)+3))/(3600*(P$2^2*COS(PI()*A52/90)+2*S$2^2-P$2^2)^(3/2)))/1000 -> 5896.455778 | F52: =E52/1000 -> 5.896455778 | G52: =$W$2*E52 -> 4127.519045 | H52: =E52*TAN(C52*PI()/180) -> -1207.392999 | I52: =$W$2*H52 -> -845.1750992 | J52: 3.461 | K52: =(J52-1)/10*$R$2^2*PI()/4 -> 1503.621979 | L52: =G52+K52 -> 5631.141024 | M52: =L52*TAN(C52*PI()/180) -> -1153.065588
A53: =A52+1 -> -131 | B53: =S$2+P$2-SQRT(S$2^2-P$2^2*SIN(A53*PI()/180)^2)-P$2*COS(A53*PI()/180) -> 76.28501802 | C53: =ASIN($P$2/$S$2*SIN(A53*PI()/180))*180/PI() -> -11.75488865 | D53: =(P$2^2*(PI()*U$2/30)*SIN(A53*PI()/180)*COS(A53*PI()/180)/SQRT(S$2^2-P$2^2*SIN(A53*PI()/180)^2)+P$2*(PI()*U$2/30)*SIN(A53*PI()/180))/1000 -> -11.96335683 | E53: =-1*(PI()^2*U$2^2*P$2*COS(PI()*A53/180)/900+SQRT(2)*PI()^2*U$2^2*P$2^2*(4*(2*S$2^2-P$2^2)*COS(PI()*A53/90)+P$2^2*(COS(PI()*A53/45)+3))/(3600*(P$2^2*COS(PI()*A53/90)+2*S$2^2-P$2^2)^(3/2)))/1000 -> 5866.951847 | F53: =E53/1000 -> 5.866951847 | G53: =$W$2*E53 -> 4106.866293 | H53: =E53*TAN(C53*PI()/180) -> -1220.849992 | I53: =$W$2*H53 -> -854.5949941 | J53: 3.405 | K53: =(J53-1)/10*$R$2^2*PI()/4 -> 1469.407094 | L53: =G53+K53 -> 5576.273387 | M53: =L53*TAN(C53*PI()/180) -> -1160.36291
A54: =A53+1 -> -130 | B54: =S$2+P$2-SQRT(S$2^2-P$2^2*SIN(A54*PI()/180)^2)-P$2*COS(A54*PI()/180) -> 75.80567039 | C54: =ASIN($P$2/$S$2*SIN(A54*PI()/180))*180/PI() -> -11.93401142 | D54: =(P$2^2*(PI()*U$2/30)*SIN(A54*PI()/180)*COS(A54*PI()/180)/SQRT(S$2^2-P$2^2*SIN(A54*PI()/180)^2)+P$2*(PI()*U$2/30)*SIN(A54*PI()/180))/1000 -> -12.1955559 | E54: =-1*(PI()^2*U$2^2*P$2*COS(PI()*A54/180)/900+SQRT(2)*PI()^2*U$2^2*P$2^2*(4*(2*S$2^2-P$2^2)*COS(PI()*A54/90)+P$2^2*(COS(PI()*A54/45)+3))/(3600*(P$2^2*COS(PI()*A54/90)+2*S$2^2-P$2^2)^(3/2)))/1000 -> 5835.561208 | F54: =E54/1000 -> 5.835561208 | G54: =$W$2*E54 -> 4084.892846 | H54: =E54*TAN(C54*PI()/180) -> -1233.363968 | I54: =$W$2*H54 -> -863.3547779 | J54: 3.405 | K54: =(J54-1)/10*$R$2^2*PI()/4 -> 1469.407094 | L54: =G54+K54 -> 5554.29994 | M54: =L54*TAN(C54*PI()/180) -> -1173.918527
A55: =A54+1 -> -129 | B55: =S$2+P$2-SQRT(S$2^2-P$2^2*SIN(A55*PI()/180)^2)-P$2*COS(A55*PI()/180) -> 75.31713374 | C55: =ASIN($P$2/$S$2*SIN(A55*PI()/180))*180/PI() -> -12.10956149 | D55: =(P$2^2*(PI()*U$2/30)*SIN(A55*PI()/180)*COS(A55*PI()/180)/SQRT(S$2^2-P$2^2*SIN(A55*PI()/180)^2)+P$2*(PI()*U$2/30)*SIN(A55*PI()/180))/1000 -> -12.42647076 | E55: =-1*(PI()^2*U$2^2*P$2*COS(PI()*A55/180)/900+SQRT(2)*PI()^2*U$2^2*P$2^2*(4*(2*S$2^2-P$2^2)*COS(PI()*A55/90)+P$2^2*(COS(PI()*A55/45)+3))/(3600*(P$2^2*COS(PI()*A55/90)+2*S$2^2-P$2^2)^(3/2)))/1000 -> 5802.216286 | F55: =E55/1000 -> 5.802216286 | G55: =$W$2*E55 -> 4061.551401 | H55: =E55*TAN(C55*PI()/180) -> -1244.900199 | I55: =$W$2*H55 -> -871.4301396 | J55: 3.349 | K55: =(J55-1)/10*$R$2^2*PI()/4 -> 1435.19221 | L55: =G55+K55 -> 5496.74361 | M55: =L55*TAN(C55*PI()/180) -> -1179.35921
A56: =A55+1 -> -128 | B56: =S$2+P$2-SQRT(S$2^2-P$2^2*SIN(A56*PI()/180)^2)-P$2*COS(A56*PI()/180) -> 74.81946058 | C56: =ASIN($P$2/$S$2*SIN(A56*PI()/180))*180/PI() -> -12.28147997 | D56: =(P$2^2*(PI()*U$2/30)*SIN(A56*PI()/180)*COS(A56*PI()/180)/SQRT(S$2^2-P$2^2*SIN(A56*PI()/180)^2)+P$2*(PI()*U$2/30)*SIN(A56*PI()/180))/1000 -> -12.65602251 | E56: =-1*(PI()^2*U$2^2*P$2*COS(PI()*A56/180)/900+SQRT(2)*PI()^2*U$2^2*P$2^2*(4*(2*S$2^2-P$2^2)*COS(PI()*A56/90)+P$2^2*(COS(PI()*A56/45)+3))/(3600*(P$2^2*COS(PI()*A56/90)+2*S$2^2-P$2^2)^(3/2)))/1000 -> 5766.849578 | F56: =E56/1000 -> 5.766849578 | G56: =$W$2*E56 -> 4036.794704 | H56: =E56*TAN(C56*PI()/180) -> -1255.42402 | I56: =$W$2*H56 -> -878.7968142 | J56: 3.461 | K56: =(J56-1)/10*$R$2^2*PI()/4 -> 1503.621979 | L56: =G56+K56 -> 5540.416683 | M56: =L56*TAN(C56*PI()/180) -> -1206.13033
A57: =A56+1 -> -127 | B57: =S$2+P$2-SQRT(S$2^2-P$2^2*SIN(A57*PI()/180)^2)-P$2*COS(A57*PI()/180) -> 74.31270662 | C57: =ASIN($P$2/$S$2*SIN(A57*PI()/180))*180/PI() -> -12.44970891 | D57: =(P$2^2*(PI()*U$2/30)*SIN(A57*PI()/180)*COS(A57*PI()/180)/SQRT(S$2^2-P$2^2*SIN(A57*PI()/180)^2)+P$2*(PI()*U$2/30)*SIN(A57*PI()/180))/1000 -> -12.8841296 | E57: =-1*(PI()^2*U$2^2*P$2*COS(PI()*A57/180)/900+SQRT(2)*PI()^2*U$2^2*P$2^2*(4*(2*S$2^2-P$2^2)*COS(PI()*A57/90)+P$2^2*(COS(PI()*A57/45)+3))/(3600*(P$2^2*COS(PI()*A57/90)+2*S$2^2-P$2^2)^(3/2)))/1000 -> 5729.393777 | F57: =E57/1000 -> 5.729393777 | G57: =$W$2*E57 -> 4010.575644 | H57: =E57*TAN(C57*PI()/180) -> -1264.900933 | I57: =$W$2*H57 -> -885.4306533 | J57: 3.461 | K57: =(J57-1)/10*$R$2^2*PI()/4 -> 1503.621979 | L57: =G57+K57 -> 5514.197623 | M57: =L57*TAN(C57*PI()/180) -> -1217.391227
A58: =A57+1 -> -126 | B58: =S$2+P$2-SQRT(S$2^2-P$2^2*SIN(A58*PI()/180)^2)-P$2*COS(A58*PI()/180) -> 73.79693084 | C58: =ASIN($P$2/$S$2*SIN(A58*PI()/180))*180/PI() -> -12.61419136 | D58: =(P$2^2*(PI()*U$2/30)*SIN(A58*PI()/180)*COS(A58*PI()/180)/SQRT(S$2^2-P$2^2*SIN(A58*PI()/180)^2)+P$2*(PI()*U$2/30)*SIN(A58*PI()/180))/1000 -> -13.11070778 | E58: =-1*(PI()^2*U$2^2*P$2*COS(PI()*A58/180)/900+SQRT(2)*PI()^2*U$2^2*P$2^2*(4*(2*S$2^2-P$2^2)*COS(PI()*A58/90)+P$2^2*(COS(PI()*A58/45)+3))/(3600*(P$2^2*COS(PI()*A58/90)+2*S$2^2-P$2^2)^(3/2)))/1000 -> 5689.781908 | F58: =E58/1000 -> 5.689781908 | G58: =$W$2*E58 -> 3982.847335 | H58: =E58*TAN(C58*PI()/180) -> -1273.296712 | I58: =$W$2*H58 -> -891.3076987 | J58: 3.461 | K58: =(J58-1)/10*$R$2^2*PI()/4 -> 1503.621979 | L58: =G58+K58 -> 5486.469314 | M58: =L58*TAN(C58*PI()/180) -> -1227.798087
A59: =A58+1 -> -125 | B59: =S$2+P$2-SQRT(S$2^2-P$2^2*SIN(A59*PI()/180)^2)-P$2*COS(A59*PI()/180) -> 73.27219563 | C59: =ASIN($P$2/$S$2*SIN(A59*PI()/180))*180/PI() -> -12.77487133 | D59: =(P$2^2*(PI()*U$2/30)*SIN(A59*PI()/180)*COS(A59*PI()/180)/SQRT(S$2^2-P$2^2*SIN(A59*PI()/180)^2)+P$2*(PI()*U$2/30)*SIN(A59*PI()/180))/1000 -> -13.33567019 | E59: =-1*(PI()^2*U$2^2*P$2*COS(PI()*A59/180)/900+SQRT(2)*PI()^2*U$2^2*P$2^2*(4*(2*S$2^2-P$2^2)*COS(PI()*A59/90)+P$2^2*(COS(PI()*A59/45)+3))/(3600*(P$2^2*COS(PI()*A59/90)+2*S$2^2-P$2^2)^(3/2)))/1000 -> 5647.947454 | F59: =E59/1000 -> 5.647947454 | G59: =$W$2*E59 -> 3953.563218 | H59: =E59*TAN(C59*PI()/180) -> -1280.577513 | I59: =$W$2*H59 -> -896.4042591 | J59: 3.405 | K59: =(J59-1)/10*$R$2^2*PI()/4 -> 1469.407094 | L59: =G59+K59 -> 5422.970312 | M59: =L59*TAN(C59*PI()/180) -> -1229.567713
A60: =A59+1 -> -124 | B60: =S$2+P$2-SQRT(S$2^2-P$2^2*SIN(A60*PI()/180)^2)-P$2*COS(A60*PI()/180) -> 72.73856687 | C60: =ASIN($P$2/$S$2*SIN(A60*PI()/180))*180/PI() -> -12.93169389 | D60: =(P$2^2*(PI()*U$2/30)*SIN(A60*PI()/180)*COS(A60*PI()/180)/SQRT(S$2^2-P$2^2*SIN(A60*PI()/180)^2)+P$2*(PI()*U$2/30)*SIN(A60*PI()/180))/1000 -> -13.55892731 | E60: =-1*(PI()^2*U$2^2*P$2*COS(PI()*A60/180)/900+SQRT(2)*PI()^2*U$2^2*P$2^2*(4*(2*S$2^2-P$2^2)*COS(PI()*A60/90)+P$2^2*(COS(PI()*A60/45)+3))/(3600*(P$2^2*COS(PI()*A60/90)+2*S$2^2-P$2^2)^(3/2)))/1000 -> 5603.8245 | F60: =E60/1000 -> 5.6038245 | G60: =$W$2*E60 -> 3922.67715 | H60: =E60*TAN(C60*PI()/180) -> -1286.709985 | I60: =$W$2*H60 -> -900.6969895 | J60: 3.461 | K60: =(J60-1)/10*$R$2^2*PI()/4 -> 1503.621979 | L60: =G60+K60 -> 5426.299129 | M60: =L60*TAN(C60*PI()/180) -> -1245.947883
A61: =A60+1 -> -123 | B61: =S$2+P$2-SQRT(S$2^2-P$2^2*SIN(A61*PI()/180)^2)-P$2*COS(A61*PI()/180) -> 72.19611406 | C61: =ASIN($P$2/$S$2*SIN(A61*PI()/180))*180/PI() -> -13.08460517 | D61: =(P$2^2*(PI()*U$2/30)*SIN(A61*PI()/180)*COS(A61*PI()/180)/SQRT(S$2^2-P$2^2*SIN(A61*PI()/180)^2)+P$2*(PI()*U$2/30)*SIN(A61*PI()/180))/1000 -> -13.78038703 | E61: =-1*(PI()^2*U$2^2*P$2*COS(PI()*A61/180)/900+SQRT(2)*PI()^2*U$2^2*P$2^2*(4*(2*S$2^2-P$2^2)*COS(PI()*A61/90)+P$2^2*(COS(PI()*A61/45)+3))/(3600*(P$2^2*COS(PI()*A61/90)+2*S$2^2-P$2^2)^(3/2)))/1000 -> 5557.34787 | F61: =E61/1000 -> 5.55734787 | G61: =$W$2*E61 -> 3890.143509 | H61: =E61*TAN(C61*PI()/180) -> -1291.661391 | I61: =$W$2*H61 -> -904.1629734 | J61: 3.516 | K61: =(J61-1)/10*$R$2^2*PI()/4 -> 1537.225883 | L61: =G61+K61 -> 5427.369393 | M61: =L61*TAN(C61*PI()/180) -> -1261.451264
A62: =A61+1 -> -122 | B62: =S$2+P$2-SQRT(S$2^2-P$2^2*SIN(A62*PI()/180)^2)-P$2*COS(A62*PI()/180) -> 71.64491039 | C62: =ASIN($P$2/$S$2*SIN(A62*PI()/180))*180/PI() -> -13.23355239 | D62: =(P$2^2*(PI()*U$2/30)*SIN(A62*PI()/180)*COS(A62*PI()/180)/SQRT(S$2^2-P$2^2*SIN(A62*PI()/180)^2)+P$2*(PI()*U$2/30)*SIN(A62*PI()/180))/1000 -> -13.99995468 | E62: =-1*(PI()^2*U$2^2*P$2*COS(PI()*A62/180)/900+SQRT(2)*PI()^2*U$2^2*P$2^2*(4*(2*S$2^2-P$2^2)*COS(PI()*A62/90)+P$2^2*(COS(PI()*A62/45)+3))/(3600*(P$2^2*COS(PI()*A62/90)+2*S$2^2-P$2^2)^(3/2)))/1000 -> 5508.453272 | F62: =E62/1000 -> 5.508453272 | G62: =$W$2*E62 -> 3855.917291 | H62: =E62*TAN(C62*PI()/180) -> -1295.399725 | I62: =$W$2*H62 -> -906.7798073 | J62: 3.572 | K62: =(J62-1)/10*$R$2^2*PI()/4 -> 1571.440768 | L62: =G62+K62 -> 5427.358059 | M62: =L62*TAN(C62*PI()/180) -> -1276.328905
A63: =A62+1 -> -121 | B63: =S$2+P$2-SQRT(S$2^2-P$2^2*SIN(A63*PI()/180)^2)-P$2*COS(A63*PI()/180) -> 71.08503286 | C63: =ASIN($P$2/$S$2*SIN(A63*PI()/180))*180/PI() -> -13.37848393 | D63: =(P$2^2*(PI()*U$2/30)*SIN(A63*PI()/180)*COS(A63*PI()/180)/SQRT(S$2^2-P$2^2*SIN(A63*PI()/180)^2)+P$2*(PI()*U$2/30)*SIN(A63*PI()/180))/1000 -> -14.21753304 | E63: =-1*(PI()^2*U$2^2*P$2*COS(PI()*A63/180)/900+SQRT(2)*PI()^2*U$2^2*P$2^2*(4*(2*S$2^2-P$2^2)*COS(PI()*A63/90)+P$2^2*(COS(PI()*A63/45)+3))/(3600*(P$2^2*COS(PI()*A63/90)+2*S$2^2-P$2^2)^(3/2)))/1000 -> 5457.077449 | F63: =E63/1000 -> 5.457077449 | G63: =$W$2*E63 -> 3819.954214 | H63: =E63*TAN(C63*PI()/180) -> -1297.893839 | I63: =$W$2*H63 -> -908.5256873 | J63: 3.516 | K63: =(J63-1)/10*$R$2^2*PI()/4 -> 1537.225883 | L63: =G63+K63 -> 5357.180097 | M63: =L63*TAN(C63*PI()/180) -> -1274.134573
A64: =A63+1 -> -120 | B64: =S$2+P$2-SQRT(S$2^2-P$2^2*SIN(A64*PI()/180)^2)-P$2*COS(A64*PI()/180) -> 70.51656238 | C64: =ASIN($P$2/$S$2*SIN(A64*PI()/180))*180/PI() -> -13.5193493 | D64: =(P$2^2*(PI()*U$2/30)*SIN(A64*PI()/180)*COS(A64*PI()/180)/SQRT(S$2^2-P$2^2*SIN(A64*PI()/180)^2)+P$2*(PI()*U$2/30)*SIN(A64*PI()/180))/1000 -> -14.43302242 | E64: =-1*(PI()^2*U$2^2*P$2*COS(PI()*A64/180)/900+SQRT(2)*PI()^2*U$2^2*P$2^2*(4*(2*S$2^2-P$2^2)*COS(PI()*A64/90)+P$2^2*(COS(PI()*A64/45)+3))/(3600*(P$2^2*COS(PI()*A64/90)+2*S$2^2-P$2^2)^(3/2)))/1000 -> 5403.158322 | F64: =E64/1000 -> 5.403158322 | G64: =$W$2*E64 -> 3782.210826 | H64: =E64*TAN(C64*PI()/180) -> -1299.113568 | I64: =$W$2*H64 -> -909.3794979 | J64: 3.852 | K64: =(J64-1)/10*$R$2^2*PI()/4 -> 1742.515191 | L64: =G64+K64 -> 5524.726016 | M64: =L64*TAN(C64*PI()/180) -> -1328.342814
A65: =A64+1 -> -119 | B65: =S$2+P$2-SQRT(S$2^2-P$2^2*SIN(A65*PI()/180)^2)-P$2*COS(A65*PI()/180) -> 69.93958387 | C65: =ASIN($P$2/$S$2*SIN(A65*PI()/180))*180/PI() -> -13.65609924 | D65: =(P$2^2*(PI()*U$2/30)*SIN(A65*PI()/180)*COS(A65*PI()/180)/SQRT(S$2^2-P$2^2*SIN(A65*PI()/180)^2)+P$2*(PI()*U$2/30)*SIN(A65*PI()/180))/1000 -> -14.64632069 | E65: =-1*(PI()^2*U$2^2*P$2*COS(PI()*A65/180)/900+SQRT(2)*PI()^2*U$2^2*P$2^2*(4*(2*S$2^2-P$2^2)*COS(PI()*A65/90)+P$2^2*(COS(PI()*A65/45)+3))/(3600*(P$2^2*COS(PI()*A65/90)+2*S$2^2-P$2^2)^(3/2)))/1000 -> 5346.635153 | F65: =E65/1000 -> 5.346635153 | G65: =$W$2*E65 -> 3742.644607 | H65: =E65*TAN(C65*PI()/180) -> -1299.02986 | I65: =$W$2*H65 -> -909.3209019 | J65: 3.852 | K65: =(J65-1)/10*$R$2^2*PI()/4 -> 1742.515191 | L65: =G65+K65 -> 5485.159798 | M65: =L65*TAN(C65*PI()/180) -> -1332.686102
A66: =A65+1 -> -118 | B66: =S$2+P$2-SQRT(S$2^2-P$2^2*SIN(A66*PI()/180)^2)-P$2*COS(A66*PI()/180) -> 69.35418634 | C66: =ASIN($P$2/$S$2*SIN(A66*PI()/180))*180/PI() -> -13.78868571 | D66: =(P$2^2*(PI()*U$2/30)*SIN(A66*PI()/180)*COS(A66*PI()/180)/SQRT(S$2^2-P$2^2*SIN(A66*PI()/180)^2)+P$2*(PI()*U$2/30)*SIN(A66*PI()/180))/1000 -> -14.85732332 | E66: =-1*(PI()^2*U$2^2*P$2*COS(PI()*A66/180)/900+SQRT(2)*PI()^2*U$2^2*P$2^2*(4*(2*S$2^2-P$2^2)*COS(PI()*A66/90)+P$2^2*(COS(PI()*A66/45)+3))/(3600*(P$2^2*COS(PI()*A66/90)+2*S$2^2-P$2^2)^(3/2)))/1000 -> 5287.448691 | F66: =E66/1000 -> 5.287448691 | G66: =$W$2*E66 -> 3701.214084 | H66: =E66*TAN(C66*PI()/180) -> -1297.614903 | I66: =$W$2*H66 -> -908.330432 | J66: 4.076 | K66: =(J66-1)/10*$R$2^2*PI()/4 -> 1879.374729 | L66: =G66+K66 -> 5580.588813 | M66: =L66*TAN(C66*PI()/180) -> -1369.555646
A67: =A66+1 -> -117 | B67: =S$2+P$2-SQRT(S$2^2-P$2^2*SIN(A67*PI()/180)^2)-P$2*COS(A67*PI()/180) -> 68.760463 | C67: =ASIN($P$2/$S$2*SIN(A67*PI()/180))*180/PI() -> -13.91706194 | D67: =(P$2^2*(PI()*U$2/30)*SIN(A67*PI()/180)*COS(A67*PI()/180)/SQRT(S$2^2-P$2^2*SIN(A67*PI()/180)^2)+P$2*(PI()*U$2/30)*SIN(A67*PI()/180))/1000 -> -15.06592348 | E67: =-1*(PI()^2*U$2^2*P$2*COS(PI()*A67/180)/900+SQRT(2)*PI()^2*U$2^2*P$2^2*(4*(2*S$2^2-P$2^2)*COS(PI()*A67/90)+P$2^2*(COS(PI()*A67/45)+3))/(3600*(P$2^2*COS(PI()*A67/90)+2*S$2^2-P$2^2)^(3/2)))/1000 -> 5225.541333 | F67: =E67/1000 -> 5.225541333 | G67: =$W$2*E67 -> 3657.878933 | H67: =E67*TAN(C67*PI()/180) -> -1294.842261 | I67: =$W$2*H67 -> -906.389583 | J67: 4.132 | K67: =(J67-1)/10*$R$2^2*PI()/4 -> 1913.589613 | L67: =G67+K67 -> 5571.468546 | M67: =L67*TAN(C67*PI()/180) -> -1380.559922
A68: =A67+1 -> -116 | B68: =S$2+P$2-SQRT(S$2^2-P$2^2*SIN(A68*PI()/180)^2)-P$2*COS(A68*PI()/180) -> 68.15851135 | C68: =ASIN($P$2/$S$2*SIN(A68*PI()/180))*180/PI() -> -14.04118244 | D68: =(P$2^2*(PI()*U$2/30)*SIN(A68*PI()/180)*COS(A68*PI()/180)/SQRT(S$2^2-P$2^2*SIN(A68*PI()/180)^2)+P$2*(PI()*U$2/30)*SIN(A68*PI()/180))/1000 -> -15.27201209 | E68: =-1*(PI()^2*U$2^2*P$2*COS(PI()*A68/180)/900+SQRT(2)*PI()^2*U$2^2*P$2^2*(4*(2*S$2^2-P$2^2)*COS(PI()*A68/90)+P$2^2*(COS(PI()*A68/45)+3))/(3600*(P$2^2*COS(PI()*A68/90)+2*S$2^2-P$2^2)^(3/2)))/1000 -> 5160.857278 | F68: =E68/1000 -> 5.160857278 | G68: =$W$2*E68 -> 3612.600095 | H68: =E68*TAN(C68*PI()/180) -> -1290.687007 | I68: =$W$2*H68 -> -903.4809051 | J68: 4.356 | K68: =(J68-1)/10*$R$2^2*PI()/4 -> 2050.449151 | L68: =G68+K68 -> 5663.049246 | M68: =L68*TAN(C68*PI()/180) -> -1416.280996
A69: =A68+1 -> -115 | B69: =S$2+P$2-SQRT(S$2^2-P$2^2*SIN(A69*PI()/180)^2)-P$2*COS(A69*PI()/180) -> 67.54843324 | C69: =ASIN($P$2/$S$2*SIN(A69*PI()/180))*180/PI() -> -14.16100309 | D69: =(P$2^2*(PI()*U$2/30)*SIN(A69*PI()/180)*COS(A69*PI()/180)/SQRT(S$2^2-P$2^2*SIN(A69*PI()/180)^2)+P$2*(PI()*U$2/30)*SIN(A69*PI()/180))/1000 -> -15.47547789 | E69: =-1*(PI()^2*U$2^2*P$2*COS(PI()*A69/180)/900+SQRT(2)*PI()^2*U$2^2*P$2^2*(4*(2*S$2^2-P$2^2)*COS(PI()*A69/90)+P$2^2*(COS(PI()*A69/45)+3))/(3600*(P$2^2*COS(PI()*A69/90)+2*S$2^2-P$2^2)^(3/2)))/1000 -> 5093.342691 | F69: =E69/1000 -> 5.093342691 | G69: =$W$2*E69 -> 3565.339884 | H69: =E69*TAN(C69*PI()/180) -> -1285.125852 | I69: =$W$2*H69 -> -899.5880963 | J69: 4.3 | K69: =(J69-1)/10*$R$2^2*PI()/4 -> 2016.234267 | L69: =G69+K69 -> 5581.574151 | M69: =L69*TAN(C69*PI()/180) -> -1408.313885
A70: =A69+1 -> -114 | B70: =S$2+P$2-SQRT(S$2^2-P$2^2*SIN(A70*PI()/180)^2)-P$2*COS(A70*PI()/180) -> 66.93033501 | C70: =ASIN($P$2/$S$2*SIN(A70*PI()/180))*180/PI() -> -14.27648108 | D70: =(P$2^2*(PI()*U$2/30)*SIN(A70*PI()/180)*COS(A70*PI()/180)/SQRT(S$2^2-P$2^2*SIN(A70*PI()/180)^2)+P$2*(PI()*U$2/30)*SIN(A70*PI()/180))/1000 -> -15.67620751 | E70: =-1*(PI()^2*U$2^2*P$2*COS(PI()*A70/180)/900+SQRT(2)*PI()^2*U$2^2*P$2^2*(4*(2*S$2^2-P$2^2)*COS(PI()*A70/90)+P$2^2*(COS(PI()*A70/45)+3))/(3600*(P$2^2*COS(PI()*A70/90)+2*S$2^2-P$2^2)^(3/2)))/1000 -> 5022.945857 | F70: =E70/1000 -> 5.022945857 | G70: =$W$2*E70 -> 3516.0621 | H70: =E70*TAN(C70*PI()/180) -> -1278.13728 | I70: =$W$2*H70 -> -894.6960959 | J70: 4.3 | K70: =(J70-1)/10*$R$2^2*PI()/4 -> 2016.234267 | L70: =G70+K70 -> 5532.296367 | M70: =L70*TAN(C70*PI()/180) -> -1407.746456
A71: =A70+1 -> -113 | B71: =S$2+P$2-SQRT(S$2^2-P$2^2*SIN(A71*PI()/180)^2)-P$2*COS(A71*PI()/180) -> 66.30432751 | C71: =ASIN($P$2/$S$2*SIN(A71*PI()/180))*180/PI() -> -14.38757504 | D71: =(P$2^2*(PI()*U$2/30)*SIN(A71*PI()/180)*COS(A71*PI()/180)/SQRT(S$2^2-P$2^2*SIN(A71*PI()/180)^2)+P$2*(PI()*U$2/30)*SIN(A71*PI()/180))/1000 -> -15.8740856 | E71: =-1*(PI()^2*U$2^2*P$2*COS(PI()*A71/180)/900+SQRT(2)*PI()^2*U$2^2*P$2^2*(4*(2*S$2^2-P$2^2)*COS(PI()*A71/90)+P$2^2*(COS(PI()*A71/45)+3))/(3600*(P$2^2*COS(PI()*A71/90)+2*S$2^2-P$2^2)^(3/2)))/1000 -> 4949.61734 | F71: =E71/1000 -> 4.94961734 | G71: =$W$2*E71 -> 3464.732138 | H71: =E71*TAN(C71*PI()/180) -> -1269.70168 | I71: =$W$2*H71 -> -888.7911763 | J71: 4.412 | K71: =(J71-1)/10*$R$2^2*PI()/4 -> 2084.664036 | L71: =G71+K71 -> 5549.396174 | M71: =L71*TAN(C71*PI()/180) -> -1423.560078
A72: =A71+1 -> -112 | B72: =S$2+P$2-SQRT(S$2^2-P$2^2*SIN(A72*PI()/180)^2)-P$2*COS(A72*PI()/180) -> 65.67052622 | C72: =ASIN($P$2/$S$2*SIN(A72*PI()/180))*180/PI() -> -14.49424499 | D72: =(P$2^2*(PI()*U$2/30)*SIN(A72*PI()/180)*COS(A72*PI()/180)/SQRT(S$2^2-P$2^2*SIN(A72*PI()/180)^2)+P$2*(PI()*U$2/30)*SIN(A72*PI()/180))/1000 -> -16.06899488 | E72: =-1*(PI()^2*U$2^2*P$2*COS(PI()*A72/180)/900+SQRT(2)*PI()^2*U$2^2*P$2^2*(4*(2*S$2^2-P$2^2)*COS(PI()*A72/90)+P$2^2*(COS(PI()*A72/45)+3))/(3600*(P$2^2*COS(PI()*A72/90)+2*S$2^2-P$2^2)^(3/2)))/1000 -> 4873.310142 | F72: =E72/1000 -> 4.873310142 | G72: =$W$2*E72 -> 3411.317099 | H72: =E72*TAN(C72*PI()/180) -> -1259.801477 | I72: =$W$2*H72 -> -881.861034 | J72: 4.412 | K72: =(J72-1)/10*$R$2^2*PI()/4 -> 2084.664036 | L72: =G72+K72 -> 5495.981135 | M72: =L72*TAN(C72*PI()/180) -> -1420.76842
A73: =A72+1 -> -111 | B73: =S$2+P$2-SQRT(S$2^2-P$2^2*SIN(A73*PI()/180)^2)-P$2*COS(A73*PI()/180) -> 65.0290513 | C73: =ASIN($P$2/$S$2*SIN(A73*PI()/180))*180/PI() -> -14.59645243 | D73: =(P$2^2*(PI()*U$2/30)*SIN(A73*PI()/180)*COS(A73*PI()/180)/SQRT(S$2^2-P$2^2*SIN(A73*PI()/180)^2)+P$2*(PI()*U$2/30)*SIN(A73*PI()/180))/1000 -> -16.26081626 | E73: =-1*(PI()^2*U$2^2*P$2*COS(PI()*A73/180)/900+SQRT(2)*PI()^2*U$2^2*P$2^2*(4*(2*S$2^2-P$2^2)*COS(PI()*A73/90)+P$2^2*(COS(PI()*A73/45)+3))/(3600*(P$2^2*COS(PI()*A73/90)+2*S$2^2-P$2^2)^(3/2)))/1000 -> 4793.979859 | F73: =E73/1000 -> 4.793979859 | G73: =$W$2*E73 -> 3355.785901 | H73: =E73*TAN(C73*PI()/180) -> -1248.421257 | I73: =$W$2*H73 -> -873.8948797 | J73: 4.468 | K73: =(J73-1)/10*$R$2^2*PI()/4 -> 2118.87892 | L73: =G73+K73 -> 5474.664822 | M73: =L73*TAN(C73*PI()/180) -> -1425.681404
A74: =A73+1 -> -110 | B74: =S$2+P$2-SQRT(S$2^2-P$2^2*SIN(A74*PI()/180)^2)-P$2*COS(A74*PI()/180) -> 64.38002768 | C74: =ASIN($P$2/$S$2*SIN(A74*PI()/180))*180/PI() -> -14.69416032 | D74: =(P$2^2*(PI()*U$2/30)*SIN(A74*PI()/180)*COS(A74*PI()/180)/SQRT(S$2^2-P$2^2*SIN(A74*PI()/180)^2)+P$2*(PI()*U$2/30)*SIN(A74*PI()/180))/1000 -> -16.44942893 | E74: =-1*(PI()^2*U$2^2*P$2*COS(PI()*A74/180)/900+SQRT(2)*PI()^2*U$2^2*P$2^2*(4*(2*S$2^2-P$2^2)*COS(PI()*A74/90)+P$2^2*(COS(PI()*A74/45)+3))/(3600*(P$2^2*COS(PI()*A74/90)+2*S$2^2-P$2^2)^(3/2)))/1000 -> 4711.584837 | F74: =E74/1000 -> 4.711584837 | G74: =$W$2*E74 -> 3298.109386 | H74: =E74*TAN(C74*PI()/180) -> -1235.547894 | I74: =$W$2*H74 -> -864.8835255 | J74: 4.524 | K74: =(J74-1)/10*$R$2^2*PI()/4 -> 2153.093805 | L74: =G74+K74 -> 5451.203191 | M74: =L74*TAN(C74*PI()/180) -> -1429.502567
A75: =A74+1 -> -109 | B75: =S$2+P$2-SQRT(S$2^2-P$2^2*SIN(A75*PI()/180)^2)-P$2*COS(A75*PI()/180) -> 63.72358513 | C75: =ASIN($P$2/$S$2*SIN(A75*PI()/180))*180/PI() -> -14.78733315 | D75: =(P$2^2*(PI()*U$2/30)*SIN(A75*PI()/180)*COS(A75*PI()/180)/SQRT(S$2^2-P$2^2*SIN(A75*PI()/180)^2)+P$2*(PI()*U$2/30)*SIN(A75*PI()/180))/1000 -> -16.63471051 | E75: =-1*(PI()^2*U$2^2*P$2*COS(PI()*A75/180)/900+SQRT(2)*PI()^2*U$2^2*P$2^2*(4*(2*S$2^2-P$2^2)*COS(PI()*A75/90)+P$2^2*(COS(PI()*A75/45)+3))/(3600*(P$2^2*COS(PI()*A75/90)+2*S$2^2-P$2^2)^(3/2)))/1000 -> 4626.086321 | F75: =E75/1000 -> 4.626086321 | G75: =$W$2*E75 -> 3238.260424 | H75: =E75*TAN(C75*PI()/180) -> -1221.170671 | I75: =$W$2*H75 -> -854.8194699 | J75: 4.58 | K75: =(J75-1)/10*$R$2^2*PI()/4 -> 2187.308689 | L75: =G75+K75 -> 5425.569114 | M75: =L75*TAN(C75*PI()/180) -> -1432.214061
A76: =A75+1 -> -108 | B76: =S$2+P$2-SQRT(S$2^2-P$2^2*SIN(A76*PI()/180)^2)-P$2*COS(A76*PI()/180) -> 63.05985826 | C76: =ASIN($P$2/$S$2*SIN(A76*PI()/180))*180/PI() -> -14.87593695 | D76: =(P$2^2*(PI()*U$2/30)*SIN(A76*PI()/180)*COS(A76*PI()/180)/SQRT(S$2^2-P$2^2*SIN(A76*PI()/180)^2)+P$2*(PI()*U$2/30)*SIN(A76*PI()/180))/1000 -> -16.81653712 | E76: =-1*(PI()^2*U$2^2*P$2*COS(PI()*A76/180)/900+SQRT(2)*PI()^2*U$2^2*P$2^2*(4*(2*S$2^2-P$2^2)*COS(PI()*A76/90)+P$2^2*(COS(PI()*A76/45)+3))/(3600*(P$2^2*COS(PI()*A76/90)+2*S$2^2-P$2^2)^(3/2)))/1000 -> 4537.448607 | F76: =E76/1000 -> 4.537448607 | G76: =$W$2*E76 -> 3176.214025 | H76: =E76*TAN(C76*PI()/180) -> -1205.281401 | I76: =$W$2*H76 -> -843.6969806 | J76: 4.58 | K76: =(J76-1)/10*$R$2^2*PI()/4 -> 2187.308689 | L76: =G76+K76 -> 5363.522714 | M76: =L76*TAN(C76*PI()/180) -> -1424.711271
A77: =A76+1 -> -107 | B77: =S$2+P$2-SQRT(S$2^2-P$2^2*SIN(A77*PI()/180)^2)-P$2*COS(A77*PI()/180) -> 62.38898668 | C77: =ASIN($P$2/$S$2*SIN(A77*PI()/180))*180/PI() -> -14.9599393 | D77: =(P$2^2*(PI()*U$2/30)*SIN(A77*PI()/180)*COS(A77*PI()/180)/SQRT(S$2^2-P$2^2*SIN(A77*PI()/180)^2)+P$2*(PI()*U$2/30)*SIN(A77*PI()/180))/1000 -> -16.99478352 | E77: =-1*(PI()^2*U$2^2*P$2*COS(PI()*A77/180)/900+SQRT(2)*PI()^2*U$2^2*P$2^2*(4*(2*S$2^2-P$2^2)*COS(PI()*A77/90)+P$2^2*(COS(PI()*A77/45)+3))/(3600*(P$2^2*COS(PI()*A77/90)+2*S$2^2-P$2^2)^(3/2)))/1000 -> 4445.639188 | F77: =E77/1000 -> 4.445639188 | G77: =$W$2*E77 -> 3111.947432 | H77: =E77*TAN(C77*PI()/180) -> -1187.874533 | I77: =$W$2*H77 -> -831.5121729 | J77: 4.636 | K77: =(J77-1)/10*$R$2^2*PI()/4 -> 2221.523574 | L77: =G77+K77 -> 5333.471006 | M77: =L77*TAN(C77*PI()/180) -> -1425.103143
A78: =A77+1 -> -106 | B78: =S$2+P$2-SQRT(S$2^2-P$2^2*SIN(A78*PI()/180)^2)-P$2*COS(A78*PI()/180) -> 61.71111495 | C78: =ASIN($P$2/$S$2*SIN(A78*PI()/180))*180/PI() -> -15.03930939 | D78: =(P$2^2*(PI()*U$2/30)*SIN(A78*PI()/180)*COS(A78*PI()/180)/SQRT(S$2^2-P$2^2*SIN(A78*PI()/180)^2)+P$2*(PI()*U$2/30)*SIN(A78*PI()/180))/1000 -> -17.16932328 | E78: =-1*(PI()^2*U$2^2*P$2*COS(PI()*A78/180)/900+SQRT(2)*PI()^2*U$2^2*P$2^2*(4*(2*S$2^2-P$2^2)*COS(PI()*A78/90)+P$2^2*(COS(PI()*A78/45)+3))/(3600*(P$2^2*COS(PI()*A78/90)+2*S$2^2-P$2^2)^(3/2)))/1000 -> 4350.628896 | F78: =E78/1000 -> 4.350628896 | G78: =$W$2*E78 -> 3045.440227 | H78: =E78*TAN(C78*PI()/180) -> -1168.947264 | I78: =$W$2*H78 -> -818.2630847 | J78: 4.636 | K78: =(J78-1)/10*$R$2^2*PI()/4 -> 2221.523574 | L78: =G78+K78 -> 5266.963801 | M78: =L78*TAN(C78*PI()/180) -> -1415.1524
A79: =A78+1 -> -105 | B79: =S$2+P$2-SQRT(S$2^2-P$2^2*SIN(A79*PI()/180)^2)-P$2*COS(A79*PI()/180) -> 61.02639269 | C79: =ASIN($P$2/$S$2*SIN(A79*PI()/180))*180/PI() -> -15.11401801 | D79: =(P$2^2*(PI()*U$2/30)*SIN(A79*PI()/180)*COS(A79*PI()/180)/SQRT(S$2^2-P$2^2*SIN(A79*PI()/180)^2)+P$2*(PI()*U$2/30)*SIN(A79*PI()/180))/1000 -> -17.34002885 | E79: =-1*(PI()^2*U$2^2*P$2*COS(PI()*A79/180)/900+SQRT(2)*PI()^2*U$2^2*P$2^2*(4*(2*S$2^2-P$2^2)*COS(PI()*A79/90)+P$2^2*(COS(PI()*A79/45)+3))/(3600*(P$2^2*COS(PI()*A79/90)+2*S$2^2-P$2^2)^(3/2)))/1000 -> 4252.392038 | F79: =E79/1000 -> 4.252392038 | G79: =$W$2*E79 -> 2976.674427 | H79: =E79*TAN(C79*PI()/180) -> -1148.49964 | I79: =$W$2*H79 -> -803.9497478 | J79: 4.58 | K79: =(J79-1)/10*$R$2^2*PI()/4 -> 2187.308689 | L79: =G79+K79 -> 5163.983116 | M79: =L79*TAN(C79*PI()/180) -> -1394.705073
A80: =A79+1 -> -104 | B80: =S$2+P$2-SQRT(S$2^2-P$2^2*SIN(A80*PI()/180)^2)-P$2*COS(A80*PI()/180) -> 60.3349746 | C80: =ASIN($P$2/$S$2*SIN(A80*PI()/180))*180/PI() -> -15.18403763 | D80: =(P$2^2*(PI()*U$2/30)*SIN(A80*PI()/180)*COS(A80*PI()/180)/SQRT(S$2^2-P$2^2*SIN(A80*PI()/180)^2)+P$2*(PI()*U$2/30)*SIN(A80*PI()/180))/1000 -> -17.50677174 | E80: =-1*(PI()^2*U$2^2*P$2*COS(PI()*A80/180)/900+SQRT(2)*PI()^2*U$2^2*P$2^2*(4*(2*S$2^2-P$2^2)*COS(PI()*A80/90)+P$2^2*(COS(PI()*A80/45)+3))/(3600*(P$2^2*COS(PI()*A80/90)+2*S$2^2-P$2^2)^(3/2)))/1000 -> 4150.906531 | F80: =E80/1000 -> 4.150906531 | G80: =$W$2*E80 -> 2905.634571 | H80: =E80*TAN(C80*PI()/180) -> -1126.534647 | I80: =$W$2*H80 -> -788.5742531 | J80: 4.636 | K80: =(J80-1)/10*$R$2^2*PI()/4 -> 2221.523574 | L80: =G80+K80 -> 5127.158145 | M80: =L80*TAN(C80*PI()/180) -> -1391.484306
A81: =A80+1 -> -103 | B81: =S$2+P$2-SQRT(S$2^2-P$2^2*SIN(A81*PI()/180)^2)-P$2*COS(A81*PI()/180) -> 59.63702049 | C81: =ASIN($P$2/$S$2*SIN(A81*PI()/180))*180/PI() -> -15.24934233 | D81: =(P$2^2*(PI()*U$2/30)*SIN(A81*PI()/180)*COS(A81*PI()/180)/SQRT(S$2^2-P$2^2*SIN(A81*PI()/180)^2)+P$2*(PI()*U$2/30)*SIN(A81*PI()/180))/1000 -> -17.66942266 | E81: =-1*(PI()^2*U$2^2*P$2*COS(PI()*A81/180)/900+SQRT(2)*PI()^2*U$2^2*P$2^2*(4*(2*S$2^2-P$2^2)*COS(PI()*A81/90)+P$2^2*(COS(PI()*A81/45)+3))/(3600*(P$2^2*COS(PI()*A81/90)+2*S$2^2-P$2^2)^(3/2)))/1000 -> 4046.154023 | F81: =E81/1000 -> 4.046154023 | G81: =$W$2*E81 -> 2832.307816 | H81: =E81*TAN(C81*PI()/180) -> -1103.058303 | I81: =$W$2*H81 -> -772.140812 | J81: 4.692 | K81: =(J81-1)/10*$R$2^2*PI()/4 -> 2255.738459 | L81: =G81+K81 -> 5088.046275 | M81: =L81*TAN(C81*PI()/180) -> -1387.097885
A82: =A81+1 -> -102 | B82: =S$2+P$2-SQRT(S$2^2-P$2^2*SIN(A82*PI()/180)^2)-P$2*COS(A82*PI()/180) -> 58.93269531 | C82: =ASIN($P$2/$S$2*SIN(A82*PI()/180))*180/PI() -> -15.30990793 | D82: =(P$2^2*(PI()*U$2/30)*SIN(A82*PI()/180)*COS(A82*PI()/180)/SQRT(S$2^2-P$2^2*SIN(A82*PI()/180)^2)+P$2*(PI()*U$2/30)*SIN(A82*PI()/180))/1000 -> -17.82785167 | E82: =-1*(PI()^2*U$2^2*P$2*COS(PI()*A82/180)/900+SQRT(2)*PI()^2*U$2^2*P$2^2*(4*(2*S$2^2-P$2^2)*COS(PI()*A82/90)+P$2^2*(COS(PI()*A82/45)+3))/(3600*(P$2^2*COS(PI()*A82/90)+2*S$2^2-P$2^2)^(3/2)))/1000 -> 3938.120022 | F82: =E82/1000 -> 3.938120022 | G82: =$W$2*E82 -> 2756.684016 | H82: =E82*TAN(C82*PI()/180) -> -1078.079731 | I82: =$W$2*H82 -> -754.6558115 | J82: 4.748 | K82: =(J82-1)/10*$R$2^2*PI()/4 -> 2289.953343 | L82: =G82+K82 -> 5046.637359 | M82: =L82*TAN(C82*PI()/180) -> -1381.541805
A83: =A82+1 -> -101 | B83: =S$2+P$2-SQRT(S$2^2-P$2^2*SIN(A83*PI()/180)^2)-P$2*COS(A83*PI()/180) -> 58.2221692 | C83: =ASIN($P$2/$S$2*SIN(A83*PI()/180))*180/PI() -> -15.36571193 | D83: =(P$2^2*(PI()*U$2/30)*SIN(A83*PI()/180)*COS(A83*PI()/180)/SQRT(S$2^2-P$2^2*SIN(A83*PI()/180)^2)+P$2*(PI()*U$2/30)*SIN(A83*PI()/180))/1000 -> -17.98192832 | E83: =-1*(PI()^2*U$2^2*P$2*COS(PI()*A83/180)/900+SQRT(2)*PI()^2*U$2^2*P$2^2*(4*(2*S$2^2-P$2^2)*COS(PI()*A83/90)+P$2^2*(COS(PI()*A83/45)+3))/(3600*(P$2^2*COS(PI()*A83/90)+2*S$2^2-P$2^2)^(3/2)))/1000 -> 3826.794004 | F83: =E83/1000 -> 3.826794004 | G83: =$W$2*E83 -> 2678.755803 | H83: =E83*TAN(C83*PI()/180) -> -1051.611233 | I83: =$W$2*H83 -> -736.1278628 | J83: 4.748 | K83: =(J83-1)/10*$R$2^2*PI()/4 -> 2289.953343 | L83: =G83+K83 -> 4968.709146 | M83: =L83*TAN(C83*PI()/180) -> -1365.411972
A84: =A83+1 -> -100 | B84: =S$2+P$2-SQRT(S$2^2-P$2^2*SIN(A84*PI()/180)^2)-P$2*COS(A84*PI()/180) -> 57.50561745 | C84: =ASIN($P$2/$S$2*SIN(A84*PI()/180))*180/PI() -> -15.41673356 | D84: =(P$2^2*(PI()*U$2/30)*SIN(A84*PI()/180)*COS(A84*PI()/180)/SQRT(S$2^2-P$2^2*SIN(A84*PI()/180)^2)+P$2*(PI()*U$2/30)*SIN(A84*PI()/180))/1000 -> -18.13152185 | E84: =-1*(PI()^2*U$2^2*P$2*COS(PI()*A84/180)/900+SQRT(2)*PI()^2*U$2^2*P$2^2*(4*(2*S$2^2-P$2^2)*COS(PI()*A84/90)+P$2^2*(COS(PI()*A84/45)+3))/(3600*(P$2^2*COS(PI()*A84/90)+2*S$2^2-P$2^2)^(3/2)))/1000 -> 3712.169518 | F84: =E84/1000 -> 3.712169518 | G84: =$W$2*E84 -> 2598.518663 | H84: =E84*TAN(C84*PI()/180) -> -1023.66835 | I84: =$W$2*H84 -> -716.5678447 | J84: 4.748 | K84: =(J84-1)/10*$R$2^2*PI()/4 -> 2289.953343 | L84: =G84+K84 -> 4888.472006 | M84: =L84*TAN(C84*PI()/180) -> -1348.045677
A85: =A84+1 -> -99 | B85: =S$2+P$2-SQRT(S$2^2-P$2^2*SIN(A85*PI()/180)^2)-P$2*COS(A85*PI()/180) -> 56.78322056 | C85: =ASIN($P$2/$S$2*SIN(A85*PI()/180))*180/PI() -> -15.46295378 | D85: =(P$2^2*(PI()*U$2/30)*SIN(A85*PI()/180)*COS(A85*PI()/180)/SQRT(S$2^2-P$2^2*SIN(A85*PI()/180)^2)+P$2*(PI()*U$2/30)*SIN(A85*PI()/180))/1000 -> -18.27650129 | E85: =-1*(PI()^2*U$2^2*P$2*COS(PI()*A85/180)/900+SQRT(2)*PI()^2*U$2^2*P$2^2*(4*(2*S$2^2-P$2^2)*COS(PI()*A85/90)+P$2^2*(COS(PI()*A85/45)+3))/(3600*(P$2^2*COS(PI()*A85/90)+2*S$2^2-P$2^2)^(3/2)))/1000 -> 3594.244291 | F85: =E85/1000 -> 3.594244291 | G85: =$W$2*E85 -> 2515.971004 | H85: =E85*TAN(C85*PI()/180) -> -994.2699135 | I85: =$W$2*H85 -> -695.9889394 | J85: 4.86 | K85: =(J85-1)/10*$R$2^2*PI()/4 -> 2358.383112 | L85: =G85+K85 -> 4874.354116 | M85: =L85*TAN(C85*PI()/180) -> -1348.384598
A86: =A85+1 -> -98 | B86: =S$2+P$2-SQRT(S$2^2-P$2^2*SIN(A86*PI()/180)^2)-P$2*COS(A86*PI()/180) -> 56.05516424 | C86: =ASIN($P$2/$S$2*SIN(A86*PI()/180))*180/PI() -> -15.50435535 | D86: =(P$2^2*(PI()*U$2/30)*SIN(A86*PI()/180)*COS(A86*PI()/180)/SQRT(S$2^2-P$2^2*SIN(A86*PI()/180)^2)+P$2*(PI()*U$2/30)*SIN(A86*PI()/180))/1000 -> -18.41673569 | E86: =-1*(PI()^2*U$2^2*P$2*COS(PI()*A86/180)/900+SQRT(2)*PI()^2*U$2^2*P$2^2*(4*(2*S$2^2-P$2^2)*COS(PI()*A86/90)+P$2^2*(COS(PI()*A86/45)+3))/(3600*(P$2^2*COS(PI()*A86/90)+2*S$2^2-P$2^2)^(3/2)))/1000 -> 3473.020313 | F86: =E86/1000 -> 3.473020313 | G86: =$W$2*E86 -> 2431.114219 | H86: =E86*TAN(C86*PI()/180) -> -963.4380875 | I86: =$W$2*H86 -> -674.4066613 | J86: 4.972 | K86: =(J86-1)/10*$R$2^2*PI()/4 -> 2426.812881 | L86: =G86+K86 -> 4857.9271 | M86: =L86*TAN(C86*PI()/180) -> -1347.620104
A87: =A86+1 -> -97 | B87: =S$2+P$2-SQRT(S$2^2-P$2^2*SIN(A87*PI()/180)^2)-P$2*COS(A87*PI()/180) -> 55.32163937 | C87: =ASIN($P$2/$S$2*SIN(A87*PI()/180))*180/PI() -> -15.54092278 | D87: =(P$2^2*(PI()*U$2/30)*SIN(A87*PI()/180)*COS(A87*PI()/180)/SQRT(S$2^2-P$2^2*SIN(A87*PI()/180)^2)+P$2*(PI()*U$2/30)*SIN(A87*PI()/180))/1000 -> -18.55209427 | E87: =-1*(PI()^2*U$2^2*P$2*COS(PI()*A87/180)/900+SQRT(2)*PI()^2*U$2^2*P$2^2*(4*(2*S$2^2-P$2^2)*COS(PI()*A87/90)+P$2^2*(COS(PI()*A87/45)+3))/(3600*(P$2^2*COS(PI()*A87/90)+2*S$2^2-P$2^2)^(3/2)))/1000 -> 3348.503922 | F87: =E87/1000 -> 3.348503922 | G87: =$W$2*E87 -> 2343.952746 | H87: =E87*TAN(C87*PI()/180) -> -931.1983975 | I87: =$W$2*H87 -> -651.8388782 | J87: 5.027 | K87: =(J87-1)/10*$R$2^2*PI()/4 -> 2460.416786 | L87: =G87+K87 -> 4804.369531 | M87: =L87*TAN(C87*PI()/180) -> -1336.065692
A88: =A87+1 -> -96 | B88: =S$2+P$2-SQRT(S$2^2-P$2^2*SIN(A88*PI()/180)^2)-P$2*COS(A88*PI()/180) -> 54.58284202 | C88: =ASIN($P$2/$S$2*SIN(A88*PI()/180))*180/PI() -> -15.57264235 | D88: =(P$2^2*(PI()*U$2/30)*SIN(A88*PI()/180)*COS(A88*PI()/180)/SQRT(S$2^2-P$2^2*SIN(A88*PI()/180)^2)+P$2*(PI()*U$2/30)*SIN(A88*PI()/180))/1000 -> -18.68244656 | E88: =-1*(PI()^2*U$2^2*P$2*COS(PI()*A88/180)/900+SQRT(2)*PI()^2*U$2^2*P$2^2*(4*(2*S$2^2-P$2^2)*COS(PI()*A88/90)+P$2^2*(COS(PI()*A88/45)+3))/(3600*(P$2^2*COS(PI()*A88/90)+2*S$2^2-P$2^2)^(3/2)))/1000 -> 3220.705876 | F88: =E88/1000 -> 3.220705876 | G88: =$W$2*E88 -> 2254.494113 | H88: =E88*TAN(C88*PI()/180) -> -897.5797511 | I88: =$W$2*H88 -> -628.3058258 | J88: 5.419 | K88: =(J88-1)/10*$R$2^2*PI()/4 -> 2699.920977 | L88: =G88+K88 -> 4954.41509 | M88: =L88*TAN(C88*PI()/180) -> -1380.747835
A89: =A88+1 -> -95 | B89: =S$2+P$2-SQRT(S$2^2-P$2^2*SIN(A89*PI()/180)^2)-P$2*COS(A89*PI()/180) -> 53.83897345 | C89: =ASIN($P$2/$S$2*SIN(A89*PI()/180))*180/PI() -> -15.59950219 | D89: =(P$2^2*(PI()*U$2/30)*SIN(A89*PI()/180)*COS(A89*PI()/180)/SQRT(S$2^2-P$2^2*SIN(A89*PI()/180)^2)+P$2*(PI()*U$2/30)*SIN(A89*PI()/180))/1000 -> -18.80766264 | E89: =-1*(PI()^2*U$2^2*P$2*COS(PI()*A89/180)/900+SQRT(2)*PI()^2*U$2^2*P$2^2*(4*(2*S$2^2-P$2^2)*COS(PI()*A89/90)+P$2^2*(COS(PI()*A89/45)+3))/(3600*(P$2^2*COS(PI()*A89/90)+2*S$2^2-P$2^2)^(3/2)))/1000 -> 3089.641416 | F89: =E89/1000 -> 3.089641416 | G89: =$W$2*E89 -> 2162.748991 | H89: =E89*TAN(C89*PI()/180) -> -862.6144468 | I89: =$W$2*H89 -> -603.8301127 | J89: 5.531 | K89: =(J89-1)/10*$R$2^2*PI()/4 -> 2768.350746 | L89: =G89+K89 -> 4931.099738 | M89: =L89*TAN(C89*PI()/180) -> -1376.741602
A90: =A89+1 -> -94 | B90: =S$2+P$2-SQRT(S$2^2-P$2^2*SIN(A90*PI()/180)^2)-P$2*COS(A90*PI()/180) -> 53.09024003 | C90: =ASIN($P$2/$S$2*SIN(A90*PI()/180))*180/PI() -> -15.6214922 | D90: =(P$2^2*(PI()*U$2/30)*SIN(A90*PI()/180)*COS(A90*PI()/180)/SQRT(S$2^2-P$2^2*SIN(A90*PI()/180)^2)+P$2*(PI()*U$2/30)*SIN(A90*PI()/180))/1000 -> -18.92761325 | E90: =-1*(PI()^2*U$2^2*P$2*COS(PI()*A90/180)/900+SQRT(2)*PI()^2*U$2^2*P$2^2*(4*(2*S$2^2-P$2^2)*COS(PI()*A90/90)+P$2^2*(COS(PI()*A90/45)+3))/(3600*(P$2^2*COS(PI()*A90/90)+2*S$2^2-P$2^2)^(3/2)))/1000 -> 2955.330323 | F90: =E90/1000 -> 2.955330323 | G90: =$W$2*E90 -> 2068.731226 | H90: =E90*TAN(C90*PI()/180) -> -826.3381702 | I90: =$W$2*H90 -> -578.4367191 | J90: 5.531 | K90: =(J90-1)/10*$R$2^2*PI()/4 -> 2768.350746 | L90: =G90+K90 -> 4837.081973 | M90: =L90*TAN(C90*PI()/180) -> -1352.49364
A91: =A90+1 -> -93 | B91: =S$2+P$2-SQRT(S$2^2-P$2^2*SIN(A91*PI()/180)^2)-P$2*COS(A91*PI()/180) -> 52.33685327 | C91: =ASIN($P$2/$S$2*SIN(A91*PI()/180))*180/PI() -> -15.63860413 | D91: =(P$2^2*(PI()*U$2/30)*SIN(A91*PI()/180)*COS(A91*PI()/180)/SQRT(S$2^2-P$2^2*SIN(A91*PI()/180)^2)+P$2*(PI()*U$2/30)*SIN(A91*PI()/180))/1000 -> -19.04217004 | E91: =-1*(PI()^2*U$2^2*P$2*COS(PI()*A91/180)/900+SQRT(2)*PI()^2*U$2^2*P$2^2*(4*(2*S$2^2-P$2^2)*COS(PI()*A91/90)+P$2^2*(COS(PI()*A91/45)+3))/(3600*(P$2^2*COS(PI()*A91/90)+2*S$2^2-P$2^2)^(3/2)))/1000 -> 2817.79696 | F91: =E91/1000 -> 2.81779696 | G91: =$W$2*E91 -> 1972.457872 | H91: =E91*TAN(C91*PI()/180) -> -788.7899794 | I91: =$W$2*H91 -> -552.1529856 | J91: 5.587 | K91: =(J91-1)/10*$R$2^2*PI()/4 -> 2802.565631 | L91: =G91+K91 -> 4775.023503 | M91: =L91*TAN(C91*PI()/180) -> -1336.679237
A92: =A91+1 -> -92 | B92: =S$2+P$2-SQRT(S$2^2-P$2^2*SIN(A92*PI()/180)^2)-P$2*COS(A92*PI()/180) -> 51.57902973 | C92: =ASIN($P$2/$S$2*SIN(A92*PI()/180))*180/PI() -> -15.65083154 | D92: =(P$2^2*(PI()*U$2/30)*SIN(A92*PI()/180)*COS(A92*PI()/180)/SQRT(S$2^2-P$2^2*SIN(A92*PI()/180)^2)+P$2*(PI()*U$2/30)*SIN(A92*PI()/180))/1000 -> -19.15120569 | E92: =-1*(PI()^2*U$2^2*P$2*COS(PI()*A92/180)/900+SQRT(2)*PI()^2*U$2^2*P$2^2*(4*(2*S$2^2-P$2^2)*COS(PI()*A92/90)+P$2^2*(COS(PI()*A92/45)+3))/(3600*(P$2^2*COS(PI()*A92/90)+2*S$2^2-P$2^2)^(3/2)))/1000 -> 2677.070303 | F92: =E92/1000 -> 2.677070303 | G92: =$W$2*E92 -> 1873.949212 | H92: =E92*TAN(C92*PI()/180) -> -750.0122779 | I92: =$W$2*H92 -> -525.0085945 | J92: 5.699 | K92: =(J92-1)/10*$R$2^2*PI()/4 -> 2870.9954 | L92: =G92+K92 -> 4744.944612 | M92: =L92*TAN(C92*PI()/180) -> -1329.351236
A93: =A92+1 -> -91 | B93: =S$2+P$2-SQRT(S$2^2-P$2^2*SIN(A93*PI()/180)^2)-P$2*COS(A93*PI()/180) -> 50.81699101 | C93: =ASIN($P$2/$S$2*SIN(A93*PI()/180))*180/PI() -> -15.65816982 | D93: =(P$2^2*(PI()*U$2/30)*SIN(A93*PI()/180)*COS(A93*PI()/180)/SQRT(S$2^2-P$2^2*SIN(A93*PI()/180)^2)+P$2*(PI()*U$2/30)*SIN(A93*PI()/180))/1000 -> -19.25459414 | E93: =-1*(PI()^2*U$2^2*P$2*COS(PI()*A93/180)/900+SQRT(2)*PI()^2*U$2^2*P$2^2*(4*(2*S$2^2-P$2^2)*COS(PI()*A93/90)+P$2^2*(COS(PI()*A93/45)+3))/(3600*(P$2^2*COS(PI()*A93/90)+2*S$2^2-P$2^2)^(3/2)))/1000 -> 2533.183972 | F93: =E93/1000 -> 2.533183972 | G93: =$W$2*E93 -> 1773.22878 | H93: =E93*TAN(C93*PI()/180) -> -710.0507757 | I93: =$W$2*H93 -> -497.035543 | J93: 5.699 | K93: =(J93-1)/10*$R$2^2*PI()/4 -> 2870.9954 | L93: =G93+K93 -> 4644.22418 | M93: =L93*TAN(C93*PI()/180) -> -1301.77477
A94: =A93+1 -> -90 | B94: =S$2+P$2-SQRT(S$2^2-P$2^2*SIN(A94*PI()/180)^2)-P$2*COS(A94*PI()/180) -> 50.05096369 | C94: =ASIN($P$2/$S$2*SIN(A94*PI()/180))*180/PI() -> -15.66061622 | D94: =(P$2^2*(PI()*U$2/30)*SIN(A94*PI()/180)*COS(A94*PI()/180)/SQRT(S$2^2-P$2^2*SIN(A94*PI()/180)^2)+P$2*(PI()*U$2/30)*SIN(A94*PI()/180))/1000 -> -19.35221075 | E94: =-1*(PI()^2*U$2^2*P$2*COS(PI()*A94/180)/900+SQRT(2)*PI()^2*U$2^2*P$2^2*(4*(2*S$2^2-P$2^2)*COS(PI()*A94/90)+P$2^2*(COS(PI()*A94/45)+3))/(3600*(P$2^2*COS(PI()*A94/90)+2*S$2^2-P$2^2)^(3/2)))/1000 -> 2386.176236 | F94: =E94/1000 -> 2.386176236 | G94: =$W$2*E94 -> 1670.323365 | H94: =E94*TAN(C94*PI()/180) -> -668.9544381 | I94: =$W$2*H94 -> -468.2681067 | J94: 5.755 | K94: =(J94-1)/10*$R$2^2*PI()/4 -> 2905.210285 | L94: =G94+K94 -> 4575.53365 | M94: =L94*TAN(C94*PI()/180) -> -1282.73155
A95: =A94+1 -> -89 | B95: =S$2+P$2-SQRT(S$2^2-P$2^2*SIN(A95*PI()/180)^2)-P$2*COS(A95*PI()/180) -> 49.28117924 | C95: =ASIN($P$2/$S$2*SIN(A95*PI()/180))*180/PI() -> -15.65816982 | D95: =(P$2^2*(PI()*U$2/30)*SIN(A95*PI()/180)*COS(A95*PI()/180)/SQRT(S$2^2-P$2^2*SIN(A95*PI()/180)^2)+P$2*(PI()*U$2/30)*SIN(A95*PI()/180))/1000 -> -19.44393248 | E95: =-1*(PI()^2*U$2^2*P$2*COS(PI()*A95/180)/900+SQRT(2)*PI()^2*U$2^2*P$2^2*(4*(2*S$2^2-P$2^2)*COS(PI()*A95/90)+P$2^2*(COS(PI()*A95/45)+3))/(3600*(P$2^2*COS(PI()*A95/90)+2*S$2^2-P$2^2)^(3/2)))/1000 -> 2236.090022 | F95: =E95/1000 -> 2.236090022 | G95: =$W$2*E95 -> 1565.263016 | H95: =E95*TAN(C95*PI()/180) -> -626.7754227 | I95: =$W$2*H95 -> -438.7427959 | J95: 5.811 | K95: =(J95-1)/10*$R$2^2*PI()/4 -> 2939.425169 | L95: =G95+K95 -> 4504.688185 | M95: =L95*TAN(C95*PI()/180) -> -1262.662868
A96: =A95+1 -> -88 | B96: =S$2+P$2-SQRT(S$2^2-P$2^2*SIN(A96*PI()/180)^2)-P$2*COS(A96*PI()/180) -> 48.50787402 | C96: =ASIN($P$2/$S$2*SIN(A96*PI()/180))*180/PI() -> -15.65083154 | D96: =(P$2^2*(PI()*U$2/30)*SIN(A96*PI()/180)*COS(A96*PI()/180)/SQRT(S$2^2-P$2^2*SIN(A96*PI()/180)^2)+P$2*(PI()*U$2/30)*SIN(A96*PI()/180))/1000 -> -19.52963811 | E96: =-1*(PI()^2*U$2^2*P$2*COS(PI()*A96/180)/900+SQRT(2)*PI()^2*U$2^2*P$2^2*(4*(2*S$2^2-P$2^2)*COS(PI()*A96/90)+P$2^2*(COS(PI()*A96/45)+3))/(3600*(P$2^2*COS(PI()*A96/90)+2*S$2^2-P$2^2)^(3/2)))/1000 -> 2082.972902 | F96: =E96/1000 -> 2.082972902 | G96: =$W$2*E96 -> 1458.081031 | H96: =E96*TAN(C96*PI()/180) -> -583.5690041 | I96: =$W$2*H96 -> -408.4983029 | J96: 5.979 | K96: =(J96-1)/10*$R$2^2*PI()/4 -> 3042.069823 | L96: =G96+K96 -> 4500.150854 | M96: =L96*TAN(C96*PI()/180) -> -1260.769427
A97: =A96+1 -> -87 | B97: =S$2+P$2-SQRT(S$2^2-P$2^2*SIN(A97*PI()/180)^2)-P$2*COS(A97*PI()/180) -> 47.73128912 | C97: =ASIN($P$2/$S$2*SIN(A97*PI()/180))*180/PI() -> -15.63860413 | D97: =(P$2^2*(PI()*U$2/30)*SIN(A97*PI()/180)*COS(A97*PI()/180)/SQRT(S$2^2-P$2^2*SIN(A97*PI()/180)^2)+P$2*(PI()*U$2/30)*SIN(A97*PI()/180))/1000 -> -19.60920839 | E97: =-1*(PI()^2*U$2^2*P$2*COS(PI()*A97/180)/900+SQRT(2)*PI()^2*U$2^2*P$2^2*(4*(2*S$2^2-P$2^2)*COS(PI()*A97/90)+P$2^2*(COS(PI()*A97/45)+3))/(3600*(P$2^2*COS(PI()*A97/90)+2*S$2^2-P$2^2)^(3/2)))/1000 -> 1926.877074 | F97: =E97/1000 -> 1.926877074 | G97: =$W$2*E97 -> 1348.813952 | H97: =E97*TAN(C97*PI()/180) -> -539.3934869 | I97: =$W$2*H97 -> -377.5754409 | J97: 5.979 | K97: =(J97-1)/10*$R$2^2*PI()/4 -> 3042.069823 | L97: =G97+K97 -> 4390.883775 | M97: =L97*TAN(C97*PI()/180) -> -1229.146447
A98: =A97+1 -> -86 | B98: =S$2+P$2-SQRT(S$2^2-P$2^2*SIN(A98*PI()/180)^2)-P$2*COS(A98*PI()/180) -> 46.95167035 | C98: =ASIN($P$2/$S$2*SIN(A98*PI()/180))*180/PI() -> -15.6214922 | D98: =(P$2^2*(PI()*U$2/30)*SIN(A98*PI()/180)*COS(A98*PI()/180)/SQRT(S$2^2-P$2^2*SIN(A98*PI()/180)^2)+P$2*(PI()*U$2/30)*SIN(A98*PI()/180))/1000 -> -19.68252622 | E98: =-1*(PI()^2*U$2^2*P$2*COS(PI()*A98/180)/900+SQRT(2)*PI()^2*U$2^2*P$2^2*(4*(2*S$2^2-P$2^2)*COS(PI()*A98/90)+P$2^2*(COS(PI()*A98/45)+3))/(3600*(P$2^2*COS(PI()*A98/90)+2*S$2^2-P$2^2)^(3/2)))/1000 -> 1767.859337 | F98: =E98/1000 -> 1.767859337 | G98: =$W$2*E98 -> 1237.501536 | H98: =E98*TAN(C98*PI()/180) -> -494.3101074 | I98: =$W$2*H98 -> -346.0170752 | J98: 6.147 | K98: =(J98-1)/10*$R$2^2*PI()/4 -> 3144.714476 | L98: =G98+K98 -> 4382.216012 | M98: =L98*TAN(C98*PI()/180) -> -1225.308837
A99: =A98+1 -> -85 | B99: =S$2+P$2-SQRT(S$2^2-P$2^2*SIN(A99*PI()/180)^2)-P$2*COS(A99*PI()/180) -> 46.16926809 | C99: =ASIN($P$2/$S$2*SIN(A99*PI()/180))*180/PI() -> -15.59950219 | D99: =(P$2^2*(PI()*U$2/30)*SIN(A99*PI()/180)*COS(A99*PI()/180)/SQRT(S$2^2-P$2^2*SIN(A99*PI()/180)^2)+P$2*(PI()*U$2/30)*SIN(A99*PI()/180))/1000 -> -19.74947685 | E99: =-1*(PI()^2*U$2^2*P$2*COS(PI()*A99/180)/900+SQRT(2)*PI()^2*U$2^2*P$2^2*(4*(2*S$2^2-P$2^2)*COS(PI()*A99/90)+P$2^2*(COS(PI()*A99/45)+3))/(3600*(P$2^2*COS(PI()*A99/90)+2*S$2^2-P$2^2)^(3/2)))/1000 -> 1605.981044 | F99: =E99/1000 -> 1.605981044 | G99: =$W$2*E99 -> 1124.18673 | H99: =E99*TAN(C99*PI()/180) -> -448.382923 | I99: =$W$2*H99 -> -313.8680461 | J99: 6.147 | K99: =(J99-1)/10*$R$2^2*PI()/4 -> 3144.714476 | L99: =G99+K99 -> 4268.901207 | M99: =L99*TAN(C99*PI()/180) -> -1191.858652
A100: =A99+1 -> -84 | B100: =S$2+P$2-SQRT(S$2^2-P$2^2*SIN(A100*PI()/180)^2)-P$2*COS(A100*PI()/180) -> 45.38433726 | C100: =ASIN($P$2/$S$2*SIN(A100*PI()/180))*180/PI() -> -15.57264235 | D100: =(P$2^2*(PI()*U$2/30)*SIN(A100*PI()/180)*COS(A100*PI()/180)/SQRT(S$2^2-P$2^2*SIN(A100*PI()/180)^2)+P$2*(PI()*U$2/30)*SIN(A100*PI()/180))/1000 -> -19.80994806 | E100: =-1*(PI()^2*U$2^2*P$2*COS(PI()*A100/180)/900+SQRT(2)*PI()^2*U$2^2*P$2^2*(4*(2*S$2^2-P$2^2)*COS(PI()*A100/90)+P$2^2*(COS(PI()*A100/45)+3))/(3600*(P$2^2*COS(PI()*A100/90)+2*S$2^2-P$2^2)^(3/2)))/1000 -> 1441.308054 | F100: =E100/1000 -> 1.441308054 | G100: =$W$2*E100 -> 1008.915638 | H100: =E100*TAN(C100*PI()/180) -> -401.6786924 | I100: =$W$2*H100 -> -281.1750847 | J100: 6.147 | K100: =(J100-1)/10*$R$2^2*PI()/4 -> 3144.714476 | L100: =G100+K100 -> 4153.630114 | M100: =L100*TAN(C100*PI()/180) -> -1157.576764
A101: =A100+1 -> -83 | B101: =S$2+P$2-SQRT(S$2^2-P$2^2*SIN(A101*PI()/180)^2)-P$2*COS(A101*PI()/180) -> 44.59713715 | C101: =ASIN($P$2/$S$2*SIN(A101*PI()/180))*180/PI() -> -15.54092278 | D101: =(P$2^2*(PI()*U$2/30)*SIN(A101*PI()/180)*COS(A101*PI()/180)/SQRT(S$2^2-P$2^2*SIN(A101*PI()/180)^2)+P$2*(PI()*U$2/30)*SIN(A101*PI()/180))/1000 -> -19.86383034 | E101: =-1*(PI()^2*U$2^2*P$2*COS(PI()*A101/180)/900+SQRT(2)*PI()^2*U$2^2*P$2^2*(4*(2*S$2^2-P$2^2)*COS(PI()*A101/90)+P$2^2*(COS(PI()*A101/45)+3))/(3600*(P$2^2*COS(PI()*A101/90)+2*S$2^2-P$2^2)^(3/2)))/1000 -> 1273.910674 | F101: =E101/1000 -> 1.273910674 | G101: =$W$2*E101 -> 891.7374716 | H101: =E101*TAN(C101*PI()/180) -> -354.2667428 | I101: =$W$2*H101 -> -247.98672 | J101: 6.315 | K101: =(J101-1)/10*$R$2^2*PI()/4 -> 3247.35913 | L101: =G101+K101 -> 4139.096601 | M101: =L101*TAN(C101*PI()/180) -> -1151.057371
A102: =A101+1 -> -82 | B102: =S$2+P$2-SQRT(S$2^2-P$2^2*SIN(A102*PI()/180)^2)-P$2*COS(A102*PI()/180) -> 43.80793135 | C102: =ASIN($P$2/$S$2*SIN(A102*PI()/180))*180/PI() -> -15.50435535 | D102: =(P$2^2*(PI()*U$2/30)*SIN(A102*PI()/180)*COS(A102*PI()/180)/SQRT(S$2^2-P$2^2*SIN(A102*PI()/180)^2)+P$2*(PI()*U$2/30)*SIN(A102*PI()/180))/1000 -> -19.91101703 | E102: =-1*(PI()^2*U$2^2*P$2*COS(PI()*A102/180)/900+SQRT(2)*PI()^2*U$2^2*P$2^2*(4*(2*S$2^2-P$2^2)*COS(PI()*A102/90)+P$2^2*(COS(PI()*A102/45)+3))/(3600*(P$2^2*COS(PI()*A102/90)+2*S$2^2-P$2^2)^(3/2)))/1000 -> 1103.863579 | F102: =E102/1000 -> 1.103863579 | G102: =$W$2*E102 -> 772.7045054 | H102: =E102*TAN(C102*PI()/180) -> -306.2188296 | I102: =$W$2*H102 -> -214.3531807 | J102: 6.315 | K102: =(J102-1)/10*$R$2^2*PI()/4 -> 3247.35913 | L102: =G102+K102 -> 4020.063635 | M102: =L102*TAN(C102*PI()/180) -> -1115.19141
A103: =A102+1 -> -81 | B103: =S$2+P$2-SQRT(S$2^2-P$2^2*SIN(A103*PI()/180)^2)-P$2*COS(A103*PI()/180) -> 43.01698764 | C103: =ASIN($P$2/$S$2*SIN(A103*PI()/180))*180/PI() -> -15.46295378 | D103: =(P$2^2*(PI()*U$2/30)*SIN(A103*PI()/180)*COS(A103*PI()/180)/SQRT(S$2^2-P$2^2*SIN(A103*PI()/180)^2)+P$2*(PI()*U$2/30)*SIN(A103*PI()/180))/1000 -> -19.95140455 | E103: =-1*(PI()^2*U$2^2*P$2*COS(PI()*A103/180)/900+SQRT(2)*PI()^2*U$2^2*P$2^2*(4*(2*S$2^2-P$2^2)*COS(PI()*A103/90)+P$2^2*(COS(PI()*A103/45)+3))/(3600*(P$2^2*COS(PI()*A103/90)+2*S$2^2-P$2^2)^(3/2)))/1000 -> 931.2457395 | F103: =E103/1000 -> 0.9312457395 | G103: =$W$2*E103 -> 651.8720176 | H103: =E103*TAN(C103*PI()/180) -> -257.6089842 | I103: =$W$2*H103 -> -180.3262889 | J103: 6.371 | K103: =(J103-1)/10*$R$2^2*PI()/4 -> 3281.574014 | L103: =G103+K103 -> 3933.446032 | M103: =L103*TAN(C103*PI()/180) -> -1088.102736
A104: =A103+1 -> -80 | B104: =S$2+P$2-SQRT(S$2^2-P$2^2*SIN(A104*PI()/180)^2)-P$2*COS(A104*PI()/180) -> 42.22457781 | C104: =ASIN($P$2/$S$2*SIN(A104*PI()/180))*180/PI() -> -15.41673356 | D104: =(P$2^2*(PI()*U$2/30)*SIN(A104*PI()/180)*COS(A104*PI()/180)/SQRT(S$2^2-P$2^2*SIN(A104*PI()/180)^2)+P$2*(PI()*U$2/30)*SIN(A104*PI()/180))/1000 -> -19.98489252 | E104: =-1*(PI()^2*U$2^2*P$2*COS(PI()*A104/180)/900+SQRT(2)*PI()^2*U$2^2*P$2^2*(4*(2*S$2^2-P$2^2)*COS(PI()*A104/90)+P$2^2*(COS(PI()*A104/45)+3))/(3600*(P$2^2*COS(PI()*A104/90)+2*S$2^2-P$2^2)^(3/2)))/1000 -> 756.140324 | F104: =E104/1000 -> 0.756140324 | G104: =$W$2*E104 -> 529.2982268 | H104: =E104*TAN(C104*PI()/180) -> -208.5133542 | I104: =$W$2*H104 -> -145.9593479 | J104: 6.93 | K104: =(J104-1)/10*$R$2^2*PI()/4 -> 3623.11188 | L104: =G104+K104 -> 4152.410106 | M104: =L104*TAN(C104*PI()/180) -> -1145.069151
A105: =A104+1 -> -79 | B105: =S$2+P$2-SQRT(S$2^2-P$2^2*SIN(A105*PI()/180)^2)-P$2*COS(A105*PI()/180) -> 41.4309776 | C105: =ASIN($P$2/$S$2*SIN(A105*PI()/180))*180/PI() -> -15.36571193 | D105: =(P$2^2*(PI()*U$2/30)*SIN(A105*PI()/180)*COS(A105*PI()/180)/SQRT(S$2^2-P$2^2*SIN(A105*PI()/180)^2)+P$2*(PI()*U$2/30)*SIN(A105*PI()/180))/1000 -> -20.01138393 | E105: =-1*(PI()^2*U$2^2*P$2*COS(PI()*A105/180)/900+SQRT(2)*PI()^2*U$2^2*P$2^2*(4*(2*S$2^2-P$2^2)*COS(PI()*A105/90)+P$2^2*(COS(PI()*A105/45)+3))/(3600*(P$2^2*COS(PI()*A105/90)+2*S$2^2-P$2^2)^(3/2)))/1000 -> 578.6346022 | F105: =E105/1000 -> 0.5786346022 | G105: =$W$2*E105 -> 405.0442216 | H105: =E105*TAN(C105*PI()/180) -> -159.0100347 | I105: =$W$2*H105 -> -111.3070243 | J105: 7.322 | K105: =(J105-1)/10*$R$2^2*PI()/4 -> 3862.616071 | L105: =G105+K105 -> 4267.660293 | M105: =L105*TAN(C105*PI()/180) -> -1172.762238
A106: =A105+1 -> -78 | B106: =S$2+P$2-SQRT(S$2^2-P$2^2*SIN(A106*PI()/180)^2)-P$2*COS(A106*PI()/180) -> 40.63646652 | C106: =ASIN($P$2/$S$2*SIN(A106*PI()/180))*180/PI() -> -15.30990793 | D106: =(P$2^2*(PI()*U$2/30)*SIN(A106*PI()/180)*COS(A106*PI()/180)/SQRT(S$2^2-P$2^2*SIN(A106*PI()/180)^2)+P$2*(PI()*U$2/30)*SIN(A106*PI()/180))/1000 -> -20.03078535 | E106: =-1*(PI()^2*U$2^2*P$2*COS(PI()*A106/180)/900+SQRT(2)*PI()^2*U$2^2*P$2^2*(4*(2*S$2^2-P$2^2)*COS(PI()*A106/90)+P$2^2*(COS(PI()*A106/45)+3))/(3600*(P$2^2*COS(PI()*A106/90)+2*S$2^2-P$2^2)^(3/2)))/1000 -> 398.8198343 | F106: =E106/1000 -> 0.3988198343 | G106: =$W$2*E106 -> 279.173884 | H106: =E106*TAN(C106*PI()/180) -> -109.1788917 | I106: =$W$2*H106 -> -76.42522422 | J106: 7.49 | K106: =(J106-1)/10*$R$2^2*PI()/4 -> 3965.260725 | L106: =G106+K106 -> 4244.434609 | M106: =L106*TAN(C106*PI()/180) -> -1161.934856
A107: =A106+1 -> -77 | B107: =S$2+P$2-SQRT(S$2^2-P$2^2*SIN(A107*PI()/180)^2)-P$2*COS(A107*PI()/180) -> 39.84132771 | C107: =ASIN($P$2/$S$2*SIN(A107*PI()/180))*180/PI() -> -15.24934233 | D107: =(P$2^2*(PI()*U$2/30)*SIN(A107*PI()/180)*COS(A107*PI()/180)/SQRT(S$2^2-P$2^2*SIN(A107*PI()/180)^2)+P$2*(PI()*U$2/30)*SIN(A107*PI()/180))/1000 -> -20.04300702 | E107: =-1*(PI()^2*U$2^2*P$2*COS(PI()*A107/180)/900+SQRT(2)*PI()^2*U$2^2*P$2^2*(4*(2*S$2^2-P$2^2)*COS(PI()*A107/90)+P$2^2*(COS(PI()*A107/45)+3))/(3600*(P$2^2*COS(PI()*A107/90)+2*S$2^2-P$2^2)^(3/2)))/1000 -> 216.7911536 | F107: =E107/1000 -> 0.2167911536 | G107: =$W$2*E107 -> 151.7538075 | H107: =E107*TAN(C107*PI()/180) -> -59.1013789 | I107: =$W$2*H107 -> -41.37096523 | J107: 7.714 | K107: =(J107-1)/10*$R$2^2*PI()/4 -> 4102.120263 | L107: =G107+K107 -> 4253.87407 | M107: =L107*TAN(C107*PI()/180) -> -1159.686726
A108: =A107+1 -> -76 | B108: =S$2+P$2-SQRT(S$2^2-P$2^2*SIN(A108*PI()/180)^2)-P$2*COS(A108*PI()/180) -> 39.04584779 | C108: =ASIN($P$2/$S$2*SIN(A108*PI()/180))*180/PI() -> -15.18403763 | D108: =(P$2^2*(PI()*U$2/30)*SIN(A108*PI()/180)*COS(A108*PI()/180)/SQRT(S$2^2-P$2^2*SIN(A108*PI()/180)^2)+P$2*(PI()*U$2/30)*SIN(A108*PI()/180))/1000 -> -20.04796302 | E108: =-1*(PI()^2*U$2^2*P$2*COS(PI()*A108/180)/900+SQRT(2)*PI()^2*U$2^2*P$2^2*(4*(2*S$2^2-P$2^2)*COS(PI()*A108/90)+P$2^2*(COS(PI()*A108/45)+3))/(3600*(P$2^2*COS(PI()*A108/90)+2*S$2^2-P$2^2)^(3/2)))/1000 -> 32.64744066 | F108: =E108/1000 -> 0.03264744066 | G108: =$W$2*E108 -> 22.85320846 | H108: =E108*TAN(C108*PI()/180) -> -8.860347198 | I108: =$W$2*H108 -> -6.202243038 | J108: 7.77 | K108: =(J108-1)/10*$R$2^2*PI()/4 -> 4136.335147 | L108: =G108+K108 -> 4159.188356 | M108: =L108*TAN(C108*PI()/180) -> -1128.782292
A109: =A108+1 -> -75 | B109: =S$2+P$2-SQRT(S$2^2-P$2^2*SIN(A109*PI()/180)^2)-P$2*COS(A109*PI()/180) -> 38.25031672 | C109: =ASIN($P$2/$S$2*SIN(A109*PI()/180))*180/PI() -> -15.11401801 | D109: =(P$2^2*(PI()*U$2/30)*SIN(A109*PI()/180)*COS(A109*PI()/180)/SQRT(S$2^2-P$2^2*SIN(A109*PI()/180)^2)+P$2*(PI()*U$2/30)*SIN(A109*PI()/180))/1000 -> -20.04557146 | E109: =-1*(PI()^2*U$2^2*P$2*COS(PI()*A109/180)/900+SQRT(2)*PI()^2*U$2^2*P$2^2*(4*(2*S$2^2-P$2^2)*COS(PI()*A109/90)+P$2^2*(COS(PI()*A109/45)+3))/(3600*(P$2^2*COS(PI()*A109/90)+2*S$2^2-P$2^2)^(3/2)))/1000 -> -153.5088101 | F109: =E109/1000 -> -0.1535088101 | G109: =$W$2*E109 -> -107.4561671 | H109: =E109*TAN(C109*PI()/180) -> 41.46015031 | I109: =$W$2*H109 -> 29.02210522 | J109: 8.05 | K109: =(J109-1)/10*$R$2^2*PI()/4 -> 4307.40957 | L109: =G109+K109 -> 4199.953403 | M109: =L109*TAN(C109*PI()/180) -> -1134.336845
A110: =A109+1 -> -74 | B110: =S$2+P$2-SQRT(S$2^2-P$2^2*SIN(A110*PI()/180)^2)-P$2*COS(A110*PI()/180) -> 37.45502764 | C110: =ASIN($P$2/$S$2*SIN(A110*PI()/180))*180/PI() -> -15.03930939 | D110: =(P$2^2*(PI()*U$2/30)*SIN(A110*PI()/180)*COS(A110*PI()/180)/SQRT(S$2^2-P$2^2*SIN(A110*PI()/180)^2)+P$2*(PI()*U$2/30)*SIN(A110*PI()/180))/1000 -> -20.03575456 | E110: =-1*(PI()^2*U$2^2*P$2*COS(PI()*A110/180)/900+SQRT(2)*PI()^2*U$2^2*P$2^2*(4*(2*S$2^2-P$2^2)*COS(PI()*A110/90)+P$2^2*(COS(PI()*A110/45)+3))/(3600*(P$2^2*COS(PI()*A110/90)+2*S$2^2-P$2^2)^(3/2)))/1000 -> -341.571631 | F110: =E110/1000 -> -0.341571631 | G110: =$W$2*E110 -> -239.1001417 | H110: =E110*TAN(C110*PI()/180) -> 91.77505896 | I110: =$W$2*H110 -> 64.24254127 | J110: 8.273 | K110: =(J110-1)/10*$R$2^2*PI()/4 -> 4443.658128 | L110: =G110+K110 -> 4204.557986 | M110: =L110*TAN(C110*PI()/180) -> -1129.70025
A111: =A110+1 -> -73 | B111: =S$2+P$2-SQRT(S$2^2-P$2^2*SIN(A111*PI()/180)^2)-P$2*COS(A111*PI()/180) -> 36.66027667 | C111: =ASIN($P$2/$S$2*SIN(A111*PI()/180))*180/PI() -> -14.9599393 | D111: =(P$2^2*(PI()*U$2/30)*SIN(A111*PI()/180)*COS(A111*PI()/180)/SQRT(S$2^2-P$2^2*SIN(A111*PI()/180)^2)+P$2*(PI()*U$2/30)*SIN(A111*PI()/180))/1000 -> -20.01843883 | E111: =-1*(PI()^2*U$2^2*P$2*COS(PI()*A111/180)/900+SQRT(2)*PI()^2*U$2^2*P$2^2*(4*(2*S$2^2-P$2^2)*COS(PI()*A111/90)+P$2^2*(COS(PI()*A111/45)+3))/(3600*(P$2^2*COS(PI()*A111/90)+2*S$2^2-P$2^2)^(3/2)))/1000 -> -531.431728 | F111: =E111/1000 -> -0.531431728 | G111: =$W$2*E111 -> -372.0022096 | H111: =E111*TAN(C111*PI()/180) -> 141.9985268 | I111: =$W$2*H111 -> 99.39896878 | J111: 8.385 | K111: =(J111-1)/10*$R$2^2*PI()/4 -> 4512.087897 | L111: =G111+K111 -> 4140.085688 | M111: =L111*TAN(C111*PI()/180) -> -1106.230655
A112: =A111+1 -> -72 | B112: =S$2+P$2-SQRT(S$2^2-P$2^2*SIN(A112*PI()/180)^2)-P$2*COS(A112*PI()/180) -> 35.86636276 | C112: =ASIN($P$2/$S$2*SIN(A112*PI()/180))*180/PI() -> -14.87593695 | D112: =(P$2^2*(PI()*U$2/30)*SIN(A112*PI()/180)*COS(A112*PI()/180)/SQRT(S$2^2-P$2^2*SIN(A112*PI()/180)^2)+P$2*(PI()*U$2/30)*SIN(A112*PI()/180))/1000 -> -19.99355515 | E112: =-1*(PI()^2*U$2^2*P$2*COS(PI()*A112/180)/900+SQRT(2)*PI()^2*U$2^2*P$2^2*(4*(2*S$2^2-P$2^2)*COS(PI()*A112/90)+P$2^2*(COS(PI()*A112/45)+3))/(3600*(P$2^2*COS(PI()*A112/90)+2*S$2^2-P$2^2)^(3/2)))/1000 -> -722.9766344 | F112: =E112/1000 -> -0.7229766344 | G112: =$W$2*E112 -> -506.0836441 | H112: =E112*TAN(C112*PI()/180) -> 192.0441125 | I112: =$W$2*H112 -> 134.4308787 | J112: 8.609 | K112: =(J112-1)/10*$R$2^2*PI()/4 -> 4648.947435 | L112: =G112+K112 -> 4142.863791 | M112: =L112*TAN(C112*PI()/180) -> -1100.46793
A113: =A112+1 -> -71 | B113: =S$2+P$2-SQRT(S$2^2-P$2^2*SIN(A113*PI()/180)^2)-P$2*COS(A113*PI()/180) -> 35.07358753 | C113: =ASIN($P$2/$S$2*SIN(A113*PI()/180))*180/PI() -> -14.78733315 | D113: =(P$2^2*(PI()*U$2/30)*SIN(A113*PI()/180)*COS(A113*PI()/180)/SQRT(S$2^2-P$2^2*SIN(A113*PI()/180)^2)+P$2*(PI()*U$2/30)*SIN(A113*PI()/180))/1000 -> -19.96103897 | E113: =-1*(PI()^2*U$2^2*P$2*COS(PI()*A113/180)/900+SQRT(2)*PI()^2*U$2^2*P$2^2*(4*(2*S$2^2-P$2^2)*COS(PI()*A113/90)+P$2^2*(COS(PI()*A113/45)+3))/(3600*(P$2^2*COS(PI()*A113/90)+2*S$2^2-P$2^2)^(3/2)))/1000 -> -916.090869 | F113: =E113/1000 -> -0.916090869 | G113: =$W$2*E113 -> -641.2636083 | H113: =E113*TAN(C113*PI()/180) -> 241.824995 | I113: =$W$2*H113 -> 169.2774965 | J113: 8.833 | K113: =(J113-1)/10*$R$2^2*PI()/4 -> 4785.806973 | L113: =G113+K113 -> 4144.543365 | M113: =L113*TAN(C113*PI()/180) -> -1094.055418
A114: =A113+1 -> -70 | B114: =S$2+P$2-SQRT(S$2^2-P$2^2*SIN(A114*PI()/180)^2)-P$2*COS(A114*PI()/180) -> 34.28225507 | C114: =ASIN($P$2/$S$2*SIN(A114*PI()/180))*180/PI() -> -14.69416032 | D114: =(P$2^2*(PI()*U$2/30)*SIN(A114*PI()/180)*COS(A114*PI()/180)/SQRT(S$2^2-P$2^2*SIN(A114*PI()/180)^2)+P$2*(PI()*U$2/30)*SIN(A114*PI()/180))/1000 -> -19.92083033 | E114: =-1*(PI()^2*U$2^2*P$2*COS(PI()*A114/180)/900+SQRT(2)*PI()^2*U$2^2*P$2^2*(4*(2*S$2^2-P$2^2)*COS(PI()*A114/90)+P$2^2*(COS(PI()*A114/45)+3))/(3600*(P$2^2*COS(PI()*A114/90)+2*S$2^2-P$2^2)^(3/2)))/1000 -> -1110.6561 | F114: =E114/1000 -> -1.1106561 | G114: =$W$2*E114 -> -777.4592703 | H114: =E114*TAN(C114*PI()/180) -> 291.2541858 | I114: =$W$2*H114 -> 203.87793 | J114: 9.001 | K114: =(J114-1)/10*$R$2^2*PI()/4 -> 4888.451627 | L114: =G114+K114 -> 4110.992357 | M114: =L114*TAN(C114*PI()/180) -> -1078.050831
A115: =A114+1 -> -69 | B115: =S$2+P$2-SQRT(S$2^2-P$2^2*SIN(A115*PI()/180)^2)-P$2*COS(A115*PI()/180) -> 33.49267174 | C115: =ASIN($P$2/$S$2*SIN(A115*PI()/180))*180/PI() -> -14.59645243 | D115: =(P$2^2*(PI()*U$2/30)*SIN(A115*PI()/180)*COS(A115*PI()/180)/SQRT(S$2^2-P$2^2*SIN(A115*PI()/180)^2)+P$2*(PI()*U$2/30)*SIN(A115*PI()/180))/1000 -> -19.87287407 | E115: =-1*(PI()^2*U$2^2*P$2*COS(PI()*A115/180)/900+SQRT(2)*PI()^2*U$2^2*P$2^2*(4*(2*S$2^2-P$2^2)*COS(PI()*A115/90)+P$2^2*(COS(PI()*A115/45)+3))/(3600*(P$2^2*COS(PI()*A115/90)+2*S$2^2-P$2^2)^(3/2)))/1000 -> -1306.551315 | F115: =E115/1000 -> -1.306551315 | G115: =$W$2*E115 -> -914.5859203 | H115: =E115*TAN(C115*PI()/180) -> 340.2447407 | I115: =$W$2*H115 -> 238.1713185 | J115: 9.225 | K115: =(J115-1)/10*$R$2^2*PI()/4 -> 5025.311165 | L115: =G115+K115 -> 4110.725245 | M115: =L115*TAN(C115*PI()/180) -> -1070.491935
A116: =A115+1 -> -68 | B116: =S$2+P$2-SQRT(S$2^2-P$2^2*SIN(A116*PI()/180)^2)-P$2*COS(A116*PI()/180) -> 32.70514599 | C116: =ASIN($P$2/$S$2*SIN(A116*PI()/180))*180/PI() -> -14.49424499 | D116: =(P$2^2*(PI()*U$2/30)*SIN(A116*PI()/180)*COS(A116*PI()/180)/SQRT(S$2^2-P$2^2*SIN(A116*PI()/180)^2)+P$2*(PI()*U$2/30)*SIN(A116*PI()/180))/1000 -> -19.81711983 | E116: =-1*(PI()^2*U$2^2*P$2*COS(PI()*A116/180)/900+SQRT(2)*PI()^2*U$2^2*P$2^2*(4*(2*S$2^2-P$2^2)*COS(PI()*A116/90)+P$2^2*(COS(PI()*A116/45)+3))/(3600*(P$2^2*COS(PI()*A116/90)+2*S$2^2-P$2^2)^(3/2)))/1000 -> -1503.652988 | F116: =E116/1000 -> -1.503652988 | G116: =$W$2*E116 -> -1052.557092 | H116: =E116*TAN(C116*PI()/180) -> 388.7099734 | I116: =$W$2*H116 -> 272.0969814 | J116: 9.505 | K116: =(J116-1)/10*$R$2^2*PI()/4 -> 5196.385588 | L116: =G116+K116 -> 4143.828496 | M116: =L116*TAN(C116*PI()/180) -> -1071.222867
A117: =A116+1 -> -67 | B117: =S$2+P$2-SQRT(S$2^2-P$2^2*SIN(A117*PI()/180)^2)-P$2*COS(A117*PI()/180) -> 31.9199882 | C117: =ASIN($P$2/$S$2*SIN(A117*PI()/180))*180/PI() -> -14.38757504 | D117: =(P$2^2*(PI()*U$2/30)*SIN(A117*PI()/180)*COS(A117*PI()/180)/SQRT(S$2^2-P$2^2*SIN(A117*PI()/180)^2)+P$2*(PI()*U$2/30)*SIN(A117*PI()/180))/1000 -> -19.75352223 | E117: =-1*(PI()^2*U$2^2*P$2*COS(PI()*A117/180)/900+SQRT(2)*PI()^2*U$2^2*P$2^2*(4*(2*S$2^2-P$2^2)*COS(PI()*A117/90)+P$2^2*(COS(PI()*A117/45)+3))/(3600*(P$2^2*COS(PI()*A117/90)+2*S$2^2-P$2^2)^(3/2)))/1000 -> -1701.835261 | F117: =E117/1000 -> -1.701835261 | G117: =$W$2*E117 -> -1191.284683 | H117: =E117*TAN(C117*PI()/180) -> 436.5636659 | I117: =$W$2*H117 -> 305.5945661 | J117: 9.728 | K117: =(J117-1)/10*$R$2^2*PI()/4 -> 5332.634146 | L117: =G117+K117 -> 4141.349463 | M117: =L117*TAN(C117*PI()/180) -> -1062.360585
A118: =A117+1 -> -66 | B118: =S$2+P$2-SQRT(S$2^2-P$2^2*SIN(A118*PI()/180)^2)-P$2*COS(A118*PI()/180) -> 31.13751042 | C118: =ASIN($P$2/$S$2*SIN(A118*PI()/180))*180/PI() -> -14.27648108 | D118: =(P$2^2*(PI()*U$2/30)*SIN(A118*PI()/180)*COS(A118*PI()/180)/SQRT(S$2^2-P$2^2*SIN(A118*PI()/180)^2)+P$2*(PI()*U$2/30)*SIN(A118*PI()/180))/1000 -> -19.68204093 | E118: =-1*(PI()^2*U$2^2*P$2*COS(PI()*A118/180)/900+SQRT(2)*PI()^2*U$2^2*P$2^2*(4*(2*S$2^2-P$2^2)*COS(PI()*A118/90)+P$2^2*(COS(PI()*A118/45)+3))/(3600*(P$2^2*COS(PI()*A118/90)+2*S$2^2-P$2^2)^(3/2)))/1000 -> -1900.970118 | F118: =E118/1000 -> -1.900970118 | G118: =$W$2*E118 -> -1330.679082 | H118: =E118*TAN(C118*PI()/180) -> 483.7202799 | I118: =$W$2*H118 -> 338.6041959 | J118: 10.064 | K118: =(J118-1)/10*$R$2^2*PI()/4 -> 5537.923453 | L118: =G118+K118 -> 4207.24437 | M118: =L118*TAN(C118*PI()/180) -> -1070.574127
A119: =A118+1 -> -65 | B119: =S$2+P$2-SQRT(S$2^2-P$2^2*SIN(A119*PI()/180)^2)-P$2*COS(A119*PI()/180) -> 30.35802621 | C119: =ASIN($P$2/$S$2*SIN(A119*PI()/180))*180/PI() -> -14.16100309 | D119: =(P$2^2*(PI()*U$2/30)*SIN(A119*PI()/180)*COS(A119*PI()/180)/SQRT(S$2^2-P$2^2*SIN(A119*PI()/180)^2)+P$2*(PI()*U$2/30)*SIN(A119*PI()/180))/1000 -> -19.60264071 | E119: =-1*(PI()^2*U$2^2*P$2*COS(PI()*A119/180)/900+SQRT(2)*PI()^2*U$2^2*P$2^2*(4*(2*S$2^2-P$2^2)*COS(PI()*A119/90)+P$2^2*(COS(PI()*A119/45)+3))/(3600*(P$2^2*COS(PI()*A119/90)+2*S$2^2-P$2^2)^(3/2)))/1000 -> -2100.927566 | F119: =E119/1000 -> -2.100927566 | G119: =$W$2*E119 -> -1470.649296 | H119: =E119*TAN(C119*PI()/180) -> 530.0951637 | I119: =$W$2*H119 -> 371.0666146 | J119: 10.288 | K119: =(J119-1)/10*$R$2^2*PI()/4 -> 5674.782991 | L119: =G119+K119 -> 4204.133695 | M119: =L119*TAN(C119*PI()/180) -> -1060.765243
A120: =A119+1 -> -64 | B120: =S$2+P$2-SQRT(S$2^2-P$2^2*SIN(A120*PI()/180)^2)-P$2*COS(A120*PI()/180) -> 29.58185043 | C120: =ASIN($P$2/$S$2*SIN(A120*PI()/180))*180/PI() -> -14.04118244 | D120: =(P$2^2*(PI()*U$2/30)*SIN(A120*PI()/180)*COS(A120*PI()/180)/SQRT(S$2^2-P$2^2*SIN(A120*PI()/180)^2)+P$2*(PI()*U$2/30)*SIN(A120*PI()/180))/1000 -> -19.51529151 | E120: =-1*(PI()^2*U$2^2*P$2*COS(PI()*A120/180)/900+SQRT(2)*PI()^2*U$2^2*P$2^2*(4*(2*S$2^2-P$2^2)*COS(PI()*A120/90)+P$2^2*(COS(PI()*A120/45)+3))/(3600*(P$2^2*COS(PI()*A120/90)+2*S$2^2-P$2^2)^(3/2)))/1000 -> -2301.575816 | F120: =E120/1000 -> -2.301575816 | G120: =$W$2*E120 -> -1611.103072 | H120: =E120*TAN(C120*PI()/180) -> 575.6047576 | I120: =$W$2*H120 -> 402.9233303 | J120: 10.568 | K120: =(J120-1)/10*$R$2^2*PI()/4 -> 5845.857414 | L120: =G120+K120 -> 4234.754342 | M120: =L120*TAN(C120*PI()/180) -> -1059.076451
A121: =A120+1 -> -63 | B121: =S$2+P$2-SQRT(S$2^2-P$2^2*SIN(A121*PI()/180)^2)-P$2*COS(A121*PI()/180) -> 28.80929903 | C121: =ASIN($P$2/$S$2*SIN(A121*PI()/180))*180/PI() -> -13.91706194 | D121: =(P$2^2*(PI()*U$2/30)*SIN(A121*PI()/180)*COS(A121*PI()/180)/SQRT(S$2^2-P$2^2*SIN(A121*PI()/180)^2)+P$2*(PI()*U$2/30)*SIN(A121*PI()/180))/1000 -> -19.41996858 | E121: =-1*(PI()^2*U$2^2*P$2*COS(PI()*A121/180)/900+SQRT(2)*PI()^2*U$2^2*P$2^2*(4*(2*S$2^2-P$2^2)*COS(PI()*A121/90)+P$2^2*(COS(PI()*A121/45)+3))/(3600*(P$2^2*COS(PI()*A121/90)+2*S$2^2-P$2^2)^(3/2)))/1000 -> -2502.78147 | F121: =E121/1000 -> -2.50278147 | G121: =$W$2*E121 -> -1751.947029 | H121: =E121*TAN(C121*PI()/180) -> 620.1667947 | I121: =$W$2*H121 -> 434.1167563 | J121: 10.848 | K121: =(J121-1)/10*$R$2^2*PI()/4 -> 6016.931836 | L121: =G121+K121 -> 4264.984807 | M121: =L121*TAN(C121*PI()/180) -> -1056.824972
A122: =A121+1 -> -62 | B122: =S$2+P$2-SQRT(S$2^2-P$2^2*SIN(A122*PI()/180)^2)-P$2*COS(A122*PI()/180) -> 28.04068882 | C122: =ASIN($P$2/$S$2*SIN(A122*PI()/180))*180/PI() -> -13.78868571 | D122: =(P$2^2*(PI()*U$2/30)*SIN(A122*PI()/180)*COS(A122*PI()/180)/SQRT(S$2^2-P$2^2*SIN(A122*PI()/180)^2)+P$2*(PI()*U$2/30)*SIN(A122*PI()/180))/1000 -> -19.31665247 | E122: =-1*(PI()^2*U$2^2*P$2*COS(PI()*A122/180)/900+SQRT(2)*PI()^2*U$2^2*P$2^2*(4*(2*S$2^2-P$2^2)*COS(PI()*A122/90)+P$2^2*(COS(PI()*A122/45)+3))/(3600*(P$2^2*COS(PI()*A122/90)+2*S$2^2-P$2^2)^(3/2)))/1000 -> -2704.409698 | F122: =E122/1000 -> -2.704409698 | G122: =$W$2*E122 -> -1893.086789 | H122: =E122*TAN(C122*PI()/180) -> 663.7004976 | I122: =$W$2*H122 -> 464.5903483 | J122: 11.239 | K122: =(J122-1)/10*$R$2^2*PI()/4 -> 6255.825048 | L122: =G122+K122 -> 4362.738259 | M122: =L122*TAN(C122*PI()/180) -> -1070.677847
A123: =A122+1 -> -61 | B123: =S$2+P$2-SQRT(S$2^2-P$2^2*SIN(A123*PI()/180)^2)-P$2*COS(A123*PI()/180) -> 27.27633729 | C123: =ASIN($P$2/$S$2*SIN(A123*PI()/180))*180/PI() -> -13.65609924 | D123: =(P$2^2*(PI()*U$2/30)*SIN(A123*PI()/180)*COS(A123*PI()/180)/SQRT(S$2^2-P$2^2*SIN(A123*PI()/180)^2)+P$2*(PI()*U$2/30)*SIN(A123*PI()/180))/1000 -> -19.2053291 | E123: =-1*(PI()^2*U$2^2*P$2*COS(PI()*A123/180)/900+SQRT(2)*PI()^2*U$2^2*P$2^2*(4*(2*S$2^2-P$2^2)*COS(PI()*A123/90)+P$2^2*(COS(PI()*A123/45)+3))/(3600*(P$2^2*COS(PI()*A123/90)+2*S$2^2-P$2^2)^(3/2)))/1000 -> -2906.324425 | F123: =E123/1000 -> -2.906324425 | G123: =$W$2*E123 -> -2034.427097 | H123: =E123*TAN(C123*PI()/180) -> 706.1267698 | I123: =$W$2*H123 -> 494.2887388 | J123: 11.463 | K123: =(J123-1)/10*$R$2^2*PI()/4 -> 6392.684586 | L123: =G123+K123 -> 4358.257489 | M123: =L123*TAN(C123*PI()/180) -> -1058.891518
A124: =A123+1 -> -60 | B124: =S$2+P$2-SQRT(S$2^2-P$2^2*SIN(A124*PI()/180)^2)-P$2*COS(A124*PI()/180) -> 26.51656238 | C124: =ASIN($P$2/$S$2*SIN(A124*PI()/180))*180/PI() -> -13.5193493 | D124: =(P$2^2*(PI()*U$2/30)*SIN(A124*PI()/180)*COS(A124*PI()/180)/SQRT(S$2^2-P$2^2*SIN(A124*PI()/180)^2)+P$2*(PI()*U$2/30)*SIN(A124*PI()/180))/1000 -> -19.08598983 | E124: =-1*(PI()^2*U$2^2*P$2*COS(PI()*A124/180)/900+SQRT(2)*PI()^2*U$2^2*P$2^2*(4*(2*S$2^2-P$2^2)*COS(PI()*A124/90)+P$2^2*(COS(PI()*A124/45)+3))/(3600*(P$2^2*COS(PI()*A124/90)+2*S$2^2-P$2^2)^(3/2)))/1000 -> -3108.388513 | F124: =E124/1000 -> -3.108388513 | G124: =$W$2*E124 -> -2175.871959 | H124: =E124*TAN(C124*PI()/180) -> 747.368382 | I124: =$W$2*H124 -> 523.1578674 | J124: 11.911 | K124: =(J124-1)/10*$R$2^2*PI()/4 -> 6666.403662 | L124: =G124+K124 -> 4490.531703 | M124: =L124*TAN(C124*PI()/180) -> -1079.685309
A125: =A124+1 -> -59 | B125: =S$2+P$2-SQRT(S$2^2-P$2^2*SIN(A125*PI()/180)^2)-P$2*COS(A125*PI()/180) -> 25.76168226 | C125: =ASIN($P$2/$S$2*SIN(A125*PI()/180))*180/PI() -> -13.37848393 | D125: =(P$2^2*(PI()*U$2/30)*SIN(A125*PI()/180)*COS(A125*PI()/180)/SQRT(S$2^2-P$2^2*SIN(A125*PI()/180)^2)+P$2*(PI()*U$2/30)*SIN(A125*PI()/180))/1000 -> -18.95863145 | E125: =-1*(PI()^2*U$2^2*P$2*COS(PI()*A125/180)/900+SQRT(2)*PI()^2*U$2^2*P$2^2*(4*(2*S$2^2-P$2^2)*COS(PI()*A125/90)+P$2^2*(COS(PI()*A125/45)+3))/(3600*(P$2^2*COS(PI()*A125/90)+2*S$2^2-P$2^2)^(3/2)))/1000 -> -3310.463945 | F125: =E125/1000 -> -3.310463945 | G125: =$W$2*E125 -> -2317.324761 | H125: =E125*TAN(C125*PI()/180) -> 787.3501519 | I125: =$W$2*H125 -> 551.1451064 | J125: 12.303 | K125: =(J125-1)/10*$R$2^2*PI()/4 -> 6905.907854 | L125: =G125+K125 -> 4588.583093 | M125: =L125*TAN(C125*PI()/180) -> -1091.33392
A126: =A125+1 -> -58 | B126: =S$2+P$2-SQRT(S$2^2-P$2^2*SIN(A126*PI()/180)^2)-P$2*COS(A126*PI()/180) -> 25.01201513 | C126: =ASIN($P$2/$S$2*SIN(A126*PI()/180))*180/PI() -> -13.23355239 | D126: =(P$2^2*(PI()*U$2/30)*SIN(A126*PI()/180)*COS(A126*PI()/180)/SQRT(S$2^2-P$2^2*SIN(A126*PI()/180)^2)+P$2*(PI()*U$2/30)*SIN(A126*PI()/180))/1000 -> -18.82325628 | E126: =-1*(PI()^2*U$2^2*P$2*COS(PI()*A126/180)/900+SQRT(2)*PI()^2*U$2^2*P$2^2*(4*(2*S$2^2-P$2^2)*COS(PI()*A126/90)+P$2^2*(COS(PI()*A126/45)+3))/(3600*(P$2^2*COS(PI()*A126/90)+2*S$2^2-P$2^2)^(3/2)))/1000 -> -3512.412001 | F126: =E126/1000 -> -3.512412001 | G126: =$W$2*E126 -> -2458.6884 | H126: =E126*TAN(C126*PI()/180) -> 825.9991169 | I126: =$W$2*H126 -> 578.1993819 | J126: 12.639 | K126: =(J126-1)/10*$R$2^2*PI()/4 -> 7111.197161 | L126: =G126+K126 -> 4652.508761 | M126: =L126*TAN(C126*PI()/180) -> -1094.110864
A127: =A126+1 -> -57 | B127: =S$2+P$2-SQRT(S$2^2-P$2^2*SIN(A127*PI()/180)^2)-P$2*COS(A127*PI()/180) -> 24.26787898 | C127: =ASIN($P$2/$S$2*SIN(A127*PI()/180))*180/PI() -> -13.08460517 | D127: =(P$2^2*(PI()*U$2/30)*SIN(A127*PI()/180)*COS(A127*PI()/180)/SQRT(S$2^2-P$2^2*SIN(A127*PI()/180)^2)+P$2*(PI()*U$2/30)*SIN(A127*PI()/180))/1000 -> -18.67987212 | E127: =-1*(PI()^2*U$2^2*P$2*COS(PI()*A127/180)/900+SQRT(2)*PI()^2*U$2^2*P$2^2*(4*(2*S$2^2-P$2^2)*COS(PI()*A127/90)+P$2^2*(COS(PI()*A127/45)+3))/(3600*(P$2^2*COS(PI()*A127/90)+2*S$2^2-P$2^2)^(3/2)))/1000 -> -3714.09344 | F127: =E127/1000 -> -3.71409344 | G127: =$W$2*E127 -> -2599.865408 | H127: =E127*TAN(C127*PI()/180) -> 863.2447004 | I127: =$W$2*H127 -> 604.2712903 | J127: 13.086 | K127: =(J127-1)/10*$R$2^2*PI()/4 -> 7384.305257 | L127: =G127+K127 -> 4784.439849 | M127: =L127*TAN(C127*PI()/180) -> -1112.018965
A128: =A127+1 -> -56 | B128: =S$2+P$2-SQRT(S$2^2-P$2^2*SIN(A128*PI()/180)^2)-P$2*COS(A128*PI()/180) -> 23.52959137 | C128: =ASIN($P$2/$S$2*SIN(A128*PI()/180))*180/PI() -> -12.93169389 | D128: =(P$2^2*(PI()*U$2/30)*SIN(A128*PI()/180)*COS(A128*PI()/180)/SQRT(S$2^2-P$2^2*SIN(A128*PI()/180)^2)+P$2*(PI()*U$2/30)*SIN(A128*PI()/180))/1000 -> -18.52849233 | E128: =-1*(PI()^2*U$2^2*P$2*COS(PI()*A128/180)/900+SQRT(2)*PI()^2*U$2^2*P$2^2*(4*(2*S$2^2-P$2^2)*COS(PI()*A128/90)+P$2^2*(COS(PI()*A128/45)+3))/(3600*(P$2^2*COS(PI()*A128/90)+2*S$2^2-P$2^2)^(3/2)))/1000 -> -3915.368676 | F128: =E128/1000 -> -3.915368676 | G128: =$W$2*E128 -> -2740.758073 | H128: =E128*TAN(C128*PI()/180) -> 899.01887 | I128: =$W$2*H128 -> 629.313209 | J128: 13.478 | K128: =(J128-1)/10*$R$2^2*PI()/4 -> 7623.809449 | L128: =G128+K128 -> 4883.051376 | M128: =L128*TAN(C128*PI()/180) -> -1121.21123
A129: =A128+1 -> -55 | B129: =S$2+P$2-SQRT(S$2^2-P$2^2*SIN(A129*PI()/180)^2)-P$2*COS(A129*PI()/180) -> 22.79746923 | C129: =ASIN($P$2/$S$2*SIN(A129*PI()/180))*180/PI() -> -12.77487133 | D129: =(P$2^2*(PI()*U$2/30)*SIN(A129*PI()/180)*COS(A129*PI()/180)/SQRT(S$2^2-P$2^2*SIN(A129*PI()/180)^2)+P$2*(PI()*U$2/30)*SIN(A129*PI()/180))/1000 -> -18.3691358 | E129: =-1*(PI()^2*U$2^2*P$2*COS(PI()*A129/180)/900+SQRT(2)*PI()^2*U$2^2*P$2^2*(4*(2*S$2^2-P$2^2)*COS(PI()*A129/90)+P$2^2*(COS(PI()*A129/45)+3))/(3600*(P$2^2*COS(PI()*A129/90)+2*S$2^2-P$2^2)^(3/2)))/1000 -> -4116.097949 | F129: =E129/1000 -> -4.116097949 | G129: =$W$2*E129 -> -2881.268565 | H129: =E129*TAN(C129*PI()/180) -> 933.2562879 | I129: =$W$2*H129 -> 653.2794015 | J129: 13.926 | K129: =(J129-1)/10*$R$2^2*PI()/4 -> 7897.528525 | L129: =G129+K129 -> 5016.259961 | M129: =L129*TAN(C129*PI()/180) -> -1137.352951
A130: =A129+1 -> -54 | B130: =S$2+P$2-SQRT(S$2^2-P$2^2*SIN(A130*PI()/180)^2)-P$2*COS(A130*PI()/180) -> 22.07182864 | C130: =ASIN($P$2/$S$2*SIN(A130*PI()/180))*180/PI() -> -12.61419136 | D130: =(P$2^2*(PI()*U$2/30)*SIN(A130*PI()/180)*COS(A130*PI()/180)/SQRT(S$2^2-P$2^2*SIN(A130*PI()/180)^2)+P$2*(PI()*U$2/30)*SIN(A130*PI()/180))/1000 -> -18.20182696 | E130: =-1*(PI()^2*U$2^2*P$2*COS(PI()*A130/180)/900+SQRT(2)*PI()^2*U$2^2*P$2^2*(4*(2*S$2^2-P$2^2)*COS(PI()*A130/90)+P$2^2*(COS(PI()*A130/45)+3))/(3600*(P$2^2*COS(PI()*A130/90)+2*S$2^2-P$2^2)^(3/2)))/1000 -> -4316.141501 | F130: =E130/1000 -> -4.316141501 | G130: =$W$2*E130 -> -3021.29905 | H130: =E130*TAN(C130*PI()/180) -> 965.8944529 | I130: =$W$2*H130 -> 676.126117 | J130: 14.485 | K130: =(J130-1)/10*$R$2^2*PI()/4 -> 8239.06639 | L130: =G130+K130 -> 5217.76734 | M130: =L130*TAN(C130*PI()/180) -> -1167.666197
A131: =A130+1 -> -53 | B131: =S$2+P$2-SQRT(S$2^2-P$2^2*SIN(A131*PI()/180)^2)-P$2*COS(A131*PI()/180) -> 21.35298458 | C131: =ASIN($P$2/$S$2*SIN(A131*PI()/180))*180/PI() -> -12.44970891 | D131: =(P$2^2*(PI()*U$2/30)*SIN(A131*PI()/180)*COS(A131*PI()/180)/SQRT(S$2^2-P$2^2*SIN(A131*PI()/180)^2)+P$2*(PI()*U$2/30)*SIN(A131*PI()/180))/1000 -> -18.0265958 | E131: =-1*(PI()^2*U$2^2*P$2*COS(PI()*A131/180)/900+SQRT(2)*PI()^2*U$2^2*P$2^2*(4*(2*S$2^2-P$2^2)*COS(PI()*A131/90)+P$2^2*(COS(PI()*A131/45)+3))/(3600*(P$2^2*COS(PI()*A131/90)+2*S$2^2-P$2^2)^(3/2)))/1000 -> -4515.359735 | F131: =E131/1000 -> -4.515359735 | G131: =$W$2*E131 -> -3160.751814 | H131: =E131*TAN(C131*PI()/180) -> 996.8738342 | I131: =$W$2*H131 -> 697.811684 | J131: 14.877 | K131: =(J131-1)/10*$R$2^2*PI()/4 -> 8478.570582 | L131: =G131+K131 -> 5317.818768 | M131: =L131*TAN(C131*PI()/180) -> -1174.03589
A132: =A131+1 -> -52 | B132: =S$2+P$2-SQRT(S$2^2-P$2^2*SIN(A132*PI()/180)^2)-P$2*COS(A132*PI()/180) -> 20.64125076 | C132: =ASIN($P$2/$S$2*SIN(A132*PI()/180))*180/PI() -> -12.28147997 | D132: =(P$2^2*(PI()*U$2/30)*SIN(A132*PI()/180)*COS(A132*PI()/180)/SQRT(S$2^2-P$2^2*SIN(A132*PI()/180)^2)+P$2*(PI()*U$2/30)*SIN(A132*PI()/180))/1000 -> -17.84347784 | E132: =-1*(PI()^2*U$2^2*P$2*COS(PI()*A132/180)/900+SQRT(2)*PI()^2*U$2^2*P$2^2*(4*(2*S$2^2-P$2^2)*COS(PI()*A132/90)+P$2^2*(COS(PI()*A132/45)+3))/(3600*(P$2^2*COS(PI()*A132/90)+2*S$2^2-P$2^2)^(3/2)))/1000 -> -4713.613386 | F132: =E132/1000 -> -4.713613386 | G132: =$W$2*E132 -> -3299.529371 | H132: =E132*TAN(C132*PI()/180) -> 1026.137996 | I132: =$W$2*H132 -> 718.296597 | J132: 15.493 | K132: =(J132-1)/10*$R$2^2*PI()/4 -> 8854.934312 | L132: =G132+K132 -> 5555.404941 | M132: =L132*TAN(C132*PI()/180) -> -1209.393224
A133: =A132+1 -> -51 | B133: =S$2+P$2-SQRT(S$2^2-P$2^2*SIN(A133*PI()/180)^2)-P$2*COS(A133*PI()/180) -> 19.93693933 | C133: =ASIN($P$2/$S$2*SIN(A133*PI()/180))*180/PI() -> -12.10956149 | D133: =(P$2^2*(PI()*U$2/30)*SIN(A133*PI()/180)*COS(A133*PI()/180)/SQRT(S$2^2-P$2^2*SIN(A133*PI()/180)^2)+P$2*(PI()*U$2/30)*SIN(A133*PI()/180))/1000 -> -17.6525141 | E133: =-1*(PI()^2*U$2^2*P$2*COS(PI()*A133/180)/900+SQRT(2)*PI()^2*U$2^2*P$2^2*(4*(2*S$2^2-P$2^2)*COS(PI()*A133/90)+P$2^2*(COS(PI()*A133/45)+3))/(3600*(P$2^2*COS(PI()*A133/90)+2*S$2^2-P$2^2)^(3/2)))/1000 -> -4910.763679 | F133: =E133/1000 -> -4.910763679 | G133: =$W$2*E133 -> -3437.534576 | H133: =E133*TAN(C133*PI()/180) -> 1053.633712 | I133: =$W$2*H133 -> 737.5435984 | J133: 15.717 | K133: =(J133-1)/10*$R$2^2*PI()/4 -> 8991.79385 | L133: =G133+K133 -> 5554.259274 | M133: =L133*TAN(C133*PI()/180) -> -1191.69954
A134: =A133+1 -> -50 | B134: =S$2+P$2-SQRT(S$2^2-P$2^2*SIN(A134*PI()/180)^2)-P$2*COS(A134*PI()/180) -> 19.24036074 | C134: =ASIN($P$2/$S$2*SIN(A134*PI()/180))*180/PI() -> -11.93401142 | D134: =(P$2^2*(PI()*U$2/30)*SIN(A134*PI()/180)*COS(A134*PI()/180)/SQRT(S$2^2-P$2^2*SIN(A134*PI()/180)^2)+P$2*(PI()*U$2/30)*SIN(A134*PI()/180))/1000 -> -17.45375111 | E134: =-1*(PI()^2*U$2^2*P$2*COS(PI()*A134/180)/900+SQRT(2)*PI()^2*U$2^2*P$2^2*(4*(2*S$2^2-P$2^2)*COS(PI()*A134/90)+P$2^2*(COS(PI()*A134/45)+3))/(3600*(P$2^2*COS(PI()*A134/90)+2*S$2^2-P$2^2)^(3/2)))/1000 -> -5106.672482 | F134: =E134/1000 -> -5.106672482 | G134: =$W$2*E134 -> -3574.670737 | H134: =E134*TAN(C134*PI()/180) -> 1079.311074 | I134: =$W$2*H134 -> 755.5177521 | J134: 16.332 | K134: =(J134-1)/10*$R$2^2*PI()/4 -> 9367.5466 | L134: =G134+K134 -> 5792.875863 | M134: =L134*TAN(C134*PI()/180) -> -1224.342288
A135: =A134+1 -> -49 | B135: =S$2+P$2-SQRT(S$2^2-P$2^2*SIN(A135*PI()/180)^2)-P$2*COS(A135*PI()/180) -> 18.55182347 | C135: =ASIN($P$2/$S$2*SIN(A135*PI()/180))*180/PI() -> -11.75488865 | D135: =(P$2^2*(PI()*U$2/30)*SIN(A135*PI()/180)*COS(A135*PI()/180)/SQRT(S$2^2-P$2^2*SIN(A135*PI()/180)^2)+P$2*(PI()*U$2/30)*SIN(A135*PI()/180))/1000 -> -17.24724087 | E135: =-1*(PI()^2*U$2^2*P$2*COS(PI()*A135/180)/900+SQRT(2)*PI()^2*U$2^2*P$2^2*(4*(2*S$2^2-P$2^2)*COS(PI()*A135/90)+P$2^2*(COS(PI()*A135/45)+3))/(3600*(P$2^2*COS(PI()*A135/90)+2*S$2^2-P$2^2)^(3/2)))/1000 -> -5301.202457 | F135: =E135/1000 -> -5.301202457 | G135: =$W$2*E135 -> -3710.84172 | H135: =E135*TAN(C135*PI()/180) -> 1103.123589 | I135: =$W$2*H135 -> 772.186512 | J135: 17.06 | K135: =(J135-1)/10*$R$2^2*PI()/4 -> 9812.340099 | L135: =G135+K135 -> 6101.498378 | M135: =L135*TAN(C135*PI()/180) -> -1269.656619
A136: =A135+1 -> -48 | B136: =S$2+P$2-SQRT(S$2^2-P$2^2*SIN(A136*PI()/180)^2)-P$2*COS(A136*PI()/180) -> 17.87163382 | C136: =ASIN($P$2/$S$2*SIN(A136*PI()/180))*180/PI() -> -11.57225293 | D136: =(P$2^2*(PI()*U$2/30)*SIN(A136*PI()/180)*COS(A136*PI()/180)/SQRT(S$2^2-P$2^2*SIN(A136*PI()/180)^2)+P$2*(PI()*U$2/30)*SIN(A136*PI()/180))/1000 -> -17.0330408 | E136: =-1*(PI()^2*U$2^2*P$2*COS(PI()*A136/180)/900+SQRT(2)*PI()^2*U$2^2*P$2^2*(4*(2*S$2^2-P$2^2)*COS(PI()*A136/90)+P$2^2*(COS(PI()*A136/45)+3))/(3600*(P$2^2*COS(PI()*A136/90)+2*S$2^2-P$2^2)^(3/2)))/1000 -> -5494.217212 | F136: =E136/1000 -> -5.494217212 | G136: =$W$2*E136 -> -3845.952048 | H136: =E136*TAN(C136*PI()/180) -> 1125.028262 | I136: =$W$2*H136 -> 787.5197835 | J136: 17.675 | K136: =(J136-1)/10*$R$2^2*PI()/4 -> 10188.09285 | L136: =G136+K136 -> 6342.1408 | M136: =L136*TAN(C136*PI()/180) -> -1298.654088
A137: =A136+1 -> -47 | B137: =S$2+P$2-SQRT(S$2^2-P$2^2*SIN(A137*PI()/180)^2)-P$2*COS(A137*PI()/180) -> 17.20009572 | C137: =ASIN($P$2/$S$2*SIN(A137*PI()/180))*180/PI() -> -11.38616494 | D137: =(P$2^2*(PI()*U$2/30)*SIN(A137*PI()/180)*COS(A137*PI()/180)/SQRT(S$2^2-P$2^2*SIN(A137*PI()/180)^2)+P$2*(PI()*U$2/30)*SIN(A137*PI()/180))/1000 -> -16.81121372 | E137: =-1*(PI()^2*U$2^2*P$2*COS(PI()*A137/180)/900+SQRT(2)*PI()^2*U$2^2*P$2^2*(4*(2*S$2^2-P$2^2)*COS(PI()*A137/90)+P$2^2*(COS(PI()*A137/45)+3))/(3600*(P$2^2*COS(PI()*A137/90)+2*S$2^2-P$2^2)^(3/2)))/1000 -> -5685.581436 | F137: =E137/1000 -> -5.685581436 | G137: =$W$2*E137 -> -3979.907005 | H137: =E137*TAN(C137*PI()/180) -> 1144.985683 | I137: =$W$2*H137 -> 801.4899781 | J137: 18.515 | K137: =(J137-1)/10*$R$2^2*PI()/4 -> 10701.31612 | L137: =G137+K137 -> 6721.409111 | M137: =L137*TAN(C137*PI()/180) -> -1353.584904
A138: =A137+1 -> -46 | B138: =S$2+P$2-SQRT(S$2^2-P$2^2*SIN(A138*PI()/180)^2)-P$2*COS(A138*PI()/180) -> 16.5375105 | C138: =ASIN($P$2/$S$2*SIN(A138*PI()/180))*180/PI() -> -11.19668615 | D138: =(P$2^2*(PI()*U$2/30)*SIN(A138*PI()/180)*COS(A138*PI()/180)/SQRT(S$2^2-P$2^2*SIN(A138*PI()/180)^2)+P$2*(PI()*U$2/30)*SIN(A138*PI()/180))/1000 -> -16.58182778 | E138: =-1*(PI()^2*U$2^2*P$2*COS(PI()*A138/180)/900+SQRT(2)*PI()^2*U$2^2*P$2^2*(4*(2*S$2^2-P$2^2)*COS(PI()*A138/90)+P$2^2*(COS(PI()*A138/45)+3))/(3600*(P$2^2*COS(PI()*A138/90)+2*S$2^2-P$2^2)^(3/2)))/1000 -> -5875.161039 | F138: =E138/1000 -> -5.875161039 | G138: =$W$2*E138 -> -4112.612728 | H138: =E138*TAN(C138*PI()/180) -> 1162.960089 | I138: =$W$2*H138 -> 814.0720621 | J138: 19.186 | K138: =(J138-1)/10*$R$2^2*PI()/4 -> 11111.28375 | L138: =G138+K138 -> 6998.671023 | M138: =L138*TAN(C138*PI()/180) -> -1385.353528
A139: =A138+1 -> -45 | B139: =S$2+P$2-SQRT(S$2^2-P$2^2*SIN(A139*PI()/180)^2)-P$2*COS(A139*PI()/180) -> 15.88417666 | C139: =ASIN($P$2/$S$2*SIN(A139*PI()/180))*180/PI() -> -11.00387887 | D139: =(P$2^2*(PI()*U$2/30)*SIN(A139*PI()/180)*COS(A139*PI()/180)/SQRT(S$2^2-P$2^2*SIN(A139*PI()/180)^2)+P$2*(PI()*U$2/30)*SIN(A139*PI()/180))/1000 -> -16.34495646 | E139: =-1*(PI()^2*U$2^2*P$2*COS(PI()*A139/180)/900+SQRT(2)*PI()^2*U$2^2*P$2^2*(4*(2*S$2^2-P$2^2)*COS(PI()*A139/90)+P$2^2*(COS(PI()*A139/45)+3))/(3600*(P$2^2*COS(PI()*A139/90)+2*S$2^2-P$2^2)^(3/2)))/1000 -> -6062.823287 | F139: =E139/1000 -> -6.062823287 | G139: =$W$2*E139 -> -4243.976301 | H139: =E139*TAN(C139*PI()/180) -> 1178.919426 | I139: =$W$2*H139 -> 825.243598 | J139: 20.082 | K139: =(J139-1)/10*$R$2^2*PI()/4 -> 11658.7219 | L139: =G139+K139 -> 7414.745602 | M139: =L139*TAN(C139*PI()/180) -> -1441.801487
A140: =A139+1 -> -44 | B140: =S$2+P$2-SQRT(S$2^2-P$2^2*SIN(A140*PI()/180)^2)-P$2*COS(A140*PI()/180) -> 15.2403897 | C140: =ASIN($P$2/$S$2*SIN(A140*PI()/180))*180/PI() -> -10.80780617 | D140: =(P$2^2*(PI()*U$2/30)*SIN(A140*PI()/180)*COS(A140*PI()/180)/SQRT(S$2^2-P$2^2*SIN(A140*PI()/180)^2)+P$2*(PI()*U$2/30)*SIN(A140*PI()/180))/1000 -> -16.10067843 | E140: =-1*(PI()^2*U$2^2*P$2*COS(PI()*A140/180)/900+SQRT(2)*PI()^2*U$2^2*P$2^2*(4*(2*S$2^2-P$2^2)*COS(PI()*A140/90)+P$2^2*(COS(PI()*A140/45)+3))/(3600*(P$2^2*COS(PI()*A140/90)+2*S$2^2-P$2^2)^(3/2)))/1000 -> -6248.436922 | F140: =E140/1000 -> -6.248436922 | G140: =$W$2*E140 -> -4373.905845 | H140: =E140*TAN(C140*PI()/180) -> 1192.8354 | I140: =$W$2*H140 -> 834.9847802 | J140: 20.809 | K140: =(J140-1)/10*$R$2^2*PI()/4 -> 12102.90442 | L140: =G140+K140 -> 7728.998577 | M140: =L140*TAN(C140*PI()/180) -> -1475.476703
A141: =A140+1 -> -43 | B141: =S$2+P$2-SQRT(S$2^2-P$2^2*SIN(A141*PI()/180)^2)-P$2*COS(A141*PI()/180) -> 14.6064419 | C141: =ASIN($P$2/$S$2*SIN(A141*PI()/180))*180/PI() -> -10.60853188 | D141: =(P$2^2*(PI()*U$2/30)*SIN(A141*PI()/180)*COS(A141*PI()/180)/SQRT(S$2^2-P$2^2*SIN(A141*PI()/180)^2)+P$2*(PI()*U$2/30)*SIN(A141*PI()/180))/1000 -> -15.84907758 | E141: =-1*(PI()^2*U$2^2*P$2*COS(PI()*A141/180)/900+SQRT(2)*PI()^2*U$2^2*P$2^2*(4*(2*S$2^2-P$2^2)*COS(PI()*A141/90)+P$2^2*(COS(PI()*A141/45)+3))/(3600*(P$2^2*COS(PI()*A141/90)+2*S$2^2-P$2^2)^(3/2)))/1000 -> -6431.87229 | F141: =E141/1000 -> -6.43187229 | G141: =$W$2*E141 -> -4502.310603 | H141: =E141*TAN(C141*PI()/180) -> 1204.683519 | I141: =$W$2*H141 -> 843.2784633 | J141: 21.649 | K141: =(J141-1)/10*$R$2^2*PI()/4 -> 12616.12769 | L141: =G141+K141 -> 8113.817087 | M141: =L141*TAN(C141*PI()/180) -> -1519.710168
A142: =A141+1 -> -42 | B142: =S$2+P$2-SQRT(S$2^2-P$2^2*SIN(A142*PI()/180)^2)-P$2*COS(A142*PI()/180) -> 13.98262209 | C142: =ASIN($P$2/$S$2*SIN(A142*PI()/180))*180/PI() -> -10.40612054 | D142: =(P$2^2*(PI()*U$2/30)*SIN(A142*PI()/180)*COS(A142*PI()/180)/SQRT(S$2^2-P$2^2*SIN(A142*PI()/180)^2)+P$2*(PI()*U$2/30)*SIN(A142*PI()/180))/1000 -> -15.59024288 | E142: =-1*(PI()^2*U$2^2*P$2*COS(PI()*A142/180)/900+SQRT(2)*PI()^2*U$2^2*P$2^2*(4*(2*S$2^2-P$2^2)*COS(PI()*A142/90)+P$2^2*(COS(PI()*A142/45)+3))/(3600*(P$2^2*COS(PI()*A142/90)+2*S$2^2-P$2^2)^(3/2)))/1000 -> -6613.001455 | F142: =E142/1000 -> -6.613001455 | G142: =$W$2*E142 -> -4629.101018 | H142: =E142*TAN(C142*PI()/180) -> 1214.443122 | I142: =$W$2*H142 -> 850.1101852 | J142: 22.656 | K142: =(J142-1)/10*$R$2^2*PI()/4 -> 13231.38463 | L142: =G142+K142 -> 8602.283613 | M142: =L142*TAN(C142*PI()/180) -> -1579.764383
A143: =A142+1 -> -41 | B143: =S$2+P$2-SQRT(S$2^2-P$2^2*SIN(A143*PI()/180)^2)-P$2*COS(A143*PI()/180) -> 13.36921548 | C143: =ASIN($P$2/$S$2*SIN(A143*PI()/180))*180/PI() -> -10.20063738 | D143: =(P$2^2*(PI()*U$2/30)*SIN(A143*PI()/180)*COS(A143*PI()/180)/SQRT(S$2^2-P$2^2*SIN(A143*PI()/180)^2)+P$2*(PI()*U$2/30)*SIN(A143*PI()/180))/1000 -> -15.32426837 | E143: =-1*(PI()^2*U$2^2*P$2*COS(PI()*A143/180)/900+SQRT(2)*PI()^2*U$2^2*P$2^2*(4*(2*S$2^2-P$2^2)*COS(PI()*A143/90)+P$2^2*(COS(PI()*A143/45)+3))/(3600*(P$2^2*COS(PI()*A143/90)+2*S$2^2-P$2^2)^(3/2)))/1000 -> -6791.698311 | F143: =E143/1000 -> -6.791698311 | G143: =$W$2*E143 -> -4754.188818 | H143: =E143*TAN(C143*PI()/180) -> 1222.097405 | I143: =$W$2*H143 -> 855.4681832 | J143: 23.495 | K143: =(J143-1)/10*$R$2^2*PI()/4 -> 13743.99692 | L143: =G143+K143 -> 8989.808101 | M143: =L143*TAN(C143*PI()/180) -> -1617.625025
A144: =A143+1 -> -40 | B144: =S$2+P$2-SQRT(S$2^2-P$2^2*SIN(A144*PI()/180)^2)-P$2*COS(A144*PI()/180) -> 12.76650345 | C144: =ASIN($P$2/$S$2*SIN(A144*PI()/180))*180/PI() -> -9.992148292 | D144: =(P$2^2*(PI()*U$2/30)*SIN(A144*PI()/180)*COS(A144*PI()/180)/SQRT(S$2^2-P$2^2*SIN(A144*PI()/180)^2)+P$2*(PI()*U$2/30)*SIN(A144*PI()/180))/1000 -> -15.05125302 | E144: =-1*(PI()^2*U$2^2*P$2*COS(PI()*A144/180)/900+SQRT(2)*PI()^2*U$2^2*P$2^2*(4*(2*S$2^2-P$2^2)*COS(PI()*A144/90)+P$2^2*(COS(PI()*A144/45)+3))/(3600*(P$2^2*COS(PI()*A144/90)+2*S$2^2-P$2^2)^(3/2)))/1000 -> -6967.838688 | F144: =E144/1000 -> -6.967838688 | G144: =$W$2*E144 -> -4877.487082 | H144: =E144*TAN(C144*PI()/180) -> 1227.633434 | I144: =$W$2*H144 -> 859.3434039 | J144: 24.447 | K144: =(J144-1)/10*$R$2^2*PI()/4 -> 14325.64996 | L144: =G144+K144 -> 9448.162874 | M144: =L144*TAN(C144*PI()/180) -> -1664.631051
A145: =A144+1 -> -39 | B145: =S$2+P$2-SQRT(S$2^2-P$2^2*SIN(A145*PI()/180)^2)-P$2*COS(A145*PI()/180) -> 12.17476335 | C145: =ASIN($P$2/$S$2*SIN(A145*PI()/180))*180/PI() -> -9.780719807 | D145: =(P$2^2*(PI()*U$2/30)*SIN(A145*PI()/180)*COS(A145*PI()/180)/SQRT(S$2^2-P$2^2*SIN(A145*PI()/180)^2)+P$2*(PI()*U$2/30)*SIN(A145*PI()/180))/1000 -> -14.77130073 | E145: =-1*(PI()^2*U$2^2*P$2*COS(PI()*A145/180)/900+SQRT(2)*PI()^2*U$2^2*P$2^2*(4*(2*S$2^2-P$2^2)*COS(PI()*A145/90)+P$2^2*(COS(PI()*A145/45)+3))/(3600*(P$2^2*COS(PI()*A145/90)+2*S$2^2-P$2^2)^(3/2)))/1000 -> -7141.300454 | F145: =E145/1000 -> -7.141300454 | G145: =$W$2*E145 -> -4998.910318 | H145: =E145*TAN(C145*PI()/180) -> 1231.042154 | I145: =$W$2*H145 -> 861.7295081 | J145: 25.622 | K145: =(J145-1)/10*$R$2^2*PI()/4 -> 15043.55155 | L145: =G145+K145 -> 10044.64123 | M145: =L145*TAN(C145*PI()/180) -> -1731.530113
A146: =A145+1 -> -38 | B146: =S$2+P$2-SQRT(S$2^2-P$2^2*SIN(A146*PI()/180)^2)-P$2*COS(A146*PI()/180) -> 11.59426832 | C146: =ASIN($P$2/$S$2*SIN(A146*PI()/180))*180/PI() -> -9.566419052 | D146: =(P$2^2*(PI()*U$2/30)*SIN(A146*PI()/180)*COS(A146*PI()/180)/SQRT(S$2^2-P$2^2*SIN(A146*PI()/180)^2)+P$2*(PI()*U$2/30)*SIN(A146*PI()/180))/1000 -> -14.48452017 | E146: =-1*(PI()^2*U$2^2*P$2*COS(PI()*A146/180)/900+SQRT(2)*PI()^2*U$2^2*P$2^2*(4*(2*S$2^2-P$2^2)*COS(PI()*A146/90)+P$2^2*(COS(PI()*A146/45)+3))/(3600*(P$2^2*COS(PI()*A146/90)+2*S$2^2-P$2^2)^(3/2)))/1000 -> -7311.963611 | F146: =E146/1000 -> -7.311963611 | G146: =$W$2*E146 -> -5118.374528 | H146: =E146*TAN(C146*PI()/180) -> 1232.318384 | I146: =$W$2*H146 -> 862.6228688 | J146: 26.741 | K146: =(J146-1)/10*$R$2^2*PI()/4 -> 15727.23826 | L146: =G146+K146 -> 10608.86373 | M146: =L146*TAN(C146*PI()/180) -> -1787.959912
A147: =A146+1 -> -37 | B147: =S$2+P$2-SQRT(S$2^2-P$2^2*SIN(A147*PI()/180)^2)-P$2*COS(A147*PI()/180) -> 11.02528708 | C147: =ASIN($P$2/$S$2*SIN(A147*PI()/180))*180/PI() -> -9.349313736 | D147: =(P$2^2*(PI()*U$2/30)*SIN(A147*PI()/180)*COS(A147*PI()/180)/SQRT(S$2^2-P$2^2*SIN(A147*PI()/180)^2)+P$2*(PI()*U$2/30)*SIN(A147*PI()/180))/1000 -> -14.19102473 | E147: =-1*(PI()^2*U$2^2*P$2*COS(PI()*A147/180)/900+SQRT(2)*PI()^2*U$2^2*P$2^2*(4*(2*S$2^2-P$2^2)*COS(PI()*A147/90)+P$2^2*(COS(PI()*A147/45)+3))/(3600*(P$2^2*COS(PI()*A147/90)+2*S$2^2-P$2^2)^(3/2)))/1000 -> -7479.710386 | F147: =E147/1000 -> -7.479710386 | G147: =$W$2*E147 -> -5235.79727 | H147: =E147*TAN(C147*PI()/180) -> 1231.460806 | I147: =$W$2*H147 -> 862.0225643 | J147: 27.973 | K147: =(J147-1)/10*$R$2^2*PI()/4 -> 16479.96572 | L147: =G147+K147 -> 11244.16845 | M147: =L147*TAN(C147*PI()/180) -> -1851.24183
A148: =A147+1 -> -36 | B148: =S$2+P$2-SQRT(S$2^2-P$2^2*SIN(A148*PI()/180)^2)-P$2*COS(A148*PI()/180) -> 10.46808378 | C148: =ASIN($P$2/$S$2*SIN(A148*PI()/180))*180/PI() -> -9.129472119 | D148: =(P$2^2*(PI()*U$2/30)*SIN(A148*PI()/180)*COS(A148*PI()/180)/SQRT(S$2^2-P$2^2*SIN(A148*PI()/180)^2)+P$2*(PI()*U$2/30)*SIN(A148*PI()/180))/1000 -> -13.89093246 | E148: =-1*(PI()^2*U$2^2*P$2*COS(PI()*A148/180)/900+SQRT(2)*PI()^2*U$2^2*P$2^2*(4*(2*S$2^2-P$2^2)*COS(PI()*A148/90)+P$2^2*(COS(PI()*A148/45)+3))/(3600*(P$2^2*COS(PI()*A148/90)+2*S$2^2-P$2^2)^(3/2)))/1000 -> -7644.425316 | F148: =E148/1000 -> -7.644425316 | G148: =$W$2*E148 -> -5351.097721 | H148: =E148*TAN(C148*PI()/180) -> 1228.471951 | I148: =$W$2*H148 -> 859.9303656 | J148: 29.204 | K148: =(J148-1)/10*$R$2^2*PI()/4 -> 17232.0822 | L148: =G148+K148 -> 11880.98448 | M148: =L148*TAN(C148*PI()/180) -> -1909.294104
A149: =A148+1 -> -35 | B149: =S$2+P$2-SQRT(S$2^2-P$2^2*SIN(A149*PI()/180)^2)-P$2*COS(A149*PI()/180) -> 9.922917766 | C149: =ASIN($P$2/$S$2*SIN(A149*PI()/180))*180/PI() -> -8.906962991 | D149: =(P$2^2*(PI()*U$2/30)*SIN(A149*PI()/180)*COS(A149*PI()/180)/SQRT(S$2^2-P$2^2*SIN(A149*PI()/180)^2)+P$2*(PI()*U$2/30)*SIN(A149*PI()/180))/1000 -> -13.58436591 | E149: =-1*(PI()^2*U$2^2*P$2*COS(PI()*A149/180)/900+SQRT(2)*PI()^2*U$2^2*P$2^2*(4*(2*S$2^2-P$2^2)*COS(PI()*A149/90)+P$2^2*(COS(PI()*A149/45)+3))/(3600*(P$2^2*COS(PI()*A149/90)+2*S$2^2-P$2^2)^(3/2)))/1000 -> -7805.995332 | F149: =E149/1000 -> -7.805995332 | G149: =$W$2*E149 -> -5464.196732 | H149: =E149*TAN(C149*PI()/180) -> 1223.358169 | I149: =$W$2*H149 -> 856.3507184 | J149: 30.603 | K149: =(J149-1)/10*$R$2^2*PI()/4 -> 18086.84333 | L149: =G149+K149 -> 12622.6466 | M149: =L149*TAN(C149*PI()/180) -> -1978.225349
A150: =A149+1 -> -34 | B150: =S$2+P$2-SQRT(S$2^2-P$2^2*SIN(A150*PI()/180)^2)-P$2*COS(A150*PI()/180) -> 9.390043459 | C150: =ASIN($P$2/$S$2*SIN(A150*PI()/180))*180/PI() -> -8.681855642 | D150: =(P$2^2*(PI()*U$2/30)*SIN(A150*PI()/180)*COS(A150*PI()/180)/SQRT(S$2^2-P$2^2*SIN(A150*PI()/180)^2)+P$2*(PI()*U$2/30)*SIN(A150*PI()/180))/1000 -> -13.27145209 | E150: =-1*(PI()^2*U$2^2*P$2*COS(PI()*A150/180)/900+SQRT(2)*PI()^2*U$2^2*P$2^2*(4*(2*S$2^2-P$2^2)*COS(PI()*A150/90)+P$2^2*(COS(PI()*A150/45)+3))/(3600*(P$2^2*COS(PI()*A150/90)+2*S$2^2-P$2^2)^(3/2)))/1000 -> -7964.309834 | F150: =E150/1000 -> -7.964309834 | G150: =$W$2*E150 -> -5575.016884 | H150: =E150*TAN(C150*PI()/180) -> 1216.129601 | I150: =$W$2*H150 -> 851.2907207 | J150: 32.058 | K150: =(J150-1)/10*$R$2^2*PI()/4 -> 18975.81935 | L150: =G150+K150 -> 13400.80247 | M150: =L150*TAN(C150*PI()/180) -> -2046.268025
A151: =A150+1 -> -33 | B151: =S$2+P$2-SQRT(S$2^2-P$2^2*SIN(A151*PI()/180)^2)-P$2*COS(A151*PI()/180) -> 8.869710141 | C151: =ASIN($P$2/$S$2*SIN(A151*PI()/180))*180/PI() -> -8.454219841 | D151: =(P$2^2*(PI()*U$2/30)*SIN(A151*PI()/180)*COS(A151*PI()/180)/SQRT(S$2^2-P$2^2*SIN(A151*PI()/180)^2)+P$2*(PI()*U$2/30)*SIN(A151*PI()/180))/1000 -> -12.95232232 | E151: =-1*(PI()^2*U$2^2*P$2*COS(PI()*A151/180)/900+SQRT(2)*PI()^2*U$2^2*P$2^2*(4*(2*S$2^2-P$2^2)*COS(PI()*A151/90)+P$2^2*(COS(PI()*A151/45)+3))/(3600*(P$2^2*COS(PI()*A151/90)+2*S$2^2-P$2^2)^(3/2)))/1000 -> -8119.260765 | F151: =E151/1000 -> -8.119260765 | G151: =$W$2*E151 -> -5683.482535 | H151: =E151*TAN(C151*PI()/180) -> 1206.800135 | I151: =$W$2*H151 -> 844.7600943 | J151: 33.345 | K151: =(J151-1)/10*$R$2^2*PI()/4 -> 19762.15072 | L151: =G151+K151 -> 14078.66818 | M151: =L151*TAN(C151*PI()/180) -> -2092.572113
A152: =A151+1 -> -32 | B152: =S$2+P$2-SQRT(S$2^2-P$2^2*SIN(A152*PI()/180)^2)-P$2*COS(A152*PI()/180) -> 8.3621618 | C152: =ASIN($P$2/$S$2*SIN(A152*PI()/180))*180/PI() -> -8.224125814 | D152: =(P$2^2*(PI()*U$2/30)*SIN(A152*PI()/180)*COS(A152*PI()/180)/SQRT(S$2^2-P$2^2*SIN(A152*PI()/180)^2)+P$2*(PI()*U$2/30)*SIN(A152*PI()/180))/1000 -> -12.6271122 | E152: =-1*(PI()^2*U$2^2*P$2*COS(PI()*A152/180)/900+SQRT(2)*PI()^2*U$2^2*P$2^2*(4*(2*S$2^2-P$2^2)*COS(PI()*A152/90)+P$2^2*(COS(PI()*A152/45)+3))/(3600*(P$2^2*COS(PI()*A152/90)+2*S$2^2-P$2^2)^(3/2)))/1000 -> -8270.742674 | F152: =E152/1000 -> -8.270742674 | G152: =$W$2*E152 -> -5789.519872 | H152: =E152*TAN(C152*PI()/180) -> 1195.387362 | I152: =$W$2*H152 -> 836.7711532 | J152: 35.136 | K152: =(J152-1)/10*$R$2^2*PI()/4 -> 20856.41604 | L152: =G152+K152 -> 15066.89617 | M152: =L152*TAN(C152*PI()/180) -> -2177.649332
A153: =A152+1 -> -31 | B153: =S$2+P$2-SQRT(S$2^2-P$2^2*SIN(A153*PI()/180)^2)-P$2*COS(A153*PI()/180) -> 7.867636961 | C153: =ASIN($P$2/$S$2*SIN(A153*PI()/180))*180/PI() -> -7.991644216 | D153: =(P$2^2*(PI()*U$2/30)*SIN(A153*PI()/180)*COS(A153*PI()/180)/SQRT(S$2^2-P$2^2*SIN(A153*PI()/180)^2)+P$2*(PI()*U$2/30)*SIN(A153*PI()/180))/1000 -> -12.29596142 | E153: =-1*(PI()^2*U$2^2*P$2*COS(PI()*A153/180)/900+SQRT(2)*PI()^2*U$2^2*P$2^2*(4*(2*S$2^2-P$2^2)*COS(PI()*A153/90)+P$2^2*(COS(PI()*A153/45)+3))/(3600*(P$2^2*COS(PI()*A153/90)+2*S$2^2-P$2^2)^(3/2)))/1000 -> -8418.652784 | F153: =E153/1000 -> -8.418652784 | G153: =$W$2*E153 -> -5893.056949 | H153: =E153*TAN(C153*PI()/180) -> 1181.912523 | I153: =$W$2*H153 -> 827.3387659 | J153: 36.927 | K153: =(J153-1)/10*$R$2^2*PI()/4 -> 21950.68137 | L153: =G153+K153 -> 16057.62442 | M153: =L153*TAN(C153*PI()/180) -> -2254.363955
A154: =A153+1 -> -30 | B154: =S$2+P$2-SQRT(S$2^2-P$2^2*SIN(A154*PI()/180)^2)-P$2*COS(A154*PI()/180) -> 7.386368526 | C154: =ASIN($P$2/$S$2*SIN(A154*PI()/180))*180/PI() -> -7.756846115 | D154: =(P$2^2*(PI()*U$2/30)*SIN(A154*PI()/180)*COS(A154*PI()/180)/SQRT(S$2^2-P$2^2*SIN(A154*PI()/180)^2)+P$2*(PI()*U$2/30)*SIN(A154*PI()/180))/1000 -> -11.95901372 | E154: =-1*(PI()^2*U$2^2*P$2*COS(PI()*A154/180)/900+SQRT(2)*PI()^2*U$2^2*P$2^2*(4*(2*S$2^2-P$2^2)*COS(PI()*A154/90)+P$2^2*(COS(PI()*A154/45)+3))/(3600*(P$2^2*COS(PI()*A154/90)+2*S$2^2-P$2^2)^(3/2)))/1000 -> -8562.89105 | F154: =E154/1000 -> -8.56289105 | G154: =$W$2*E154 -> -5994.023735 | H154: =E154*TAN(C154*PI()/180) -> 1166.40045 | I154: =$W$2*H154 -> 816.4803152 | J154: 38.773 | K154: =(J154-1)/10*$R$2^2*PI()/4 -> 23078.55059 | L154: =G154+K154 -> 17084.52686 | M154: =L154*TAN(C154*PI()/180) -> -2327.181288
A155: =A154+1 -> -29 | B155: =S$2+P$2-SQRT(S$2^2-P$2^2*SIN(A155*PI()/180)^2)-P$2*COS(A155*PI()/180) -> 6.918583615 | C155: =ASIN($P$2/$S$2*SIN(A155*PI()/180))*180/PI() -> -7.519802969 | D155: =(P$2^2*(PI()*U$2/30)*SIN(A155*PI()/180)*COS(A155*PI()/180)/SQRT(S$2^2-P$2^2*SIN(A155*PI()/180)^2)+P$2*(PI()*U$2/30)*SIN(A155*PI()/180))/1000 -> -11.61641675 | E155: =-1*(PI()^2*U$2^2*P$2*COS(PI()*A155/180)/900+SQRT(2)*PI()^2*U$2^2*P$2^2*(4*(2*S$2^2-P$2^2)*COS(PI()*A155/90)+P$2^2*(COS(PI()*A155/45)+3))/(3600*(P$2^2*COS(PI()*A155/90)+2*S$2^2-P$2^2)^(3/2)))/1000 -> -8703.360214 | F155: =E155/1000 -> -8.703360214 | G155: =$W$2*E155 -> -6092.35215 | H155: =E155*TAN(C155*PI()/180) -> 1148.879503 | I155: =$W$2*H155 -> 804.2156522 | J155: 40.732 | K155: =(J155-1)/10*$R$2^2*PI()/4 -> 24275.46057 | L155: =G155+K155 -> 18183.10842 | M155: =L155*TAN(C155*PI()/180) -> -2400.245429
A156: =A155+1 -> -28 | B156: =S$2+P$2-SQRT(S$2^2-P$2^2*SIN(A156*PI()/180)^2)-P$2*COS(A156*PI()/180) -> 6.464503413 | C156: =ASIN($P$2/$S$2*SIN(A156*PI()/180))*180/PI() -> -7.280586604 | D156: =(P$2^2*(PI()*U$2/30)*SIN(A156*PI()/180)*COS(A156*PI()/180)/SQRT(S$2^2-P$2^2*SIN(A156*PI()/180)^2)+P$2*(PI()*U$2/30)*SIN(A156*PI()/180))/1000 -> -11.26832196 | E156: =-1*(PI()^2*U$2^2*P$2*COS(PI()*A156/180)/900+SQRT(2)*PI()^2*U$2^2*P$2^2*(4*(2*S$2^2-P$2^2)*COS(PI()*A156/90)+P$2^2*(COS(PI()*A156/45)+3))/(3600*(P$2^2*COS(PI()*A156/90)+2*S$2^2-P$2^2)^(3/2)))/1000 -> -8839.965852 | F156: =E156/1000 -> -8.839965852 | G156: =$W$2*E156 -> -6187.976097 | H156: =E156*TAN(C156*PI()/180) -> 1129.381497 | I156: =$W$2*H156 -> 790.5670479 | J156: 42.747 | K156: =(J156-1)/10*$R$2^2*PI()/4 -> 25506.58544 | L156: =G156+K156 -> 19318.60934 | M156: =L156*TAN(C156*PI()/180) -> -2468.118124
A157: =A156+1 -> -27 | B157: =S$2+P$2-SQRT(S$2^2-P$2^2*SIN(A157*PI()/180)^2)-P$2*COS(A157*PI()/180) -> 6.024343021 | C157: =ASIN($P$2/$S$2*SIN(A157*PI()/180))*180/PI() -> -7.039269193 | D157: =(P$2^2*(PI()*U$2/30)*SIN(A157*PI()/180)*COS(A157*PI()/180)/SQRT(S$2^2-P$2^2*SIN(A157*PI()/180)^2)+P$2*(PI()*U$2/30)*SIN(A157*PI()/180))/1000 -> -10.91488448 | E157: =-1*(PI()^2*U$2^2*P$2*COS(PI()*A157/180)/900+SQRT(2)*PI()^2*U$2^2*P$2^2*(4*(2*S$2^2-P$2^2)*COS(PI()*A157/90)+P$2^2*(COS(PI()*A157/45)+3))/(3600*(P$2^2*COS(PI()*A157/90)+2*S$2^2-P$2^2)^(3/2)))/1000 -> -8972.61643 | F157: =E157/1000 -> -8.97261643 | G157: =$W$2*E157 -> -6280.831501 | H157: =E157*TAN(C157*PI()/180) -> 1107.941629 | I157: =$W$2*H157 -> 775.5591405 | J157: 44.929 | K157: =(J157-1)/10*$R$2^2*PI()/4 -> 26839.74397 | L157: =G157+K157 -> 20558.91247 | M157: =L157*TAN(C157*PI()/180) -> -2538.621277
A158: =A157+1 -> -26 | B158: =S$2+P$2-SQRT(S$2^2-P$2^2*SIN(A158*PI()/180)^2)-P$2*COS(A158*PI()/180) -> 5.598311312 | C158: =ASIN($P$2/$S$2*SIN(A158*PI()/180))*180/PI() -> -6.795923243 | D158: =(P$2^2*(PI()*U$2/30)*SIN(A158*PI()/180)*COS(A158*PI()/180)/SQRT(S$2^2-P$2^2*SIN(A158*PI()/180)^2)+P$2*(PI()*U$2/30)*SIN(A158*PI()/180))/1000 -> -10.55626303 | E158: =-1*(PI()^2*U$2^2*P$2*COS(PI()*A158/180)/900+SQRT(2)*PI()^2*U$2^2*P$2^2*(4*(2*S$2^2-P$2^2)*COS(PI()*A158/90)+P$2^2*(COS(PI()*A158/45)+3))/(3600*(P$2^2*COS(PI()*A158/90)+2*S$2^2-P$2^2)^(3/2)))/1000 -> -9101.223339 | F158: =E158/1000 -> -9.101223339 | G158: =$W$2*E158 -> -6370.856337 | H158: =E158*TAN(C158*PI()/180) -> 1084.598398 | I158: =$W$2*H158 -> 759.2188789 | J158: 47.336 | K158: =(J158-1)/10*$R$2^2*PI()/4 -> 28310.37303 | L158: =G158+K158 -> 21939.51669 | M158: =L158*TAN(C158*PI()/180) -> -2614.545735
A159: =A158+1 -> -25 | B159: =S$2+P$2-SQRT(S$2^2-P$2^2*SIN(A159*PI()/180)^2)-P$2*COS(A159*PI()/180) -> 5.186610795 | C159: =ASIN($P$2/$S$2*SIN(A159*PI()/180))*180/PI() -> -6.550621569 | D159: =(P$2^2*(PI()*U$2/30)*SIN(A159*PI()/180)*COS(A159*PI()/180)/SQRT(S$2^2-P$2^2*SIN(A159*PI()/180)^2)+P$2*(PI()*U$2/30)*SIN(A159*PI()/180))/1000 -> -10.19261979 | E159: =-1*(PI()^2*U$2^2*P$2*COS(PI()*A159/180)/900+SQRT(2)*PI()^2*U$2^2*P$2^2*(4*(2*S$2^2-P$2^2)*COS(PI()*A159/90)+P$2^2*(COS(PI()*A159/45)+3))/(3600*(P$2^2*COS(PI()*A159/90)+2*S$2^2-P$2^2)^(3/2)))/1000 -> -9225.700941 | F159: =E159/1000 -> -9.225700941 | G159: =$W$2*E159 -> -6457.990659 | H159: =E159*TAN(C159*PI()/180) -> 1059.39352 | I159: =$W$2*H159 -> 741.5754643 | J159: 49.798 | K159: =(J159-1)/10*$R$2^2*PI()/4 -> 29814.60599 | L159: =G159+K159 -> 23356.61533 | M159: =L159*TAN(C159*PI()/180) -> -2682.05604
A160: =A159+1 -> -24 | B160: =S$2+P$2-SQRT(S$2^2-P$2^2*SIN(A160*PI()/180)^2)-P$2*COS(A160*PI()/180) -> 4.789437472 | C160: =ASIN($P$2/$S$2*SIN(A160*PI()/180))*180/PI() -> -6.303437281 | D160: =(P$2^2*(PI()*U$2/30)*SIN(A160*PI()/180)*COS(A160*PI()/180)/SQRT(S$2^2-P$2^2*SIN(A160*PI()/180)^2)+P$2*(PI()*U$2/30)*SIN(A160*PI()/180))/1000 -> -9.824120258 | E160: =-1*(PI()^2*U$2^2*P$2*COS(PI()*A160/180)/900+SQRT(2)*PI()^2*U$2^2*P$2^2*(4*(2*S$2^2-P$2^2)*COS(PI()*A160/90)+P$2^2*(COS(PI()*A160/45)+3))/(3600*(P$2^2*COS(PI()*A160/90)+2*S$2^2-P$2^2)^(3/2)))/1000 -> -9345.966605 | F160: =E160/1000 -> -9.345966605 | G160: =$W$2*E160 -> -6542.176624 | H160: =E160*TAN(C160*PI()/180) -> 1032.371839 | I160: =$W$2*H160 -> 722.6602871 | J160: 52.317 | K160: =(J160-1)/10*$R$2^2*PI()/4 -> 31353.66481 | L160: =G160+K160 -> 24811.48819 | M160: =L160*TAN(C160*PI()/180) -> -2740.720437
A161: =A160+1 -> -23 | B161: =S$2+P$2-SQRT(S$2^2-P$2^2*SIN(A161*PI()/180)^2)-P$2*COS(A161*PI()/180) -> 4.406980717 | C161: =ASIN($P$2/$S$2*SIN(A161*PI()/180))*180/PI() -> -6.054443764 | D161: =(P$2^2*(PI()*U$2/30)*SIN(A161*PI()/180)*COS(A161*PI()/180)/SQRT(S$2^2-P$2^2*SIN(A161*PI()/180)^2)+P$2*(PI()*U$2/30)*SIN(A161*PI()/180))/1000 -> -9.450933173 | E161: =-1*(PI()^2*U$2^2*P$2*COS(PI()*A161/180)/900+SQRT(2)*PI()^2*U$2^2*P$2^2*(4*(2*S$2^2-P$2^2)*COS(PI()*A161/90)+P$2^2*(COS(PI()*A161/45)+3))/(3600*(P$2^2*COS(PI()*A161/90)+2*S$2^2-P$2^2)^(3/2)))/1000 -> -9461.940741 | F161: =E161/1000 -> -9.461940741 | G161: =$W$2*E161 -> -6623.358518 | H161: =E161*TAN(C161*PI()/180) -> 1003.581232 | I161: =$W$2*H161 -> 702.5068622 | J161: 54.891 | K161: =(J161-1)/10*$R$2^2*PI()/4 -> 32926.32754 | L161: =G161+K161 -> 26302.96902 | M161: =L161*TAN(C161*PI()/180) -> -2789.825763
A162: =A161+1 -> -22 | B162: =S$2+P$2-SQRT(S$2^2-P$2^2*SIN(A162*PI()/180)^2)-P$2*COS(A162*PI()/180) -> 4.039423144 | C162: =ASIN($P$2/$S$2*SIN(A162*PI()/180))*180/PI() -> -5.803714666 | D162: =(P$2^2*(PI()*U$2/30)*SIN(A162*PI()/180)*COS(A162*PI()/180)/SQRT(S$2^2-P$2^2*SIN(A162*PI()/180)^2)+P$2*(PI()*U$2/30)*SIN(A162*PI()/180))/1000 -> -9.07323036 | E162: =-1*(PI()^2*U$2^2*P$2*COS(PI()*A162/180)/900+SQRT(2)*PI()^2*U$2^2*P$2^2*(4*(2*S$2^2-P$2^2)*COS(PI()*A162/90)+P$2^2*(COS(PI()*A162/45)+3))/(3600*(P$2^2*COS(PI()*A162/90)+2*S$2^2-P$2^2)^(3/2)))/1000 -> -9573.546828 | F162: =E162/1000 -> -9.573546828 | G162: =$W$2*E162 -> -6701.482779 | H162: =E162*TAN(C162*PI()/180) -> 973.072516 | I162: =$W$2*H162 -> 681.1507612 | J162: 57.857 | K162: =(J162-1)/10*$R$2^2*PI()/4 -> 34738.49446 | L162: =G162+K162 -> 28037.01168 | M162: =L162*TAN(C162*PI()/180) -> -2849.732287
A163: =A162+1 -> -21 | B163: =S$2+P$2-SQRT(S$2^2-P$2^2*SIN(A163*PI()/180)^2)-P$2*COS(A163*PI()/180) -> 3.68694049 | C163: =ASIN($P$2/$S$2*SIN(A163*PI()/180))*180/PI() -> -5.551323876 | D163: =(P$2^2*(PI()*U$2/30)*SIN(A163*PI()/180)*COS(A163*PI()/180)/SQRT(S$2^2-P$2^2*SIN(A163*PI()/180)^2)+P$2*(PI()*U$2/30)*SIN(A163*PI()/180))/1000 -> -8.69118662 | E163: =-1*(PI()^2*U$2^2*P$2*COS(PI()*A163/180)/900+SQRT(2)*PI()^2*U$2^2*P$2^2*(4*(2*S$2^2-P$2^2)*COS(PI()*A163/90)+P$2^2*(COS(PI()*A163/45)+3))/(3600*(P$2^2*COS(PI()*A163/90)+2*S$2^2-P$2^2)^(3/2)))/1000 -> -9680.711449 | F163: =E163/1000 -> -9.680711449 | G163: =$W$2*E163 -> -6776.498015 | H163: =E163*TAN(C163*PI()/180) -> 940.8993458 | I163: =$W$2*H163 -> 658.6295421 | J163: 60.823 | K163: =(J163-1)/10*$R$2^2*PI()/4 -> 36550.66138 | L163: =G163+K163 -> 29774.16336 | M163: =L163*TAN(C163*PI()/180) -> -2893.846282
A164: =A163+1 -> -20 | B164: =S$2+P$2-SQRT(S$2^2-P$2^2*SIN(A164*PI()/180)^2)-P$2*COS(A164*PI()/180) -> 3.349701499 | C164: =ASIN($P$2/$S$2*SIN(A164*PI()/180))*180/PI() -> -5.297345512 | D164: =(P$2^2*(PI()*U$2/30)*SIN(A164*PI()/180)*COS(A164*PI()/180)/SQRT(S$2^2-P$2^2*SIN(A164*PI()/180)^2)+P$2*(PI()*U$2/30)*SIN(A164*PI()/180))/1000 -> -8.304979608 | E164: =-1*(PI()^2*U$2^2*P$2*COS(PI()*A164/180)/900+SQRT(2)*PI()^2*U$2^2*P$2^2*(4*(2*S$2^2-P$2^2)*COS(PI()*A164/90)+P$2^2*(COS(PI()*A164/45)+3))/(3600*(P$2^2*COS(PI()*A164/90)+2*S$2^2-P$2^2)^(3/2)))/1000 -> -9783.364314 | F164: =E164/1000 -> -9.783364314 | G164: =$W$2*E164 -> -6848.35502 | H164: =E164*TAN(C164*PI()/180) -> 907.1181095 | I164: =$W$2*H164 -> 634.9826767 | J164: 63.845 | K164: =(J164-1)/10*$R$2^2*PI()/4 -> 38397.04318 | L164: =G164+K164 -> 31548.68816 | M164: =L164*TAN(C164*PI()/180) -> -2925.209104
A165: =A164+1 -> -19 | B165: =S$2+P$2-SQRT(S$2^2-P$2^2*SIN(A165*PI()/180)^2)-P$2*COS(A165*PI()/180) -> 3.027867809 | C165: =ASIN($P$2/$S$2*SIN(A165*PI()/180))*180/PI() -> -5.041853908 | D165: =(P$2^2*(PI()*U$2/30)*SIN(A165*PI()/180)*COS(A165*PI()/180)/SQRT(S$2^2-P$2^2*SIN(A165*PI()/180)^2)+P$2*(PI()*U$2/30)*SIN(A165*PI()/180))/1000 -> -7.914789704 | E165: =-1*(PI()^2*U$2^2*P$2*COS(PI()*A165/180)/900+SQRT(2)*PI()^2*U$2^2*P$2^2*(4*(2*S$2^2-P$2^2)*COS(PI()*A165/90)+P$2^2*(COS(PI()*A165/45)+3))/(3600*(P$2^2*COS(PI()*A165/90)+2*S$2^2-P$2^2)^(3/2)))/1000 -> -9881.438281 | F165: =E165/1000 -> -9.881438281 | G165: =$W$2*E165 -> -6917.006796 | H165: =E165*TAN(C165*PI()/180) -> 871.7878227 | I165: =$W$2*H165 -> 610.2514759 | J165: 67.147 | K165: =(J165-1)/10*$R$2^2*PI()/4 -> 40414.49941 | L165: =G165+K165 -> 33497.49261 | M165: =L165*TAN(C165*PI()/180) -> -2955.30927
A166: =A165+1 -> -18 | B166: =S$2+P$2-SQRT(S$2^2-P$2^2*SIN(A166*PI()/180)^2)-P$2*COS(A166*PI()/180) -> 2.72159385 | C166: =ASIN($P$2/$S$2*SIN(A166*PI()/180))*180/PI() -> -4.784923595 | D166: =(P$2^2*(PI()*U$2/30)*SIN(A166*PI()/180)*COS(A166*PI()/180)/SQRT(S$2^2-P$2^2*SIN(A166*PI()/180)^2)+P$2*(PI()*U$2/30)*SIN(A166*PI()/180))/1000 -> -7.52079989 | E166: =-1*(PI()^2*U$2^2*P$2*COS(PI()*A166/180)/900+SQRT(2)*PI()^2*U$2^2*P$2^2*(4*(2*S$2^2-P$2^2)*COS(PI()*A166/90)+P$2^2*(COS(PI()*A166/45)+3))/(3600*(P$2^2*COS(PI()*A166/90)+2*S$2^2-P$2^2)^(3/2)))/1000 -> -9974.86938 | F166: =E166/1000 -> -9.97486938 | G166: =$W$2*E166 -> -6982.408566 | H166: =E166*TAN(C166*PI()/180) -> 834.9700188 | I166: =$W$2*H166 -> 584.4790132 | J166: 70.225 | K166: =(J166-1)/10*$R$2^2*PI()/4 -> 42295.0961 | L166: =G166+K166 -> 35312.68753 | M166: =L166*TAN(C166*PI()/180) -> -2955.931978
A167: =A166+1 -> -17 | B167: =S$2+P$2-SQRT(S$2^2-P$2^2*SIN(A167*PI()/180)^2)-P$2*COS(A167*PI()/180) -> 2.43102674 | C167: =ASIN($P$2/$S$2*SIN(A167*PI()/180))*180/PI() -> -4.526629294 | D167: =(P$2^2*(PI()*U$2/30)*SIN(A167*PI()/180)*COS(A167*PI()/180)/SQRT(S$2^2-P$2^2*SIN(A167*PI()/180)^2)+P$2*(PI()*U$2/30)*SIN(A167*PI()/180))/1000 -> -7.123195623 | E167: =-1*(PI()^2*U$2^2*P$2*COS(PI()*A167/180)/900+SQRT(2)*PI()^2*U$2^2*P$2^2*(4*(2*S$2^2-P$2^2)*COS(PI()*A167/90)+P$2^2*(COS(PI()*A167/45)+3))/(3600*(P$2^2*COS(PI()*A167/90)+2*S$2^2-P$2^2)^(3/2)))/1000 -> -10063.59683 | F167: =E167/1000 -> -10.06359683 | G167: =$W$2*E167 -> -7044.517783 | H167: =E167*TAN(C167*PI()/180) -> 796.7286371 | I167: =$W$2*H167 -> 557.710046 | J167: 73.751 | K167: =(J167-1)/10*$R$2^2*PI()/4 -> 44449.41186 | L167: =G167+K167 -> 37404.89408 | M167: =L167*TAN(C167*PI()/180) -> -2961.321958
A168: =A167+1 -> -16 | B168: =S$2+P$2-SQRT(S$2^2-P$2^2*SIN(A168*PI()/180)^2)-P$2*COS(A168*PI()/180) -> 2.156306191 | C168: =ASIN($P$2/$S$2*SIN(A168*PI()/180))*180/PI() -> -4.267045894 | D168: =(P$2^2*(PI()*U$2/30)*SIN(A168*PI()/180)*COS(A168*PI()/180)/SQRT(S$2^2-P$2^2*SIN(A168*PI()/180)^2)+P$2*(PI()*U$2/30)*SIN(A168*PI()/180))/1000 -> -6.722164709 | E168: =-1*(PI()^2*U$2^2*P$2*COS(PI()*A168/180)/900+SQRT(2)*PI()^2*U$2^2*P$2^2*(4*(2*S$2^2-P$2^2)*COS(PI()*A168/90)+P$2^2*(COS(PI()*A168/45)+3))/(3600*(P$2^2*COS(PI()*A168/90)+2*S$2^2-P$2^2)^(3/2)))/1000 -> -10147.56307 | F168: =E168/1000 -> -10.14756307 | G168: =$W$2*E168 -> -7103.29415 | H168: =E168*TAN(C168*PI()/180) -> 757.1299079 | I168: =$W$2*H168 -> 529.9909355 | J168: 77.388 | K168: =(J168-1)/10*$R$2^2*PI()/4 -> 46671.54642 | L168: =G168+K168 -> 39568.25227 | M168: =L168*TAN(C168*PI()/180) -> -2952.266173
A169: =A168+1 -> -15 | B169: =S$2+P$2-SQRT(S$2^2-P$2^2*SIN(A169*PI()/180)^2)-P$2*COS(A169*PI()/180) -> 1.897564418 | C169: =ASIN($P$2/$S$2*SIN(A169*PI()/180))*180/PI() -> -4.006248451 | D169: =(P$2^2*(PI()*U$2/30)*SIN(A169*PI()/180)*COS(A169*PI()/180)/SQRT(S$2^2-P$2^2*SIN(A169*PI()/180)^2)+P$2*(PI()*U$2/30)*SIN(A169*PI()/180))/1000 -> -6.317897173 | E169: =-1*(PI()^2*U$2^2*P$2*COS(PI()*A169/180)/900+SQRT(2)*PI()^2*U$2^2*P$2^2*(4*(2*S$2^2-P$2^2)*COS(PI()*A169/90)+P$2^2*(COS(PI()*A169/45)+3))/(3600*(P$2^2*COS(PI()*A169/90)+2*S$2^2-P$2^2)^(3/2)))/1000 -> -10226.71375 | F169: =E169/1000 -> -10.22671375 | G169: =$W$2*E169 -> -7158.699624 | H169: =E169*TAN(C169*PI()/180) -> 716.242236 | I169: =$W$2*H169 -> 501.3695652 | J169: 80.97 | K169: =(J169-1)/10*$R$2^2*PI()/4 -> 48860.07707 | L169: =G169+K169 -> 41701.37744 | M169: =L169*TAN(C169*PI()/180) -> -2920.614438
A170: =A169+1 -> -14 | B170: =S$2+P$2-SQRT(S$2^2-P$2^2*SIN(A170*PI()/180)^2)-P$2*COS(A170*PI()/180) -> 1.654926053 | C170: =ASIN($P$2/$S$2*SIN(A170*PI()/180))*180/PI() -> -3.744312163 | D170: =(P$2^2*(PI()*U$2/30)*SIN(A170*PI()/180)*COS(A170*PI()/180)/SQRT(S$2^2-P$2^2*SIN(A170*PI()/180)^2)+P$2*(PI()*U$2/30)*SIN(A170*PI()/180))/1000 -> -5.910585136 | E170: =-1*(PI()^2*U$2^2*P$2*COS(PI()*A170/180)/900+SQRT(2)*PI()^2*U$2^2*P$2^2*(4*(2*S$2^2-P$2^2)*COS(PI()*A170/90)+P$2^2*(COS(PI()*A170/45)+3))/(3600*(P$2^2*COS(PI()*A170/90)+2*S$2^2-P$2^2)^(3/2)))/1000 -> -10300.99776 | F170: =E170/1000 -> -10.30099776 | G170: =$W$2*E170 -> -7210.698429 | H170: =E170*TAN(C170*PI()/180) -> 674.1360817 | I170: =$W$2*H170 -> 471.8952572 | J170: 84.552 | K170: =(J170-1)/10*$R$2^2*PI()/4 -> 51048.60772 | L170: =G170+K170 -> 43837.90929 | M170: =L170*TAN(C170*PI()/180) -> -2868.917856
A171: =A170+1 -> -13 | B171: =S$2+P$2-SQRT(S$2^2-P$2^2*SIN(A171*PI()/180)^2)-P$2*COS(A171*PI()/180) -> 1.428508065 | C171: =ASIN($P$2/$S$2*SIN(A171*PI()/180))*180/PI() -> -3.481312371 | D171: =(P$2^2*(PI()*U$2/30)*SIN(A171*PI()/180)*COS(A171*PI()/180)/SQRT(S$2^2-P$2^2*SIN(A171*PI()/180)^2)+P$2*(PI()*U$2/30)*SIN(A171*PI()/180))/1000 -> -5.500422678 | E171: =-1*(PI()^2*U$2^2*P$2*COS(PI()*A171/180)/900+SQRT(2)*PI()^2*U$2^2*P$2^2*(4*(2*S$2^2-P$2^2)*COS(PI()*A171/90)+P$2^2*(COS(PI()*A171/45)+3))/(3600*(P$2^2*COS(PI()*A171/90)+2*S$2^2-P$2^2)^(3/2)))/1000 -> -10370.36723 | F171: =E171/1000 -> -10.37036723 | G171: =$W$2*E171 -> -7259.257064 | H171: =E171*TAN(C171*PI()/180) -> 630.8838407 | I171: =$W$2*H171 -> 441.6186885 | J171: 88.245 | K171: =(J171-1)/10*$R$2^2*PI()/4 -> 53304.95715 | L171: =G171+K171 -> 46045.70009 | M171: =L171*TAN(C171*PI()/180) -> -2801.201487
A172: =A171+1 -> -12 | B172: =S$2+P$2-SQRT(S$2^2-P$2^2*SIN(A172*PI()/180)^2)-P$2*COS(A172*PI()/180) -> 1.218419684 | C172: =ASIN($P$2/$S$2*SIN(A172*PI()/180))*180/PI() -> -3.217324538 | D172: =(P$2^2*(PI()*U$2/30)*SIN(A172*PI()/180)*COS(A172*PI()/180)/SQRT(S$2^2-P$2^2*SIN(A172*PI()/180)^2)+P$2*(PI()*U$2/30)*SIN(A172*PI()/180))/1000 -> -5.087605715 | E172: =-1*(PI()^2*U$2^2*P$2*COS(PI()*A172/180)/900+SQRT(2)*PI()^2*U$2^2*P$2^2*(4*(2*S$2^2-P$2^2)*COS(PI()*A172/90)+P$2^2*(COS(PI()*A172/45)+3))/(3600*(P$2^2*COS(PI()*A172/90)+2*S$2^2-P$2^2)^(3/2)))/1000 -> -10434.77759 | F172: =E172/1000 -> -10.43477759 | G172: =$W$2*E172 -> -7304.344312 | H172: =E172*TAN(C172*PI()/180) -> 586.5597212 | I172: =$W$2*H172 -> 410.5918048 | J172: 91.827 | K172: =(J172-1)/10*$R$2^2*PI()/4 -> 55493.4878 | L172: =G172+K172 -> 48189.14349 | M172: =L172*TAN(C172*PI()/180) -> -2708.808149
A173: =A172+1 -> -11 | B173: =S$2+P$2-SQRT(S$2^2-P$2^2*SIN(A173*PI()/180)^2)-P$2*COS(A173*PI()/180) -> 1.024762332 | C173: =ASIN($P$2/$S$2*SIN(A173*PI()/180))*180/PI() -> -2.952424244 | D173: =(P$2^2*(PI()*U$2/30)*SIN(A173*PI()/180)*COS(A173*PI()/180)/SQRT(S$2^2-P$2^2*SIN(A173*PI()/180)^2)+P$2*(PI()*U$2/30)*SIN(A173*PI()/180))/1000 -> -4.672331871 | E173: =-1*(PI()^2*U$2^2*P$2*COS(PI()*A173/180)/900+SQRT(2)*PI()^2*U$2^2*P$2^2*(4*(2*S$2^2-P$2^2)*COS(PI()*A173/90)+P$2^2*(COS(PI()*A173/45)+3))/(3600*(P$2^2*COS(PI()*A173/90)+2*S$2^2-P$2^2)^(3/2)))/1000 -> -10494.18749 | F173: =E173/1000 -> -10.49418749 | G173: =$W$2*E173 -> -7345.931244 | H173: =E173*TAN(C173*PI()/180) -> 541.2396205 | I173: =$W$2*H173 -> 378.8677343 | J173: 95.464 | K173: =(J173-1)/10*$R$2^2*PI()/4 -> 57715.62236 | L173: =G173+K173 -> 50369.69111 | M173: =L173*TAN(C173*PI()/180) -> -2597.825942
A174: =A173+1 -> -10 | B174: =S$2+P$2-SQRT(S$2^2-P$2^2*SIN(A174*PI()/180)^2)-P$2*COS(A174*PI()/180) -> 0.8476295583 | C174: =ASIN($P$2/$S$2*SIN(A174*PI()/180))*180/PI() -> -2.686687172 | D174: =(P$2^2*(PI()*U$2/30)*SIN(A174*PI()/180)*COS(A174*PI()/180)/SQRT(S$2^2-P$2^2*SIN(A174*PI()/180)^2)+P$2*(PI()*U$2/30)*SIN(A174*PI()/180))/1000 -> -4.254800341 | E174: =-1*(PI()^2*U$2^2*P$2*COS(PI()*A174/180)/900+SQRT(2)*PI()^2*U$2^2*P$2^2*(4*(2*S$2^2-P$2^2)*COS(PI()*A174/90)+P$2^2*(COS(PI()*A174/45)+3))/(3600*(P$2^2*COS(PI()*A174/90)+2*S$2^2-P$2^2)^(3/2)))/1000 -> -10548.5589 | F174: =E174/1000 -> -10.5485589 | G174: =$W$2*E174 -> -7383.991229 | H174: =E174*TAN(C174*PI()/180) -> 495.0009999 | I174: =$W$2*H174 -> 346.5006999 | J174: 99.046 | K174: =(J174-1)/10*$R$2^2*PI()/4 -> 59904.15301 | L174: =G174+K174 -> 52520.16178 | M174: =L174*TAN(C174*PI()/180) -> -2464.557751
A175: =A174+1 -> -9 | B175: =S$2+P$2-SQRT(S$2^2-P$2^2*SIN(A175*PI()/180)^2)-P$2*COS(A175*PI()/180) -> 0.6871069759 | C175: =ASIN($P$2/$S$2*SIN(A175*PI()/180))*180/PI() -> -2.420189103 | D175: =(P$2^2*(PI()*U$2/30)*SIN(A175*PI()/180)*COS(A175*PI()/180)/SQRT(S$2^2-P$2^2*SIN(A175*PI()/180)^2)+P$2*(PI()*U$2/30)*SIN(A175*PI()/180))/1000 -> -3.835211765 | E175: =-1*(PI()^2*U$2^2*P$2*COS(PI()*A175/180)/900+SQRT(2)*PI()^2*U$2^2*P$2^2*(4*(2*S$2^2-P$2^2)*COS(PI()*A175/90)+P$2^2*(COS(PI()*A175/45)+3))/(3600*(P$2^2*COS(PI()*A175/90)+2*S$2^2-P$2^2)^(3/2)))/1000 -> -10597.85705 | F175: =E175/1000 -> -10.59785705 | G175: =$W$2*E175 -> -7418.499933 | H175: =E175*TAN(C175*PI()/180) -> 447.9227581 | I175: =$W$2*H175 -> 313.5459306 | J175: 102.18 | K175: =(J175-1)/10*$R$2^2*PI()/4 -> 61818.96458 | L175: =G175+K175 -> 54400.46465 | M175: =L175*TAN(C175*PI()/180) -> -2299.257865
A176: =A175+1 -> -8 | B176: =S$2+P$2-SQRT(S$2^2-P$2^2*SIN(A176*PI()/180)^2)-P$2*COS(A176*PI()/180) -> 0.543272211 | C176: =ASIN($P$2/$S$2*SIN(A176*PI()/180))*180/PI() -> -2.153005899 | D176: =(P$2^2*(PI()*U$2/30)*SIN(A176*PI()/180)*COS(A176*PI()/180)/SQRT(S$2^2-P$2^2*SIN(A176*PI()/180)^2)+P$2*(PI()*U$2/30)*SIN(A176*PI()/180))/1000 -> -3.413768099 | E176: =-1*(PI()^2*U$2^2*P$2*COS(PI()*A176/180)/900+SQRT(2)*PI()^2*U$2^2*P$2^2*(4*(2*S$2^2-P$2^2)*COS(PI()*A176/90)+P$2^2*(COS(PI()*A176/45)+3))/(3600*(P$2^2*COS(PI()*A176/90)+2*S$2^2-P$2^2)^(3/2)))/1000 -> -10642.05047 | F176: =E176/1000 -> -10.64205047 | G176: =$W$2*E176 -> -7449.43533 | H176: =E176*TAN(C176*PI()/180) -> 400.0851039 | I176: =$W$2*H176 -> 280.0595727 | J176: 104.978 | K176: =(J176-1)/10*$R$2^2*PI()/4 -> 63528.48685 | L176: =G176+K176 -> 56079.05152 | M176: =L176*TAN(C176*PI()/180) -> -2108.277273
A177: =A176+1 -> -7 | B177: =S$2+P$2-SQRT(S$2^2-P$2^2*SIN(A177*PI()/180)^2)-P$2*COS(A177*PI()/180) -> 0.4161948514 | C177: =ASIN($P$2/$S$2*SIN(A177*PI()/180))*180/PI() -> -1.885213501 | D177: =(P$2^2*(PI()*U$2/30)*SIN(A177*PI()/180)*COS(A177*PI()/180)/SQRT(S$2^2-P$2^2*SIN(A177*PI()/180)^2)+P$2*(PI()*U$2/30)*SIN(A177*PI()/180))/1000 -> -2.990672482 | E177: =-1*(PI()^2*U$2^2*P$2*COS(PI()*A177/180)/900+SQRT(2)*PI()^2*U$2^2*P$2^2*(4*(2*S$2^2-P$2^2)*COS(PI()*A177/90)+P$2^2*(COS(PI()*A177/45)+3))/(3600*(P$2^2*COS(PI()*A177/90)+2*S$2^2-P$2^2)^(3/2)))/1000 -> -10681.111 | F177: =E177/1000 -> -10.681111 | G177: =$W$2*E177 -> -7476.777703 | H177: =E177*TAN(C177*PI()/180) -> 351.5694278 | I177: =$W$2*H177 -> 246.0985995 | J177: 107.944 | K177: =(J177-1)/10*$R$2^2*PI()/4 -> 65340.65377 | L177: =G177+K177 -> 57863.87607 | M177: =L177*TAN(C177*PI()/180) -> -1904.593051
A178: =A177+1 -> -6 | B178: =S$2+P$2-SQRT(S$2^2-P$2^2*SIN(A178*PI()/180)^2)-P$2*COS(A178*PI()/180) -> 0.3059364028 | C178: =ASIN($P$2/$S$2*SIN(A178*PI()/180))*180/PI() -> -1.616887914 | D178: =(P$2^2*(PI()*U$2/30)*SIN(A178*PI()/180)*COS(A178*PI()/180)/SQRT(S$2^2-P$2^2*SIN(A178*PI()/180)^2)+P$2*(PI()*U$2/30)*SIN(A178*PI()/180))/1000 -> -2.566129102 | E178: =-1*(PI()^2*U$2^2*P$2*COS(PI()*A178/180)/900+SQRT(2)*PI()^2*U$2^2*P$2^2*(4*(2*S$2^2-P$2^2)*COS(PI()*A178/90)+P$2^2*(COS(PI()*A178/45)+3))/(3600*(P$2^2*COS(PI()*A178/90)+2*S$2^2-P$2^2)^(3/2)))/1000 -> -10715.01378 | F178: =E178/1000 -> -10.71501378 | G178: =$W$2*E178 -> -7500.509646 | H178: =E178*TAN(C178*PI()/180) -> 302.4581727 | I178: =$W$2*H178 -> 211.7207209 | J178: 112.198 | K178: =(J178-1)/10*$R$2^2*PI()/4 -> 67939.76303 | L178: =G178+K178 -> 60439.25339 | M178: =L178*TAN(C178*PI()/180) -> -1706.049709
A179: =A178+1 -> -5 | B179: =S$2+P$2-SQRT(S$2^2-P$2^2*SIN(A179*PI()/180)^2)-P$2*COS(A179*PI()/180) -> 0.2125502491 | C179: =ASIN($P$2/$S$2*SIN(A179*PI()/180))*180/PI() -> -1.348105204 | D179: =(P$2^2*(PI()*U$2/30)*SIN(A179*PI()/180)*COS(A179*PI()/180)/SQRT(S$2^2-P$2^2*SIN(A179*PI()/180)^2)+P$2*(PI()*U$2/30)*SIN(A179*PI()/180))/1000 -> -2.140343073 | E179: =-1*(PI()^2*U$2^2*P$2*COS(PI()*A179/180)/900+SQRT(2)*PI()^2*U$2^2*P$2^2*(4*(2*S$2^2-P$2^2)*COS(PI()*A179/90)+P$2^2*(COS(PI()*A179/45)+3))/(3600*(P$2^2*COS(PI()*A179/90)+2*S$2^2-P$2^2)^(3/2)))/1000 -> -10743.73724 | F179: =E179/1000 -> -10.74373724 | G179: =$W$2*E179 -> -7520.616071 | H179: =E179*TAN(C179*PI()/180) -> 252.8347037 | I179: =$W$2*H179 -> 176.9842926 | J179: 121.711 | K179: =(J179-1)/10*$R$2^2*PI()/4 -> 73752.01654 | L179: =G179+K179 -> 66231.40047 | M179: =L179*TAN(C179*PI()/180) -> -1558.637943
A180: =A179+1 -> -4 | B180: =S$2+P$2-SQRT(S$2^2-P$2^2*SIN(A180*PI()/180)^2)-P$2*COS(A180*PI()/180) -> 0.1360816188 | C180: =ASIN($P$2/$S$2*SIN(A180*PI()/180))*180/PI() -> -1.078941482 | D180: =(P$2^2*(PI()*U$2/30)*SIN(A180*PI()/180)*COS(A180*PI()/180)/SQRT(S$2^2-P$2^2*SIN(A180*PI()/180)^2)+P$2*(PI()*U$2/30)*SIN(A180*PI()/180))/1000 -> -1.713520296 | E180: =-1*(PI()^2*U$2^2*P$2*COS(PI()*A180/180)/900+SQRT(2)*PI()^2*U$2^2*P$2^2*(4*(2*S$2^2-P$2^2)*COS(PI()*A180/90)+P$2^2*(COS(PI()*A180/45)+3))/(3600*(P$2^2*COS(PI()*A180/90)+2*S$2^2-P$2^2)^(3/2)))/1000 -> -10767.26315 | F180: =E180/1000 -> -10.76726315 | G180: =$W$2*E180 -> -7537.084204 | H180: =E180*TAN(C180*PI()/180) -> 202.7831779 | I180: =$W$2*H180 -> 141.9482245 | J180: 124.845 | K180: =(J180-1)/10*$R$2^2*PI()/4 -> 75666.82811 | L180: =G180+K180 -> 68129.74391 | M180: =L180*TAN(C180*PI()/180) -> -1283.108418
A181: =A180+1 -> -3 | B181: =S$2+P$2-SQRT(S$2^2-P$2^2*SIN(A181*PI()/180)^2)-P$2*COS(A181*PI()/180) -> 0.07656755639 | C181: =ASIN($P$2/$S$2*SIN(A181*PI()/180))*180/PI() -> -0.8094729037 | D181: =(P$2^2*(PI()*U$2/30)*SIN(A181*PI()/180)*COS(A181*PI()/180)/SQRT(S$2^2-P$2^2*SIN(A181*PI()/180)^2)+P$2*(PI()*U$2/30)*SIN(A181*PI()/180))/1000 -> -1.285867329 | E181: =-1*(PI()^2*U$2^2*P$2*COS(PI()*A181/180)/900+SQRT(2)*PI()^2*U$2^2*P$2^2*(4*(2*S$2^2-P$2^2)*COS(PI()*A181/90)+P$2^2*(COS(PI()*A181/45)+3))/(3600*(P$2^2*COS(PI()*A181/90)+2*S$2^2-P$2^2)^(3/2)))/1000 -> -10785.57656 | F181: =E181/1000 -> -10.78557656 | G181: =$W$2*E181 -> -7549.903595 | H181: =E181*TAN(C181*PI()/180) -> 152.3884128 | I181: =$W$2*H181 -> 106.671889 | J181: 125.293 | K181: =(J181-1)/10*$R$2^2*PI()/4 -> 75940.54719 | L181: =G181+K181 -> 68390.6436 | M181: =L181*TAN(C181*PI()/180) -> -966.2850723
A182: =A181+1 -> -2 | B182: =S$2+P$2-SQRT(S$2^2-P$2^2*SIN(A182*PI()/180)^2)-P$2*COS(A182*PI()/180) -> 0.03403689849 | C182: =ASIN($P$2/$S$2*SIN(A182*PI()/180))*180/PI() -> -0.5397756543 | D182: =(P$2^2*(PI()*U$2/30)*SIN(A182*PI()/180)*COS(A182*PI()/180)/SQRT(S$2^2-P$2^2*SIN(A182*PI()/180)^2)+P$2*(PI()*U$2/30)*SIN(A182*PI()/180))/1000 -> -0.857591259 | E182: =-1*(PI()^2*U$2^2*P$2*COS(PI()*A182/180)/900+SQRT(2)*PI()^2*U$2^2*P$2^2*(4*(2*S$2^2-P$2^2)*COS(PI()*A182/90)+P$2^2*(COS(PI()*A182/45)+3))/(3600*(P$2^2*COS(PI()*A182/90)+2*S$2^2-P$2^2)^(3/2)))/1000 -> -10798.66587 | F182: =E182/1000 -> -10.79866587 | G182: =$W$2*E182 -> -7559.066111 | H182: =E182*TAN(C182*PI()/180) -> 101.735755 | I182: =$W$2*H182 -> 71.21502849 | J182: 133.911 | K182: =(J182-1)/10*$R$2^2*PI()/4 -> 81205.97353 | L182: =G182+K182 -> 73646.90742 | M182: =L182*TAN(C182*PI()/180) -> -693.837907
A183: =A182+1 -> -1 | B183: =S$2+P$2-SQRT(S$2^2-P$2^2*SIN(A183*PI()/180)^2)-P$2*COS(A183*PI()/180) -> 0.00851025581 | C183: =ASIN($P$2/$S$2*SIN(A183*PI()/180))*180/PI() -> -0.2699259443 | D183: =(P$2^2*(PI()*U$2/30)*SIN(A183*PI()/180)*COS(A183*PI()/180)/SQRT(S$2^2-P$2^2*SIN(A183*PI()/180)^2)+P$2*(PI()*U$2/30)*SIN(A183*PI()/180))/1000 -> -0.4288995678 | E183: =-1*(PI()^2*U$2^2*P$2*COS(PI()*A183/180)/900+SQRT(2)*PI()^2*U$2^2*P$2^2*(4*(2*S$2^2-P$2^2)*COS(PI()*A183/90)+P$2^2*(COS(PI()*A183/45)+3))/(3600*(P$2^2*COS(PI()*A183/90)+2*S$2^2-P$2^2)^(3/2)))/1000 -> -10806.52278 | F183: =E183/1000 -> -10.80652278 | G183: =$W$2*E183 -> -7564.565945 | H183: =E183*TAN(C183*PI()/180) -> 50.91094791 | I183: =$W$2*H183 -> 35.63766354 | J183: 136.262 | K183: =(J183-1)/10*$R$2^2*PI()/4 -> 82642.3877 | L183: =G183+K183 -> 75077.82175 | M183: =L183*TAN(C183*PI()/180) -> -353.7014774
A184: =A183+1 -> 0 | B184: =S$2+P$2-SQRT(S$2^2-P$2^2*SIN(A184*PI()/180)^2)-P$2*COS(A184*PI()/180) -> 0 | C184: =ASIN($P$2/$S$2*SIN(A184*PI()/180))*180/PI() -> 0 | D184: =(P$2^2*(PI()*U$2/30)*SIN(A184*PI()/180)*COS(A184*PI()/180)/SQRT(S$2^2-P$2^2*SIN(A184*PI()/180)^2)+P$2*(PI()*U$2/30)*SIN(A184*PI()/180))/1000 -> 0 | E184: =-1*(PI()^2*U$2^2*P$2*COS(PI()*A184/180)/900+SQRT(2)*PI()^2*U$2^2*P$2^2*(4*(2*S$2^2-P$2^2)*COS(PI()*A184/90)+P$2^2*(COS(PI()*A184/45)+3))/(3600*(P$2^2*COS(PI()*A184/90)+2*S$2^2-P$2^2)^(3/2)))/1000 -> -10809.1423 | F184: =E184/1000 -> -10.8091423 | G184: =$W$2*E184 -> -7566.39961 | H184: =E184*TAN(C184*PI()/180) -> 0 | I184: =$W$2*H184 -> 0 | J184: 141.187 | K184: =(J184-1)/10*$R$2^2*PI()/4 -> 85651.4646 | L184: =G184+K184 -> 78085.06499 | M184: =L184*TAN(C184*PI()/180) -> 0
A185: =A184+1 -> 1 | B185: =S$2+P$2-SQRT(S$2^2-P$2^2*SIN(A185*PI()/180)^2)-P$2*COS(A185*PI()/180) -> 0.00851025581 | C185: =ASIN($P$2/$S$2*SIN(A185*PI()/180))*180/PI() -> 0.2699259443 | D185: =(P$2^2*(PI()*U$2/30)*SIN(A185*PI()/180)*COS(A185*PI()/180)/SQRT(S$2^2-P$2^2*SIN(A185*PI()/180)^2)+P$2*(PI()*U$2/30)*SIN(A185*PI()/180))/1000 -> 0.4288995678 | E185: =-1*(PI()^2*U$2^2*P$2*COS(PI()*A185/180)/900+SQRT(2)*PI()^2*U$2^2*P$2^2*(4*(2*S$2^2-P$2^2)*COS(PI()*A185/90)+P$2^2*(COS(PI()*A185/45)+3))/(3600*(P$2^2*COS(PI()*A185/90)+2*S$2^2-P$2^2)^(3/2)))/1000 -> -10806.52278 | F185: =E185/1000 -> -10.80652278 | G185: =$W$2*E185 -> -7564.565945 | H185: =E185*TAN(C185*PI()/180) -> -50.91094791 | I185: =$W$2*H185 -> -35.63766354 | J185: 145.944 | K185: =(J185-1)/10*$R$2^2*PI()/4 -> 88557.89684 | L185: =G185+K185 -> 80993.3309 | M185: =L185*TAN(C185*PI()/180) -> 381.5702178
A186: =A185+1 -> 2 | B186: =S$2+P$2-SQRT(S$2^2-P$2^2*SIN(A186*PI()/180)^2)-P$2*COS(A186*PI()/180) -> 0.03403689849 | C186: =ASIN($P$2/$S$2*SIN(A186*PI()/180))*180/PI() -> 0.5397756543 | D186: =(P$2^2*(PI()*U$2/30)*SIN(A186*PI()/180)*COS(A186*PI()/180)/SQRT(S$2^2-P$2^2*SIN(A186*PI()/180)^2)+P$2*(PI()*U$2/30)*SIN(A186*PI()/180))/1000 -> 0.857591259 | E186: =-1*(PI()^2*U$2^2*P$2*COS(PI()*A186/180)/900+SQRT(2)*PI()^2*U$2^2*P$2^2*(4*(2*S$2^2-P$2^2)*COS(PI()*A186/90)+P$2^2*(COS(PI()*A186/45)+3))/(3600*(P$2^2*COS(PI()*A186/90)+2*S$2^2-P$2^2)^(3/2)))/1000 -> -10798.66587 | F186: =E186/1000 -> -10.79866587 | G186: =$W$2*E186 -> -7559.066111 | H186: =E186*TAN(C186*PI()/180) -> -101.735755 | I186: =$W$2*H186 -> -71.21502849 | J186: 144.768 | K186: =(J186-1)/10*$R$2^2*PI()/4 -> 87839.38427 | L186: =G186+K186 -> 80280.31815 | M186: =L186*TAN(C186*PI()/180) -> 756.3322056
A187: =A186+1 -> 3 | B187: =S$2+P$2-SQRT(S$2^2-P$2^2*SIN(A187*PI()/180)^2)-P$2*COS(A187*PI()/180) -> 0.07656755639 | C187: =ASIN($P$2/$S$2*SIN(A187*PI()/180))*180/PI() -> 0.8094729037 | D187: =(P$2^2*(PI()*U$2/30)*SIN(A187*PI()/180)*COS(A187*PI()/180)/SQRT(S$2^2-P$2^2*SIN(A187*PI()/180)^2)+P$2*(PI()*U$2/30)*SIN(A187*PI()/180))/1000 -> 1.285867329 | E187: =-1*(PI()^2*U$2^2*P$2*COS(PI()*A187/180)/900+SQRT(2)*PI()^2*U$2^2*P$2^2*(4*(2*S$2^2-P$2^2)*COS(PI()*A187/90)+P$2^2*(COS(PI()*A187/45)+3))/(3600*(P$2^2*COS(PI()*A187/90)+2*S$2^2-P$2^2)^(3/2)))/1000 -> -10785.57656 | F187: =E187/1000 -> -10.78557656 | G187: =$W$2*E187 -> -7549.903595 | H187: =E187*TAN(C187*PI()/180) -> -152.3884128 | I187: =$W$2*H187 -> -106.671889 | J187: 153.387 | K187: =(J187-1)/10*$R$2^2*PI()/4 -> 93105.42158 | L187: =G187+K187 -> 85555.51799 | M187: =L187*TAN(C187*PI()/180) -> 1208.805994
A188: =A187+1 -> 4 | B188: =S$2+P$2-SQRT(S$2^2-P$2^2*SIN(A188*PI()/180)^2)-P$2*COS(A188*PI()/180) -> 0.1360816188 | C188: =ASIN($P$2/$S$2*SIN(A188*PI()/180))*180/PI() -> 1.078941482 | D188: =(P$2^2*(PI()*U$2/30)*SIN(A188*PI()/180)*COS(A188*PI()/180)/SQRT(S$2^2-P$2^2*SIN(A188*PI()/180)^2)+P$2*(PI()*U$2/30)*SIN(A188*PI()/180))/1000 -> 1.713520296 | E188: =-1*(PI()^2*U$2^2*P$2*COS(PI()*A188/180)/900+SQRT(2)*PI()^2*U$2^2*P$2^2*(4*(2*S$2^2-P$2^2)*COS(PI()*A188/90)+P$2^2*(COS(PI()*A188/45)+3))/(3600*(P$2^2*COS(PI()*A188/90)+2*S$2^2-P$2^2)^(3/2)))/1000 -> -10767.26315 | F188: =E188/1000 -> -10.76726315 | G188: =$W$2*E188 -> -7537.084204 | H188: =E188*TAN(C188*PI()/180) -> -202.7831779 | I188: =$W$2*H188 -> -141.9482245 | J188: 156.577 | K188: =(J188-1)/10*$R$2^2*PI()/4 -> 95054.44804 | L188: =G188+K188 -> 87517.36384 | M188: =L188*TAN(C188*PI()/180) -> 1648.241426
A189: =A188+1 -> 5 | B189: =S$2+P$2-SQRT(S$2^2-P$2^2*SIN(A189*PI()/180)^2)-P$2*COS(A189*PI()/180) -> 0.2125502491 | C189: =ASIN($P$2/$S$2*SIN(A189*PI()/180))*180/PI() -> 1.348105204 | D189: =(P$2^2*(PI()*U$2/30)*SIN(A189*PI()/180)*COS(A189*PI()/180)/SQRT(S$2^2-P$2^2*SIN(A189*PI()/180)^2)+P$2*(PI()*U$2/30)*SIN(A189*PI()/180))/1000 -> 2.140343073 | E189: =-1*(PI()^2*U$2^2*P$2*COS(PI()*A189/180)/900+SQRT(2)*PI()^2*U$2^2*P$2^2*(4*(2*S$2^2-P$2^2)*COS(PI()*A189/90)+P$2^2*(COS(PI()*A189/45)+3))/(3600*(P$2^2*COS(PI()*A189/90)+2*S$2^2-P$2^2)^(3/2)))/1000 -> -10743.73724 | F189: =E189/1000 -> -10.74373724 | G189: =$W$2*E189 -> -7520.616071 | H189: =E189*TAN(C189*PI()/180) -> -252.8347037 | I189: =$W$2*H189 -> -176.9842926 | J189: 153.89 | K189: =(J189-1)/10*$R$2^2*PI()/4 -> 93412.74456 | L189: =G189+K189 -> 85892.12849 | M189: =L189*TAN(C189*PI()/180) -> 2021.318129
A190: =A189+1 -> 6 | B190: =S$2+P$2-SQRT(S$2^2-P$2^2*SIN(A190*PI()/180)^2)-P$2*COS(A190*PI()/180) -> 0.3059364028 | C190: =ASIN($P$2/$S$2*SIN(A190*PI()/180))*180/PI() -> 1.616887914 | D190: =(P$2^2*(PI()*U$2/30)*SIN(A190*PI()/180)*COS(A190*PI()/180)/SQRT(S$2^2-P$2^2*SIN(A190*PI()/180)^2)+P$2*(PI()*U$2/30)*SIN(A190*PI()/180))/1000 -> 2.566129102 | E190: =-1*(PI()^2*U$2^2*P$2*COS(PI()*A190/180)/900+SQRT(2)*PI()^2*U$2^2*P$2^2*(4*(2*S$2^2-P$2^2)*COS(PI()*A190/90)+P$2^2*(COS(PI()*A190/45)+3))/(3600*(P$2^2*COS(PI()*A190/90)+2*S$2^2-P$2^2)^(3/2)))/1000 -> -10715.01378 | F190: =E190/1000 -> -10.71501378 | G190: =$W$2*E190 -> -7500.509646 | H190: =E190*TAN(C190*PI()/180) -> -302.4581727 | I190: =$W$2*H190 -> -211.7207209 | J190: 155.233 | K190: =(J190-1)/10*$R$2^2*PI()/4 -> 94233.29081 | L190: =G190+K190 -> 86732.78117 | M190: =L190*TAN(C190*PI()/180) -> 2448.250561
A191: =A190+1 -> 7 | B191: =S$2+P$2-SQRT(S$2^2-P$2^2*SIN(A191*PI()/180)^2)-P$2*COS(A191*PI()/180) -> 0.4161948514 | C191: =ASIN($P$2/$S$2*SIN(A191*PI()/180))*180/PI() -> 1.885213501 | D191: =(P$2^2*(PI()*U$2/30)*SIN(A191*PI()/180)*COS(A191*PI()/180)/SQRT(S$2^2-P$2^2*SIN(A191*PI()/180)^2)+P$2*(PI()*U$2/30)*SIN(A191*PI()/180))/1000 -> 2.990672482 | E191: =-1*(PI()^2*U$2^2*P$2*COS(PI()*A191/180)/900+SQRT(2)*PI()^2*U$2^2*P$2^2*(4*(2*S$2^2-P$2^2)*COS(PI()*A191/90)+P$2^2*(COS(PI()*A191/45)+3))/(3600*(P$2^2*COS(PI()*A191/90)+2*S$2^2-P$2^2)^(3/2)))/1000 -> -10681.111 | F191: =E191/1000 -> -10.681111 | G191: =$W$2*E191 -> -7476.777703 | H191: =E191*TAN(C191*PI()/180) -> -351.5694278 | I191: =$W$2*H191 -> -246.0985995 | J191: 155.849 | K191: =(J191-1)/10*$R$2^2*PI()/4 -> 94609.65454 | L191: =G191+K191 -> 87132.87684 | M191: =L191*TAN(C191*PI()/180) -> 2867.984018
A192: =A191+1 -> 8 | B192: =S$2+P$2-SQRT(S$2^2-P$2^2*SIN(A192*PI()/180)^2)-P$2*COS(A192*PI()/180) -> 0.543272211 | C192: =ASIN($P$2/$S$2*SIN(A192*PI()/180))*180/PI() -> 2.153005899 | D192: =(P$2^2*(PI()*U$2/30)*SIN(A192*PI()/180)*COS(A192*PI()/180)/SQRT(S$2^2-P$2^2*SIN(A192*PI()/180)^2)+P$2*(PI()*U$2/30)*SIN(A192*PI()/180))/1000 -> 3.413768099 | E192: =-1*(PI()^2*U$2^2*P$2*COS(PI()*A192/180)/900+SQRT(2)*PI()^2*U$2^2*P$2^2*(4*(2*S$2^2-P$2^2)*COS(PI()*A192/90)+P$2^2*(COS(PI()*A192/45)+3))/(3600*(P$2^2*COS(PI()*A192/90)+2*S$2^2-P$2^2)^(3/2)))/1000 -> -10642.05047 | F192: =E192/1000 -> -10.64205047 | G192: =$W$2*E192 -> -7449.43533 | H192: =E192*TAN(C192*PI()/180) -> -400.0851039 | I192: =$W$2*H192 -> -280.0595727 | J192: 158.144 | K192: =(J192-1)/10*$R$2^2*PI()/4 -> 96011.85383 | L192: =G192+K192 -> 88562.4185 | M192: =L192*TAN(C192*PI()/180) -> 3329.480959
A193: =A192+1 -> 9 | B193: =S$2+P$2-SQRT(S$2^2-P$2^2*SIN(A193*PI()/180)^2)-P$2*COS(A193*PI()/180) -> 0.6871069759 | C193: =ASIN($P$2/$S$2*SIN(A193*PI()/180))*180/PI() -> 2.420189103 | D193: =(P$2^2*(PI()*U$2/30)*SIN(A193*PI()/180)*COS(A193*PI()/180)/SQRT(S$2^2-P$2^2*SIN(A193*PI()/180)^2)+P$2*(PI()*U$2/30)*SIN(A193*PI()/180))/1000 -> 3.835211765 | E193: =-1*(PI()^2*U$2^2*P$2*COS(PI()*A193/180)/900+SQRT(2)*PI()^2*U$2^2*P$2^2*(4*(2*S$2^2-P$2^2)*COS(PI()*A193/90)+P$2^2*(COS(PI()*A193/45)+3))/(3600*(P$2^2*COS(PI()*A193/90)+2*S$2^2-P$2^2)^(3/2)))/1000 -> -10597.85705 | F193: =E193/1000 -> -10.59785705 | G193: =$W$2*E193 -> -7418.499933 | H193: =E193*TAN(C193*PI()/180) -> -447.9227581 | I193: =$W$2*H193 -> -313.5459306 | J193: 155.289 | K193: =(J193-1)/10*$R$2^2*PI()/4 -> 94267.5057 | L193: =G193+K193 -> 86849.00576 | M193: =L193*TAN(C193*PI()/180) -> 3670.708713
A194: =A193+1 -> 10 | B194: =S$2+P$2-SQRT(S$2^2-P$2^2*SIN(A194*PI()/180)^2)-P$2*COS(A194*PI()/180) -> 0.8476295583 | C194: =ASIN($P$2/$S$2*SIN(A194*PI()/180))*180/PI() -> 2.686687172 | D194: =(P$2^2*(PI()*U$2/30)*SIN(A194*PI()/180)*COS(A194*PI()/180)/SQRT(S$2^2-P$2^2*SIN(A194*PI()/180)^2)+P$2*(PI()*U$2/30)*SIN(A194*PI()/180))/1000 -> 4.254800341 | E194: =-1*(PI()^2*U$2^2*P$2*COS(PI()*A194/180)/900+SQRT(2)*PI()^2*U$2^2*P$2^2*(4*(2*S$2^2-P$2^2)*COS(PI()*A194/90)+P$2^2*(COS(PI()*A194/45)+3))/(3600*(P$2^2*COS(PI()*A194/90)+2*S$2^2-P$2^2)^(3/2)))/1000 -> -10548.5589 | F194: =E194/1000 -> -10.5485589 | G194: =$W$2*E194 -> -7383.991229 | H194: =E194*TAN(C194*PI()/180) -> -495.0009999 | I194: =$W$2*H194 -> -346.5006999 | J194: 152.044 | K194: =(J194-1)/10*$R$2^2*PI()/4 -> 92284.87533 | L194: =G194+K194 -> 84900.88411 | M194: =L194*TAN(C194*PI()/180) -> 3984.053455
A195: =A194+1 -> 11 | B195: =S$2+P$2-SQRT(S$2^2-P$2^2*SIN(A195*PI()/180)^2)-P$2*COS(A195*PI()/180) -> 1.024762332 | C195: =ASIN($P$2/$S$2*SIN(A195*PI()/180))*180/PI() -> 2.952424244 | D195: =(P$2^2*(PI()*U$2/30)*SIN(A195*PI()/180)*COS(A195*PI()/180)/SQRT(S$2^2-P$2^2*SIN(A195*PI()/180)^2)+P$2*(PI()*U$2/30)*SIN(A195*PI()/180))/1000 -> 4.672331871 | E195: =-1*(PI()^2*U$2^2*P$2*COS(PI()*A195/180)/900+SQRT(2)*PI()^2*U$2^2*P$2^2*(4*(2*S$2^2-P$2^2)*COS(PI()*A195/90)+P$2^2*(COS(PI()*A195/45)+3))/(3600*(P$2^2*COS(PI()*A195/90)+2*S$2^2-P$2^2)^(3/2)))/1000 -> -10494.18749 | F195: =E195/1000 -> -10.49418749 | G195: =$W$2*E195 -> -7345.931244 | H195: =E195*TAN(C195*PI()/180) -> -541.2396205 | I195: =$W$2*H195 -> -378.8677343 | J195: 151.708 | K195: =(J195-1)/10*$R$2^2*PI()/4 -> 92079.58603 | L195: =G195+K195 -> 84733.65478 | M195: =L195*TAN(C195*PI()/180) -> 4370.153591
A196: =A195+1 -> 12 | B196: =S$2+P$2-SQRT(S$2^2-P$2^2*SIN(A196*PI()/180)^2)-P$2*COS(A196*PI()/180) -> 1.218419684 | C196: =ASIN($P$2/$S$2*SIN(A196*PI()/180))*180/PI() -> 3.217324538 | D196: =(P$2^2*(PI()*U$2/30)*SIN(A196*PI()/180)*COS(A196*PI()/180)/SQRT(S$2^2-P$2^2*SIN(A196*PI()/180)^2)+P$2*(PI()*U$2/30)*SIN(A196*PI()/180))/1000 -> 5.087605715 | E196: =-1*(PI()^2*U$2^2*P$2*COS(PI()*A196/180)/900+SQRT(2)*PI()^2*U$2^2*P$2^2*(4*(2*S$2^2-P$2^2)*COS(PI()*A196/90)+P$2^2*(COS(PI()*A196/45)+3))/(3600*(P$2^2*COS(PI()*A196/90)+2*S$2^2-P$2^2)^(3/2)))/1000 -> -10434.77759 | F196: =E196/1000 -> -10.43477759 | G196: =$W$2*E196 -> -7304.344312 | H196: =E196*TAN(C196*PI()/180) -> -586.5597212 | I196: =$W$2*H196 -> -410.5918048 | J196: 148.854 | K196: =(J196-1)/10*$R$2^2*PI()/4 -> 90335.84888 | L196: =G196+K196 -> 83031.50456 | M196: =L196*TAN(C196*PI()/180) -> 4667.366961
A197: =A196+1 -> 13 | B197: =S$2+P$2-SQRT(S$2^2-P$2^2*SIN(A197*PI()/180)^2)-P$2*COS(A197*PI()/180) -> 1.428508065 | C197: =ASIN($P$2/$S$2*SIN(A197*PI()/180))*180/PI() -> 3.481312371 | D197: =(P$2^2*(PI()*U$2/30)*SIN(A197*PI()/180)*COS(A197*PI()/180)/SQRT(S$2^2-P$2^2*SIN(A197*PI()/180)^2)+P$2*(PI()*U$2/30)*SIN(A197*PI()/180))/1000 -> 5.500422678 | E197: =-1*(PI()^2*U$2^2*P$2*COS(PI()*A197/180)/900+SQRT(2)*PI()^2*U$2^2*P$2^2*(4*(2*S$2^2-P$2^2)*COS(PI()*A197/90)+P$2^2*(COS(PI()*A197/45)+3))/(3600*(P$2^2*COS(PI()*A197/90)+2*S$2^2-P$2^2)^(3/2)))/1000 -> -10370.36723 | F197: =E197/1000 -> -10.37036723 | G197: =$W$2*E197 -> -7259.257064 | H197: =E197*TAN(C197*PI()/180) -> -630.8838407 | I197: =$W$2*H197 -> -441.6186885 | J197: 145.944 | K197: =(J197-1)/10*$R$2^2*PI()/4 -> 88557.89684 | L197: =G197+K197 -> 81298.63978 | M197: =L197*TAN(C197*PI()/180) -> 4945.822742
A198: =A197+1 -> 14 | B198: =S$2+P$2-SQRT(S$2^2-P$2^2*SIN(A198*PI()/180)^2)-P$2*COS(A198*PI()/180) -> 1.654926053 | C198: =ASIN($P$2/$S$2*SIN(A198*PI()/180))*180/PI() -> 3.744312163 | D198: =(P$2^2*(PI()*U$2/30)*SIN(A198*PI()/180)*COS(A198*PI()/180)/SQRT(S$2^2-P$2^2*SIN(A198*PI()/180)^2)+P$2*(PI()*U$2/30)*SIN(A198*PI()/180))/1000 -> 5.910585136 | E198: =-1*(PI()^2*U$2^2*P$2*COS(PI()*A198/180)/900+SQRT(2)*PI()^2*U$2^2*P$2^2*(4*(2*S$2^2-P$2^2)*COS(PI()*A198/90)+P$2^2*(COS(PI()*A198/45)+3))/(3600*(P$2^2*COS(PI()*A198/90)+2*S$2^2-P$2^2)^(3/2)))/1000 -> -10300.99776 | F198: =E198/1000 -> -10.30099776 | G198: =$W$2*E198 -> -7210.698429 | H198: =E198*TAN(C198*PI()/180) -> -674.1360817 | I198: =$W$2*H198 -> -471.8952572 | J198: 143.649 | K198: =(J198-1)/10*$R$2^2*PI()/4 -> 87155.69755 | L198: =G198+K198 -> 79944.99913 | M198: =L198*TAN(C198*PI()/180) -> 5231.901777
A199: =A198+1 -> 15 | B199: =S$2+P$2-SQRT(S$2^2-P$2^2*SIN(A199*PI()/180)^2)-P$2*COS(A199*PI()/180) -> 1.897564418 | C199: =ASIN($P$2/$S$2*SIN(A199*PI()/180))*180/PI() -> 4.006248451 | D199: =(P$2^2*(PI()*U$2/30)*SIN(A199*PI()/180)*COS(A199*PI()/180)/SQRT(S$2^2-P$2^2*SIN(A199*PI()/180)^2)+P$2*(PI()*U$2/30)*SIN(A199*PI()/180))/1000 -> 6.317897173 | E199: =-1*(PI()^2*U$2^2*P$2*COS(PI()*A199/180)/900+SQRT(2)*PI()^2*U$2^2*P$2^2*(4*(2*S$2^2-P$2^2)*COS(PI()*A199/90)+P$2^2*(COS(PI()*A199/45)+3))/(3600*(P$2^2*COS(PI()*A199/90)+2*S$2^2-P$2^2)^(3/2)))/1000 -> -10226.71375 | F199: =E199/1000 -> -10.22671375 | G199: =$W$2*E199 -> -7158.699624 | H199: =E199*TAN(C199*PI()/180) -> -716.242236 | I199: =$W$2*H199 -> -501.3695652 | J199: 139.899 | K199: =(J199-1)/10*$R$2^2*PI()/4 -> 84864.52225 | L199: =G199+K199 -> 77705.82263 | M199: =L199*TAN(C199*PI()/180) -> 5442.236237
A200: =A199+1 -> 16 | B200: =S$2+P$2-SQRT(S$2^2-P$2^2*SIN(A200*PI()/180)^2)-P$2*COS(A200*PI()/180) -> 2.156306191 | C200: =ASIN($P$2/$S$2*SIN(A200*PI()/180))*180/PI() -> 4.267045894 | D200: =(P$2^2*(PI()*U$2/30)*SIN(A200*PI()/180)*COS(A200*PI()/180)/SQRT(S$2^2-P$2^2*SIN(A200*PI()/180)^2)+P$2*(PI()*U$2/30)*SIN(A200*PI()/180))/1000 -> 6.722164709 | E200: =-1*(PI()^2*U$2^2*P$2*COS(PI()*A200/180)/900+SQRT(2)*PI()^2*U$2^2*P$2^2*(4*(2*S$2^2-P$2^2)*COS(PI()*A200/90)+P$2^2*(COS(PI()*A200/45)+3))/(3600*(P$2^2*COS(PI()*A200/90)+2*S$2^2-P$2^2)^(3/2)))/1000 -> -10147.56307 | F200: =E200/1000 -> -10.14756307 | G200: =$W$2*E200 -> -7103.29415 | H200: =E200*TAN(C200*PI()/180) -> -757.1299079 | I200: =$W$2*H200 -> -529.9909355 | J200: 136.206 | K200: =(J200-1)/10*$R$2^2*PI()/4 -> 82608.17281 | L200: =G200+K200 -> 75504.87866 | M200: =L200*TAN(C200*PI()/180) -> 5633.569501
... 524 more rows

Sheet Einfacher Massenausgleich
H1: Prozent Ausgleich | I1: Kurbelradius: | J1: Pleuellänge:
H2: 50 | I2: 39 | J2: 141.5
H3: Fmittel/Fmax/% | I3: Apolar | J3: Fresmax/Fmax
H4: =R7*100 -> 40.72640579 | I4: =V45*10000 -> 28.34246985 | J4: =MAX(R9:R81) -> 0.6064535888
H6: Prozent Ausgleich | I6: Kurbelradius: | J6: Pleuellänge: | N6: =(PI()^2*48.2576^2*I$2/900+SQRT(2)*PI()^2*48.2576^2*I$2^2*(4*(2*J$2^2-I$2^2)+I$2^2*(1+3))/(3600*(I$2^2+2*J$2^2-I$2^2)^(3/2)))/1000 -> 1.270498182
H7: 100 | I7: =I2 -> 39 | J7: =J2 -> 141.5 | N7: =(PI()^2*I$2*COS(PI()*M9/180)/900+SQRT(2)*PI()^2*I$2^2*(4*(2*J$2^2-I$2^2)*COS(PI()*M9/90)+I$2^2*(COS(PI()*M9/45)+3))/(3600*(I$2^2*COS(PI()*M9/90)+2*J$2^2-I$2^2)^(3/2))) -> 0.5455601114 | P7: ="Mit "&H2&" % Ausgleich" -> Mit 50 % Ausgleich | R7: =AVERAGE(R9:R80) -> 0.4072640579 | Y7: ="Mit "&H7&" % Ausgleich" -> Mit 100 % Ausgleich | AA7: =AVERAGE(AA9:AA80) -> 0.5392184238
H8: Fmittel/Fmax/% | I8: Apolar | J8: Fresmax/Fmax | M8: Kurbelwinkel | N8: Gesamtkraft | P8: Vert | Q8: Hor | R8: Res | S8: Delta Res | T8: Winkel der Resultierenden zum OT | U8: Winkel der Resultierenden zum OT | V8: =V45*10000 -> 28.34246985 | W8: Integral Fres | Y8: Vert | Z8: Hor | AA8: Res | AB8: Delta Res | AC8: Winkel der Resultierenden zum OT | AD8: Winkel der Resultierenden zum OT | AE8: =AE45*10000 -> 20.76488208 | AF8: Integral Fres
H9: =AA7*100 -> 53.92184238 | I9: =AE45*10000 -> 20.76488208 | J9: =MAX(AA9:AA81) -> 0.8185583778 | M9: 0 | N9: =(PI()^2*I$2*COS(PI()*M9/180)/900+SQRT(2)*PI()^2*I$2^2*(4*(2*J$2^2-I$2^2)*COS(PI()*M9/90)+I$2^2*(COS(PI()*M9/45)+3))/(3600*(I$2^2*COS(PI()*M9/90)+2*J$2^2-I$2^2)^(3/2)))/N$7 -> 1 | P9: =N9-COS(M9*PI()/180)*H$2/100/N$6 -> 0.6064535888 | Q9: =SIN(M9*PI()/180)*H$2/100/N$6 -> 0 | R9: =SQRT(SUMSQ(P9,Q9)) -> 0.6064535888 | S9: =(R9-R81)/R9*100 -> 0 | T9: =DEGREES(ATAN2(P9,Q9)) -> 0 | U9: =IF(DEGREES(ATAN2(P9,Q9))<0,360+DEGREES(ATAN2(P9,Q9)),DEGREES(ATAN2(P9,Q9))) -> 0 | V9: =(P9*(Q9-0)/2+P9*(Q10-Q9)/2)^2 -> 0.000108173051 | W9: =R9*5 -> 3.032267944 | Y9: =N9-COS(M9*PI()/180)*H$7/100/N$6 -> 0.2129071776 | Z9: =SIN(M9*PI()/180)*H$7/100/N$6 -> 0 | AA9: =SQRT(SUMSQ(Y9,Z9)) -> 0.2129071776 | AB9: =(AA9-AA81)/AA9*100 -> 0 | AC9: =DEGREES(ATAN2(Y9,Z9)) -> 0 | AD9: =IF(DEGREES(ATAN2(Y9,Z9))<0,360+DEGREES(ATAN2(Y9,Z9)),DEGREES(ATAN2(Y9,Z9))) -> 0 | AE9: =(Y9*(Z9-0)/2+Y9*(Z10-Z9)/2)^2 -> 5.332913443e-05 | AF9: =AA9*5 -> 1.064535888 | AH9: 1
M10: 5 | N10: =(PI()^2*I$2*COS(PI()*M10/180)/900+SQRT(2)*PI()^2*I$2^2*(4*(2*J$2^2-I$2^2)*COS(PI()*M10/90)+I$2^2*(COS(PI()*M10/45)+3))/(3600*(I$2^2*COS(PI()*M10/90)+2*J$2^2-I$2^2)^(3/2)))/N$7 -> 0.9939196201 | P10: =N10-COS(M10*PI()/180)*H$2/100/N$6 -> 0.6018707718 | Q10: =SIN(M10*PI()/180)*H$2/100/N$6 -> 0.03429982978 | R10: =SQRT(SUMSQ(P10,Q10)) -> 0.6028473308 | S10: =(R10-R9)/R10*100 -> -0.5982041919 | T10: =DEGREES(ATAN2(P10,Q10)) -> 3.261683748 | U10: =IF(DEGREES(ATAN2(P10,Q10))<0,360+DEGREES(ATAN2(P10,Q10)),DEGREES(ATAN2(P10,Q10))) -> 3.261683748 | V10: =V9+(P10*(Q10-Q9)/2+P10*(Q11-Q10)/2)^2 -> 0.0005311131751 | W10: =R10*5+W9 -> 6.046504598 | Y10: =N10-COS(M10*PI()/180)*H$7/100/N$6 -> 0.2098219235 | Z10: =SIN(M10*PI()/180)*H$7/100/N$6 -> 0.06859965955 | AA10: =SQRT(SUMSQ(Y10,Z10)) -> 0.2207513372 | AB10: =(AA10-AA9)/AA10*100 -> 3.553391651 | AC10: =DEGREES(ATAN2(Y10,Z10)) -> 18.10475742 | AD10: =IF(DEGREES(ATAN2(Y10,Z10))<0,360+DEGREES(ATAN2(Y10,Z10)),DEGREES(ATAN2(Y10,Z10))) -> 18.10475742 | AE10: =AE9+(Y10*(Z10-Z9)/2+Y10*(Z11-Z10)/2)^2 -> 0.0002589343374 | AF10: =AA10*5+AF9 -> 2.168292574 | AH10: 0.9939196201
M11: 10 | N11: =(PI()^2*I$2*COS(PI()*M11/180)/900+SQRT(2)*PI()^2*I$2^2*(4*(2*J$2^2-I$2^2)*COS(PI()*M11/90)+I$2^2*(COS(PI()*M11/45)+3))/(3600*(I$2^2*COS(PI()*M11/90)+2*J$2^2-I$2^2)^(3/2)))/N$7 -> 0.9757744871 | P11: =N11-COS(M11*PI()/180)*H$2/100/N$6 -> 0.5882069302 | Q11: =SIN(M11*PI()/180)*H$2/100/N$6 -> 0.06833861713 | R11: =SQRT(SUMSQ(P11,Q11)) -> 0.5921634566 | S11: =(R11-R10)/R11*100 -> -1.804210317 | T11: =DEGREES(ATAN2(P11,Q11)) -> 6.626984732 | U11: =IF(DEGREES(ATAN2(P11,Q11))<0,360+DEGREES(ATAN2(P11,Q11)),DEGREES(ATAN2(P11,Q11))) -> 6.626984732 | V11: =V10+(P11*(Q11-Q10)/2+P11*(Q12-Q11)/2)^2 -> 0.0009258858837 | W11: =R11*5+W10 -> 9.007321881 | Y11: =N11-COS(M11*PI()/180)*H$7/100/N$6 -> 0.2006393733 | Z11: =SIN(M11*PI()/180)*H$7/100/N$6 -> 0.1366772343 | AA11: =SQRT(SUMSQ(Y11,Z11)) -> 0.2427690764 | AB11: =(AA11-AA10)/AA11*100 -> 9.069416751 | AC11: =DEGREES(ATAN2(Y11,Z11)) -> 34.2630213 | AD11: =IF(DEGREES(ATAN2(Y11,Z11))<0,360+DEGREES(ATAN2(Y11,Z11)),DEGREES(ATAN2(Y11,Z11))) -> 34.2630213 | AE11: =AE10+(Y11*(Z11-Z10)/2+Y11*(Z12-Z11)/2)^2 -> 0.000442663952 | AF11: =AA11*5+AF10 -> 3.382137956 | AH11: 0.9757744871
M12: 15 | N12: =(PI()^2*I$2*COS(PI()*M12/180)/900+SQRT(2)*PI()^2*I$2^2*(4*(2*J$2^2-I$2^2)*COS(PI()*M12/90)+I$2^2*(COS(PI()*M12/45)+3))/(3600*(I$2^2*COS(PI()*M12/90)+2*J$2^2-I$2^2)^(3/2)))/N$7 -> 0.945852347 | P12: =N12-COS(M12*PI()/180)*H$2/100/N$6 -> 0.5657157046 | Q12: =SIN(M12*PI()/180)*H$2/100/N$6 -> 0.1018573064 | R12: =SQRT(SUMSQ(P12,Q12)) -> 0.5748122904 | S12: =(R12-R11)/R12*100 -> -3.018579533 | T12: =DEGREES(ATAN2(P12,Q12)) -> 10.20676759 | U12: =IF(DEGREES(ATAN2(P12,Q12))<0,360+DEGREES(ATAN2(P12,Q12)),DEGREES(ATAN2(P12,Q12))) -> 10.20676759 | V12: =V11+(P12*(Q12-Q11)/2+P12*(Q13-Q12)/2)^2 -> 0.001277177638 | W12: =R12*5+W11 -> 11.88138333 | Y12: =N12-COS(M12*PI()/180)*H$7/100/N$6 -> 0.1855790621 | Z12: =SIN(M12*PI()/180)*H$7/100/N$6 -> 0.2037146127 | AA12: =SQRT(SUMSQ(Y12,Z12)) -> 0.2755707382 | AB12: =(AA12-AA11)/AA12*100 -> 11.90317301 | AC12: =DEGREES(ATAN2(Y12,Z12)) -> 47.66724034 | AD12: =IF(DEGREES(ATAN2(Y12,Z12))<0,360+DEGREES(ATAN2(Y12,Z12)),DEGREES(ATAN2(Y12,Z12))) -> 47.66724034 | AE12: =AE11+(Y12*(Z12-Z11)/2+Y12*(Z13-Z12)/2)^2 -> 0.0005938770559 | AF12: =AA12*5+AF11 -> 4.759991647 | AH12: 0.945852347
M13: 20 | N13: =(PI()^2*I$2*COS(PI()*M13/180)/900+SQRT(2)*PI()^2*I$2^2*(4*(2*J$2^2-I$2^2)*COS(PI()*M13/90)+I$2^2*(COS(PI()*M13/45)+3))/(3600*(I$2^2*COS(PI()*M13/90)+2*J$2^2-I$2^2)^(3/2)))/N$7 -> 0.9046316987 | P13: =N13-COS(M13*PI()/180)*H$2/100/N$6 -> 0.5348190402 | Q13: =SIN(M13*PI()/180)*H$2/100/N$6 -> 0.1346008 | R13: =SQRT(SUMSQ(P13,Q13)) -> 0.551496855 | S13: =(R13-R12)/R13*100 -> -4.227664263 | T13: =DEGREES(ATAN2(P13,Q13)) -> 14.12655489 | U13: =IF(DEGREES(ATAN2(P13,Q13))<0,360+DEGREES(ATAN2(P13,Q13)),DEGREES(ATAN2(P13,Q13))) -> 14.12655489 | V13: =V12+(P13*(Q13-Q12)/2+P13*(Q14-Q13)/2)^2 -> 0.001574323224 | W13: =R13*5+W12 -> 14.63886761 | Y13: =N13-COS(M13*PI()/180)*H$7/100/N$6 -> 0.1650063816 | Z13: =SIN(M13*PI()/180)*H$7/100/N$6 -> 0.2692015999 | AA13: =SQRT(SUMSQ(Y13,Z13)) -> 0.3157476958 | AB13: =(AA13-AA12)/AA13*100 -> 12.72438664 | AC13: =DEGREES(ATAN2(Y13,Z13)) -> 58.49389952 | AD13: =IF(DEGREES(ATAN2(Y13,Z13))<0,360+DEGREES(ATAN2(Y13,Z13)),DEGREES(ATAN2(Y13,Z13))) -> 58.49389952 | AE13: =AE12+(Y13*(Z13-Z12)/2+Y13*(Z14-Z13)/2)^2 -> 0.0007070172801 | AF13: =AA13*5+AF12 -> 6.338730125 | AH13: 0.9046316987
M14: 25 | N14: =(PI()^2*I$2*COS(PI()*M14/180)/900+SQRT(2)*PI()^2*I$2^2*(4*(2*J$2^2-I$2^2)*COS(PI()*M14/90)+I$2^2*(COS(PI()*M14/45)+3))/(3600*(I$2^2*COS(PI()*M14/90)+2*J$2^2-I$2^2)^(3/2)))/N$7 -> 0.8527796197 | P14: =N14-COS(M14*PI()/180)*H$2/100/N$6 -> 0.4961054427 | Q14: =SIN(M14*PI()/180)*H$2/100/N$6 -> 0.1663199002 | R14: =SQRT(SUMSQ(P14,Q14)) -> 0.5232426965 | S14: =(R14-R13)/R14*100 -> -5.399818985 | T14: =DEGREES(ATAN2(P14,Q14)) -> 18.53378431 | U14: =IF(DEGREES(ATAN2(P14,Q14))<0,360+DEGREES(ATAN2(P14,Q14)),DEGREES(ATAN2(P14,Q14))) -> 18.53378431 | V14: =V13+(P14*(Q14-Q13)/2+P14*(Q15-Q14)/2)^2 -> 0.001812162369 | W14: =R14*5+W13 -> 17.25508109 | Y14: =N14-COS(M14*PI()/180)*H$7/100/N$6 -> 0.1394312656 | Z14: =SIN(M14*PI()/180)*H$7/100/N$6 -> 0.3326398004 | AA14: =SQRT(SUMSQ(Y14,Z14)) -> 0.3606803497 | AB14: =(AA14-AA13)/AA14*100 -> 12.45774936 | AC14: =DEGREES(ATAN2(Y14,Z14)) -> 67.25823002 | AD14: =IF(DEGREES(ATAN2(Y14,Z14))<0,360+DEGREES(ATAN2(Y14,Z14)),DEGREES(ATAN2(Y14,Z14))) -> 67.25823002 | AE14: =AE13+(Y14*(Z14-Z13)/2+Y14*(Z15-Z14)/2)^2 -> 0.0007821649784 | AF14: =AA14*5+AF13 -> 8.142131874 | AH14: 0.8527796197
M15: 30 | N15: =(PI()^2*I$2*COS(PI()*M15/180)/900+SQRT(2)*PI()^2*I$2^2*(4*(2*J$2^2-I$2^2)*COS(PI()*M15/90)+I$2^2*(COS(PI()*M15/45)+3))/(3600*(I$2^2*COS(PI()*M15/90)+2*J$2^2-I$2^2)^(3/2)))/N$7 -> 0.791147627 | P15: =N15-COS(M15*PI()/180)*H$2/100/N$6 -> 0.4503264373 | Q15: =SIN(M15*PI()/180)*H$2/100/N$6 -> 0.1967732056 | R15: =SQRT(SUMSQ(P15,Q15)) -> 0.4914403266 | S15: =(R15-R14)/R15*100 -> -6.471257701 | T15: =DEGREES(ATAN2(P15,Q15)) -> 23.60325026 | U15: =IF(DEGREES(ATAN2(P15,Q15))<0,360+DEGREES(ATAN2(P15,Q15)),DEGREES(ATAN2(P15,Q15))) -> 23.60325026 | V15: =V14+(P15*(Q15-Q14)/2+P15*(Q16-Q15)/2)^2 -> 0.00199109934 | W15: =R15*5+W14 -> 19.71228272 | Y15: =N15-COS(M15*PI()/180)*H$7/100/N$6 -> 0.1095052476 | Z15: =SIN(M15*PI()/180)*H$7/100/N$6 -> 0.3935464112 | AA15: =SQRT(SUMSQ(Y15,Z15)) -> 0.4084974627 | AB15: =(AA15-AA14)/AA15*100 -> 11.70560832 | AC15: =DEGREES(ATAN2(Y15,Z15)) -> 74.45064431 | AD15: =IF(DEGREES(ATAN2(Y15,Z15))<0,360+DEGREES(ATAN2(Y15,Z15)),DEGREES(ATAN2(Y15,Z15))) -> 74.45064431 | AE15: =AE14+(Y15*(Z15-Z14)/2+Y15*(Z16-Z15)/2)^2 -> 0.0008244878422 | AF15: =AA15*5+AF14 -> 10.18461919 | AH15: 0.791147627
M16: 35 | N16: =(PI()^2*I$2*COS(PI()*M16/180)/900+SQRT(2)*PI()^2*I$2^2*(4*(2*J$2^2-I$2^2)*COS(PI()*M16/90)+I$2^2*(COS(PI()*M16/45)+3))/(3600*(I$2^2*COS(PI()*M16/90)+2*J$2^2-I$2^2)^(3/2)))/N$7 -> 0.7207645453 | P16: =N16-COS(M16*PI()/180)*H$2/100/N$6 -> 0.398390198 | Q16: =SIN(M16*PI()/180)*H$2/100/N$6 -> 0.2257289481 | R16: =SQRT(SUMSQ(P16,Q16)) -> 0.4578955207 | S16: =(R16-R15)/R16*100 -> -7.325864604 | T16: =DEGREES(ATAN2(P16,Q16)) -> 29.53600649 | U16: =IF(DEGREES(ATAN2(P16,Q16))<0,360+DEGREES(ATAN2(P16,Q16)),DEGREES(ATAN2(P16,Q16))) -> 29.53600649 | V16: =V15+(P16*(Q16-Q15)/2+P16*(Q17-Q16)/2)^2 -> 0.002116393335 | W16: =R16*5+W15 -> 22.00176033 | Y16: =N16-COS(M16*PI()/180)*H$7/100/N$6 -> 0.07601585072 | Z16: =SIN(M16*PI()/180)*H$7/100/N$6 -> 0.4514578962 | AA16: =SQRT(SUMSQ(Y16,Z16)) -> 0.4578128893 | AB16: =(AA16-AA15)/AA16*100 -> 10.77196115 | AC16: =DEGREES(ATAN2(Y16,Z16)) -> 80.44226853 | AD16: =IF(DEGREES(ATAN2(Y16,Z16))<0,360+DEGREES(ATAN2(Y16,Z16)),DEGREES(ATAN2(Y16,Z16))) -> 80.44226853 | AE16: =AE15+(Y16*(Z16-Z15)/2+Y16*(Z17-Z16)/2)^2 -> 0.000842734414 | AF16: =AA16*5+AF15 -> 12.47368363 | AH16: 0.7207645453
M17: 40 | N17: =(PI()^2*I$2*COS(PI()*M17/180)/900+SQRT(2)*PI()^2*I$2^2*(4*(2*J$2^2-I$2^2)*COS(PI()*M17/90)+I$2^2*(COS(PI()*M17/45)+3))/(3600*(I$2^2*COS(PI()*M17/90)+2*J$2^2-I$2^2)^(3/2)))/N$7 -> 0.6428251767 | P17: =N17-COS(M17*PI()/180)*H$2/100/N$6 -> 0.3413511353 | Q17: =SIN(M17*PI()/180)*H$2/100/N$6 -> 0.252966757 | R17: =SQRT(SUMSQ(P17,Q17)) -> 0.4248679532 | S17: =(R17-R16)/R17*100 -> -7.773607587 | T17: =DEGREES(ATAN2(P17,Q17)) -> 36.54121583 | U17: =IF(DEGREES(ATAN2(P17,Q17))<0,360+DEGREES(ATAN2(P17,Q17)),DEGREES(ATAN2(P17,Q17))) -> 36.54121583 | V17: =V16+(P17*(Q17-Q16)/2+P17*(Q18-Q17)/2)^2 -> 0.002196837503 | W17: =R17*5+W16 -> 24.12610009 | Y17: =N17-COS(M17*PI()/180)*H$7/100/N$6 -> 0.03987709386 | Z17: =SIN(M17*PI()/180)*H$7/100/N$6 -> 0.5059335139 | AA17: =SQRT(SUMSQ(Y17,Z17)) -> 0.5075026139 | AB17: =(AA17-AA16)/AA17*100 -> 9.791028321 | AC17: =DEGREES(ATAN2(Y17,Z17)) -> 85.49333001 | AD17: =IF(DEGREES(ATAN2(Y17,Z17))<0,360+DEGREES(ATAN2(Y17,Z17)),DEGREES(ATAN2(Y17,Z17))) -> 85.49333001 | AE17: =AE16+(Y17*(Z17-Z16)/2+Y17*(Z18-Z17)/2)^2 -> 0.0008471257721 | AF17: =AA17*5+AF16 -> 15.0111967 | AH17: 0.6428251767
M18: 45 | N18: =(PI()^2*I$2*COS(PI()*M18/180)/900+SQRT(2)*PI()^2*I$2^2*(4*(2*J$2^2-I$2^2)*COS(PI()*M18/90)+I$2^2*(COS(PI()*M18/45)+3))/(3600*(I$2^2*COS(PI()*M18/90)+2*J$2^2-I$2^2)^(3/2)))/N$7 -> 0.5586735067 | P18: =N18-COS(M18*PI()/180)*H$2/100/N$6 -> 0.2803941707 | Q18: =SIN(M18*PI()/180)*H$2/100/N$6 -> 0.2782793361 | R18: =SQRT(SUMSQ(P18,Q18)) -> 0.3950446555 | S18: =(R18-R17)/R18*100 -> -7.549348494 | T18: =DEGREES(ATAN2(P18,Q18)) -> 44.78311032 | U18: =IF(DEGREES(ATAN2(P18,Q18))<0,360+DEGREES(ATAN2(P18,Q18)),DEGREES(ATAN2(P18,Q18))) -> 44.78311032 | V18: =V17+(P18*(Q18-Q17)/2+P18*(Q19-Q18)/2)^2 -> 0.00224308539 | W18: =R18*5+W17 -> 26.10132337 | Y18: =N18-COS(M18*PI()/180)*H$7/100/N$6 -> 0.002114834573 | Z18: =SIN(M18*PI()/180)*H$7/100/N$6 -> 0.5565586722 | AA18: =SQRT(SUMSQ(Y18,Z18)) -> 0.5565626902 | AB18: =(AA18-AA17)/AA18*100 -> 8.814833821 | AC18: =DEGREES(ATAN2(Y18,Z18)) -> 89.78228618 | AD18: =IF(DEGREES(ATAN2(Y18,Z18))<0,360+DEGREES(ATAN2(Y18,Z18)),DEGREES(ATAN2(Y18,Z18))) -> 89.78228618 | AE18: =AE17+(Y18*(Z18-Z17)/2+Y18*(Z19-Z18)/2)^2 -> 0.0008471362958 | AF18: =AA18*5+AF17 -> 17.79401015 | AH18: 0.5586735067
M19: 50 | N19: =(PI()^2*I$2*COS(PI()*M19/180)/900+SQRT(2)*PI()^2*I$2^2*(4*(2*J$2^2-I$2^2)*COS(PI()*M19/90)+I$2^2*(COS(PI()*M19/45)+3))/(3600*(I$2^2*COS(PI()*M19/90)+2*J$2^2-I$2^2)^(3/2)))/N$7 -> 0.4697792974 | P19: =N19-COS(M19*PI()/180)*H$2/100/N$6 -> 0.2168125404 | Q19: =SIN(M19*PI()/180)*H$2/100/N$6 -> 0.3014740414 | R19: =SQRT(SUMSQ(P19,Q19)) -> 0.3713411845 | S19: =(R19-R18)/R19*100 -> -6.383205513 | T19: =DEGREES(ATAN2(P19,Q19)) -> 54.27726242 | U19: =IF(DEGREES(ATAN2(P19,Q19))<0,360+DEGREES(ATAN2(P19,Q19)),DEGREES(ATAN2(P19,Q19))) -> 54.27726242 | V19: =V18+(P19*(Q19-Q18)/2+P19*(Q20-Q19)/2)^2 -> 0.00226593547 | W19: =R19*5+W18 -> 27.95802929 | Y19: =N19-COS(M19*PI()/180)*H$7/100/N$6 -> -0.03615421657 | Z19: =SIN(M19*PI()/180)*H$7/100/N$6 -> 0.6029480828 | AA19: =SQRT(SUMSQ(Y19,Z19)) -> 0.6040310571 | AB19: =(AA19-AA18)/AA19*100 -> 7.858597071 | AC19: =DEGREES(ATAN2(Y19,Z19)) -> 93.431484 | AD19: =IF(DEGREES(ATAN2(Y19,Z19))<0,360+DEGREES(ATAN2(Y19,Z19)),DEGREES(ATAN2(Y19,Z19))) -> 93.431484 | AE19: =AE18+(Y19*(Z19-Z18)/2+Y19*(Z20-Z19)/2)^2 -> 0.0008496778351 | AF19: =AA19*5+AF18 -> 20.81416544 | AH19: 0.4697792974
M20: 55 | N20: =(PI()^2*I$2*COS(PI()*M20/180)/900+SQRT(2)*PI()^2*I$2^2*(4*(2*J$2^2-I$2^2)*COS(PI()*M20/90)+I$2^2*(COS(PI()*M20/45)+3))/(3600*(I$2^2*COS(PI()*M20/90)+2*J$2^2-I$2^2)^(3/2)))/N$7 -> 0.3777072512 | P20: =N20-COS(M20*PI()/180)*H$2/100/N$6 -> 0.1519783031 | Q20: =SIN(M20*PI()/180)*H$2/100/N$6 -> 0.3223743473 | R20: =SQRT(SUMSQ(P20,Q20)) -> 0.356402335 | S20: =(R20-R19)/R20*100 -> -4.191568929 | T20: =DEGREES(ATAN2(P20,Q20)) -> 64.75920535 | U20: =IF(DEGREES(ATAN2(P20,Q20))<0,360+DEGREES(ATAN2(P20,Q20)),DEGREES(ATAN2(P20,Q20))) -> 64.75920535 | V20: =V19+(P20*(Q20-Q19)/2+P20*(Q21-Q20)/2)^2 -> 0.002274875309 | W20: =R20*5+W19 -> 29.74004097 | Y20: =N20-COS(M20*PI()/180)*H$7/100/N$6 -> -0.07375064501 | Z20: =SIN(M20*PI()/180)*H$7/100/N$6 -> 0.6447486945 | AA20: =SQRT(SUMSQ(Y20,Z20)) -> 0.6489530312 | AB20: =(AA20-AA19)/AA20*100 -> 6.92222271 | AC20: =DEGREES(ATAN2(Y20,Z20)) -> 96.52551047 | AD20: =IF(DEGREES(ATAN2(Y20,Z20))<0,360+DEGREES(ATAN2(Y20,Z20)),DEGREES(ATAN2(Y20,Z20))) -> 96.52551047 | AE20: =AE19+(Y20*(Z20-Z19)/2+Y20*(Z21-Z20)/2)^2 -> 0.0008580987285 | AF20: =AA20*5+AF19 -> 24.0589306 | AH20: 0.3777072512
M21: 60 | N21: =(PI()^2*I$2*COS(PI()*M21/180)/900+SQRT(2)*PI()^2*I$2^2*(4*(2*J$2^2-I$2^2)*COS(PI()*M21/90)+I$2^2*(COS(PI()*M21/45)+3))/(3600*(I$2^2*COS(PI()*M21/90)+2*J$2^2-I$2^2)^(3/2)))/N$7 -> 0.2840785129 | P21: =N21-COS(M21*PI()/180)*H$2/100/N$6 -> 0.08730530731 | Q21: =SIN(M21*PI()/180)*H$2/100/N$6 -> 0.3408211897 | R21: =SQRT(SUMSQ(P21,Q21)) -> 0.3518256671 | S21: =(R21-R20)/R21*100 -> -1.300834001 | T21: =DEGREES(ATAN2(P21,Q21)) -> 75.63197332 | U21: =IF(DEGREES(ATAN2(P21,Q21))<0,360+DEGREES(ATAN2(P21,Q21)),DEGREES(ATAN2(P21,Q21))) -> 75.63197332 | V21: =V20+(P21*(Q21-Q20)/2+P21*(Q22-Q21)/2)^2 -> 0.002277117152 | W21: =R21*5+W20 -> 31.4991693 | Y21: =N21-COS(M21*PI()/180)*H$7/100/N$6 -> -0.1094678983 | Z21: =SIN(M21*PI()/180)*H$7/100/N$6 -> 0.6816423794 | AA21: =SQRT(SUMSQ(Y21,Z21)) -> 0.6903763858 | AB21: =(AA21-AA20)/AA21*100 -> 6.000111742 | AC21: =DEGREES(ATAN2(Y21,Z21)) -> 99.12347621 | AD21: =IF(DEGREES(ATAN2(Y21,Z21))<0,360+DEGREES(ATAN2(Y21,Z21)),DEGREES(ATAN2(Y21,Z21))) -> 99.12347621 | AE21: =AE20+(Y21*(Z21-Z20)/2+Y21*(Z22-Z21)/2)^2 -> 0.0008721967279 | AF21: =AA21*5+AF20 -> 27.51081253 | AH21: 0.2840785129
M22: 65 | N22: =(PI()^2*I$2*COS(PI()*M22/180)/900+SQRT(2)*PI()^2*I$2^2*(4*(2*J$2^2-I$2^2)*COS(PI()*M22/90)+I$2^2*(COS(PI()*M22/45)+3))/(3600*(I$2^2*COS(PI()*M22/90)+2*J$2^2-I$2^2)^(3/2)))/N$7 -> 0.190525097 | P22: =N22-COS(M22*PI()/180)*H$2/100/N$6 -> 0.02420519676 | Q22: =SIN(M22*PI()/180)*H$2/100/N$6 -> 0.356674177 | R22: =SQRT(SUMSQ(P22,Q22)) -> 0.3574945596 | S22: =(R22-R21)/R22*100 -> 1.585728323 | T22: =DEGREES(ATAN2(P22,Q22)) -> 86.11765435 | U22: =IF(DEGREES(ATAN2(P22,Q22))<0,360+DEGREES(ATAN2(P22,Q22)),DEGREES(ATAN2(P22,Q22))) -> 86.11765435 | V22: =V21+(P22*(Q22-Q21)/2+P22*(Q23-Q22)/2)^2 -> 0.002277240263 | W22: =R22*5+W21 -> 33.2866421 | Y22: =N22-COS(M22*PI()/180)*H$7/100/N$6 -> -0.1421147035 | Z22: =SIN(M22*PI()/180)*H$7/100/N$6 -> 0.7133483541 | AA22: =SQRT(SUMSQ(Y22,Z22)) -> 0.727366801 | AB22: =(AA22-AA21)/AA22*100 -> 5.08552427 | AC22: =DEGREES(ATAN2(Y22,Z22)) -> 101.2670658 | AD22: =IF(DEGREES(ATAN2(Y22,Z22))<0,360+DEGREES(ATAN2(Y22,Z22)),DEGREES(ATAN2(Y22,Z22))) -> 101.2670658 | AE22: =AE21+(Y22*(Z22-Z21)/2+Y22*(Z23-Z22)/2)^2 -> 0.0008891720673 | AF22: =AA22*5+AF21 -> 31.14764653 | AH22: 0.190525097
M23: 70 | N23: =(PI()^2*I$2*COS(PI()*M23/180)/900+SQRT(2)*PI()^2*I$2^2*(4*(2*J$2^2-I$2^2)*COS(PI()*M23/90)+I$2^2*(COS(PI()*M23/45)+3))/(3600*(I$2^2*COS(PI()*M23/90)+2*J$2^2-I$2^2)^(3/2)))/N$7 -> 0.0986388261 | P23: =N23-COS(M23*PI()/180)*H$2/100/N$6 -> -0.03596197387 | Q23: =SIN(M23*PI()/180)*H$2/100/N$6 -> 0.3698126586 | R23: =SQRT(SUMSQ(P23,Q23)) -> 0.3715570831 | S23: =(R23-R22)/R23*100 -> 3.784754526 | T23: =DEGREES(ATAN2(P23,Q23)) -> 95.55419357 | U23: =IF(DEGREES(ATAN2(P23,Q23))<0,360+DEGREES(ATAN2(P23,Q23)),DEGREES(ATAN2(P23,Q23))) -> 95.55419357 | V23: =V22+(P23*(Q23-Q22)/2+P23*(Q24-Q23)/2)^2 -> 0.002277418245 | W23: =R23*5+W22 -> 35.14442752 | Y23: =N23-COS(M23*PI()/180)*H$7/100/N$6 -> -0.1705627738 | Z23: =SIN(M23*PI()/180)*H$7/100/N$6 -> 0.7396253171 | AA23: =SQRT(SUMSQ(Y23,Z23)) -> 0.7590370673 | AB23: =(AA23-AA22)/AA23*100 -> 4.172426834 | AC23: =DEGREES(ATAN2(Y23,Z23)) -> 102.9857912 | AD23: =IF(DEGREES(ATAN2(Y23,Z23))<0,360+DEGREES(ATAN2(Y23,Z23)),DEGREES(ATAN2(Y23,Z23))) -> 102.9857912 | AE23: =AE22+(Y23*(Z23-Z22)/2+Y23*(Z24-Z23)/2)^2 -> 0.000905186656 | AF23: =AA23*5+AF22 -> 34.94283187 | AH23: 0.0986388261
M24: 75 | N24: =(PI()^2*I$2*COS(PI()*M24/180)/900+SQRT(2)*PI()^2*I$2^2*(4*(2*J$2^2-I$2^2)*COS(PI()*M24/90)+I$2^2*(COS(PI()*M24/45)+3))/(3600*(I$2^2*COS(PI()*M24/90)+2*J$2^2-I$2^2)^(3/2)))/N$7 -> 0.009917411462 | P24: =N24-COS(M24*PI()/180)*H$2/100/N$6 -> -0.09193989489 | Q24: =SIN(M24*PI()/180)*H$2/100/N$6 -> 0.3801366424 | R24: =SQRT(SUMSQ(P24,Q24)) -> 0.3910969332 | S24: =(R24-R23)/R24*100 -> 4.996165528 | T24: =DEGREES(ATAN2(P24,Q24)) -> 103.5964633 | U24: =IF(DEGREES(ATAN2(P24,Q24))<0,360+DEGREES(ATAN2(P24,Q24)),DEGREES(ATAN2(P24,Q24))) -> 103.5964633 | V24: =V23+(P24*(Q24-Q23)/2+P24*(Q25-Q24)/2)^2 -> 0.002278084414 | W24: =R24*5+W23 -> 37.09991218 | Y24: =N24-COS(M24*PI()/180)*H$7/100/N$6 -> -0.1937972012 | Z24: =SIN(M24*PI()/180)*H$7/100/N$6 -> 0.7602732849 | AA24: =SQRT(SUMSQ(Y24,Z24)) -> 0.7845844906 | AB24: =(AA24-AA23)/AA24*100 -> 3.256172358 | AC24: =DEGREES(ATAN2(Y24,Z24)) -> 104.3004225 | AD24: =IF(DEGREES(ATAN2(Y24,Z24))<0,360+DEGREES(ATAN2(Y24,Z24)),DEGREES(ATAN2(Y24,Z24))) -> 104.3004225 | AE24: =AE23+(Y24*(Z24-Z23)/2+Y24*(Z25-Z24)/2)^2 -> 0.0009170261021 | AF24: =AA24*5+AF23 -> 38.86575432 | AH24: 0.009917411462
M25: 80 | N25: =(PI()^2*I$2*COS(PI()*M25/180)/900+SQRT(2)*PI()^2*I$2^2*(4*(2*J$2^2-I$2^2)*COS(PI()*M25/90)+I$2^2*(COS(PI()*M25/45)+3))/(3600*(I$2^2*COS(PI()*M25/90)+2*J$2^2-I$2^2)^(3/2)))/N$7 -> -0.07428878622 | P25: =N25-COS(M25*PI()/180)*H$2/100/N$6 -> -0.1426274034 | Q25: =SIN(M25*PI()/180)*H$2/100/N$6 -> 0.3875675569 | R25: =SQRT(SUMSQ(P25,Q25)) -> 0.4129784345 | S25: =(R25-R24)/R25*100 -> 5.298460994 | T25: =DEGREES(ATAN2(P25,Q25)) -> 110.2039462 | U25: =IF(DEGREES(ATAN2(P25,Q25))<0,360+DEGREES(ATAN2(P25,Q25)),DEGREES(ATAN2(P25,Q25))) -> 110.2039462 | V25: =V24+(P25*(Q25-Q24)/2+P25*(Q26-Q25)/2)^2 -> 0.00227880607 | W25: =R25*5+W24 -> 39.16480436 | Y25: =N25-COS(M25*PI()/180)*H$7/100/N$6 -> -0.2109660205 | Z25: =SIN(M25*PI()/180)*H$7/100/N$6 -> 0.7751351139 | AA25: =SQRT(SUMSQ(Y25,Z25)) -> 0.8033312558 | AB25: =(AA25-AA24)/AA25*100 -> 2.333628259 | AC25: =DEGREES(ATAN2(Y25,Z25)) -> 105.2252233 | AD25: =IF(DEGREES(ATAN2(Y25,Z25))<0,360+DEGREES(ATAN2(Y25,Z25)),DEGREES(ATAN2(Y25,Z25))) -> 105.2252233 | AE25: =AE24+(Y25*(Z25-Z24)/2+Y25*(Z26-Z25)/2)^2 -> 0.0009233416263 | AF25: =AA25*5+AF24 -> 42.8824106 | AH25: 0.07428878622
M26: 85 | N26: =(PI()^2*I$2*COS(PI()*M26/180)/900+SQRT(2)*PI()^2*I$2^2*(4*(2*J$2^2-I$2^2)*COS(PI()*M26/90)+I$2^2*(COS(PI()*M26/45)+3))/(3600*(I$2^2*COS(PI()*M26/90)+2*J$2^2-I$2^2)^(3/2)))/N$7 -> -0.1528252038 | P26: =N26-COS(M26*PI()/180)*H$2/100/N$6 -> -0.1871250336 | Q26: =SIN(M26*PI()/180)*H$2/100/N$6 -> 0.3920488483 | R26: =SQRT(SUMSQ(P26,Q26)) -> 0.4344169399 | S26: =(R26-R25)/R26*100 -> 4.93500676 | T26: =DEGREES(ATAN2(P26,Q26)) -> 115.5151572 | U26: =IF(DEGREES(ATAN2(P26,Q26))<0,360+DEGREES(ATAN2(P26,Q26)),DEGREES(ATAN2(P26,Q26))) -> 115.5151572 | V26: =V25+(P26*(Q26-Q25)/2+P26*(Q27-Q26)/2)^2 -> 0.002279118994 | W26: =R26*5+W25 -> 41.33688905 | Y26: =N26-COS(M26*PI()/180)*H$7/100/N$6 -> -0.2214248633 | Z26: =SIN(M26*PI()/180)*H$7/100/N$6 -> 0.7840976966 | AA26: =SQRT(SUMSQ(Y26,Z26)) -> 0.8147626452 | AB26: =(AA26-AA25)/AA26*100 -> 1.403033069 | AC26: =DEGREES(ATAN2(Y26,Z26)) -> 105.7693869 | AD26: =IF(DEGREES(ATAN2(Y26,Z26))<0,360+DEGREES(ATAN2(Y26,Z26)),DEGREES(ATAN2(Y26,Z26))) -> 105.7693869 | AE26: =AE25+(Y26*(Z26-Z25)/2+Y26*(Z27-Z26)/2)^2 -> 0.0009250942501 | AF26: =AA26*5+AF25 -> 46.95622382 | AH26: 0.1528252038
M27: 90 | N27: =(PI()^2*I$2*COS(PI()*M27/180)/900+SQRT(2)*PI()^2*I$2^2*(4*(2*J$2^2-I$2^2)*COS(PI()*M27/90)+I$2^2*(COS(PI()*M27/45)+3))/(3600*(I$2^2*COS(PI()*M27/90)+2*J$2^2-I$2^2)^(3/2)))/N$7 -> -0.2247725667 | P27: =N27-COS(M27*PI()/180)*H$2/100/N$6 -> -0.2247725667 | Q27: =SIN(M27*PI()/180)*H$2/100/N$6 -> 0.3935464112 | R27: =SQRT(SUMSQ(P27,Q27)) -> 0.4532124055 | S27: =(R27-R26)/R27*100 -> 4.147164866 | T27: =DEGREES(ATAN2(P27,Q27)) -> 119.7326868 | U27: =IF(DEGREES(ATAN2(P27,Q27))<0,360+DEGREES(ATAN2(P27,Q27)),DEGREES(ATAN2(P27,Q27))) -> 119.7326868 | V27: =V26+(P27*(Q27-Q26)/2+P27*(Q28-Q27)/2)^2 -> 0.002279118994 | W27: =R27*5+W26 -> 43.60295108 | Y27: =N27-COS(M27*PI()/180)*H$7/100/N$6 -> -0.2247725667 | Z27: =SIN(M27*PI()/180)*H$7/100/N$6 -> 0.7870928224 | AA27: =SQRT(SUMSQ(Y27,Z27)) -> 0.8185583778 | AB27: =(AA27-AA26)/AA27*100 -> 0.4637094611 | AC27: =DEGREES(ATAN2(Y27,Z27)) -> 105.9379188 | AD27: =IF(DEGREES(ATAN2(Y27,Z27))<0,360+DEGREES(ATAN2(Y27,Z27)),DEGREES(ATAN2(Y27,Z27))) -> 105.9379188 | AE27: =AE26+(Y27*(Z27-Z26)/2+Y27*(Z28-Z27)/2)^2 -> 0.0009250942501 | AF27: =AA27*5+AF26 -> 51.04901571 | AH27: 0.2247725667
M28: 95 | N28: =(PI()^2*I$2*COS(PI()*M28/180)/900+SQRT(2)*PI()^2*I$2^2*(4*(2*J$2^2-I$2^2)*COS(PI()*M28/90)+I$2^2*(COS(PI()*M28/45)+3))/(3600*(I$2^2*COS(PI()*M28/90)+2*J$2^2-I$2^2)^(3/2)))/N$7 -> -0.2894738198 | P28: =N28-COS(M28*PI()/180)*H$2/100/N$6 -> -0.2551739901 | Q28: =SIN(M28*PI()/180)*H$2/100/N$6 -> 0.3920488483 | R28: =SQRT(SUMSQ(P28,Q28)) -> 0.4677777941 | S28: =(R28-R27)/R28*100 -> 3.113740921 | T28: =DEGREES(ATAN2(P28,Q28)) -> 123.0590144 | U28: =IF(DEGREES(ATAN2(P28,Q28))<0,360+DEGREES(ATAN2(P28,Q28)),DEGREES(ATAN2(P28,Q28))) -> 123.0590144 | V28: =V27+(P28*(Q28-Q27)/2+P28*(Q29-Q28)/2)^2 -> 0.002279700895 | W28: =R28*5+W27 -> 45.94184005 | Y28: =N28-COS(M28*PI()/180)*H$7/100/N$6 -> -0.2208741603 | Z28: =SIN(M28*PI()/180)*H$7/100/N$6 -> 0.7840976966 | AA28: =SQRT(SUMSQ(Y28,Z28)) -> 0.8146131551 | AB28: =(AA28-AA27)/AA28*100 -> -0.4843062792 | AC28: =DEGREES(ATAN2(Y28,Z28)) -> 105.7321111 | AD28: =IF(DEGREES(ATAN2(Y28,Z28))<0,360+DEGREES(ATAN2(Y28,Z28)),DEGREES(ATAN2(Y28,Z28))) -> 105.7321111 | AE28: =AE27+(Y28*(Z28-Z27)/2+Y28*(Z29-Z28)/2)^2 -> 0.0009268381669 | AF28: =AA28*5+AF27 -> 55.12208149 | AH28: 0.2894738198
M29: 100 | N29: =(PI()^2*I$2*COS(PI()*M29/180)/900+SQRT(2)*PI()^2*I$2^2*(4*(2*J$2^2-I$2^2)*COS(PI()*M29/90)+I$2^2*(COS(PI()*M29/45)+3))/(3600*(I$2^2*COS(PI()*M29/90)+2*J$2^2-I$2^2)^(3/2)))/N$7 -> -0.3465460398 | P29: =N29-COS(M29*PI()/180)*H$2/100/N$6 -> -0.2782074227 | Q29: =SIN(M29*PI()/180)*H$2/100/N$6 -> 0.3875675569 | R29: =SQRT(SUMSQ(P29,Q29)) -> 0.4770827824 | S29: =(R29-R28)/R29*100 -> 1.950392806 | T29: =DEGREES(ATAN2(P29,Q29)) -> 125.6719003 | U29: =IF(DEGREES(ATAN2(P29,Q29))<0,360+DEGREES(ATAN2(P29,Q29)),DEGREES(ATAN2(P29,Q29))) -> 125.6719003 | V29: =V28+(P29*(Q29-Q28)/2+P29*(Q30-Q29)/2)^2 -> 0.00228244665 | W29: =R29*5+W28 -> 48.32725396 | Y29: =N29-COS(M29*PI()/180)*H$7/100/N$6 -> -0.2098688056 | Z29: =SIN(M29*PI()/180)*H$7/100/N$6 -> 0.7751351139 | AA29: =SQRT(SUMSQ(Y29,Z29)) -> 0.8030438097 | AB29: =(AA29-AA28)/AA29*100 -> -1.440686708 | AC29: =DEGREES(ATAN2(Y29,Z29)) -> 105.1496866 | AD29: =IF(DEGREES(ATAN2(Y29,Z29))<0,360+DEGREES(ATAN2(Y29,Z29)),DEGREES(ATAN2(Y29,Z29))) -> 105.1496866 | AE29: =AE28+(Y29*(Z29-Z28)/2+Y29*(Z30-Z29)/2)^2 -> 0.000933088169 | AF29: =AA29*5+AF28 -> 59.13730054 | AH29: 0.3465460398
M30: 105 | N30: =(PI()^2*I$2*COS(PI()*M30/180)/900+SQRT(2)*PI()^2*I$2^2*(4*(2*J$2^2-I$2^2)*COS(PI()*M30/90)+I$2^2*(COS(PI()*M30/45)+3))/(3600*(I$2^2*COS(PI()*M30/90)+2*J$2^2-I$2^2)^(3/2)))/N$7 -> -0.3958764376 | P30: =N30-COS(M30*PI()/180)*H$2/100/N$6 -> -0.2940191313 | Q30: =SIN(M30*PI()/180)*H$2/100/N$6 -> 0.3801366424 | R30: =SQRT(SUMSQ(P30,Q30)) -> 0.4805737368 | S30: =(R30-R29)/R30*100 -> 0.7264138973 | T30: =DEGREES(ATAN2(P30,Q30)) -> 127.7203896 | U30: =IF(DEGREES(ATAN2(P30,Q30))<0,360+DEGREES(ATAN2(P30,Q30)),DEGREES(ATAN2(P30,Q30))) -> 127.7203896 | V30: =V29+(P30*(Q30-Q29)/2+P30*(Q31-Q30)/2)^2 -> 0.00228925948 | W30: =R30*5+W29 -> 50.73012265 | Y30: =N30-COS(M30*PI()/180)*H$7/100/N$6 -> -0.1921618249 | Z30: =SIN(M30*PI()/180)*H$7/100/N$6 -> 0.7602732849 | AA30: =SQRT(SUMSQ(Y30,Z30)) -> 0.7841821438 | AB30: =(AA30-AA29)/AA30*100 -> -2.405265926 | AC30: =DEGREES(ATAN2(Y30,Z30)) -> 104.1846372 | AD30: =IF(DEGREES(ATAN2(Y30,Z30))<0,360+DEGREES(ATAN2(Y30,Z30)),DEGREES(ATAN2(Y30,Z30))) -> 104.1846372 | AE30: =AE29+(Y30*(Z30-Z29)/2+Y30*(Z31-Z30)/2)^2 -> 0.0009447286415 | AF30: =AA30*5+AF29 -> 63.05821126 | AH30: 0.3958764376
M31: 110 | N31: =(PI()^2*I$2*COS(PI()*M31/180)/900+SQRT(2)*PI()^2*I$2^2*(4*(2*J$2^2-I$2^2)*COS(PI()*M31/90)+I$2^2*(COS(PI()*M31/45)+3))/(3600*(I$2^2*COS(PI()*M31/90)+2*J$2^2-I$2^2)^(3/2)))/N$7 -> -0.4376032823 | P31: =N31-COS(M31*PI()/180)*H$2/100/N$6 -> -0.3030024823 | Q31: =SIN(M31*PI()/180)*H$2/100/N$6 -> 0.3698126586 | R31: =SQRT(SUMSQ(P31,Q31)) -> 0.4780919438 | S31: =(R31-R30)/R31*100 -> -0.5191037069 | T31: =DEGREES(ATAN2(P31,Q31)) -> 129.3291505 | U31: =IF(DEGREES(ATAN2(P31,Q31))<0,360+DEGREES(ATAN2(P31,Q31)),DEGREES(ATAN2(P31,Q31))) -> 129.3291505 | V31: =V30+(P31*(Q31-Q30)/2+P31*(Q32-Q31)/2)^2 -> 0.002301894609 | W31: =R31*5+W30 -> 53.12058237 | Y31: =N31-COS(M31*PI()/180)*H$7/100/N$6 -> -0.1684016823 | Z31: =SIN(M31*PI()/180)*H$7/100/N$6 -> 0.7396253171 | AA31: =SQRT(SUMSQ(Y31,Z31)) -> 0.7585543727 | AB31: =(AA31-AA30)/AA31*100 -> -3.378501533 | AC31: =DEGREES(ATAN2(Y31,Z31)) -> 102.8267321 | AD31: =IF(DEGREES(ATAN2(Y31,Z31))<0,360+DEGREES(ATAN2(Y31,Z31)),DEGREES(ATAN2(Y31,Z31))) -> 102.8267321 | AE31: =AE30+(Y31*(Z31-Z30)/2+Y31*(Z32-Z31)/2)^2 -> 0.0009603399801 | AF31: =AA31*5+AF30 -> 66.85098312 | AH31: 0.4376032823
M32: 115 | N32: =(PI()^2*I$2*COS(PI()*M32/180)/900+SQRT(2)*PI()^2*I$2^2*(4*(2*J$2^2-I$2^2)*COS(PI()*M32/90)+I$2^2*(COS(PI()*M32/45)+3))/(3600*(I$2^2*COS(PI()*M32/90)+2*J$2^2-I$2^2)^(3/2)))/N$7 -> -0.4720841444 | P32: =N32-COS(M32*PI()/180)*H$2/100/N$6 -> -0.3057642442 | Q32: =SIN(M32*PI()/180)*H$2/100/N$6 -> 0.356674177 | R32: =SQRT(SUMSQ(P32,Q32)) -> 0.4697959574 | S32: =(R32-R31)/R32*100 -> -1.765870106 | T32: =DEGREES(ATAN2(P32,Q32)) -> 130.6053246 | U32: =IF(DEGREES(ATAN2(P32,Q32))<0,360+DEGREES(ATAN2(P32,Q32)),DEGREES(ATAN2(P32,Q32))) -> 130.6053246 | V32: =V31+(P32*(Q32-Q31)/2+P32*(Q33-Q32)/2)^2 -> 0.002321539691 | W32: =R32*5+W31 -> 55.46956215 | Y32: =N32-COS(M32*PI()/180)*H$7/100/N$6 -> -0.139444344 | Z32: =SIN(M32*PI()/180)*H$7/100/N$6 -> 0.7133483541 | AA32: =SQRT(SUMSQ(Y32,Z32)) -> 0.7268497777 | AB32: =(AA32-AA31)/AA32*100 -> -4.361918509 | AC32: =DEGREES(ATAN2(Y32,Z32)) -> 101.0606244 | AD32: =IF(DEGREES(ATAN2(Y32,Z32))<0,360+DEGREES(ATAN2(Y32,Z32)),DEGREES(ATAN2(Y32,Z32))) -> 101.0606244 | AE32: =AE31+(Y32*(Z32-Z31)/2+Y32*(Z33-Z32)/2)^2 -> 0.0009766833739 | AF32: =AA32*5+AF31 -> 70.48523201 | AH32: 0.4720841444
M33: 120 | N33: =(PI()^2*I$2*COS(PI()*M33/180)/900+SQRT(2)*PI()^2*I$2^2*(4*(2*J$2^2-I$2^2)*COS(PI()*M33/90)+I$2^2*(COS(PI()*M33/45)+3))/(3600*(I$2^2*COS(PI()*M33/90)+2*J$2^2-I$2^2)^(3/2)))/N$7 -> -0.4998550051 | P33: =N33-COS(M33*PI()/180)*H$2/100/N$6 -> -0.3030817995 | Q33: =SIN(M33*PI()/180)*H$2/100/N$6 -> 0.3408211897 | R33: =SQRT(SUMSQ(P33,Q33)) -> 0.4560895312 | S33: =(R33-R32)/R33*100 -> -3.005205169 | T33: =DEGREES(ATAN2(P33,Q33)) -> 131.6457107 | U33: =IF(DEGREES(ATAN2(P33,Q33))<0,360+DEGREES(ATAN2(P33,Q33)),DEGREES(ATAN2(P33,Q33))) -> 131.6457107 | V33: =V32+(P33*(Q33-Q32)/2+P33*(Q34-Q33)/2)^2 -> 0.002348557097 | W33: =R33*5+W32 -> 57.75000981 | Y33: =N33-COS(M33*PI()/180)*H$7/100/N$6 -> -0.1063085939 | Z33: =SIN(M33*PI()/180)*H$7/100/N$6 -> 0.6816423794 | AA33: =SQRT(SUMSQ(Y33,Z33)) -> 0.6898824903 | AB33: =(AA33-AA32)/AA33*100 -> -5.358490451 | AC33: =DEGREES(ATAN2(Y33,Z33)) -> 98.8644098 | AD33: =IF(DEGREES(ATAN2(Y33,Z33))<0,360+DEGREES(ATAN2(Y33,Z33)),DEGREES(ATAN2(Y33,Z33))) -> 98.8644098 | AE33: =AE32+(Y33*(Z33-Z32)/2+Y33*(Z34-Z33)/2)^2 -> 0.0009899793638 | AF33: =AA33*5+AF32 -> 73.93464446 | AH33: 0.4998550051
M34: 125 | N34: =(PI()^2*I$2*COS(PI()*M34/180)/900+SQRT(2)*PI()^2*I$2^2*(4*(2*J$2^2-I$2^2)*COS(PI()*M34/90)+I$2^2*(COS(PI()*M34/45)+3))/(3600*(I$2^2*COS(PI()*M34/90)+2*J$2^2-I$2^2)^(3/2)))/N$7 -> -0.521584336 | P34: =N34-COS(M34*PI()/180)*H$2/100/N$6 -> -0.2958553879 | Q34: =SIN(M34*PI()/180)*H$2/100/N$6 -> 0.3223743473 | R34: =SQRT(SUMSQ(P34,Q34)) -> 0.437556431 | S34: =(R34-R33)/R34*100 -> -4.235590859 | T34: =DEGREES(ATAN2(P34,Q34)) -> 132.5438037 | U34: =IF(DEGREES(ATAN2(P34,Q34))<0,360+DEGREES(ATAN2(P34,Q34)),DEGREES(ATAN2(P34,Q34))) -> 132.5438037 | V34: =V33+(P34*(Q34-Q33)/2+P34*(Q35-Q34)/2)^2 -> 0.002382435701 | W34: =R34*5+W33 -> 59.93779197 | Y34: =N34-COS(M34*PI()/180)*H$7/100/N$6 -> -0.07012643986 | Z34: =SIN(M34*PI()/180)*H$7/100/N$6 -> 0.6447486945 | AA34: =SQRT(SUMSQ(Y34,Z34)) -> 0.6485511519 | AB34: =(AA34-AA33)/AA34*100 -> -6.37287256 | AC34: =DEGREES(ATAN2(Y34,Z34)) -> 96.20740539 | AD34: =IF(DEGREES(ATAN2(Y34,Z34))<0,360+DEGREES(ATAN2(Y34,Z34)),DEGREES(ATAN2(Y34,Z34))) -> 96.20740539 | AE34: =AE33+(Y34*(Z34-Z33)/2+Y34*(Z35-Z34)/2)^2 -> 0.0009975929647 | AF34: =AA34*5+AF33 -> 77.17740022 | AH34: 0.521584336
M35: 130 | N35: =(PI()^2*I$2*COS(PI()*M35/180)/900+SQRT(2)*PI()^2*I$2^2*(4*(2*J$2^2-I$2^2)*COS(PI()*M35/90)+I$2^2*(COS(PI()*M35/45)+3))/(3600*(I$2^2*COS(PI()*M35/90)+2*J$2^2-I$2^2)^(3/2)))/N$7 -> -0.538026207 | P35: =N35-COS(M35*PI()/180)*H$2/100/N$6 -> -0.2850594501 | Q35: =SIN(M35*PI()/180)*H$2/100/N$6 -> 0.3014740414 | R35: =SQRT(SUMSQ(P35,Q35)) -> 0.414904191 | S35: =(R35-R34)/R35*100 -> -5.459631531 | T35: =DEGREES(ATAN2(P35,Q35)) -> 133.3969519 | U35: =IF(DEGREES(ATAN2(P35,Q35))<0,360+DEGREES(ATAN2(P35,Q35)),DEGREES(ATAN2(P35,Q35))) -> 133.3969519 | V35: =V34+(P35*(Q35-Q34)/2+P35*(Q36-Q35)/2)^2 -> 0.002421935038 | W35: =R35*5+W34 -> 62.01231292 | Y35: =N35-COS(M35*PI()/180)*H$7/100/N$6 -> -0.03209269309 | Z35: =SIN(M35*PI()/180)*H$7/100/N$6 -> 0.6029480828 | AA35: =SQRT(SUMSQ(Y35,Z35)) -> 0.6038015664 | AB35: =(AA35-AA34)/AA35*100 -> -7.411306637 | AC35: =DEGREES(ATAN2(Y35,Z35)) -> 93.04676708 | AD35: =IF(DEGREES(ATAN2(Y35,Z35))<0,360+DEGREES(ATAN2(Y35,Z35)),DEGREES(ATAN2(Y35,Z35))) -> 93.04676708 | AE35: =AE34+(Y35*(Z35-Z34)/2+Y35*(Z36-Z35)/2)^2 -> 0.000999595551 | AF35: =AA35*5+AF34 -> 80.19640805 | AH35: 0.538026207
M36: 135 | N36: =(PI()^2*I$2*COS(PI()*M36/180)/900+SQRT(2)*PI()^2*I$2^2*(4*(2*J$2^2-I$2^2)*COS(PI()*M36/90)+I$2^2*(COS(PI()*M36/45)+3))/(3600*(I$2^2*COS(PI()*M36/90)+2*J$2^2-I$2^2)^(3/2)))/N$7 -> -0.5499759064 | P36: =N36-COS(M36*PI()/180)*H$2/100/N$6 -> -0.2716965703 | Q36: =SIN(M36*PI()/180)*H$2/100/N$6 -> 0.2782793361 | R36: =SQRT(SUMSQ(P36,Q36)) -> 0.3889195485 | S36: =(R36-R35)/R36*100 -> -6.681238468 | T36: =DEGREES(ATAN2(P36,Q36)) -> 134.3142487 | U36: =IF(DEGREES(ATAN2(P36,Q36))<0,360+DEGREES(ATAN2(P36,Q36)),DEGREES(ATAN2(P36,Q36))) -> 134.3142487 | V36: =V35+(P36*(Q36-Q35)/2+P36*(Q37-Q36)/2)^2 -> 0.00246535828 | W36: =R36*5+W35 -> 63.95691066 | Y36: =N36-COS(M36*PI()/180)*H$7/100/N$6 -> 0.006582765739 | Z36: =SIN(M36*PI()/180)*H$7/100/N$6 -> 0.5565586722 | AA36: =SQRT(SUMSQ(Y36,Z36)) -> 0.5565976 | AB36: =(AA36-AA35)/AA36*100 -> -8.48080666 | AC36: =DEGREES(ATAN2(Y36,Z36)) -> 89.32235876 | AD36: =IF(DEGREES(ATAN2(Y36,Z36))<0,360+DEGREES(ATAN2(Y36,Z36)),DEGREES(ATAN2(Y36,Z36))) -> 89.32235876 | AE36: =AE35+(Y36*(Z36-Z35)/2+Y36*(Z37-Z36)/2)^2 -> 0.0009996975112 | AF36: =AA36*5+AF35 -> 82.97939605 | AH36: 0.5499759064
M37: 140 | N37: =(PI()^2*I$2*COS(PI()*M37/180)/900+SQRT(2)*PI()^2*I$2^2*(4*(2*J$2^2-I$2^2)*COS(PI()*M37/90)+I$2^2*(COS(PI()*M37/45)+3))/(3600*(I$2^2*COS(PI()*M37/90)+2*J$2^2-I$2^2)^(3/2)))/N$7 -> -0.5582306538 | P37: =N37-COS(M37*PI()/180)*H$2/100/N$6 -> -0.2567566124 | Q37: =SIN(M37*PI()/180)*H$2/100/N$6 -> 0.252966757 | R37: =SQRT(SUMSQ(P37,Q37)) -> 0.3604388133 | S37: =(R37-R36)/R37*100 -> -7.901683778 | T37: =DEGREES(ATAN2(P37,Q37)) -> 135.4259933 | U37: =IF(DEGREES(ATAN2(P37,Q37))<0,360+DEGREES(ATAN2(P37,Q37)),DEGREES(ATAN2(P37,Q37))) -> 135.4259933 | V37: =V36+(P37*(Q37-Q36)/2+P37*(Q38-Q37)/2)^2 -> 0.002510871246 | W37: =R37*5+W36 -> 65.75910473 | Y37: =N37-COS(M37*PI()/180)*H$7/100/N$6 -> 0.04471742906 | Z37: =SIN(M37*PI()/180)*H$7/100/N$6 -> 0.5059335139 | AA37: =SQRT(SUMSQ(Y37,Z37)) -> 0.5079058663 | AB37: =(AA37-AA36)/AA37*100 -> -9.586763416 | AC37: =DEGREES(ATAN2(Y37,Z37)) -> 84.94898212 | AD37: =IF(DEGREES(ATAN2(Y37,Z37))<0,360+DEGREES(ATAN2(Y37,Z37)),DEGREES(ATAN2(Y37,Z37))) -> 84.94898212 | AE37: =AE36+(Y37*(Z37-Z36)/2+Y37*(Z38-Z37)/2)^2 -> 0.001005219627 | AF37: =AA37*5+AF36 -> 85.51892538 | AH37: 0.5582306538
M38: 145 | N38: =(PI()^2*I$2*COS(PI()*M38/180)/900+SQRT(2)*PI()^2*I$2^2*(4*(2*J$2^2-I$2^2)*COS(PI()*M38/90)+I$2^2*(COS(PI()*M38/45)+3))/(3600*(I$2^2*COS(PI()*M38/90)+2*J$2^2-I$2^2)^(3/2)))/N$7 -> -0.5635569425 | P38: =N38-COS(M38*PI()/180)*H$2/100/N$6 -> -0.2411825952 | Q38: =SIN(M38*PI()/180)*H$2/100/N$6 -> 0.2257289481 | R38: =SQRT(SUMSQ(P38,Q38)) -> 0.3303371039 | S38: =(R38-R37)/R38*100 -> -9.112421527 | T38: =DEGREES(ATAN2(P38,Q38)) -> 136.8956603 | U38: =IF(DEGREES(ATAN2(P38,Q38))<0,360+DEGREES(ATAN2(P38,Q38)),DEGREES(ATAN2(P38,Q38))) -> 136.8956603 | V38: =V37+(P38*(Q38-Q37)/2+P38*(Q39-Q38)/2)^2 -> 0.002556791565 | W38: =R38*5+W37 -> 67.41079025 | Y38: =N38-COS(M38*PI()/180)*H$7/100/N$6 -> 0.08119175208 | Z38: =SIN(M38*PI()/180)*H$7/100/N$6 -> 0.4514578962 | AA38: =SQRT(SUMSQ(Y38,Z38)) -> 0.4587007005 | AB38: =(AA38-AA37)/AA38*100 -> -10.72707448 | AC38: =DEGREES(ATAN2(Y38,Z38)) -> 79.80471387 | AD38: =IF(DEGREES(ATAN2(Y38,Z38))<0,360+DEGREES(ATAN2(Y38,Z38)),DEGREES(ATAN2(Y38,Z38))) -> 79.80471387 | AE38: =AE37+(Y38*(Z38-Z37)/2+Y38*(Z39-Z38)/2)^2 -> 0.001026035603 | AF38: =AA38*5+AF37 -> 87.81242889 | AH38: 0.5635569425
M39: 150 | N39: =(PI()^2*I$2*COS(PI()*M39/180)/900+SQRT(2)*PI()^2*I$2^2*(4*(2*J$2^2-I$2^2)*COS(PI()*M39/90)+I$2^2*(COS(PI()*M39/45)+3))/(3600*(I$2^2*COS(PI()*M39/90)+2*J$2^2-I$2^2)^(3/2)))/N$7 -> -0.566665056 | P39: =N39-COS(M39*PI()/180)*H$2/100/N$6 -> -0.2258438663 | Q39: =SIN(M39*PI()/180)*H$2/100/N$6 -> 0.1967732056 | R39: =SQRT(SUMSQ(P39,Q39)) -> 0.2995415604 | S39: =(R39-R38)/R39*100 -> -10.28089174 | T39: =DEGREES(ATAN2(P39,Q39)) -> 138.9350198 | U39: =IF(DEGREES(ATAN2(P39,Q39))<0,360+DEGREES(ATAN2(P39,Q39)),DEGREES(ATAN2(P39,Q39))) -> 138.9350198 | V39: =V38+(P39*(Q39-Q38)/2+P39*(Q40-Q39)/2)^2 -> 0.002601796671 | W39: =R39*5+W38 -> 68.90849805 | Y39: =N39-COS(M39*PI()/180)*H$7/100/N$6 -> 0.1149773234 | Z39: =SIN(M39*PI()/180)*H$7/100/N$6 -> 0.3935464112 | AA39: =SQRT(SUMSQ(Y39,Z39)) -> 0.4099982472 | AB39: =(AA39-AA38)/AA39*100 -> -11.87869793 | AC39: =DEGREES(ATAN2(Y39,Z39)) -> 73.71390932 | AD39: =IF(DEGREES(ATAN2(Y39,Z39))<0,360+DEGREES(ATAN2(Y39,Z39)),DEGREES(ATAN2(Y39,Z39))) -> 73.71390932 | AE39: =AE38+(Y39*(Z39-Z38)/2+Y39*(Z40-Z39)/2)^2 -> 0.001072693974 | AF39: =AA39*5+AF38 -> 89.86242012 | AH39: 0.566665056
M40: 155 | N40: =(PI()^2*I$2*COS(PI()*M40/180)/900+SQRT(2)*PI()^2*I$2^2*(4*(2*J$2^2-I$2^2)*COS(PI()*M40/90)+I$2^2*(COS(PI()*M40/45)+3))/(3600*(I$2^2*COS(PI()*M40/90)+2*J$2^2-I$2^2)^(3/2)))/N$7 -> -0.568190484 | P40: =N40-COS(M40*PI()/180)*H$2/100/N$6 -> -0.211516307 | Q40: =SIN(M40*PI()/180)*H$2/100/N$6 -> 0.1663199002 | R40: =SQRT(SUMSQ(P40,Q40)) -> 0.269075189 | S40: =(R40-R39)/R40*100 -> -11.32262379 | T40: =DEGREES(ATAN2(P40,Q40)) -> 141.8212553 | U40: =IF(DEGREES(ATAN2(P40,Q40))<0,360+DEGREES(ATAN2(P40,Q40)),DEGREES(ATAN2(P40,Q40))) -> 141.8212553 | V40: =V39+(P40*(Q40-Q39)/2+P40*(Q41-Q40)/2)^2 -> 0.002645030437 | W40: =R40*5+W39 -> 70.253874 | Y40: =N40-COS(M40*PI()/180)*H$7/100/N$6 -> 0.1451578701 | Z40: =SIN(M40*PI()/180)*H$7/100/N$6 -> 0.3326398004 | AA40: =SQRT(SUMSQ(Y40,Z40)) -> 0.3629325613 | AB40: =(AA40-AA39)/AA40*100 -> -12.96816291 | AC40: =DEGREES(ATAN2(Y40,Z40)) -> 66.42443184 | AD40: =IF(DEGREES(ATAN2(Y40,Z40))<0,360+DEGREES(ATAN2(Y40,Z40)),DEGREES(ATAN2(Y40,Z40))) -> 66.42443184 | AE40: =AE39+(Y40*(Z40-Z39)/2+Y40*(Z41-Z40)/2)^2 -> 0.001154141242 | AF40: =AA40*5+AF39 -> 91.67708293 | AH40: 0.568190484
M41: 160 | N41: =(PI()^2*I$2*COS(PI()*M41/180)/900+SQRT(2)*PI()^2*I$2^2*(4*(2*J$2^2-I$2^2)*COS(PI()*M41/90)+I$2^2*(COS(PI()*M41/45)+3))/(3600*(I$2^2*COS(PI()*M41/90)+2*J$2^2-I$2^2)^(3/2)))/N$7 -> -0.5686813854 | P41: =N41-COS(M41*PI()/180)*H$2/100/N$6 -> -0.1988687268 | Q41: =SIN(M41*PI()/180)*H$2/100/N$6 -> 0.1346008 | R41: =SQRT(SUMSQ(P41,Q41)) -> 0.2401377643 | S41: =(R41-R40)/R41*100 -> -12.05034315 | T41: =DEGREES(ATAN2(P41,Q41)) -> 145.9085846 | U41: =IF(DEGREES(ATAN2(P41,Q41))<0,360+DEGREES(ATAN2(P41,Q41)),DEGREES(ATAN2(P41,Q41))) -> 145.9085846 | V41: =V40+(P41*(Q41-Q40)/2+P41*(Q42-Q41)/2)^2 -> 0.002686115934 | W41: =R41*5+W40 -> 71.45456282 | Y41: =N41-COS(M41*PI()/180)*H$7/100/N$6 -> 0.1709439317 | Z41: =SIN(M41*PI()/180)*H$7/100/N$6 -> 0.2692015999 | AA41: =SQRT(SUMSQ(Y41,Z41)) -> 0.3188907794 | AB41: =(AA41-AA40)/AA41*100 -> -13.81092987 | AC41: =DEGREES(ATAN2(Y41,Z41)) -> 57.58431377 | AD41: =IF(DEGREES(ATAN2(Y41,Z41))<0,360+DEGREES(ATAN2(Y41,Z41)),DEGREES(ATAN2(Y41,Z41))) -> 57.58431377 | AE41: =AE40+(Y41*(Z41-Z40)/2+Y41*(Z42-Z41)/2)^2 -> 0.001275570385 | AF41: =AA41*5+AF40 -> 93.27153683 | AH41: 0.5686813854
M42: 165 | N42: =(PI()^2*I$2*COS(PI()*M42/180)/900+SQRT(2)*PI()^2*I$2^2*(4*(2*J$2^2-I$2^2)*COS(PI()*M42/90)+I$2^2*(COS(PI()*M42/45)+3))/(3600*(I$2^2*COS(PI()*M42/90)+2*J$2^2-I$2^2)^(3/2)))/N$7 -> -0.5685909153 | P42: =N42-COS(M42*PI()/180)*H$2/100/N$6 -> -0.1884542728 | Q42: =SIN(M42*PI()/180)*H$2/100/N$6 -> 0.1018573064 | R42: =SQRT(SUMSQ(P42,Q42)) -> 0.2142193357 | S42: =(R42-R41)/R42*100 -> -12.09901455 | T42: =DEGREES(ATAN2(P42,Q42)) -> 151.6093024 | U42: =IF(DEGREES(ATAN2(P42,Q42))<0,360+DEGREES(ATAN2(P42,Q42)),DEGREES(ATAN2(P42,Q42))) -> 151.6093024 | V42: =V41+(P42*(Q42-Q41)/2+P42*(Q43-Q42)/2)^2 -> 0.002725099671 | W42: =R42*5+W41 -> 72.5256595 | Y42: =N42-COS(M42*PI()/180)*H$7/100/N$6 -> 0.1916823696 | Z42: =SIN(M42*PI()/180)*H$7/100/N$6 -> 0.2037146127 | AA42: =SQRT(SUMSQ(Y42,Z42)) -> 0.2797173113 | AB42: =(AA42-AA41)/AA42*100 -> -14.00466347 | AC42: =DEGREES(ATAN2(Y42,Z42)) -> 46.74301802 | AD42: =IF(DEGREES(ATAN2(Y42,Z42))<0,360+DEGREES(ATAN2(Y42,Z42)),DEGREES(ATAN2(Y42,Z42))) -> 46.74301802 | AE42: =AE41+(Y42*(Z42-Z41)/2+Y42*(Z43-Z42)/2)^2 -> 0.001436893209 | AF42: =AA42*5+AF41 -> 94.67012338 | AH42: 0.5685909153
M43: 170 | N43: =(PI()^2*I$2*COS(PI()*M43/180)/900+SQRT(2)*PI()^2*I$2^2*(4*(2*J$2^2-I$2^2)*COS(PI()*M43/90)+I$2^2*(COS(PI()*M43/45)+3))/(3600*(I$2^2*COS(PI()*M43/90)+2*J$2^2-I$2^2)^(3/2)))/N$7 -> -0.5682731256 | P43: =N43-COS(M43*PI()/180)*H$2/100/N$6 -> -0.1807055687 | Q43: =SIN(M43*PI()/180)*H$2/100/N$6 -> 0.06833861713 | R43: =SQRT(SUMSQ(P43,Q43)) -> 0.1931959346 | S43: =(R43-R42)/R43*100 -> -10.8819066 | T43: =DEGREES(ATAN2(P43,Q43)) -> 159.2845551 | U43: =IF(DEGREES(ATAN2(P43,Q43))<0,360+DEGREES(ATAN2(P43,Q43)),DEGREES(ATAN2(P43,Q43))) -> 159.2845551 | V43: =V42+(P43*(Q43-Q42)/2+P43*(Q44-Q43)/2)^2 -> 0.002762358561 | W43: =R43*5+W42 -> 73.49163917 | Y43: =N43-COS(M43*PI()/180)*H$7/100/N$6 -> 0.2068619883 | Z43: =SIN(M43*PI()/180)*H$7/100/N$6 -> 0.1366772343 | AA43: =SQRT(SUMSQ(Y43,Z43)) -> 0.2479365817 | AB43: =(AA43-AA42)/AA43*100 -> -12.81808815 | AC43: =DEGREES(ATAN2(Y43,Z43)) -> 33.45341809 | AD43: =IF(DEGREES(ATAN2(Y43,Z43))<0,360+DEGREES(ATAN2(Y43,Z43)),DEGREES(ATAN2(Y43,Z43))) -> 33.45341809 | AE43: =AE42+(Y43*(Z43-Z42)/2+Y43*(Z44-Z43)/2)^2 -> 0.0016321959 | AF43: =AA43*5+AF42 -> 95.90980629 | AH43: 0.5682731256
M44: 175 | N44: =(PI()^2*I$2*COS(PI()*M44/180)/900+SQRT(2)*PI()^2*I$2^2*(4*(2*J$2^2-I$2^2)*COS(PI()*M44/90)+I$2^2*(COS(PI()*M44/45)+3))/(3600*(I$2^2*COS(PI()*M44/90)+2*J$2^2-I$2^2)^(3/2)))/N$7 -> -0.5679812085 | P44: =N44-COS(M44*PI()/180)*H$2/100/N$6 -> -0.1759323602 | Q44: =SIN(M44*PI()/180)*H$2/100/N$6 -> 0.03429982978 | R44: =SQRT(SUMSQ(P44,Q44)) -> 0.1792447313 | S44: =(R44-R43)/R44*100 -> -7.78332686 | T44: =DEGREES(ATAN2(P44,Q44)) -> 168.9679811 | U44: =IF(DEGREES(ATAN2(P44,Q44))<0,360+DEGREES(ATAN2(P44,Q44)),DEGREES(ATAN2(P44,Q44))) -> 168.9679811 | V44: =V43+(P44*(Q44-Q43)/2+P44*(Q45-Q44)/2)^2 -> 0.002798496538 | W44: =R44*5+W43 -> 74.38786283 | Y44: =N44-COS(M44*PI()/180)*H$7/100/N$6 -> 0.2161164881 | Z44: =SIN(M44*PI()/180)*H$7/100/N$6 -> 0.06859965955 | AA44: =SQRT(SUMSQ(Y44,Z44)) -> 0.226742695 | AB44: =(AA44-AA43)/AA44*100 -> -9.347108959 | AC44: =DEGREES(ATAN2(Y44,Z44)) -> 17.6104706 | AD44: =IF(DEGREES(ATAN2(Y44,Z44))<0,360+DEGREES(ATAN2(Y44,Z44)),DEGREES(ATAN2(Y44,Z44))) -> 17.6104706 | AE44: =AE43+(Y44*(Z44-Z43)/2+Y44*(Z45-Z44)/2)^2 -> 0.001850322272 | AF44: =AA44*5+AF43 -> 97.04351977 | AH44: 0.5679812085
M45: 180 | N45: =(PI()^2*I$2*COS(PI()*M45/180)/900+SQRT(2)*PI()^2*I$2^2*(4*(2*J$2^2-I$2^2)*COS(PI()*M45/90)+I$2^2*(COS(PI()*M45/45)+3))/(3600*(I$2^2*COS(PI()*M45/90)+2*J$2^2-I$2^2)^(3/2)))/N$7 -> -0.567867036 | P45: =N45-COS(M45*PI()/180)*H$2/100/N$6 -> -0.1743206248 | Q45: =SIN(M45*PI()/180)*H$2/100/N$6 -> 4.819553528e-17 | R45: =SQRT(SUMSQ(P45,Q45)) -> 0.1743206248 | S45: =(R45-R44)/R45*100 -> -2.824741185 | T45: =DEGREES(ATAN2(P45,Q45)) -> 180 | U45: =IF(DEGREES(ATAN2(P45,Q45))<0,360+DEGREES(ATAN2(P45,Q45)),DEGREES(ATAN2(P45,Q45))) -> 180 | V45: =V44+(P45*(Q45-Q44)/2+P45*(Q46-Q45)/2)^2 -> 0.002834246985 | W45: =R45*5+W44 -> 75.25946595 | Y45: =N45-COS(M45*PI()/180)*H$7/100/N$6 -> 0.2192257864 | Z45: =SIN(M45*PI()/180)*H$7/100/N$6 -> 9.639107056e-17 | AA45: =SQRT(SUMSQ(Y45,Z45)) -> 0.2192257864 | AB45: =(AA45-AA44)/AA45*100 -> -3.428843232 | AC45: =DEGREES(ATAN2(Y45,Z45)) -> 2.519229884e-14 | AD45: =IF(DEGREES(ATAN2(Y45,Z45))<0,360+DEGREES(ATAN2(Y45,Z45)),DEGREES(ATAN2(Y45,Z45))) -> 2.519229884e-14 | AE45: =AE44+(Y45*(Z45-Z44)/2+Y45*(Z46-Z45)/2)^2 -> 0.002076488208 | AF45: =AA45*5+AF44 -> 98.1396487 | AH45: 0.567867036
M46: 185 | N46: =(PI()^2*I$2*COS(PI()*M46/180)/900+SQRT(2)*PI()^2*I$2^2*(4*(2*J$2^2-I$2^2)*COS(PI()*M46/90)+I$2^2*(COS(PI()*M46/45)+3))/(3600*(I$2^2*COS(PI()*M46/90)+2*J$2^2-I$2^2)^(3/2)))/N$7 -> -0.5679812085 | P46: =N46-COS(M46*PI()/180)*H$2/100/N$6 -> -0.1759323602 | Q46: =SIN(M46*PI()/180)*H$2/100/N$6 -> -0.03429982978 | R46: =SQRT(SUMSQ(P46,Q46)) -> 0.1792447313 | S46: =(R46-R45)/R46*100 -> 2.747141547 | T46: =DEGREES(ATAN2(P46,Q46)) -> -168.9679811 | U46: =IF(DEGREES(ATAN2(P46,Q46))<0,360+DEGREES(ATAN2(P46,Q46)),DEGREES(ATAN2(P46,Q46))) -> 191.0320189 | W46: =R46*5+W45 -> 76.15568961 | Y46: =N46-COS(M46*PI()/180)*H$7/100/N$6 -> 0.2161164881 | Z46: =SIN(M46*PI()/180)*H$7/100/N$6 -> -0.06859965955 | AA46: =SQRT(SUMSQ(Y46,Z46)) -> 0.226742695 | AB46: =(AA46-AA45)/AA46*100 -> 3.315171208 | AC46: =DEGREES(ATAN2(Y46,Z46)) -> -17.6104706 | AD46: =IF(DEGREES(ATAN2(Y46,Z46))<0,360+DEGREES(ATAN2(Y46,Z46)),DEGREES(ATAN2(Y46,Z46))) -> 342.3895294 | AF46: =AA46*5+AF45 -> 99.27336217 | AH46: 0.5679812085
M47: 190 | N47: =(PI()^2*I$2*COS(PI()*M47/180)/900+SQRT(2)*PI()^2*I$2^2*(4*(2*J$2^2-I$2^2)*COS(PI()*M47/90)+I$2^2*(COS(PI()*M47/45)+3))/(3600*(I$2^2*COS(PI()*M47/90)+2*J$2^2-I$2^2)^(3/2)))/N$7 -> -0.5682731256 | P47: =N47-COS(M47*PI()/180)*H$2/100/N$6 -> -0.1807055687 | Q47: =SIN(M47*PI()/180)*H$2/100/N$6 -> -0.06833861713 | R47: =SQRT(SUMSQ(P47,Q47)) -> 0.1931959346 | S47: =(R47-R46)/R47*100 -> 7.221271682 | T47: =DEGREES(ATAN2(P47,Q47)) -> -159.2845551 | U47: =IF(DEGREES(ATAN2(P47,Q47))<0,360+DEGREES(ATAN2(P47,Q47)),DEGREES(ATAN2(P47,Q47))) -> 200.7154449 | W47: =R47*5+W46 -> 77.12166928 | Y47: =N47-COS(M47*PI()/180)*H$7/100/N$6 -> 0.2068619883 | Z47: =SIN(M47*PI()/180)*H$7/100/N$6 -> -0.1366772343 | AA47: =SQRT(SUMSQ(Y47,Z47)) -> 0.2479365817 | AB47: =(AA47-AA46)/AA47*100 -> 8.548107991 | AC47: =DEGREES(ATAN2(Y47,Z47)) -> -33.45341809 | AD47: =IF(DEGREES(ATAN2(Y47,Z47))<0,360+DEGREES(ATAN2(Y47,Z47)),DEGREES(ATAN2(Y47,Z47))) -> 326.5465819 | AF47: =AA47*5+AF46 -> 100.5130451 | AH47: 0.5682731256
M48: 195 | N48: =(PI()^2*I$2*COS(PI()*M48/180)/900+SQRT(2)*PI()^2*I$2^2*(4*(2*J$2^2-I$2^2)*COS(PI()*M48/90)+I$2^2*(COS(PI()*M48/45)+3))/(3600*(I$2^2*COS(PI()*M48/90)+2*J$2^2-I$2^2)^(3/2)))/N$7 -> -0.5685909153 | P48: =N48-COS(M48*PI()/180)*H$2/100/N$6 -> -0.1884542728 | Q48: =SIN(M48*PI()/180)*H$2/100/N$6 -> -0.1018573064 | R48: =SQRT(SUMSQ(P48,Q48)) -> 0.2142193357 | S48: =(R48-R47)/R48*100 -> 9.813960573 | T48: =DEGREES(ATAN2(P48,Q48)) -> -151.6093024 | U48: =IF(DEGREES(ATAN2(P48,Q48))<0,360+DEGREES(ATAN2(P48,Q48)),DEGREES(ATAN2(P48,Q48))) -> 208.3906976 | W48: =R48*5+W47 -> 78.19276596 | Y48: =N48-COS(M48*PI()/180)*H$7/100/N$6 -> 0.1916823696 | Z48: =SIN(M48*PI()/180)*H$7/100/N$6 -> -0.2037146127 | AA48: =SQRT(SUMSQ(Y48,Z48)) -> 0.2797173113 | AB48: =(AA48-AA47)/AA48*100 -> 11.3617314 | AC48: =DEGREES(ATAN2(Y48,Z48)) -> -46.74301802 | AD48: =IF(DEGREES(ATAN2(Y48,Z48))<0,360+DEGREES(ATAN2(Y48,Z48)),DEGREES(ATAN2(Y48,Z48))) -> 313.256982 | AF48: =AA48*5+AF47 -> 101.9116316 | AH48: 0.5685909153
M49: 200 | N49: =(PI()^2*I$2*COS(PI()*M49/180)/900+SQRT(2)*PI()^2*I$2^2*(4*(2*J$2^2-I$2^2)*COS(PI()*M49/90)+I$2^2*(COS(PI()*M49/45)+3))/(3600*(I$2^2*COS(PI()*M49/90)+2*J$2^2-I$2^2)^(3/2)))/N$7 -> -0.5686813854 | P49: =N49-COS(M49*PI()/180)*H$2/100/N$6 -> -0.1988687268 | Q49: =SIN(M49*PI()/180)*H$2/100/N$6 -> -0.1346008 | R49: =SQRT(SUMSQ(P49,Q49)) -> 0.2401377643 | S49: =(R49-R48)/R49*100 -> 10.79314979 | T49: =DEGREES(ATAN2(P49,Q49)) -> -145.9085846 | U49: =IF(DEGREES(ATAN2(P49,Q49))<0,360+DEGREES(ATAN2(P49,Q49)),DEGREES(ATAN2(P49,Q49))) -> 214.0914154 | W49: =R49*5+W48 -> 79.39345478 | Y49: =N49-COS(M49*PI()/180)*H$7/100/N$6 -> 0.1709439317 | Z49: =SIN(M49*PI()/180)*H$7/100/N$6 -> -0.2692015999 | AA49: =SQRT(SUMSQ(Y49,Z49)) -> 0.3188907794 | AB49: =(AA49-AA48)/AA49*100 -> 12.28428999 | AC49: =DEGREES(ATAN2(Y49,Z49)) -> -57.58431377 | AD49: =IF(DEGREES(ATAN2(Y49,Z49))<0,360+DEGREES(ATAN2(Y49,Z49)),DEGREES(ATAN2(Y49,Z49))) -> 302.4156862 | AF49: =AA49*5+AF48 -> 103.5060855 | AH49: 0.5686813854
M50: 205 | N50: =(PI()^2*I$2*COS(PI()*M50/180)/900+SQRT(2)*PI()^2*I$2^2*(4*(2*J$2^2-I$2^2)*COS(PI()*M50/90)+I$2^2*(COS(PI()*M50/45)+3))/(3600*(I$2^2*COS(PI()*M50/90)+2*J$2^2-I$2^2)^(3/2)))/N$7 -> -0.568190484 | P50: =N50-COS(M50*PI()/180)*H$2/100/N$6 -> -0.211516307 | Q50: =SIN(M50*PI()/180)*H$2/100/N$6 -> -0.1663199002 | R50: =SQRT(SUMSQ(P50,Q50)) -> 0.269075189 | S50: =(R50-R49)/R50*100 -> 10.75440094 | T50: =DEGREES(ATAN2(P50,Q50)) -> -141.8212553 | U50: =IF(DEGREES(ATAN2(P50,Q50))<0,360+DEGREES(ATAN2(P50,Q50)),DEGREES(ATAN2(P50,Q50))) -> 218.1787447 | W50: =R50*5+W49 -> 80.73883073 | Y50: =N50-COS(M50*PI()/180)*H$7/100/N$6 -> 0.1451578701 | Z50: =SIN(M50*PI()/180)*H$7/100/N$6 -> -0.3326398004 | AA50: =SQRT(SUMSQ(Y50,Z50)) -> 0.3629325613 | AB50: =(AA50-AA49)/AA50*100 -> 12.13497674 | AC50: =DEGREES(ATAN2(Y50,Z50)) -> -66.42443184 | AD50: =IF(DEGREES(ATAN2(Y50,Z50))<0,360+DEGREES(ATAN2(Y50,Z50)),DEGREES(ATAN2(Y50,Z50))) -> 293.5755682 | AF50: =AA50*5+AF49 -> 105.3207483 | AH50: 0.568190484
M51: 210 | N51: =(PI()^2*I$2*COS(PI()*M51/180)/900+SQRT(2)*PI()^2*I$2^2*(4*(2*J$2^2-I$2^2)*COS(PI()*M51/90)+I$2^2*(COS(PI()*M51/45)+3))/(3600*(I$2^2*COS(PI()*M51/90)+2*J$2^2-I$2^2)^(3/2)))/N$7 -> -0.566665056 | P51: =N51-COS(M51*PI()/180)*H$2/100/N$6 -> -0.2258438663 | Q51: =SIN(M51*PI()/180)*H$2/100/N$6 -> -0.1967732056 | R51: =SQRT(SUMSQ(P51,Q51)) -> 0.2995415604 | S51: =(R51-R50)/R51*100 -> 10.17099975 | T51: =DEGREES(ATAN2(P51,Q51)) -> -138.9350198 | U51: =IF(DEGREES(ATAN2(P51,Q51))<0,360+DEGREES(ATAN2(P51,Q51)),DEGREES(ATAN2(P51,Q51))) -> 221.0649802 | W51: =R51*5+W50 -> 82.23653853 | Y51: =N51-COS(M51*PI()/180)*H$7/100/N$6 -> 0.1149773234 | Z51: =SIN(M51*PI()/180)*H$7/100/N$6 -> -0.3935464112 | AA51: =SQRT(SUMSQ(Y51,Z51)) -> 0.4099982472 | AB51: =(AA51-AA50)/AA51*100 -> 11.47948464 | AC51: =DEGREES(ATAN2(Y51,Z51)) -> -73.71390932 | AD51: =IF(DEGREES(ATAN2(Y51,Z51))<0,360+DEGREES(ATAN2(Y51,Z51)),DEGREES(ATAN2(Y51,Z51))) -> 286.2860907 | AF51: =AA51*5+AF50 -> 107.3707396 | AH51: 0.566665056
M52: 215 | N52: =(PI()^2*I$2*COS(PI()*M52/180)/900+SQRT(2)*PI()^2*I$2^2*(4*(2*J$2^2-I$2^2)*COS(PI()*M52/90)+I$2^2*(COS(PI()*M52/45)+3))/(3600*(I$2^2*COS(PI()*M52/90)+2*J$2^2-I$2^2)^(3/2)))/N$7 -> -0.5635569425 | P52: =N52-COS(M52*PI()/180)*H$2/100/N$6 -> -0.2411825952 | Q52: =SIN(M52*PI()/180)*H$2/100/N$6 -> -0.2257289481 | R52: =SQRT(SUMSQ(P52,Q52)) -> 0.3303371039 | S52: =(R52-R51)/R52*100 -> 9.32245975 | T52: =DEGREES(ATAN2(P52,Q52)) -> -136.8956603 | U52: =IF(DEGREES(ATAN2(P52,Q52))<0,360+DEGREES(ATAN2(P52,Q52)),DEGREES(ATAN2(P52,Q52))) -> 223.1043397 | W52: =R52*5+W51 -> 83.88822405 | Y52: =N52-COS(M52*PI()/180)*H$7/100/N$6 -> 0.08119175208 | Z52: =SIN(M52*PI()/180)*H$7/100/N$6 -> -0.4514578962 | AA52: =SQRT(SUMSQ(Y52,Z52)) -> 0.4587007005 | AB52: =(AA52-AA51)/AA52*100 -> 10.6174796 | AC52: =DEGREES(ATAN2(Y52,Z52)) -> -79.80471387 | AD52: =IF(DEGREES(ATAN2(Y52,Z52))<0,360+DEGREES(ATAN2(Y52,Z52)),DEGREES(ATAN2(Y52,Z52))) -> 280.1952861 | AF52: =AA52*5+AF51 -> 109.6642431 | AH52: 0.5635569425
M53: 220 | N53: =(PI()^2*I$2*COS(PI()*M53/180)/900+SQRT(2)*PI()^2*I$2^2*(4*(2*J$2^2-I$2^2)*COS(PI()*M53/90)+I$2^2*(COS(PI()*M53/45)+3))/(3600*(I$2^2*COS(PI()*M53/90)+2*J$2^2-I$2^2)^(3/2)))/N$7 -> -0.5582306538 | P53: =N53-COS(M53*PI()/180)*H$2/100/N$6 -> -0.2567566124 | Q53: =SIN(M53*PI()/180)*H$2/100/N$6 -> -0.252966757 | R53: =SQRT(SUMSQ(P53,Q53)) -> 0.3604388133 | S53: =(R53-R52)/R53*100 -> 8.351406191 | T53: =DEGREES(ATAN2(P53,Q53)) -> -135.4259933 | U53: =IF(DEGREES(ATAN2(P53,Q53))<0,360+DEGREES(ATAN2(P53,Q53)),DEGREES(ATAN2(P53,Q53))) -> 224.5740067 | W53: =R53*5+W52 -> 85.69041811 | Y53: =N53-COS(M53*PI()/180)*H$7/100/N$6 -> 0.04471742906 | Z53: =SIN(M53*PI()/180)*H$7/100/N$6 -> -0.5059335139 | AA53: =SQRT(SUMSQ(Y53,Z53)) -> 0.5079058663 | AB53: =(AA53-AA52)/AA53*100 -> 9.687851441 | AC53: =DEGREES(ATAN2(Y53,Z53)) -> -84.94898212 | AD53: =IF(DEGREES(ATAN2(Y53,Z53))<0,360+DEGREES(ATAN2(Y53,Z53)),DEGREES(ATAN2(Y53,Z53))) -> 275.0510179 | AF53: =AA53*5+AF52 -> 112.2037724 | AH53: 0.5582306538
M54: 225 | N54: =(PI()^2*I$2*COS(PI()*M54/180)/900+SQRT(2)*PI()^2*I$2^2*(4*(2*J$2^2-I$2^2)*COS(PI()*M54/90)+I$2^2*(COS(PI()*M54/45)+3))/(3600*(I$2^2*COS(PI()*M54/90)+2*J$2^2-I$2^2)^(3/2)))/N$7 -> -0.5499759064 | P54: =N54-COS(M54*PI()/180)*H$2/100/N$6 -> -0.2716965703 | Q54: =SIN(M54*PI()/180)*H$2/100/N$6 -> -0.2782793361 | R54: =SQRT(SUMSQ(P54,Q54)) -> 0.3889195485 | S54: =(R54-R53)/R54*100 -> 7.323040292 | T54: =DEGREES(ATAN2(P54,Q54)) -> -134.3142487 | U54: =IF(DEGREES(ATAN2(P54,Q54))<0,360+DEGREES(ATAN2(P54,Q54)),DEGREES(ATAN2(P54,Q54))) -> 225.6857513 | W54: =R54*5+W53 -> 87.63501586 | Y54: =N54-COS(M54*PI()/180)*H$7/100/N$6 -> 0.006582765739 | Z54: =SIN(M54*PI()/180)*H$7/100/N$6 -> -0.5565586722 | AA54: =SQRT(SUMSQ(Y54,Z54)) -> 0.5565976 | AB54: =(AA54-AA53)/AA54*100 -> 8.748103437 | AC54: =DEGREES(ATAN2(Y54,Z54)) -> -89.32235876 | AD54: =IF(DEGREES(ATAN2(Y54,Z54))<0,360+DEGREES(ATAN2(Y54,Z54)),DEGREES(ATAN2(Y54,Z54))) -> 270.6776412 | AF54: =AA54*5+AF53 -> 114.9867604 | AH54: 0.5499759064
M55: 230 | N55: =(PI()^2*I$2*COS(PI()*M55/180)/900+SQRT(2)*PI()^2*I$2^2*(4*(2*J$2^2-I$2^2)*COS(PI()*M55/90)+I$2^2*(COS(PI()*M55/45)+3))/(3600*(I$2^2*COS(PI()*M55/90)+2*J$2^2-I$2^2)^(3/2)))/N$7 -> -0.538026207 | P55: =N55-COS(M55*PI()/180)*H$2/100/N$6 -> -0.2850594501 | Q55: =SIN(M55*PI()/180)*H$2/100/N$6 -> -0.3014740414 | R55: =SQRT(SUMSQ(P55,Q55)) -> 0.414904191 | S55: =(R55-R54)/R55*100 -> 6.262805498 | T55: =DEGREES(ATAN2(P55,Q55)) -> -133.3969519 | U55: =IF(DEGREES(ATAN2(P55,Q55))<0,360+DEGREES(ATAN2(P55,Q55)),DEGREES(ATAN2(P55,Q55))) -> 226.6030481 | W55: =R55*5+W54 -> 89.70953681 | Y55: =N55-COS(M55*PI()/180)*H$7/100/N$6 -> -0.03209269309 | Z55: =SIN(M55*PI()/180)*H$7/100/N$6 -> -0.6029480828 | AA55: =SQRT(SUMSQ(Y55,Z55)) -> 0.6038015664 | AB55: =(AA55-AA54)/AA55*100 -> 7.817794614 | AC55: =DEGREES(ATAN2(Y55,Z55)) -> -93.04676708 | AD55: =IF(DEGREES(ATAN2(Y55,Z55))<0,360+DEGREES(ATAN2(Y55,Z55)),DEGREES(ATAN2(Y55,Z55))) -> 266.9532329 | AF55: =AA55*5+AF54 -> 118.0057682 | AH55: 0.538026207
M56: 235 | N56: =(PI()^2*I$2*COS(PI()*M56/180)/900+SQRT(2)*PI()^2*I$2^2*(4*(2*J$2^2-I$2^2)*COS(PI()*M56/90)+I$2^2*(COS(PI()*M56/45)+3))/(3600*(I$2^2*COS(PI()*M56/90)+2*J$2^2-I$2^2)^(3/2)))/N$7 -> -0.521584336 | P56: =N56-COS(M56*PI()/180)*H$2/100/N$6 -> -0.2958553879 | Q56: =SIN(M56*PI()/180)*H$2/100/N$6 -> -0.3223743473 | R56: =SQRT(SUMSQ(P56,Q56)) -> 0.437556431 | S56: =(R56-R55)/R56*100 -> 5.17698711 | T56: =DEGREES(ATAN2(P56,Q56)) -> -132.5438037 | U56: =IF(DEGREES(ATAN2(P56,Q56))<0,360+DEGREES(ATAN2(P56,Q56)),DEGREES(ATAN2(P56,Q56))) -> 227.4561963 | W56: =R56*5+W55 -> 91.89731897 | Y56: =N56-COS(M56*PI()/180)*H$7/100/N$6 -> -0.07012643986 | Z56: =SIN(M56*PI()/180)*H$7/100/N$6 -> -0.6447486945 | AA56: =SQRT(SUMSQ(Y56,Z56)) -> 0.6485511519 | AB56: =(AA56-AA55)/AA56*100 -> 6.899931552 | AC56: =DEGREES(ATAN2(Y56,Z56)) -> -96.20740539 | AD56: =IF(DEGREES(ATAN2(Y56,Z56))<0,360+DEGREES(ATAN2(Y56,Z56)),DEGREES(ATAN2(Y56,Z56))) -> 263.7925946 | AF56: =AA56*5+AF55 -> 121.248524 | AH56: 0.521584336
M57: 240 | N57: =(PI()^2*I$2*COS(PI()*M57/180)/900+SQRT(2)*PI()^2*I$2^2*(4*(2*J$2^2-I$2^2)*COS(PI()*M57/90)+I$2^2*(COS(PI()*M57/45)+3))/(3600*(I$2^2*COS(PI()*M57/90)+2*J$2^2-I$2^2)^(3/2)))/N$7 -> -0.4998550051 | P57: =N57-COS(M57*PI()/180)*H$2/100/N$6 -> -0.3030817995 | Q57: =SIN(M57*PI()/180)*H$2/100/N$6 -> -0.3408211897 | R57: =SQRT(SUMSQ(P57,Q57)) -> 0.4560895312 | S57: =(R57-R56)/R57*100 -> 4.063478534 | T57: =DEGREES(ATAN2(P57,Q57)) -> -131.6457107 | U57: =IF(DEGREES(ATAN2(P57,Q57))<0,360+DEGREES(ATAN2(P57,Q57)),DEGREES(ATAN2(P57,Q57))) -> 228.3542893 | W57: =R57*5+W56 -> 94.17776662 | Y57: =N57-COS(M57*PI()/180)*H$7/100/N$6 -> -0.1063085939 | Z57: =SIN(M57*PI()/180)*H$7/100/N$6 -> -0.6816423794 | AA57: =SQRT(SUMSQ(Y57,Z57)) -> 0.6898824903 | AB57: =(AA57-AA56)/AA57*100 -> 5.991069346 | AC57: =DEGREES(ATAN2(Y57,Z57)) -> -98.8644098 | AD57: =IF(DEGREES(ATAN2(Y57,Z57))<0,360+DEGREES(ATAN2(Y57,Z57)),DEGREES(ATAN2(Y57,Z57))) -> 261.1355902 | AF57: =AA57*5+AF56 -> 124.6979365 | AH57: 0.4998550051
M58: 245 | N58: =(PI()^2*I$2*COS(PI()*M58/180)/900+SQRT(2)*PI()^2*I$2^2*(4*(2*J$2^2-I$2^2)*COS(PI()*M58/90)+I$2^2*(COS(PI()*M58/45)+3))/(3600*(I$2^2*COS(PI()*M58/90)+2*J$2^2-I$2^2)^(3/2)))/N$7 -> -0.4720841444 | P58: =N58-COS(M58*PI()/180)*H$2/100/N$6 -> -0.3057642442 | Q58: =SIN(M58*PI()/180)*H$2/100/N$6 -> -0.356674177 | R58: =SQRT(SUMSQ(P58,Q58)) -> 0.4697959574 | S58: =(R58-R57)/R58*100 -> 2.917527482 | T58: =DEGREES(ATAN2(P58,Q58)) -> -130.6053246 | U58: =IF(DEGREES(ATAN2(P58,Q58))<0,360+DEGREES(ATAN2(P58,Q58)),DEGREES(ATAN2(P58,Q58))) -> 229.3946754 | W58: =R58*5+W57 -> 96.52674641 | Y58: =N58-COS(M58*PI()/180)*H$7/100/N$6 -> -0.139444344 | Z58: =SIN(M58*PI()/180)*H$7/100/N$6 -> -0.7133483541 | AA58: =SQRT(SUMSQ(Y58,Z58)) -> 0.7268497777 | AB58: =(AA58-AA57)/AA58*100 -> 5.085959782 | AC58: =DEGREES(ATAN2(Y58,Z58)) -> -101.0606244 | AD58: =IF(DEGREES(ATAN2(Y58,Z58))<0,360+DEGREES(ATAN2(Y58,Z58)),DEGREES(ATAN2(Y58,Z58))) -> 258.9393756 | AF58: =AA58*5+AF57 -> 128.3321853 | AH58: 0.4720841444
M59: 250 | N59: =(PI()^2*I$2*COS(PI()*M59/180)/900+SQRT(2)*PI()^2*I$2^2*(4*(2*J$2^2-I$2^2)*COS(PI()*M59/90)+I$2^2*(COS(PI()*M59/45)+3))/(3600*(I$2^2*COS(PI()*M59/90)+2*J$2^2-I$2^2)^(3/2)))/N$7 -> -0.4376032823 | P59: =N59-COS(M59*PI()/180)*H$2/100/N$6 -> -0.3030024823 | Q59: =SIN(M59*PI()/180)*H$2/100/N$6 -> -0.3698126586 | R59: =SQRT(SUMSQ(P59,Q59)) -> 0.4780919438 | S59: =(R59-R58)/R59*100 -> 1.735228229 | T59: =DEGREES(ATAN2(P59,Q59)) -> -129.3291505 | U59: =IF(DEGREES(ATAN2(P59,Q59))<0,360+DEGREES(ATAN2(P59,Q59)),DEGREES(ATAN2(P59,Q59))) -> 230.6708495 | W59: =R59*5+W58 -> 98.91720613 | Y59: =N59-COS(M59*PI()/180)*H$7/100/N$6 -> -0.1684016823 | Z59: =SIN(M59*PI()/180)*H$7/100/N$6 -> -0.7396253171 | AA59: =SQRT(SUMSQ(Y59,Z59)) -> 0.7585543727 | AB59: =(AA59-AA58)/AA59*100 -> 4.179607438 | AC59: =DEGREES(ATAN2(Y59,Z59)) -> -102.8267321 | AD59: =IF(DEGREES(ATAN2(Y59,Z59))<0,360+DEGREES(ATAN2(Y59,Z59)),DEGREES(ATAN2(Y59,Z59))) -> 257.1732679 | AF59: =AA59*5+AF58 -> 132.1249572 | AH59: 0.4376032823
M60: 255 | N60: =(PI()^2*I$2*COS(PI()*M60/180)/900+SQRT(2)*PI()^2*I$2^2*(4*(2*J$2^2-I$2^2)*COS(PI()*M60/90)+I$2^2*(COS(PI()*M60/45)+3))/(3600*(I$2^2*COS(PI()*M60/90)+2*J$2^2-I$2^2)^(3/2)))/N$7 -> -0.3958764376 | P60: =N60-COS(M60*PI()/180)*H$2/100/N$6 -> -0.2940191313 | Q60: =SIN(M60*PI()/180)*H$2/100/N$6 -> -0.3801366424 | R60: =SQRT(SUMSQ(P60,Q60)) -> 0.4805737368 | S60: =(R60-R59)/R60*100 -> 0.5164229362 | T60: =DEGREES(ATAN2(P60,Q60)) -> -127.7203896 | U60: =IF(DEGREES(ATAN2(P60,Q60))<0,360+DEGREES(ATAN2(P60,Q60)),DEGREES(ATAN2(P60,Q60))) -> 232.2796104 | W60: =R60*5+W59 -> 101.3200748 | Y60: =N60-COS(M60*PI()/180)*H$7/100/N$6 -> -0.1921618249 | Z60: =SIN(M60*PI()/180)*H$7/100/N$6 -> -0.7602732849 | AA60: =SQRT(SUMSQ(Y60,Z60)) -> 0.7841821438 | AB60: =(AA60-AA59)/AA60*100 -> 3.268089093 | AC60: =DEGREES(ATAN2(Y60,Z60)) -> -104.1846372 | AD60: =IF(DEGREES(ATAN2(Y60,Z60))<0,360+DEGREES(ATAN2(Y60,Z60)),DEGREES(ATAN2(Y60,Z60))) -> 255.8153628 | AF60: =AA60*5+AF59 -> 136.0458679 | AH60: 0.3958764376
M61: 260 | N61: =(PI()^2*I$2*COS(PI()*M61/180)/900+SQRT(2)*PI()^2*I$2^2*(4*(2*J$2^2-I$2^2)*COS(PI()*M61/90)+I$2^2*(COS(PI()*M61/45)+3))/(3600*(I$2^2*COS(PI()*M61/90)+2*J$2^2-I$2^2)^(3/2)))/N$7 -> -0.3465460398 | P61: =N61-COS(M61*PI()/180)*H$2/100/N$6 -> -0.2782074227 | Q61: =SIN(M61*PI()/180)*H$2/100/N$6 -> -0.3875675569 | R61: =SQRT(SUMSQ(P61,Q61)) -> 0.4770827824 | S61: =(R61-R60)/R61*100 -> -0.7317292805 | T61: =DEGREES(ATAN2(P61,Q61)) -> -125.6719003 | U61: =IF(DEGREES(ATAN2(P61,Q61))<0,360+DEGREES(ATAN2(P61,Q61)),DEGREES(ATAN2(P61,Q61))) -> 234.3280997 | W61: =R61*5+W60 -> 103.7054887 | Y61: =N61-COS(M61*PI()/180)*H$7/100/N$6 -> -0.2098688056 | Z61: =SIN(M61*PI()/180)*H$7/100/N$6 -> -0.7751351139 | AA61: =SQRT(SUMSQ(Y61,Z61)) -> 0.8030438097 | AB61: =(AA61-AA60)/AA61*100 -> 2.348771721 | AC61: =DEGREES(ATAN2(Y61,Z61)) -> -105.1496866 | AD61: =IF(DEGREES(ATAN2(Y61,Z61))<0,360+DEGREES(ATAN2(Y61,Z61)),DEGREES(ATAN2(Y61,Z61))) -> 254.8503134 | AF61: =AA61*5+AF60 -> 140.061087 | AH61: 0.3465460398
M62: 265 | N62: =(PI()^2*I$2*COS(PI()*M62/180)/900+SQRT(2)*PI()^2*I$2^2*(4*(2*J$2^2-I$2^2)*COS(PI()*M62/90)+I$2^2*(COS(PI()*M62/45)+3))/(3600*(I$2^2*COS(PI()*M62/90)+2*J$2^2-I$2^2)^(3/2)))/N$7 -> -0.2894738198 | P62: =N62-COS(M62*PI()/180)*H$2/100/N$6 -> -0.2551739901 | Q62: =SIN(M62*PI()/180)*H$2/100/N$6 -> -0.3920488483 | R62: =SQRT(SUMSQ(P62,Q62)) -> 0.4677777941 | S62: =(R62-R61)/R62*100 -> -1.989189821 | T62: =DEGREES(ATAN2(P62,Q62)) -> -123.0590144 | U62: =IF(DEGREES(ATAN2(P62,Q62))<0,360+DEGREES(ATAN2(P62,Q62)),DEGREES(ATAN2(P62,Q62))) -> 236.9409856 | W62: =R62*5+W61 -> 106.0443777 | Y62: =N62-COS(M62*PI()/180)*H$7/100/N$6 -> -0.2208741603 | Z62: =SIN(M62*PI()/180)*H$7/100/N$6 -> -0.7840976966 | AA62: =SQRT(SUMSQ(Y62,Z62)) -> 0.8146131551 | AB62: =(AA62-AA61)/AA62*100 -> 1.420225705 | AC62: =DEGREES(ATAN2(Y62,Z62)) -> -105.7321111 | AD62: =IF(DEGREES(ATAN2(Y62,Z62))<0,360+DEGREES(ATAN2(Y62,Z62)),DEGREES(ATAN2(Y62,Z62))) -> 254.2678889 | AF62: =AA62*5+AF61 -> 144.1341527 | AH62: 0.2894738198
M63: 270 | N63: =(PI()^2*I$2*COS(PI()*M63/180)/900+SQRT(2)*PI()^2*I$2^2*(4*(2*J$2^2-I$2^2)*COS(PI()*M63/90)+I$2^2*(COS(PI()*M63/45)+3))/(3600*(I$2^2*COS(PI()*M63/90)+2*J$2^2-I$2^2)^(3/2)))/N$7 -> -0.2247725667 | P63: =N63-COS(M63*PI()/180)*H$2/100/N$6 -> -0.2247725667 | Q63: =SIN(M63*PI()/180)*H$2/100/N$6 -> -0.3935464112 | R63: =SQRT(SUMSQ(P63,Q63)) -> 0.4532124055 | S63: =(R63-R62)/R63*100 -> -3.213810658 | T63: =DEGREES(ATAN2(P63,Q63)) -> -119.7326868 | U63: =IF(DEGREES(ATAN2(P63,Q63))<0,360+DEGREES(ATAN2(P63,Q63)),DEGREES(ATAN2(P63,Q63))) -> 240.2673132 | W63: =R63*5+W62 -> 108.3104397 | Y63: =N63-COS(M63*PI()/180)*H$7/100/N$6 -> -0.2247725667 | Z63: =SIN(M63*PI()/180)*H$7/100/N$6 -> -0.7870928224 | AA63: =SQRT(SUMSQ(Y63,Z63)) -> 0.8185583778 | AB63: =(AA63-AA62)/AA63*100 -> 0.4819720583 | AC63: =DEGREES(ATAN2(Y63,Z63)) -> -105.9379188 | AD63: =IF(DEGREES(ATAN2(Y63,Z63))<0,360+DEGREES(ATAN2(Y63,Z63)),DEGREES(ATAN2(Y63,Z63))) -> 254.0620812 | AF63: =AA63*5+AF62 -> 148.2269446 | AH63: 0.2247725667
M64: 275 | N64: =(PI()^2*I$2*COS(PI()*M64/180)/900+SQRT(2)*PI()^2*I$2^2*(4*(2*J$2^2-I$2^2)*COS(PI()*M64/90)+I$2^2*(COS(PI()*M64/45)+3))/(3600*(I$2^2*COS(PI()*M64/90)+2*J$2^2-I$2^2)^(3/2)))/N$7 -> -0.1528252038 | P64: =N64-COS(M64*PI()/180)*H$2/100/N$6 -> -0.1871250336 | Q64: =SIN(M64*PI()/180)*H$2/100/N$6 -> -0.3920488483 | R64: =SQRT(SUMSQ(P64,Q64)) -> 0.4344169399 | S64: =(R64-R63)/R64*100 -> -4.326595933 | T64: =DEGREES(ATAN2(P64,Q64)) -> -115.5151572 | U64: =IF(DEGREES(ATAN2(P64,Q64))<0,360+DEGREES(ATAN2(P64,Q64)),DEGREES(ATAN2(P64,Q64))) -> 244.4848428 | W64: =R64*5+W63 -> 110.4825244 | Y64: =N64-COS(M64*PI()/180)*H$7/100/N$6 -> -0.2214248633 | Z64: =SIN(M64*PI()/180)*H$7/100/N$6 -> -0.7840976966 | AA64: =SQRT(SUMSQ(Y64,Z64)) -> 0.8147626452 | AB64: =(AA64-AA63)/AA64*100 -> -0.4658697431 | AC64: =DEGREES(ATAN2(Y64,Z64)) -> -105.7693869 | AD64: =IF(DEGREES(ATAN2(Y64,Z64))<0,360+DEGREES(ATAN2(Y64,Z64)),DEGREES(ATAN2(Y64,Z64))) -> 254.2306131 | AF64: =AA64*5+AF63 -> 152.3007579 | AH64: 0.1528252038
M65: 280 | N65: =(PI()^2*I$2*COS(PI()*M65/180)/900+SQRT(2)*PI()^2*I$2^2*(4*(2*J$2^2-I$2^2)*COS(PI()*M65/90)+I$2^2*(COS(PI()*M65/45)+3))/(3600*(I$2^2*COS(PI()*M65/90)+2*J$2^2-I$2^2)^(3/2)))/N$7 -> -0.07428878622 | P65: =N65-COS(M65*PI()/180)*H$2/100/N$6 -> -0.1426274034 | Q65: =SIN(M65*PI()/180)*H$2/100/N$6 -> -0.3875675569 | R65: =SQRT(SUMSQ(P65,Q65)) -> 0.4129784345 | S65: =(R65-R64)/R65*100 -> -5.191192459 | T65: =DEGREES(ATAN2(P65,Q65)) -> -110.2039462 | U65: =IF(DEGREES(ATAN2(P65,Q65))<0,360+DEGREES(ATAN2(P65,Q65)),DEGREES(ATAN2(P65,Q65))) -> 249.7960538 | W65: =R65*5+W64 -> 112.5474166 | Y65: =N65-COS(M65*PI()/180)*H$7/100/N$6 -> -0.2109660205 | Z65: =SIN(M65*PI()/180)*H$7/100/N$6 -> -0.7751351139 | AA65: =SQRT(SUMSQ(Y65,Z65)) -> 0.8033312558 | AB65: =(AA65-AA64)/AA65*100 -> -1.422998204 | AC65: =DEGREES(ATAN2(Y65,Z65)) -> -105.2252233 | AD65: =IF(DEGREES(ATAN2(Y65,Z65))<0,360+DEGREES(ATAN2(Y65,Z65)),DEGREES(ATAN2(Y65,Z65))) -> 254.7747767 | AF65: =AA65*5+AF64 -> 156.3174141 | AH65: 0.07428878622
M66: 285 | N66: =(PI()^2*I$2*COS(PI()*M66/180)/900+SQRT(2)*PI()^2*I$2^2*(4*(2*J$2^2-I$2^2)*COS(PI()*M66/90)+I$2^2*(COS(PI()*M66/45)+3))/(3600*(I$2^2*COS(PI()*M66/90)+2*J$2^2-I$2^2)^(3/2)))/N$7 -> 0.009917411462 | P66: =N66-COS(M66*PI()/180)*H$2/100/N$6 -> -0.09193989489 | Q66: =SIN(M66*PI()/180)*H$2/100/N$6 -> -0.3801366424 | R66: =SQRT(SUMSQ(P66,Q66)) -> 0.3910969332 | S66: =(R66-R65)/R66*100 -> -5.594904845 | T66: =DEGREES(ATAN2(P66,Q66)) -> -103.5964633 | U66: =IF(DEGREES(ATAN2(P66,Q66))<0,360+DEGREES(ATAN2(P66,Q66)),DEGREES(ATAN2(P66,Q66))) -> 256.4035367 | W66: =R66*5+W65 -> 114.5029013 | Y66: =N66-COS(M66*PI()/180)*H$7/100/N$6 -> -0.1937972012 | Z66: =SIN(M66*PI()/180)*H$7/100/N$6 -> -0.7602732849 | AA66: =SQRT(SUMSQ(Y66,Z66)) -> 0.7845844906 | AB66: =(AA66-AA65)/AA66*100 -> -2.389387685 | AC66: =DEGREES(ATAN2(Y66,Z66)) -> -104.3004225 | AD66: =IF(DEGREES(ATAN2(Y66,Z66))<0,360+DEGREES(ATAN2(Y66,Z66)),DEGREES(ATAN2(Y66,Z66))) -> 255.6995775 | AF66: =AA66*5+AF65 -> 160.2403366 | AH66: 0.009917411462
M67: 290 | N67: =(PI()^2*I$2*COS(PI()*M67/180)/900+SQRT(2)*PI()^2*I$2^2*(4*(2*J$2^2-I$2^2)*COS(PI()*M67/90)+I$2^2*(COS(PI()*M67/45)+3))/(3600*(I$2^2*COS(PI()*M67/90)+2*J$2^2-I$2^2)^(3/2)))/N$7 -> 0.0986388261 | P67: =N67-COS(M67*PI()/180)*H$2/100/N$6 -> -0.03596197387 | Q67: =SIN(M67*PI()/180)*H$2/100/N$6 -> -0.3698126586 | R67: =SQRT(SUMSQ(P67,Q67)) -> 0.3715570831 | S67: =(R67-R66)/R67*100 -> -5.258909344 | T67: =DEGREES(ATAN2(P67,Q67)) -> -95.55419357 | U67: =IF(DEGREES(ATAN2(P67,Q67))<0,360+DEGREES(ATAN2(P67,Q67)),DEGREES(ATAN2(P67,Q67))) -> 264.4458064 | W67: =R67*5+W66 -> 116.3606867 | Y67: =N67-COS(M67*PI()/180)*H$7/100/N$6 -> -0.1705627738 | Z67: =SIN(M67*PI()/180)*H$7/100/N$6 -> -0.7396253171 | AA67: =SQRT(SUMSQ(Y67,Z67)) -> 0.7590370673 | AB67: =(AA67-AA66)/AA67*100 -> -3.365767551 | AC67: =DEGREES(ATAN2(Y67,Z67)) -> -102.9857912 | AD67: =IF(DEGREES(ATAN2(Y67,Z67))<0,360+DEGREES(ATAN2(Y67,Z67)),DEGREES(ATAN2(Y67,Z67))) -> 257.0142088 | AF67: =AA67*5+AF66 -> 164.0355219 | AH67: 0.0986388261
M68: 295 | N68: =(PI()^2*I$2*COS(PI()*M68/180)/900+SQRT(2)*PI()^2*I$2^2*(4*(2*J$2^2-I$2^2)*COS(PI()*M68/90)+I$2^2*(COS(PI()*M68/45)+3))/(3600*(I$2^2*COS(PI()*M68/90)+2*J$2^2-I$2^2)^(3/2)))/N$7 -> 0.190525097 | P68: =N68-COS(M68*PI()/180)*H$2/100/N$6 -> 0.02420519676 | Q68: =SIN(M68*PI()/180)*H$2/100/N$6 -> -0.356674177 | R68: =SQRT(SUMSQ(P68,Q68)) -> 0.3574945596 | S68: =(R68-R67)/R68*100 -> -3.933632875 | T68: =DEGREES(ATAN2(P68,Q68)) -> -86.11765435 | U68: =IF(DEGREES(ATAN2(P68,Q68))<0,360+DEGREES(ATAN2(P68,Q68)),DEGREES(ATAN2(P68,Q68))) -> 273.8823457 | W68: =R68*5+W67 -> 118.1481595 | Y68: =N68-COS(M68*PI()/180)*H$7/100/N$6 -> -0.1421147035 | Z68: =SIN(M68*PI()/180)*H$7/100/N$6 -> -0.7133483541 | AA68: =SQRT(SUMSQ(Y68,Z68)) -> 0.727366801 | AB68: =(AA68-AA67)/AA68*100 -> -4.354098405 | AC68: =DEGREES(ATAN2(Y68,Z68)) -> -101.2670658 | AD68: =IF(DEGREES(ATAN2(Y68,Z68))<0,360+DEGREES(ATAN2(Y68,Z68)),DEGREES(ATAN2(Y68,Z68))) -> 258.7329342 | AF68: =AA68*5+AF67 -> 167.6723559 | AH68: 0.190525097
M69: 300 | N69: =(PI()^2*I$2*COS(PI()*M69/180)/900+SQRT(2)*PI()^2*I$2^2*(4*(2*J$2^2-I$2^2)*COS(PI()*M69/90)+I$2^2*(COS(PI()*M69/45)+3))/(3600*(I$2^2*COS(PI()*M69/90)+2*J$2^2-I$2^2)^(3/2)))/N$7 -> 0.2840785129 | P69: =N69-COS(M69*PI()/180)*H$2/100/N$6 -> 0.08730530731 | Q69: =SIN(M69*PI()/180)*H$2/100/N$6 -> -0.3408211897 | R69: =SQRT(SUMSQ(P69,Q69)) -> 0.3518256671 | S69: =(R69-R68)/R69*100 -> -1.611278827 | T69: =DEGREES(ATAN2(P69,Q69)) -> -75.63197332 | U69: =IF(DEGREES(ATAN2(P69,Q69))<0,360+DEGREES(ATAN2(P69,Q69)),DEGREES(ATAN2(P69,Q69))) -> 284.3680267 | W69: =R69*5+W68 -> 119.9072878 | Y69: =N69-COS(M69*PI()/180)*H$7/100/N$6 -> -0.1094678983 | Z69: =SIN(M69*PI()/180)*H$7/100/N$6 -> -0.6816423794 | AA69: =SQRT(SUMSQ(Y69,Z69)) -> 0.6903763858 | AB69: =(AA69-AA68)/AA69*100 -> -5.358007017 | AC69: =DEGREES(ATAN2(Y69,Z69)) -> -99.12347621 | AD69: =IF(DEGREES(ATAN2(Y69,Z69))<0,360+DEGREES(ATAN2(Y69,Z69)),DEGREES(ATAN2(Y69,Z69))) -> 260.8765238 | AF69: =AA69*5+AF68 -> 171.1242379 | AH69: 0.2840785129
M70: 305 | N70: =(PI()^2*I$2*COS(PI()*M70/180)/900+SQRT(2)*PI()^2*I$2^2*(4*(2*J$2^2-I$2^2)*COS(PI()*M70/90)+I$2^2*(COS(PI()*M70/45)+3))/(3600*(I$2^2*COS(PI()*M70/90)+2*J$2^2-I$2^2)^(3/2)))/N$7 -> 0.3777072512 | P70: =N70-COS(M70*PI()/180)*H$2/100/N$6 -> 0.1519783031 | Q70: =SIN(M70*PI()/180)*H$2/100/N$6 -> -0.3223743473 | R70: =SQRT(SUMSQ(P70,Q70)) -> 0.356402335 | S70: =(R70-R69)/R70*100 -> 1.284129607 | T70: =DEGREES(ATAN2(P70,Q70)) -> -64.75920535 | U70: =IF(DEGREES(ATAN2(P70,Q70))<0,360+DEGREES(ATAN2(P70,Q70)),DEGREES(ATAN2(P70,Q70))) -> 295.2407947 | W70: =R70*5+W69 -> 121.6892995 | Y70: =N70-COS(M70*PI()/180)*H$7/100/N$6 -> -0.07375064501 | Z70: =SIN(M70*PI()/180)*H$7/100/N$6 -> -0.6447486945 | AA70: =SQRT(SUMSQ(Y70,Z70)) -> 0.6489530312 | AB70: =(AA70-AA69)/AA70*100 -> -6.383105185 | AC70: =DEGREES(ATAN2(Y70,Z70)) -> -96.52551047 | AD70: =IF(DEGREES(ATAN2(Y70,Z70))<0,360+DEGREES(ATAN2(Y70,Z70)),DEGREES(ATAN2(Y70,Z70))) -> 263.4744895 | AF70: =AA70*5+AF69 -> 174.369003 | AH70: 0.3777072512
M71: 310 | N71: =(PI()^2*I$2*COS(PI()*M71/180)/900+SQRT(2)*PI()^2*I$2^2*(4*(2*J$2^2-I$2^2)*COS(PI()*M71/90)+I$2^2*(COS(PI()*M71/45)+3))/(3600*(I$2^2*COS(PI()*M71/90)+2*J$2^2-I$2^2)^(3/2)))/N$7 -> 0.4697792974 | P71: =N71-COS(M71*PI()/180)*H$2/100/N$6 -> 0.2168125404 | Q71: =SIN(M71*PI()/180)*H$2/100/N$6 -> -0.3014740414 | R71: =SQRT(SUMSQ(P71,Q71)) -> 0.3713411845 | S71: =(R71-R70)/R71*100 -> 4.02294444 | T71: =DEGREES(ATAN2(P71,Q71)) -> -54.27726242 | U71: =IF(DEGREES(ATAN2(P71,Q71))<0,360+DEGREES(ATAN2(P71,Q71)),DEGREES(ATAN2(P71,Q71))) -> 305.7227376 | W71: =R71*5+W70 -> 123.5460054 | Y71: =N71-COS(M71*PI()/180)*H$7/100/N$6 -> -0.03615421657 | Z71: =SIN(M71*PI()/180)*H$7/100/N$6 -> -0.6029480828 | AA71: =SQRT(SUMSQ(Y71,Z71)) -> 0.6040310571 | AB71: =(AA71-AA70)/AA71*100 -> -7.437030526 | AC71: =DEGREES(ATAN2(Y71,Z71)) -> -93.431484 | AD71: =IF(DEGREES(ATAN2(Y71,Z71))<0,360+DEGREES(ATAN2(Y71,Z71)),DEGREES(ATAN2(Y71,Z71))) -> 266.568516 | AF71: =AA71*5+AF70 -> 177.3891583 | AH71: 0.4697792974
M72: 315 | N72: =(PI()^2*I$2*COS(PI()*M72/180)/900+SQRT(2)*PI()^2*I$2^2*(4*(2*J$2^2-I$2^2)*COS(PI()*M72/90)+I$2^2*(COS(PI()*M72/45)+3))/(3600*(I$2^2*COS(PI()*M72/90)+2*J$2^2-I$2^2)^(3/2)))/N$7 -> 0.5586735067 | P72: =N72-COS(M72*PI()/180)*H$2/100/N$6 -> 0.2803941707 | Q72: =SIN(M72*PI()/180)*H$2/100/N$6 -> -0.2782793361 | R72: =SQRT(SUMSQ(P72,Q72)) -> 0.3950446555 | S72: =(R72-R71)/R72*100 -> 6.000200391 | T72: =DEGREES(ATAN2(P72,Q72)) -> -44.78311032 | U72: =IF(DEGREES(ATAN2(P72,Q72))<0,360+DEGREES(ATAN2(P72,Q72)),DEGREES(ATAN2(P72,Q72))) -> 315.2168897 | W72: =R72*5+W71 -> 125.5212287 | Y72: =N72-COS(M72*PI()/180)*H$7/100/N$6 -> 0.002114834573 | Z72: =SIN(M72*PI()/180)*H$7/100/N$6 -> -0.5565586722 | AA72: =SQRT(SUMSQ(Y72,Z72)) -> 0.5565626902 | AB72: =(AA72-AA71)/AA72*100 -> -8.528844603 | AC72: =DEGREES(ATAN2(Y72,Z72)) -> -89.78228618 | AD72: =IF(DEGREES(ATAN2(Y72,Z72))<0,360+DEGREES(ATAN2(Y72,Z72)),DEGREES(ATAN2(Y72,Z72))) -> 270.2177138 | AF72: =AA72*5+AF71 -> 180.1719718 | AH72: 0.5586735067
M73: 320 | N73: =(PI()^2*I$2*COS(PI()*M73/180)/900+SQRT(2)*PI()^2*I$2^2*(4*(2*J$2^2-I$2^2)*COS(PI()*M73/90)+I$2^2*(COS(PI()*M73/45)+3))/(3600*(I$2^2*COS(PI()*M73/90)+2*J$2^2-I$2^2)^(3/2)))/N$7 -> 0.6428251767 | P73: =N73-COS(M73*PI()/180)*H$2/100/N$6 -> 0.3413511353 | Q73: =SIN(M73*PI()/180)*H$2/100/N$6 -> -0.252966757 | R73: =SQRT(SUMSQ(P73,Q73)) -> 0.4248679532 | S73: =(R73-R72)/R73*100 -> 7.019427453 | T73: =DEGREES(ATAN2(P73,Q73)) -> -36.54121583 | U73: =IF(DEGREES(ATAN2(P73,Q73))<0,360+DEGREES(ATAN2(P73,Q73)),DEGREES(ATAN2(P73,Q73))) -> 323.4587842 | W73: =R73*5+W72 -> 127.6455685 | Y73: =N73-COS(M73*PI()/180)*H$7/100/N$6 -> 0.03987709386 | Z73: =SIN(M73*PI()/180)*H$7/100/N$6 -> -0.5059335139 | AA73: =SQRT(SUMSQ(Y73,Z73)) -> 0.5075026139 | AB73: =(AA73-AA72)/AA73*100 -> -9.666960308 | AC73: =DEGREES(ATAN2(Y73,Z73)) -> -85.49333001 | AD73: =IF(DEGREES(ATAN2(Y73,Z73))<0,360+DEGREES(ATAN2(Y73,Z73)),DEGREES(ATAN2(Y73,Z73))) -> 274.50667 | AF73: =AA73*5+AF72 -> 182.7094848 | AH73: 0.6428251767
M74: 325 | N74: =(PI()^2*I$2*COS(PI()*M74/180)/900+SQRT(2)*PI()^2*I$2^2*(4*(2*J$2^2-I$2^2)*COS(PI()*M74/90)+I$2^2*(COS(PI()*M74/45)+3))/(3600*(I$2^2*COS(PI()*M74/90)+2*J$2^2-I$2^2)^(3/2)))/N$7 -> 0.7207645453 | P74: =N74-COS(M74*PI()/180)*H$2/100/N$6 -> 0.398390198 | Q74: =SIN(M74*PI()/180)*H$2/100/N$6 -> -0.2257289481 | R74: =SQRT(SUMSQ(P74,Q74)) -> 0.4578955207 | S74: =(R74-R73)/R74*100 -> 7.212904682 | T74: =DEGREES(ATAN2(P74,Q74)) -> -29.53600649 | U74: =IF(DEGREES(ATAN2(P74,Q74))<0,360+DEGREES(ATAN2(P74,Q74)),DEGREES(ATAN2(P74,Q74))) -> 330.4639935 | W74: =R74*5+W73 -> 129.9350461 | Y74: =N74-COS(M74*PI()/180)*H$7/100/N$6 -> 0.07601585072 | Z74: =SIN(M74*PI()/180)*H$7/100/N$6 -> -0.4514578962 | AA74: =SQRT(SUMSQ(Y74,Z74)) -> 0.4578128893 | AB74: =(AA74-AA73)/AA74*100 -> -10.85371902 | AC74: =DEGREES(ATAN2(Y74,Z74)) -> -80.44226853 | AD74: =IF(DEGREES(ATAN2(Y74,Z74))<0,360+DEGREES(ATAN2(Y74,Z74)),DEGREES(ATAN2(Y74,Z74))) -> 279.5577315 | AF74: =AA74*5+AF73 -> 184.9985493 | AH74: 0.7207645453
M75: 330 | N75: =(PI()^2*I$2*COS(PI()*M75/180)/900+SQRT(2)*PI()^2*I$2^2*(4*(2*J$2^2-I$2^2)*COS(PI()*M75/90)+I$2^2*(COS(PI()*M75/45)+3))/(3600*(I$2^2*COS(PI()*M75/90)+2*J$2^2-I$2^2)^(3/2)))/N$7 -> 0.791147627 | P75: =N75-COS(M75*PI()/180)*H$2/100/N$6 -> 0.4503264373 | Q75: =SIN(M75*PI()/180)*H$2/100/N$6 -> -0.1967732056 | R75: =SQRT(SUMSQ(P75,Q75)) -> 0.4914403266 | S75: =(R75-R74)/R75*100 -> 6.825814664 | T75: =DEGREES(ATAN2(P75,Q75)) -> -23.60325026 | U75: =IF(DEGREES(ATAN2(P75,Q75))<0,360+DEGREES(ATAN2(P75,Q75)),DEGREES(ATAN2(P75,Q75))) -> 336.3967497 | W75: =R75*5+W74 -> 132.3922477 | Y75: =N75-COS(M75*PI()/180)*H$7/100/N$6 -> 0.1095052476 | Z75: =SIN(M75*PI()/180)*H$7/100/N$6 -> -0.3935464112 | AA75: =SQRT(SUMSQ(Y75,Z75)) -> 0.4084974627 | AB75: =(AA75-AA74)/AA75*100 -> -12.07239483 | AC75: =DEGREES(ATAN2(Y75,Z75)) -> -74.45064431 | AD75: =IF(DEGREES(ATAN2(Y75,Z75))<0,360+DEGREES(ATAN2(Y75,Z75)),DEGREES(ATAN2(Y75,Z75))) -> 285.5493557 | AF75: =AA75*5+AF74 -> 187.0410366 | AH75: 0.791147627
M76: 335 | N76: =(PI()^2*I$2*COS(PI()*M76/180)/900+SQRT(2)*PI()^2*I$2^2*(4*(2*J$2^2-I$2^2)*COS(PI()*M76/90)+I$2^2*(COS(PI()*M76/45)+3))/(3600*(I$2^2*COS(PI()*M76/90)+2*J$2^2-I$2^2)^(3/2)))/N$7 -> 0.8527796197 | P76: =N76-COS(M76*PI()/180)*H$2/100/N$6 -> 0.4961054427 | Q76: =SIN(M76*PI()/180)*H$2/100/N$6 -> -0.1663199002 | R76: =SQRT(SUMSQ(P76,Q76)) -> 0.5232426965 | S76: =(R76-R75)/R76*100 -> 6.077938629 | T76: =DEGREES(ATAN2(P76,Q76)) -> -18.53378431 | U76: =IF(DEGREES(ATAN2(P76,Q76))<0,360+DEGREES(ATAN2(P76,Q76)),DEGREES(ATAN2(P76,Q76))) -> 341.4662157 | W76: =R76*5+W75 -> 135.0084612 | Y76: =N76-COS(M76*PI()/180)*H$7/100/N$6 -> 0.1394312656 | Z76: =SIN(M76*PI()/180)*H$7/100/N$6 -> -0.3326398004 | AA76: =SQRT(SUMSQ(Y76,Z76)) -> 0.3606803497 | AB76: =(AA76-AA75)/AA76*100 -> -13.2574766 | AC76: =DEGREES(ATAN2(Y76,Z76)) -> -67.25823002 | AD76: =IF(DEGREES(ATAN2(Y76,Z76))<0,360+DEGREES(ATAN2(Y76,Z76)),DEGREES(ATAN2(Y76,Z76))) -> 292.74177 | AF76: =AA76*5+AF75 -> 188.8444383 | AH76: 0.8527796197
M77: 340 | N77: =(PI()^2*I$2*COS(PI()*M77/180)/900+SQRT(2)*PI()^2*I$2^2*(4*(2*J$2^2-I$2^2)*COS(PI()*M77/90)+I$2^2*(COS(PI()*M77/45)+3))/(3600*(I$2^2*COS(PI()*M77/90)+2*J$2^2-I$2^2)^(3/2)))/N$7 -> 0.9046316987 | P77: =N77-COS(M77*PI()/180)*H$2/100/N$6 -> 0.5348190402 | Q77: =SIN(M77*PI()/180)*H$2/100/N$6 -> -0.1346008 | R77: =SQRT(SUMSQ(P77,Q77)) -> 0.551496855 | S77: =(R77-R76)/R77*100 -> 5.123176716 | T77: =DEGREES(ATAN2(P77,Q77)) -> -14.12655489 | U77: =IF(DEGREES(ATAN2(P77,Q77))<0,360+DEGREES(ATAN2(P77,Q77)),DEGREES(ATAN2(P77,Q77))) -> 345.8734451 | W77: =R77*5+W76 -> 137.7659454 | Y77: =N77-COS(M77*PI()/180)*H$7/100/N$6 -> 0.1650063816 | Z77: =SIN(M77*PI()/180)*H$7/100/N$6 -> -0.2692015999 | AA77: =SQRT(SUMSQ(Y77,Z77)) -> 0.3157476958 | AB77: =(AA77-AA76)/AA77*100 -> -14.23055641 | AC77: =DEGREES(ATAN2(Y77,Z77)) -> -58.49389952 | AD77: =IF(DEGREES(ATAN2(Y77,Z77))<0,360+DEGREES(ATAN2(Y77,Z77)),DEGREES(ATAN2(Y77,Z77))) -> 301.5061005 | AF77: =AA77*5+AF76 -> 190.4231768 | AH77: 0.9046316987
M78: 345 | N78: =(PI()^2*I$2*COS(PI()*M78/180)/900+SQRT(2)*PI()^2*I$2^2*(4*(2*J$2^2-I$2^2)*COS(PI()*M78/90)+I$2^2*(COS(PI()*M78/45)+3))/(3600*(I$2^2*COS(PI()*M78/90)+2*J$2^2-I$2^2)^(3/2)))/N$7 -> 0.945852347 | P78: =N78-COS(M78*PI()/180)*H$2/100/N$6 -> 0.5657157046 | Q78: =SIN(M78*PI()/180)*H$2/100/N$6 -> -0.1018573064 | R78: =SQRT(SUMSQ(P78,Q78)) -> 0.5748122904 | S78: =(R78-R77)/R78*100 -> 4.056182485 | T78: =DEGREES(ATAN2(P78,Q78)) -> -10.20676759 | U78: =IF(DEGREES(ATAN2(P78,Q78))<0,360+DEGREES(ATAN2(P78,Q78)),DEGREES(ATAN2(P78,Q78))) -> 349.7932324 | W78: =R78*5+W77 -> 140.6400069 | Y78: =N78-COS(M78*PI()/180)*H$7/100/N$6 -> 0.1855790621 | Z78: =SIN(M78*PI()/180)*H$7/100/N$6 -> -0.2037146127 | AA78: =SQRT(SUMSQ(Y78,Z78)) -> 0.2755707382 | AB78: =(AA78-AA77)/AA78*100 -> -14.57954421 | AC78: =DEGREES(ATAN2(Y78,Z78)) -> -47.66724034 | AD78: =IF(DEGREES(ATAN2(Y78,Z78))<0,360+DEGREES(ATAN2(Y78,Z78)),DEGREES(ATAN2(Y78,Z78))) -> 312.3327597 | AF78: =AA78*5+AF77 -> 191.8010305 | AH78: 0.945852347
M79: 350 | N79: =(PI()^2*I$2*COS(PI()*M79/180)/900+SQRT(2)*PI()^2*I$2^2*(4*(2*J$2^2-I$2^2)*COS(PI()*M79/90)+I$2^2*(COS(PI()*M79/45)+3))/(3600*(I$2^2*COS(PI()*M79/90)+2*J$2^2-I$2^2)^(3/2)))/N$7 -> 0.9757744871 | P79: =N79-COS(M79*PI()/180)*H$2/100/N$6 -> 0.5882069302 | Q79: =SIN(M79*PI()/180)*H$2/100/N$6 -> -0.06833861713 | R79: =SQRT(SUMSQ(P79,Q79)) -> 0.5921634566 | S79: =(R79-R78)/R79*100 -> 2.930131193 | T79: =DEGREES(ATAN2(P79,Q79)) -> -6.626984732 | U79: =IF(DEGREES(ATAN2(P79,Q79))<0,360+DEGREES(ATAN2(P79,Q79)),DEGREES(ATAN2(P79,Q79))) -> 353.3730153 | W79: =R79*5+W78 -> 143.6008242 | Y79: =N79-COS(M79*PI()/180)*H$7/100/N$6 -> 0.2006393733 | Z79: =SIN(M79*PI()/180)*H$7/100/N$6 -> -0.1366772343 | AA79: =SQRT(SUMSQ(Y79,Z79)) -> 0.2427690764 | AB79: =(AA79-AA78)/AA79*100 -> -13.51146621 | AC79: =DEGREES(ATAN2(Y79,Z79)) -> -34.2630213 | AD79: =IF(DEGREES(ATAN2(Y79,Z79))<0,360+DEGREES(ATAN2(Y79,Z79)),DEGREES(ATAN2(Y79,Z79))) -> 325.7369787 | AF79: =AA79*5+AF78 -> 193.0148759 | AH79: 0.9757744871
M80: 355 | N80: =(PI()^2*I$2*COS(PI()*M80/180)/900+SQRT(2)*PI()^2*I$2^2*(4*(2*J$2^2-I$2^2)*COS(PI()*M80/90)+I$2^2*(COS(PI()*M80/45)+3))/(3600*(I$2^2*COS(PI()*M80/90)+2*J$2^2-I$2^2)^(3/2)))/N$7 -> 0.9939196201 | P80: =N80-COS(M80*PI()/180)*H$2/100/N$6 -> 0.6018707718 | Q80: =SIN(M80*PI()/180)*H$2/100/N$6 -> -0.03429982978 | R80: =SQRT(SUMSQ(P80,Q80)) -> 0.6028473308 | S80: =(R80-R79)/R80*100 -> 1.772235462 | T80: =DEGREES(ATAN2(P80,Q80)) -> -3.261683748 | U80: =IF(DEGREES(ATAN2(P80,Q80))<0,360+DEGREES(ATAN2(P80,Q80)),DEGREES(ATAN2(P80,Q80))) -> 356.7383163 | W80: =R80*5+W79 -> 146.6150608 | Y80: =N80-COS(M80*PI()/180)*H$7/100/N$6 -> 0.2098219235 | Z80: =SIN(M80*PI()/180)*H$7/100/N$6 -> -0.06859965955 | AA80: =SQRT(SUMSQ(Y80,Z80)) -> 0.2207513372 | AB80: =(AA80-AA79)/AA80*100 -> -9.974000415 | AC80: =DEGREES(ATAN2(Y80,Z80)) -> -18.10475742 | AD80: =IF(DEGREES(ATAN2(Y80,Z80))<0,360+DEGREES(ATAN2(Y80,Z80)),DEGREES(ATAN2(Y80,Z80))) -> 341.8952426 | AF80: =AA80*5+AF79 -> 194.1186326 | AH80: 0.9939196201
M81: 360 | N81: =(PI()^2*I$2*COS(PI()*M81/180)/900+SQRT(2)*PI()^2*I$2^2*(4*(2*J$2^2-I$2^2)*COS(PI()*M81/90)+I$2^2*(COS(PI()*M81/45)+3))/(3600*(I$2^2*COS(PI()*M81/90)+2*J$2^2-I$2^2)^(3/2)))/N$7 -> 1 | P81: =N81-COS(M81*PI()/180)*H$2/100/N$6 -> 0.6064535888 | Q81: =SIN(M81*PI()/180)*H$2/100/N$6 -> -9.639107056e-17 | R81: =SQRT(SUMSQ(P81,Q81)) -> 0.6064535888 | S81: =(R81-R80)/R81*100 -> 0.5946469887 | T81: =DEGREES(ATAN2(P81,Q81)) -> -9.106717526e-15 | U81: =IF(DEGREES(ATAN2(P81,Q81))<0,360+DEGREES(ATAN2(P81,Q81)),DEGREES(ATAN2(P81,Q81))) -> 360 | W81: =R81*5+W80 -> 149.6473288 | Y81: =N81-COS(M81*PI()/180)*H$7/100/N$6 -> 0.2129071776 | Z81: =SIN(M81*PI()/180)*H$7/100/N$6 -> -1.927821411e-16 | AA81: =SQRT(SUMSQ(Y81,Z81)) -> 0.2129071776 | AB81: =(AA81-AA80)/AA81*100 -> -3.684309601 | AC81: =DEGREES(ATAN2(Y81,Z81)) -> -5.187989986e-14 | AD81: =IF(DEGREES(ATAN2(Y81,Z81))<0,360+DEGREES(ATAN2(Y81,Z81)),DEGREES(ATAN2(Y81,Z81))) -> 360 | AF81: =AA81*5+AF80 -> 195.1831685 | AH81: 1
